Workbook

Sheet NHL5v5
A1: Strength | B1: Sit | C1: Team | D1: Gm | E1: season | F1: GF | G1: GA | H1: G+/- | I1: CF% | J1: CP60 | K1: OFOn% | L1: OSh% | M1: OSv% | N1: FO% | O1: PDO | P1: ZSO% | Q1: HSCF% | R1: HSC+/- | S1: HSCF | T1: HSCA | U1: HSCF60 | V1: HSCA60 | W1: HSCP60 | X1: SCF% | Y1: SC+/- | Z1: SCF | AA1: SCA | AB1: SCF60 | AC1: SCA60 | AD1: SCP60 | AE1: CF%2 | AF1: C+/- | AG1: CF | AH1: CA | AI1: CF60 | AJ1: CA60 | AK1: CP603 | AL1: FF% | AM1: F+/- | AN1: FF60 | AO1: FA60 | AP1: FF | AQ1: FA | AR1: FP60 | AS1: MSF | AT1: MSA | AU1: BSF | AV1: BSA | AW1: SF% | AX1: S+/- | AY1: SF60 | AZ1: SA60 | BA1: SF | BB1: SA | BC1: GF60 | BD1: GA60 | BE1: GF% | BF1: OSh%4 | BG1: OFenSh% | BH1: OSv%5 | BI1: OCOn% | BJ1: OFOn%6 | BK1: FO%7 | BL1: FO_W | BM1: FO_L | BN1: ZSO | BO1: ZSN | BP1: ZSD | BQ1: HIT | BR1: HIT- | BS1: PN | BT1: PN- | BU1: PenD | BV1: TOI | BW1: Csh | BX1: Msh | BY1: Bsh | BZ1: CshA | CA1: MshA | CB1: BshA
A2: 5v5 | B2: ScAdj | C2: ANA | D2: 81 | E2: 20052006 | F2: 130 | G2: 111 | H2: 19 | I2: 53.8 | J2: 102 | K2: 71.6 | L2: 9.2 | M2: 91.4 | N2: 50.5 | O2: 100.6 | P2: 50.5 | Q2: 51.7 | R2: 30.4 | S2: 464.3 | T2: 433.9 | U2: 9.9 | V2: 9.3 | W2: 19.2 | X2: 53.5 | Y2: 166.9 | Z2: 1276 | AA2: 1109.2 | AB2: 27.3 | AC2: 23.8 | AD2: 51.1 | AE2: 53.8 | AF2: 357.7 | AG2: 2560.6 | AH2: 2202.9 | AI2: 54.8 | AJ2: 47.2 | AK2: 102 | AL2: 52.3 | AM2: 172.3 | AN2: 42.2 | AO2: 38.5 | AP2: 1968.9 | AQ2: 1796.6 | AR2: 80.6 | AS2: 558.8 | AT2: 507.4 | AU2: 591.8 | AV2: 406.3 | AW2: 52.2 | AX2: 120.9 | AY2: 30.2 | AZ2: 27.6 | BA2: 1410.1 | BB2: 1289.2 | BC2: 2.8 | BD2: 2.4 | BE2: 53.9 | BF2: 9.2 | BG2: 6.6 | BH2: 91.4 | BI2: 55.1 | BJ2: 71.6 | BK2: 50.5 | BL2: 1281 | BM2: 1255 | BN2: 755 | BO2: 1041 | BP2: 740 | BQ2: 916 | BR2: 773 | BS2: 33 | BT2: 37 | BU2: 4 | BV2: 2801.4 | BW2: =Table1[[#This Row],[SF]]/Table1[[#This Row],[CF]] -> 0.5506912442 | BX2: =Table1[[#This Row],[MSF]]/Table1[[#This Row],[CF]] -> 0.2182301023 | BY2: =Table1[[#This Row],[BSF]]/Table1[[#This Row],[CF]] -> 0.2311177068 | BZ2: =Table1[[#This Row],[SA]]/Table1[[#This Row],[CA]] -> 0.5852285623 | CA2: =Table1[[#This Row],[MSA]]/Table1[[#This Row],[CA]] -> 0.2303327432 | CB2: =Table1[[#This Row],[BSA]]/Table1[[#This Row],[CA]] -> 0.1844386944
A3: 5v5 | B3: Close | C3: ANA | D3: 80 | E3: 20052006 | F3: 86 | G3: 71 | H3: 15 | I3: 54.1 | J3: 105.2 | K3: 74.4 | L3: 8.8 | M3: 91.8 | N3: 50.9 | O3: 100.6 | P3: 51.2 | Q3: 50.8 | R3: 10 | S3: 303 | T3: 293 | U3: 10.3 | V3: 9.9 | W3: 20.2 | X3: 54 | Y3: 125 | Z3: 846 | AA3: 721 | AB3: 28.6 | AC3: 24.4 | AD3: 53 | AE3: 54.1 | AF3: 254 | AG3: 1682 | AH3: 1428 | AI3: 56.9 | AJ3: 48.3 | AK3: 105.2 | AL3: 52.7 | AM3: 134 | AN3: 44.5 | AO3: 39.9 | AP3: 1314 | AQ3: 1180 | AR3: 84.4 | AS3: 336 | AT3: 316 | AU3: 368 | AV3: 248 | AW3: 53.1 | AX3: 114 | AY3: 33.1 | AZ3: 29.2 | BA3: 978 | BB3: 864 | BC3: 2.9 | BD3: 2.4 | BE3: 54.8 | BF3: 8.8 | BG3: 6.5 | BH3: 91.8 | BI3: 58.1 | BJ3: 74.4 | BK3: 50.9 | BL3: 831 | BM3: 801 | BN3: 513 | BO3: 630 | BP3: 489 | BQ3: 634 | BR3: 492 | BS3: 19 | BT3: 21 | BU3: 2 | BV3: 1773 | BW3: =Table1[[#This Row],[SF]]/Table1[[#This Row],[CF]] -> 0.581450654 | BX3: =Table1[[#This Row],[MSF]]/Table1[[#This Row],[CF]] -> 0.1997621879 | BY3: =Table1[[#This Row],[BSF]]/Table1[[#This Row],[CF]] -> 0.2187871581 | BZ3: =Table1[[#This Row],[SA]]/Table1[[#This Row],[CA]] -> 0.6050420168 | CA3: =Table1[[#This Row],[MSA]]/Table1[[#This Row],[CA]] -> 0.2212885154 | CB3: =Table1[[#This Row],[BSA]]/Table1[[#This Row],[CA]] -> 0.1736694678
A4: 5v5 | B4: Tied | C4: ANA | D4: 80 | E4: 20052006 | F4: 50 | G4: 43 | H4: 7 | I4: 53.9 | J4: 103.9 | K4: 75.4 | L4: 8.5 | M4: 91.8 | N4: 53.4 | O4: 100.3 | P4: 49.8 | Q4: 48.5 | R4: -11 | S4: 173 | T4: 184 | U4: 9.8 | V4: 10.4 | W4: 20.2 | X4: 52.9 | Y4: 54 | Z4: 495 | AA4: 441 | AB4: 28 | AC4: 24.9 | AD4: 52.9 | AE4: 53.9 | AF4: 144 | AG4: 991 | AH4: 847 | AI4: 56 | AJ4: 47.9 | AK4: 103.9 | AL4: 52.4 | AM4: 72 | AN4: 44 | AO4: 39.9 | AP4: 778 | AQ4: 706 | AR4: 83.9 | AS4: 191 | AT4: 181 | AU4: 213 | AV4: 141 | AW4: 52.8 | AX4: 62 | AY4: 33.2 | AZ4: 29.7 | BA4: 587 | BB4: 525 | BC4: 2.8 | BD4: 2.4 | BE4: 53.8 | BF4: 8.5 | BG4: 6.4 | BH4: 91.8 | BI4: 59.2 | BJ4: 75.4 | BK4: 53.4 | BL4: 521 | BM4: 455 | BN4: 303 | BO4: 367 | BP4: 306 | BQ4: 380 | BR4: 303 | BS4: 6 | BT4: 6 | BU4: 0 | BV4: 1061.7 | BW4: =Table1[[#This Row],[SF]]/Table1[[#This Row],[CF]] -> 0.5923309788 | BX4: =Table1[[#This Row],[MSF]]/Table1[[#This Row],[CF]] -> 0.1927346115 | BY4: =Table1[[#This Row],[BSF]]/Table1[[#This Row],[CF]] -> 0.2149344097 | BZ4: =Table1[[#This Row],[SA]]/Table1[[#This Row],[CA]] -> 0.6198347107 | CA4: =Table1[[#This Row],[MSA]]/Table1[[#This Row],[CA]] -> 0.2136953955 | CB4: =Table1[[#This Row],[BSA]]/Table1[[#This Row],[CA]] -> 0.1664698937
A5: 5v5 | B5: Up1 | C5: ANA | D5: 56 | E5: 20052006 | F5: 23 | G5: 27 | H5: -4 | I5: 50.4 | J5: 98.7 | K5: 69.2 | L5: 9.2 | M5: 90.4 | N5: 50.8 | O5: 99.6 | P5: 46 | Q5: 53.7 | R5: 12 | S5: 88 | T5: 76 | U5: 9.6 | V5: 8.2 | W5: 17.8 | X5: 52.4 | Y5: 22 | Z5: 241 | AA5: 219 | AB5: 26.2 | AC5: 23.8 | AD5: 49.9 | AE5: 50.4 | AF5: 7 | AG5: 458 | AH5: 451 | AI5: 49.7 | AJ5: 49 | AK5: 98.7 | AL5: 48.6 | AM5: -21 | AN5: 39.1 | AO5: 41.4 | AP5: 360 | AQ5: 381 | AR5: 80.4 | AS5: 111 | AT5: 101 | AU5: 98 | AV5: 70 | AW5: 47.1 | AX5: -31 | AY5: 27 | AZ5: 30.4 | BA5: 249 | BB5: 280 | BC5: 2.5 | BD5: 2.9 | BE5: 46 | BF5: 9.2 | BG5: 6.4 | BH5: 90.4 | BI5: 54.4 | BJ5: 69.2 | BK5: 50.8 | BL5: 252 | BM5: 244 | BN5: 132 | BO5: 209 | BP5: 155 | BQ5: 157 | BR5: 127 | BS5: 9 | BT5: 12 | BU5: 3 | BV5: 552.8 | BW5: =Table1[[#This Row],[SF]]/Table1[[#This Row],[CF]] -> 0.5436681223 | BX5: =Table1[[#This Row],[MSF]]/Table1[[#This Row],[CF]] -> 0.2423580786 | BY5: =Table1[[#This Row],[BSF]]/Table1[[#This Row],[CF]] -> 0.2139737991 | BZ5: =Table1[[#This Row],[SA]]/Table1[[#This Row],[CA]] -> 0.6208425721 | CA5: =Table1[[#This Row],[MSA]]/Table1[[#This Row],[CA]] -> 0.2239467849 | CB5: =Table1[[#This Row],[BSA]]/Table1[[#This Row],[CA]] -> 0.155210643
A6: 5v5 | B6: Dn1 | C6: ANA | D6: 53 | E6: 20052006 | F6: 28 | G6: 19 | H6: 9 | I6: 56.5 | J6: 107.6 | K6: 74.5 | L6: 8.8 | M6: 92.3 | N6: 44.5 | O6: 101.1 | P6: 58.3 | Q6: 57.2 | R6: 28 | S6: 111 | T6: 83 | U6: 12.3 | V6: 9.2 | W6: 21.5 | X6: 57.9 | Y6: 76 | Z6: 280 | AA6: 204 | AB6: 31 | AC6: 22.6 | AD6: 53.6 | AE6: 56.5 | AF6: 127 | AG6: 549 | AH6: 422 | AI6: 60.8 | AJ6: 46.7 | AK6: 107.6 | AL6: 55.8 | AM6: 89 | AN6: 47.4 | AO6: 37.6 | AP6: 428 | AQ6: 339 | AR6: 85 | AS6: 109 | AT6: 93 | AU6: 121 | AV6: 83 | AW6: 56.5 | AX6: 73 | AY6: 35.3 | AZ6: 27.3 | BA6: 319 | BB6: 246 | BC6: 3.1 | BD6: 2.1 | BE6: 59.6 | BF6: 8.8 | BG6: 6.5 | BH6: 92.3 | BI6: 58.1 | BJ6: 74.5 | BK6: 44.5 | BL6: 214 | BM6: 267 | BN6: 169 | BO6: 191 | BP6: 121 | BQ6: 199 | BR6: 165 | BS6: 7 | BT6: 8 | BU6: 1 | BV6: 541.6 | BW6: =Table1[[#This Row],[SF]]/Table1[[#This Row],[CF]] -> 0.5810564663 | BX6: =Table1[[#This Row],[MSF]]/Table1[[#This Row],[CF]] -> 0.1985428051 | BY6: =Table1[[#This Row],[BSF]]/Table1[[#This Row],[CF]] -> 0.2204007286 | BZ6: =Table1[[#This Row],[SA]]/Table1[[#This Row],[CA]] -> 0.5829383886 | CA6: =Table1[[#This Row],[MSA]]/Table1[[#This Row],[CA]] -> 0.2203791469 | CB6: =Table1[[#This Row],[BSA]]/Table1[[#This Row],[CA]] -> 0.1966824645
A7: 5v5 | B7: ScAdj | C7: ATL | D7: 79 | E7: 20052006 | F7: 138 | G7: 137 | H7: 1 | I7: 48 | J7: 104.4 | K7: 70.7 | L7: 10.7 | M7: 90.1 | N7: 50.8 | O7: 100.8 | P7: 46.4 | Q7: 47 | R7: -62.2 | S7: 486.1 | T7: 548.3 | U7: 10.3 | V7: 11.6 | W7: 22 | X7: 49.5 | Y7: -27.6 | Z7: 1316.5 | AA7: 1344.2 | AB7: 28 | AC7: 28.5 | AD7: 56.5 | AE7: 48 | AF7: -197.8 | AG7: 2359.2 | AH7: 2557 | AI7: 50.1 | AJ7: 54.3 | AK7: 104.4 | AL7: 48.6 | AM7: -106.5 | AN7: 38.7 | AO7: 41 | AP7: 1823.8 | AQ7: 1930.3 | AR7: 79.7 | AS7: 533.6 | AT7: 551.8 | AU7: 535.4 | AV7: 626.7 | AW7: 48.3 | AX7: -88.4 | AY7: 27.4 | AZ7: 29.3 | BA7: 1290.1 | BB7: 1378.5 | BC7: 2.9 | BD7: 2.9 | BE7: 50.2 | BF7: 10.7 | BG7: 7.6 | BH7: 90.1 | BI7: 54.7 | BJ7: 70.7 | BK7: 50.8 | BL7: 1403 | BM7: 1360 | BN7: 759 | BO7: 1128 | BP7: 876 | BQ7: 1036 | BR7: 974 | BS7: 11 | BT7: 16 | BU7: 5 | BV7: 2826.1 | BW7: =Table1[[#This Row],[SF]]/Table1[[#This Row],[CF]] -> 0.5468379112 | BX7: =Table1[[#This Row],[MSF]]/Table1[[#This Row],[CF]] -> 0.2261783655 | BY7: =Table1[[#This Row],[BSF]]/Table1[[#This Row],[CF]] -> 0.226941336 | BZ7: =Table1[[#This Row],[SA]]/Table1[[#This Row],[CA]] -> 0.5391083301 | CA7: =Table1[[#This Row],[MSA]]/Table1[[#This Row],[CA]] -> 0.2157997654 | CB7: =Table1[[#This Row],[BSA]]/Table1[[#This Row],[CA]] -> 0.2450919046
A8: 5v5 | B8: Close | C8: ATL | D8: 79 | E8: 20052006 | F8: 77 | G8: 86 | H8: -9 | I8: 48.7 | J8: 108.2 | K8: 70.9 | L8: 9.3 | M8: 90.1 | N8: 51.7 | O8: 99.4 | P8: 48.5 | Q8: 47.7 | R8: -30 | S8: 309 | T8: 339 | U8: 10.9 | V8: 12 | W8: 22.8 | X8: 49.9 | Y8: -3 | Z8: 820 | AA8: 823 | AB8: 28.9 | AC8: 29 | AD8: 57.9 | AE8: 48.7 | AF8: -82 | AG8: 1493 | AH8: 1575 | AI8: 52.6 | AJ8: 55.5 | AK8: 108.2 | AL8: 49.4 | AM8: -29 | AN8: 41.2 | AO8: 42.2 | AP8: 1167 | AQ8: 1196 | AR8: 83.3 | AS8: 340 | AT8: 331 | AU8: 326 | AV8: 379 | AW8: 48.9 | AX8: -38 | AY8: 29.2 | AZ8: 30.5 | BA8: 827 | BB8: 865 | BC8: 2.7 | BD8: 3 | BE8: 47.2 | BF8: 9.3 | BG8: 6.6 | BH8: 90.1 | BI8: 55.4 | BJ8: 70.9 | BK8: 51.7 | BL8: 865 | BM8: 807 | BN8: 486 | BO8: 670 | BP8: 516 | BQ8: 675 | BR8: 610 | BS8: 6 | BT8: 10 | BU8: 4 | BV8: 1701.5 | BW8: =Table1[[#This Row],[SF]]/Table1[[#This Row],[CF]] -> 0.5539182853 | BX8: =Table1[[#This Row],[MSF]]/Table1[[#This Row],[CF]] -> 0.2277294039 | BY8: =Table1[[#This Row],[BSF]]/Table1[[#This Row],[CF]] -> 0.2183523108 | BZ8: =Table1[[#This Row],[SA]]/Table1[[#This Row],[CA]] -> 0.5492063492 | CA8: =Table1[[#This Row],[MSA]]/Table1[[#This Row],[CA]] -> 0.2101587302 | CB8: =Table1[[#This Row],[BSA]]/Table1[[#This Row],[CA]] -> 0.2406349206
A9: 5v5 | B9: Tied | C9: ATL | D9: 79 | E9: 20052006 | F9: 43 | G9: 47 | H9: -4 | I9: 48.3 | J9: 107.3 | K9: 70.2 | L9: 9.1 | M9: 90.5 | N9: 49.9 | O9: 99.6 | P9: 49.5 | Q9: 44.6 | R9: -40 | S9: 165 | T9: 205 | U9: 9.8 | V9: 12.2 | W9: 22.1 | X9: 49.6 | Y9: -8 | Z9: 470 | AA9: 478 | AB9: 28 | AC9: 28.5 | AD9: 56.6 | AE9: 48.3 | AF9: -61 | AG9: 869 | AH9: 930 | AI9: 51.8 | AJ9: 55.5 | AK9: 107.3 | AL9: 48.9 | AM9: -30 | AN9: 40.1 | AO9: 41.9 | AP9: 672 | AQ9: 702 | AR9: 82 | AS9: 200 | AT9: 206 | AU9: 197 | AV9: 228 | AW9: 48.8 | AX9: -24 | AY9: 28.2 | AZ9: 29.6 | BA9: 472 | BB9: 496 | BC9: 2.6 | BD9: 2.8 | BE9: 47.8 | BF9: 9.1 | BG9: 6.4 | BH9: 90.5 | BI9: 54.3 | BJ9: 70.2 | BK9: 49.9 | BL9: 481 | BM9: 482 | BN9: 286 | BO9: 385 | BP9: 292 | BQ9: 381 | BR9: 376 | BS9: 3 | BT9: 4 | BU9: 1 | BV9: 1005.8 | BW9: =Table1[[#This Row],[SF]]/Table1[[#This Row],[CF]] -> 0.5431530495 | BX9: =Table1[[#This Row],[MSF]]/Table1[[#This Row],[CF]] -> 0.2301495972 | BY9: =Table1[[#This Row],[BSF]]/Table1[[#This Row],[CF]] -> 0.2266973533 | BZ9: =Table1[[#This Row],[SA]]/Table1[[#This Row],[CA]] -> 0.5333333333 | CA9: =Table1[[#This Row],[MSA]]/Table1[[#This Row],[CA]] -> 0.2215053763 | CB9: =Table1[[#This Row],[BSA]]/Table1[[#This Row],[CA]] -> 0.2451612903
A10: 5v5 | B10: Up1 | C10: ATL | D10: 55 | E10: 20052006 | F10: 22 | G10: 24 | H10: -2 | I10: 46.5 | J10: 103.9 | K10: 73.3 | L10: 11 | M10: 88.1 | N10: 50.9 | O10: 99.1 | P10: 41.8 | Q10: 52.7 | R10: 8 | S10: 77 | T10: 69 | U10: 11.3 | V10: 10.1 | W10: 21.4 | X10: 49.2 | Y10: -6 | Z10: 192 | AA10: 198 | AB10: 28.1 | AC10: 29 | AD10: 57.1 | AE10: 46.5 | AF10: -50 | AG10: 330 | AH10: 380 | AI10: 48.3 | AJ10: 55.6 | AK10: 103.9 | AL10: 49.8 | AM10: -2 | AN10: 40 | AO10: 40.3 | AP10: 273 | AQ10: 275 | AR10: 80.2 | AS10: 73 | AT10: 74 | AU10: 57 | AV10: 105 | AW10: 49.9 | AX10: -1 | AY10: 29.3 | AZ10: 29.4 | BA10: 200 | BB10: 201 | BC10: 3.2 | BD10: 3.5 | BE10: 47.8 | BF10: 11 | BG10: 8.1 | BH10: 88.1 | BI10: 60.6 | BJ10: 73.3 | BK10: 50.9 | BL10: 215 | BM10: 207 | BN10: 109 | BO10: 161 | BP10: 152 | BQ10: 144 | BR10: 135 | BS10: 2 | BT10: 2 | BU10: 0 | BV10: 409.9 | BW10: =Table1[[#This Row],[SF]]/Table1[[#This Row],[CF]] -> 0.6060606061 | BX10: =Table1[[#This Row],[MSF]]/Table1[[#This Row],[CF]] -> 0.2212121212 | BY10: =Table1[[#This Row],[BSF]]/Table1[[#This Row],[CF]] -> 0.1727272727 | BZ10: =Table1[[#This Row],[SA]]/Table1[[#This Row],[CA]] -> 0.5289473684 | CA10: =Table1[[#This Row],[MSA]]/Table1[[#This Row],[CA]] -> 0.1947368421 | CB10: =Table1[[#This Row],[BSA]]/Table1[[#This Row],[CA]] -> 0.2763157895
A11: 5v5 | B11: Dn1 | C11: ATL | D11: 56 | E11: 20052006 | F11: 27 | G11: 30 | H11: -3 | I11: 51.4 | J11: 107.6 | K11: 71.1 | L11: 9.4 | M11: 89.5 | N11: 53.9 | O11: 99 | P11: 47.9 | Q11: 50.9 | R11: 4 | S11: 119 | T11: 115 | U11: 12.3 | V11: 11.9 | W11: 24.1 | X11: 51.5 | Y11: 18 | Z11: 303 | AA11: 285 | AB11: 31.2 | AC11: 29.4 | AD11: 60.6 | AE11: 51.4 | AF11: 30 | AG11: 537 | AH11: 507 | AI11: 55.4 | AJ11: 52.3 | AK11: 107.6 | AL11: 50.2 | AM11: 3 | AN11: 41.4 | AO11: 41.1 | AP11: 402 | AQ11: 399 | AR11: 82.6 | AS11: 116 | AT11: 112 | AU11: 135 | AV11: 108 | AW11: 49.9 | AX11: -1 | AY11: 29.5 | AZ11: 29.6 | BA11: 286 | BB11: 287 | BC11: 2.8 | BD11: 3.1 | BE11: 47.4 | BF11: 9.4 | BG11: 6.7 | BH11: 89.5 | BI11: 53.3 | BJ11: 71.1 | BK11: 53.9 | BL11: 304 | BM11: 260 | BN11: 163 | BO11: 224 | BP11: 177 | BQ11: 243 | BR11: 176 | BS11: 2 | BT11: 4 | BU11: 2 | BV11: 582 | BW11: =Table1[[#This Row],[SF]]/Table1[[#This Row],[CF]] -> 0.5325884544 | BX11: =Table1[[#This Row],[MSF]]/Table1[[#This Row],[CF]] -> 0.2160148976 | BY11: =Table1[[#This Row],[BSF]]/Table1[[#This Row],[CF]] -> 0.251396648 | BZ11: =Table1[[#This Row],[SA]]/Table1[[#This Row],[CA]] -> 0.5660749507 | CA11: =Table1[[#This Row],[MSA]]/Table1[[#This Row],[CA]] -> 0.2209072978 | CB11: =Table1[[#This Row],[BSA]]/Table1[[#This Row],[CA]] -> 0.2130177515
A12: 5v5 | B12: ScAdj | C12: BOS | D12: 78 | E12: 20052006 | F12: 138 | G12: 143 | H12: -5 | I12: 49.5 | J12: 108.4 | K12: 71.4 | L12: 9.6 | M12: 90.2 | N12: 51.9 | O12: 99.9 | P12: 47.4 | Q12: 50.7 | R12: 13.6 | S12: 509.8 | T12: 496.3 | U12: 10.5 | V12: 10.2 | W12: 20.7 | X12: 50.1 | Y12: 6.5 | Z12: 1324.3 | AA12: 1317.9 | AB12: 27.3 | AC12: 27.2 | AD12: 54.5 | AE12: 49.5 | AF12: -51.8 | AG12: 2603.3 | AH12: 2655 | AI12: 53.7 | AJ12: 54.7 | AK12: 108.4 | AL12: 49.4 | AM12: -52.9 | AN12: 41.5 | AO12: 42.6 | AP12: 2011.6 | AQ12: 2064.5 | AR12: 84 | AS12: 576 | AT12: 599.7 | AU12: 591.7 | AV12: 590.5 | AW12: 49.5 | AX12: -29.2 | AY12: 29.6 | AZ12: 30.2 | BA12: 1435.6 | BB12: 1464.8 | BC12: 2.8 | BD12: 2.9 | BE12: 49.1 | BF12: 9.6 | BG12: 6.9 | BH12: 90.2 | BI12: 55.1 | BJ12: 71.4 | BK12: 51.9 | BL12: 1494 | BM12: 1382 | BN12: 835 | BO12: 1115 | BP12: 926 | BQ12: 826 | BR12: 896 | BS12: 27 | BT12: 23 | BU12: -4 | BV12: 2911.1 | BW12: =Table1[[#This Row],[SF]]/Table1[[#This Row],[CF]] -> 0.5514539239 | BX12: =Table1[[#This Row],[MSF]]/Table1[[#This Row],[CF]] -> 0.2212576345 | BY12: =Table1[[#This Row],[BSF]]/Table1[[#This Row],[CF]] -> 0.2272884416 | BZ12: =Table1[[#This Row],[SA]]/Table1[[#This Row],[CA]] -> 0.5517137476 | CA12: =Table1[[#This Row],[MSA]]/Table1[[#This Row],[CA]] -> 0.2258757062 | CB12: =Table1[[#This Row],[BSA]]/Table1[[#This Row],[CA]] -> 0.2224105461
A13: 5v5 | B13: Close | C13: BOS | D13: 78 | E13: 20052006 | F13: 84 | G13: 81 | H13: 3 | I13: 50.3 | J13: 109.1 | K13: 72.9 | L13: 9.1 | M13: 91.1 | N13: 51.2 | O13: 100.2 | P13: 49.2 | Q13: 50.4 | R13: 5 | S13: 323 | T13: 318 | U13: 10.8 | V13: 10.6 | W13: 21.5 | X13: 51 | Y13: 34 | Z13: 843 | AA13: 809 | AB13: 28.2 | AC13: 27.1 | AD13: 55.3 | AE13: 50.3 | AF13: 22 | AG13: 1641 | AH13: 1619 | AI13: 54.9 | AJ13: 54.2 | AK13: 109.1 | AL13: 50.1 | AM13: 7 | AN13: 42.3 | AO13: 42.1 | AP13: 1264 | AQ13: 1257 | AR13: 84.4 | AS13: 342 | AT13: 346 | AU13: 377 | AV13: 362 | AW13: 50.3 | AX13: 11 | AY13: 30.9 | AZ13: 30.5 | BA13: 922 | BB13: 911 | BC13: 2.8 | BD13: 2.7 | BE13: 50.9 | BF13: 9.1 | BG13: 6.6 | BH13: 91.1 | BI13: 56.2 | BJ13: 72.9 | BK13: 51.2 | BL13: 907 | BM13: 864 | BN13: 530 | BO13: 694 | BP13: 547 | BQ13: 524 | BR13: 573 | BS13: 15 | BT13: 12 | BU13: -3 | BV13: 1792.3 | BW13: =Table1[[#This Row],[SF]]/Table1[[#This Row],[CF]] -> 0.5618525289 | BX13: =Table1[[#This Row],[MSF]]/Table1[[#This Row],[CF]] -> 0.2084095064 | BY13: =Table1[[#This Row],[BSF]]/Table1[[#This Row],[CF]] -> 0.2297379647 | BZ13: =Table1[[#This Row],[SA]]/Table1[[#This Row],[CA]] -> 0.5626930204 | CA13: =Table1[[#This Row],[MSA]]/Table1[[#This Row],[CA]] -> 0.213712168 | CB13: =Table1[[#This Row],[BSA]]/Table1[[#This Row],[CA]] -> 0.2235948116
A14: 5v5 | B14: Tied | C14: BOS | D14: 78 | E14: 20052006 | F14: 49 | G14: 51 | H14: -2 | I14: 51.3 | J14: 110.1 | K14: 74.9 | L14: 8.1 | M14: 90.9 | N14: 50 | O14: 99 | P14: 49.6 | Q14: 50.9 | R14: 7 | S14: 200 | T14: 193 | U14: 10.6 | V14: 10.3 | W14: 20.9 | X14: 52 | Y14: 41 | Z14: 540 | AA14: 499 | AB14: 28.7 | AC14: 26.6 | AD14: 55.3 | AE14: 51.3 | AF14: 52 | AG14: 1060 | AH14: 1008 | AI14: 56.4 | AJ14: 53.6 | AK14: 110.1 | AL14: 50.9 | AM14: 30 | AN14: 43 | AO14: 41.4 | AP14: 808 | AQ14: 778 | AR14: 84.4 | AS14: 203 | AT14: 215 | AU14: 252 | AV14: 230 | AW14: 51.8 | AX14: 42 | AY14: 32.2 | AZ14: 30 | BA14: 605 | BB14: 563 | BC14: 2.6 | BD14: 2.7 | BE14: 49 | BF14: 8.1 | BG14: 6.1 | BH14: 90.9 | BI14: 57.1 | BJ14: 74.9 | BK14: 50 | BL14: 552 | BM14: 551 | BN14: 338 | BO14: 422 | BP14: 343 | BQ14: 340 | BR14: 345 | BS14: 6 | BT14: 8 | BU14: 2 | BV14: 1127.4 | BW14: =Table1[[#This Row],[SF]]/Table1[[#This Row],[CF]] -> 0.570754717 | BX14: =Table1[[#This Row],[MSF]]/Table1[[#This Row],[CF]] -> 0.191509434 | BY14: =Table1[[#This Row],[BSF]]/Table1[[#This Row],[CF]] -> 0.2377358491 | BZ14: =Table1[[#This Row],[SA]]/Table1[[#This Row],[CA]] -> 0.558531746 | CA14: =Table1[[#This Row],[MSA]]/Table1[[#This Row],[CA]] -> 0.2132936508 | CB14: =Table1[[#This Row],[BSA]]/Table1[[#This Row],[CA]] -> 0.2281746032
A15: 5v5 | B15: Up1 | C15: BOS | D15: 52 | E15: 20052006 | F15: 26 | G15: 32 | H15: -6 | I15: 45.8 | J15: 105.3 | K15: 71.3 | L15: 9.2 | M15: 90.1 | N15: 50.5 | O15: 99.3 | P15: 45.8 | Q15: 46.1 | R15: -16 | S15: 95 | T15: 111 | U15: 9.8 | V15: 11.4 | W15: 21.2 | X15: 48 | Y15: -22 | Z15: 260 | AA15: 282 | AB15: 26.8 | AC15: 29 | AD15: 55.8 | AE15: 45.8 | AF15: -85 | AG15: 469 | AH15: 554 | AI15: 48.3 | AJ15: 57 | AK15: 105.3 | AL15: 47.9 | AM15: -35 | AN15: 40.9 | AO15: 44.5 | AP15: 397 | AQ15: 432 | AR15: 85.3 | AS15: 114 | AT15: 109 | AU15: 72 | AV15: 122 | AW15: 46.7 | AX15: -40 | AY15: 29.1 | AZ15: 33.3 | BA15: 283 | BB15: 323 | BC15: 2.7 | BD15: 3.3 | BE15: 44.8 | BF15: 9.2 | BG15: 6.5 | BH15: 90.1 | BI15: 60.3 | BJ15: 71.3 | BK15: 50.5 | BL15: 290 | BM15: 284 | BN15: 168 | BO15: 207 | BP15: 199 | BQ15: 155 | BR15: 193 | BS15: 7 | BT15: 3 | BU15: -4 | BV15: 582.8 | BW15: =Table1[[#This Row],[SF]]/Table1[[#This Row],[CF]] -> 0.6034115139 | BX15: =Table1[[#This Row],[MSF]]/Table1[[#This Row],[CF]] -> 0.2430703625 | BY15: =Table1[[#This Row],[BSF]]/Table1[[#This Row],[CF]] -> 0.1535181237 | BZ15: =Table1[[#This Row],[SA]]/Table1[[#This Row],[CA]] -> 0.583032491 | CA15: =Table1[[#This Row],[MSA]]/Table1[[#This Row],[CA]] -> 0.1967509025 | CB15: =Table1[[#This Row],[BSA]]/Table1[[#This Row],[CA]] -> 0.2202166065
A16: 5v5 | B16: Dn1 | C16: BOS | D16: 53 | E16: 20052006 | F16: 26 | G16: 18 | H16: 8 | I16: 52.9 | J16: 105.4 | K16: 72.9 | L16: 11.1 | M16: 92 | N16: 51.9 | O16: 103.1 | P16: 52.5 | Q16: 50.9 | R16: 3 | S16: 83 | T16: 80 | U16: 10.6 | V16: 10.2 | W16: 20.8 | X16: 52.4 | Y16: 20 | Z16: 219 | AA16: 199 | AB16: 27.9 | AC16: 25.4 | AD16: 53.3 | AE16: 52.9 | AF16: 48 | AG16: 437 | AH16: 389 | AI16: 55.7 | AJ16: 49.6 | AK16: 105.4 | AL16: 50.8 | AM16: 10 | AN16: 40.9 | AO16: 39.7 | AP16: 321 | AQ16: 311 | AR16: 80.6 | AS16: 87 | AT16: 86 | AU16: 116 | AV16: 78 | AW16: 51 | AX16: 9 | AY16: 29.8 | AZ16: 28.7 | BA16: 234 | BB16: 225 | BC16: 3.3 | BD16: 2.3 | BE16: 59.1 | BF16: 11.1 | BG16: 8.1 | BH16: 92 | BI16: 53.5 | BJ16: 72.9 | BK16: 51.9 | BL16: 232 | BM16: 215 | BN16: 135 | BO16: 190 | BP16: 122 | BQ16: 134 | BR16: 131 | BS16: 4 | BT16: 1 | BU16: -3 | BV16: 470.4 | BW16: =Table1[[#This Row],[SF]]/Table1[[#This Row],[CF]] -> 0.5354691076 | BX16: =Table1[[#This Row],[MSF]]/Table1[[#This Row],[CF]] -> 0.1990846682 | BY16: =Table1[[#This Row],[BSF]]/Table1[[#This Row],[CF]] -> 0.2654462243 | BZ16: =Table1[[#This Row],[SA]]/Table1[[#This Row],[CA]] -> 0.5784061697 | CA16: =Table1[[#This Row],[MSA]]/Table1[[#This Row],[CA]] -> 0.2210796915 | CB16: =Table1[[#This Row],[BSA]]/Table1[[#This Row],[CA]] -> 0.2005141388
A17: 5v5 | B17: ScAdj | C17: BUF | D17: 78 | E17: 20052006 | F17: 139 | G17: 141 | H17: -2 | I17: 48.5 | J17: 108.4 | K17: 73.1 | L17: 9.7 | M17: 90.2 | N17: 49.8 | O17: 99.9 | P17: 48.7 | Q17: 49.2 | R17: -17.3 | S17: 515.2 | T17: 532.5 | U17: 10.7 | V17: 11.1 | W17: 21.8 | X17: 50 | Y17: 2.5 | Z17: 1398.6 | AA17: 1396.1 | AB17: 29.1 | AC17: 29 | AD17: 58.1 | AE17: 48.5 | AF17: -152.3 | AG17: 2532.4 | AH17: 2684.7 | AI17: 52.6 | AJ17: 55.8 | AK17: 108.4 | AL17: 49.2 | AM17: -65.5 | AN17: 40.6 | AO17: 42 | AP17: 1954.8 | AQ17: 2020.3 | AR17: 82.6 | AS17: 526.5 | AT17: 579.8 | AU17: 577.7 | AV17: 664.5 | AW17: 49.8 | AX17: -12.3 | AY17: 29.7 | AZ17: 29.9 | BA17: 1428.2 | BB17: 1440.5 | BC17: 2.9 | BD17: 2.9 | BE17: 49.6 | BF17: 9.7 | BG17: 7.1 | BH17: 90.2 | BI17: 56.4 | BJ17: 73.1 | BK17: 49.8 | BL17: 1381 | BM17: 1394 | BN17: 796 | BO17: 1141 | BP17: 838 | BQ17: 797 | BR17: 947 | BS17: 25 | BT17: 28 | BU17: 3 | BV17: 2888.2 | BW17: =Table1[[#This Row],[SF]]/Table1[[#This Row],[CF]] -> 0.5639709367 | BX17: =Table1[[#This Row],[MSF]]/Table1[[#This Row],[CF]] -> 0.2079055441 | BY17: =Table1[[#This Row],[BSF]]/Table1[[#This Row],[CF]] -> 0.2281235192 | BZ17: =Table1[[#This Row],[SA]]/Table1[[#This Row],[CA]] -> 0.5365590196 | CA17: =Table1[[#This Row],[MSA]]/Table1[[#This Row],[CA]] -> 0.2159645398 | CB17: =Table1[[#This Row],[BSA]]/Table1[[#This Row],[CA]] -> 0.2475136887
A18: 5v5 | B18: Close | C18: BUF | D18: 78 | E18: 20052006 | F18: 80 | G18: 86 | H18: -6 | I18: 49 | J18: 115.1 | K18: 71.6 | L18: 9.1 | M18: 90 | N18: 50.4 | O18: 99.1 | P18: 49.6 | Q18: 49.1 | R18: -12 | S18: 316 | T18: 328 | U18: 11 | V18: 11.5 | W18: 22.5 | X18: 51 | Y18: 36 | Z18: 896 | AA18: 860 | AB18: 31.3 | AC18: 30 | AD18: 61.3 | AE18: 49 | AF18: -63 | AG18: 1616 | AH18: 1679 | AI18: 56.5 | AJ18: 58.7 | AK18: 115.1 | AL18: 50 | AM18: 0 | AN18: 42.9 | AO18: 42.9 | AP18: 1227 | AQ18: 1227 | AR18: 85.7 | AS18: 349 | AT18: 366 | AU18: 389 | AV18: 452 | AW18: 50.5 | AX18: 17 | AY18: 30.7 | AZ18: 30.1 | BA18: 878 | BB18: 861 | BC18: 2.8 | BD18: 3 | BE18: 48.2 | BF18: 9.1 | BG18: 6.5 | BH18: 90 | BI18: 54.3 | BJ18: 71.6 | BK18: 50.4 | BL18: 820 | BM18: 806 | BN18: 481 | BO18: 656 | BP18: 489 | BQ18: 516 | BR18: 586 | BS18: 9 | BT18: 13 | BU18: 4 | BV18: 1717.6 | BW18: =Table1[[#This Row],[SF]]/Table1[[#This Row],[CF]] -> 0.5433168317 | BX18: =Table1[[#This Row],[MSF]]/Table1[[#This Row],[CF]] -> 0.2159653465 | BY18: =Table1[[#This Row],[BSF]]/Table1[[#This Row],[CF]] -> 0.2407178218 | BZ18: =Table1[[#This Row],[SA]]/Table1[[#This Row],[CA]] -> 0.5128052412 | CA18: =Table1[[#This Row],[MSA]]/Table1[[#This Row],[CA]] -> 0.217986897 | CB18: =Table1[[#This Row],[BSA]]/Table1[[#This Row],[CA]] -> 0.2692078618
A19: 5v5 | B19: Tied | C19: BUF | D19: 78 | E19: 20052006 | F19: 50 | G19: 46 | H19: 4 | I19: 47.8 | J19: 112.2 | K19: 71.5 | L19: 10.3 | M19: 90.7 | N19: 51.8 | O19: 101 | P19: 48.3 | Q19: 45.5 | R19: -33 | S19: 165 | T19: 198 | U19: 9.8 | V19: 11.7 | W19: 21.5 | X19: 49.8 | Y19: -4 | Z19: 500 | AA19: 504 | AB19: 29.6 | AC19: 29.9 | AD19: 59.5 | AE19: 47.8 | AF19: -82 | AG19: 905 | AH19: 987 | AI19: 53.7 | AJ19: 58.5 | AK19: 112.2 | AL19: 48.6 | AM19: -39 | AN19: 40.4 | AO19: 42.7 | AP19: 681 | AQ19: 720 | AR19: 83.1 | AS19: 194 | AT19: 225 | AU19: 224 | AV19: 267 | AW19: 49.6 | AX19: -8 | AY19: 28.9 | AZ19: 29.4 | BA19: 487 | BB19: 495 | BC19: 3 | BD19: 2.7 | BE19: 52.1 | BF19: 10.3 | BG19: 7.3 | BH19: 90.7 | BI19: 53.8 | BJ19: 71.5 | BK19: 51.8 | BL19: 487 | BM19: 454 | BN19: 274 | BO19: 374 | BP19: 293 | BQ19: 301 | BR19: 341 | BS19: 4 | BT19: 5 | BU19: 1 | BV19: 1011.8 | BW19: =Table1[[#This Row],[SF]]/Table1[[#This Row],[CF]] -> 0.538121547 | BX19: =Table1[[#This Row],[MSF]]/Table1[[#This Row],[CF]] -> 0.2143646409 | BY19: =Table1[[#This Row],[BSF]]/Table1[[#This Row],[CF]] -> 0.2475138122 | BZ19: =Table1[[#This Row],[SA]]/Table1[[#This Row],[CA]] -> 0.5015197568 | CA19: =Table1[[#This Row],[MSA]]/Table1[[#This Row],[CA]] -> 0.2279635258 | CB19: =Table1[[#This Row],[BSA]]/Table1[[#This Row],[CA]] -> 0.2705167173
A20: 5v5 | B20: Up1 | C20: BUF | D20: 56 | E20: 20052006 | F20: 27 | G20: 35 | H20: -8 | I20: 46.8 | J20: 117.3 | K20: 70.7 | L20: 9.1 | M20: 89.2 | N20: 50.9 | O20: 98.3 | P20: 47.4 | Q20: 51.8 | R20: 9 | S20: 132 | T20: 123 | U20: 13.3 | V20: 12.4 | W20: 25.7 | X20: 48 | Y20: -26 | Z20: 306 | AA20: 332 | AB20: 30.8 | AC20: 33.5 | AD20: 64.3 | AE20: 46.8 | AF20: -74 | AG20: 545 | AH20: 619 | AI20: 54.9 | AJ20: 62.4 | AK20: 117.3 | AL20: 47.7 | AM20: -40 | AN20: 42.3 | AO20: 46.3 | AP20: 420 | AQ20: 460 | AR20: 88.7 | AS20: 123 | AT20: 137 | AU20: 125 | AV20: 159 | AW20: 47.9 | AX20: -26 | AY20: 29.9 | AZ20: 32.5 | BA20: 297 | BB20: 323 | BC20: 2.7 | BD20: 3.5 | BE20: 43.5 | BF20: 9.1 | BG20: 6.4 | BH20: 89.2 | BI20: 54.5 | BJ20: 70.7 | BK20: 50.9 | BL20: 295 | BM20: 284 | BN20: 155 | BO20: 252 | BP20: 172 | BQ20: 166 | BR20: 199 | BS20: 4 | BT20: 5 | BU20: 1 | BV20: 595.5 | BW20: =Table1[[#This Row],[SF]]/Table1[[#This Row],[CF]] -> 0.5449541284 | BX20: =Table1[[#This Row],[MSF]]/Table1[[#This Row],[CF]] -> 0.2256880734 | BY20: =Table1[[#This Row],[BSF]]/Table1[[#This Row],[CF]] -> 0.2293577982 | BZ20: =Table1[[#This Row],[SA]]/Table1[[#This Row],[CA]] -> 0.52180937 | CA20: =Table1[[#This Row],[MSA]]/Table1[[#This Row],[CA]] -> 0.2213247173 | CB20: =Table1[[#This Row],[BSA]]/Table1[[#This Row],[CA]] -> 0.2568659128
A21: 5v5 | B21: Dn1 | C21: BUF | D21: 50 | E21: 20052006 | F21: 22 | G21: 21 | H21: 1 | I21: 54 | J21: 110.6 | K21: 72.2 | L21: 7.8 | M21: 91.2 | N21: 45.8 | O21: 99 | P21: 52 | Q21: 55.7 | R21: 20 | S21: 97 | T21: 77 | U21: 11.4 | V21: 9.1 | W21: 20.5 | X21: 57.4 | Y21: 72 | Z21: 278 | AA21: 206 | AB21: 32.7 | AC21: 24.2 | AD21: 57 | AE21: 54 | AF21: 76 | AG21: 508 | AH21: 432 | AI21: 59.8 | AJ21: 50.8 | AK21: 110.6 | AL21: 55.2 | AM21: 74 | AN21: 46.1 | AO21: 37.4 | AP21: 392 | AQ21: 318 | AR21: 83.6 | AS21: 109 | AT21: 78 | AU21: 116 | AV21: 114 | AW21: 54.1 | AX21: 43 | AY21: 33.3 | AZ21: 28.2 | BA21: 283 | BB21: 240 | BC21: 2.6 | BD21: 2.5 | BE21: 51.2 | BF21: 7.8 | BG21: 5.6 | BH21: 91.2 | BI21: 55.7 | BJ21: 72.2 | BK21: 45.8 | BL21: 220 | BM21: 260 | BN21: 156 | BO21: 180 | BP21: 144 | BQ21: 132 | BR21: 188 | BS21: 1 | BT21: 3 | BU21: 2 | BV21: 509.8 | BW21: =Table1[[#This Row],[SF]]/Table1[[#This Row],[CF]] -> 0.5570866142 | BX21: =Table1[[#This Row],[MSF]]/Table1[[#This Row],[CF]] -> 0.2145669291 | BY21: =Table1[[#This Row],[BSF]]/Table1[[#This Row],[CF]] -> 0.2283464567 | BZ21: =Table1[[#This Row],[SA]]/Table1[[#This Row],[CA]] -> 0.5555555556 | CA21: =Table1[[#This Row],[MSA]]/Table1[[#This Row],[CA]] -> 0.1805555556 | CB21: =Table1[[#This Row],[BSA]]/Table1[[#This Row],[CA]] -> 0.2638888889
A22: 5v5 | B22: ScAdj | C22: CAR | D22: 79 | E22: 20052006 | F22: 141 | G22: 142 | H22: -1 | I22: 48.2 | J22: 111.5 | K22: 70.8 | L22: 10.2 | M22: 90.1 | N22: 50.4 | O22: 100.3 | P22: 49.5 | Q22: 48.1 | R22: -41.8 | S22: 541.9 | T22: 583.8 | U22: 11.4 | V22: 12.3 | W22: 23.7 | X22: 48.5 | Y22: -84.7 | Z22: 1342.6 | AA22: 1427.3 | AB22: 28.3 | AC22: 30.1 | AD22: 58.3 | AE22: 48.2 | AF22: -187.3 | AG22: 2553.2 | AH22: 2740.5 | AI22: 53.8 | AJ22: 57.7 | AK22: 111.5 | AL22: 48.3 | AM22: -136.4 | AN22: 41 | AO22: 43.8 | AP22: 1945.5 | AQ22: 2081.9 | AR22: 84.8 | AS22: 567.6 | AT22: 649.4 | AU22: 607.8 | AV22: 658.6 | AW22: 49 | AX22: -54.7 | AY22: 29 | AZ22: 30.2 | BA22: 1377.8 | BB22: 1432.5 | BC22: 3 | BD22: 3 | BE22: 49.8 | BF22: 10.2 | BG22: 7.2 | BH22: 90.1 | BI22: 54 | BJ22: 70.8 | BK22: 50.4 | BL22: 1371 | BM22: 1348 | BN22: 778 | BO22: 1148 | BP22: 793 | BQ22: 845 | BR22: 905 | BS22: 15 | BT22: 16 | BU22: 1 | BV22: 2849 | BW22: =Table1[[#This Row],[SF]]/Table1[[#This Row],[CF]] -> 0.5396365345 | BX22: =Table1[[#This Row],[MSF]]/Table1[[#This Row],[CF]] -> 0.222309259 | BY22: =Table1[[#This Row],[BSF]]/Table1[[#This Row],[CF]] -> 0.2380542065 | BZ22: =Table1[[#This Row],[SA]]/Table1[[#This Row],[CA]] -> 0.5227148331 | CA22: =Table1[[#This Row],[MSA]]/Table1[[#This Row],[CA]] -> 0.2369640577 | CB22: =Table1[[#This Row],[BSA]]/Table1[[#This Row],[CA]] -> 0.2403211093
A23: 5v5 | B23: Close | C23: CAR | D23: 79 | E23: 20052006 | F23: 84 | G23: 84 | H23: 0 | I23: 48.2 | J23: 118.7 | K23: 70.8 | L23: 10 | M23: 90.4 | N23: 49.3 | O23: 100.4 | P23: 50.1 | Q23: 49.9 | R23: -2 | S23: 344 | T23: 346 | U23: 12.3 | V23: 12.4 | W23: 24.7 | X23: 49 | Y23: -33 | Z23: 817 | AA23: 850 | AB23: 29.2 | AC23: 30.4 | AD23: 59.7 | AE23: 48.2 | AF23: -120 | AG23: 1598 | AH23: 1718 | AI23: 57.2 | AJ23: 61.5 | AK23: 118.7 | AL23: 48.1 | AM23: -96 | AN23: 42.5 | AO23: 46 | AP23: 1189 | AQ23: 1285 | AR23: 88.5 | AS23: 347 | AT23: 411 | AU23: 409 | AV23: 433 | AW23: 49.1 | AX23: -32 | AY23: 30.1 | AZ23: 31.3 | BA23: 842 | BB23: 874 | BC23: 3 | BD23: 3 | BE23: 50 | BF23: 10 | BG23: 7.1 | BH23: 90.4 | BI23: 52.7 | BJ23: 70.8 | BK23: 49.3 | BL23: 784 | BM23: 805 | BN23: 456 | BO23: 679 | BP23: 454 | BQ23: 543 | BR23: 557 | BS23: 9 | BT23: 7 | BU23: -2 | BV23: 1676.7 | BW23: =Table1[[#This Row],[SF]]/Table1[[#This Row],[CF]] -> 0.5269086358 | BX23: =Table1[[#This Row],[MSF]]/Table1[[#This Row],[CF]] -> 0.217146433 | BY23: =Table1[[#This Row],[BSF]]/Table1[[#This Row],[CF]] -> 0.2559449312 | BZ23: =Table1[[#This Row],[SA]]/Table1[[#This Row],[CA]] -> 0.5087310827 | CA23: =Table1[[#This Row],[MSA]]/Table1[[#This Row],[CA]] -> 0.2392316647 | CB23: =Table1[[#This Row],[BSA]]/Table1[[#This Row],[CA]] -> 0.2520372526
A24: 5v5 | B24: Tied | C24: CAR | D24: 79 | E24: 20052006 | F24: 46 | G24: 44 | H24: 2 | I24: 48.3 | J24: 119 | K24: 70.2 | L24: 9.7 | M24: 91 | N24: 49 | O24: 100.7 | P24: 50.4 | Q24: 49.2 | R24: -6 | S24: 179 | T24: 185 | U24: 11.2 | V24: 11.6 | W24: 22.8 | X24: 48 | Y24: -38 | Z24: 448 | AA24: 486 | AB24: 28.1 | AC24: 30.5 | AD24: 58.5 | AE24: 48.3 | AF24: -64 | AG24: 917 | AH24: 981 | AI24: 57.5 | AJ24: 61.5 | AK24: 119 | AL24: 47.7 | AM24: -65 | AN24: 42.3 | AO24: 46.4 | AP24: 675 | AQ24: 740 | AR24: 88.7 | AS24: 201 | AT24: 252 | AU24: 242 | AV24: 241 | AW24: 49.3 | AX24: -14 | AY24: 29.7 | AZ24: 30.6 | BA24: 474 | BB24: 488 | BC24: 2.9 | BD24: 2.8 | BE24: 51.1 | BF24: 9.7 | BG24: 6.8 | BH24: 91 | BI24: 51.7 | BJ24: 70.2 | BK24: 49 | BL24: 443 | BM24: 462 | BN24: 262 | BO24: 385 | BP24: 258 | BQ24: 313 | BR24: 330 | BS24: 5 | BT24: 4 | BU24: -1 | BV24: 957.2 | BW24: =Table1[[#This Row],[SF]]/Table1[[#This Row],[CF]] -> 0.5169029444 | BX24: =Table1[[#This Row],[MSF]]/Table1[[#This Row],[CF]] -> 0.2191930207 | BY24: =Table1[[#This Row],[BSF]]/Table1[[#This Row],[CF]] -> 0.2639040349 | BZ24: =Table1[[#This Row],[SA]]/Table1[[#This Row],[CA]] -> 0.49745158 | CA24: =Table1[[#This Row],[MSA]]/Table1[[#This Row],[CA]] -> 0.2568807339 | CB24: =Table1[[#This Row],[BSA]]/Table1[[#This Row],[CA]] -> 0.245667686
A25: 5v5 | B25: Up1 | C25: CAR | D25: 54 | E25: 20052006 | F25: 26 | G25: 24 | H25: 2 | I25: 42 | J25: 117.8 | K25: 73.3 | L25: 9.8 | M25: 92.5 | N25: 53 | O25: 102.3 | P25: 42.8 | Q25: 44.7 | R25: -24 | S25: 102 | T25: 126 | U25: 10.5 | V25: 13 | W25: 23.5 | X25: 44.1 | Y25: -69 | Z25: 258 | AA25: 327 | AB25: 26.6 | AC25: 33.7 | AD25: 60.3 | AE25: 42 | AF25: -182 | AG25: 480 | AH25: 662 | AI25: 49.5 | AJ25: 68.3 | AK25: 117.8 | AL25: 43.5 | AM25: -108 | AN25: 37.1 | AO25: 48.3 | AP25: 360 | AQ25: 468 | AR25: 85.4 | AS25: 96 | AT25: 148 | AU25: 120 | AV25: 194 | AW25: 45.2 | AX25: -56 | AY25: 27.2 | AZ25: 33 | BA25: 264 | BB25: 320 | BC25: 2.7 | BD25: 2.5 | BE25: 52 | BF25: 9.8 | BG25: 7.2 | BH25: 92.5 | BI25: 55 | BJ25: 73.3 | BK25: 53 | BL25: 299 | BM25: 265 | BN25: 145 | BO25: 225 | BP25: 194 | BQ25: 140 | BR25: 162 | BS25: 3 | BT25: 4 | BU25: 1 | BV25: 581.7 | BW25: =Table1[[#This Row],[SF]]/Table1[[#This Row],[CF]] -> 0.55 | BX25: =Table1[[#This Row],[MSF]]/Table1[[#This Row],[CF]] -> 0.2 | BY25: =Table1[[#This Row],[BSF]]/Table1[[#This Row],[CF]] -> 0.25 | BZ25: =Table1[[#This Row],[SA]]/Table1[[#This Row],[CA]] -> 0.4833836858 | CA25: =Table1[[#This Row],[MSA]]/Table1[[#This Row],[CA]] -> 0.2235649547 | CB25: =Table1[[#This Row],[BSA]]/Table1[[#This Row],[CA]] -> 0.2930513595
A26: 5v5 | B26: Dn1 | C26: CAR | D26: 50 | E26: 20052006 | F26: 31 | G26: 32 | H26: -1 | I26: 53.3 | J26: 112.9 | K26: 70.4 | L26: 11.4 | M26: 87.2 | N26: 47.4 | O26: 98.6 | P26: 53.6 | Q26: 54.4 | R26: 21 | S26: 129 | T26: 108 | U26: 15.3 | V26: 12.8 | W26: 28.1 | X26: 55.4 | Y26: 54 | Z26: 275 | AA26: 221 | AB26: 32.7 | AC26: 26.2 | AD26: 58.9 | AE26: 53.3 | AF26: 63 | AG26: 507 | AH26: 444 | AI26: 60.2 | AJ26: 52.7 | AK26: 112.9 | AL26: 53.2 | AM26: 46 | AN26: 45.7 | AO26: 40.3 | AP26: 385 | AQ26: 339 | AR26: 86 | AS26: 114 | AT26: 89 | AU26: 122 | AV26: 105 | AW26: 52 | AX26: 21 | AY26: 32.2 | AZ26: 29.7 | BA26: 271 | BB26: 250 | BC26: 3.7 | BD26: 3.8 | BE26: 49.2 | BF26: 11.4 | BG26: 8.1 | BH26: 87.2 | BI26: 53.5 | BJ26: 70.4 | BK26: 47.4 | BL26: 238 | BM26: 264 | BN26: 147 | BO26: 228 | BP26: 127 | BQ26: 177 | BR26: 169 | BS26: 2 | BT26: 2 | BU26: 0 | BV26: 505.2 | BW26: =Table1[[#This Row],[SF]]/Table1[[#This Row],[CF]] -> 0.5345167653 | BX26: =Table1[[#This Row],[MSF]]/Table1[[#This Row],[CF]] -> 0.224852071 | BY26: =Table1[[#This Row],[BSF]]/Table1[[#This Row],[CF]] -> 0.2406311637 | BZ26: =Table1[[#This Row],[SA]]/Table1[[#This Row],[CA]] -> 0.5630630631 | CA26: =Table1[[#This Row],[MSA]]/Table1[[#This Row],[CA]] -> 0.2004504505 | CB26: =Table1[[#This Row],[BSA]]/Table1[[#This Row],[CA]] -> 0.2364864865
A27: 5v5 | B27: ScAdj | C27: CBJ | D27: 81 | E27: 20052006 | F27: 122 | G27: 158 | H27: -36 | I27: 45.4 | J27: 105.2 | K27: 70.9 | L27: 9.4 | M27: 90.2 | N27: 50.2 | O27: 99.5 | P27: 46.6 | Q27: 46.9 | R27: -64.8 | S27: 493.9 | T27: 558.7 | U27: 10 | V27: 11.3 | W27: 21.3 | X27: 45.1 | Y27: -255.3 | Z27: 1177.6 | AA27: 1432.9 | AB27: 23.8 | AC27: 29 | AD27: 52.8 | AE27: 45.4 | AF27: -482.4 | AG27: 2361.3 | AH27: 2843.6 | AI27: 47.7 | AJ27: 57.5 | AK27: 105.2 | AL27: 45.2 | AM27: -390.2 | AN27: 37.1 | AO27: 45 | AP27: 1834.6 | AQ27: 2224.8 | AR27: 82 | AS27: 534.7 | AT27: 619.7 | AU27: 526.7 | AV27: 618.8 | AW27: 44.7 | AX27: -305.2 | AY27: 26.3 | AZ27: 32.4 | BA27: 1299.9 | BB27: 1605.1 | BC27: 2.5 | BD27: 3.2 | BE27: 43.6 | BF27: 9.4 | BG27: 6.7 | BH27: 90.2 | BI27: 55.1 | BJ27: 70.9 | BK27: 50.2 | BL27: 1424 | BM27: 1414 | BN27: 767 | BO27: 1191 | BP27: 880 | BQ27: 901 | BR27: 800 | BS27: 41 | BT27: 43 | BU27: 2 | BV27: 2969.2 | BW27: =Table1[[#This Row],[SF]]/Table1[[#This Row],[CF]] -> 0.5505018422 | BX27: =Table1[[#This Row],[MSF]]/Table1[[#This Row],[CF]] -> 0.226443061 | BY27: =Table1[[#This Row],[BSF]]/Table1[[#This Row],[CF]] -> 0.2230550968 | BZ27: =Table1[[#This Row],[SA]]/Table1[[#This Row],[CA]] -> 0.564460543 | CA27: =Table1[[#This Row],[MSA]]/Table1[[#This Row],[CA]] -> 0.2179279786 | CB27: =Table1[[#This Row],[BSA]]/Table1[[#This Row],[CA]] -> 0.2176114784
A28: 5v5 | B28: Close | C28: CBJ | D28: 81 | E28: 20052006 | F28: 70 | G28: 100 | H28: -30 | I28: 46.2 | J28: 106.8 | K28: 72.5 | L28: 8.4 | M28: 90 | N28: 48.7 | O28: 98.4 | P28: 45.3 | Q28: 47 | R28: -38 | S28: 294 | T28: 332 | U28: 9.6 | V28: 10.8 | W28: 20.4 | X28: 45 | Y28: -159 | Z28: 721 | AA28: 880 | AB28: 23.5 | AC28: 28.7 | AD28: 52.2 | AE28: 46.2 | AF28: -250 | AG28: 1513 | AH28: 1763 | AI28: 49.3 | AJ28: 57.5 | AK28: 106.8 | AL28: 46 | AM28: -198 | AN28: 37.4 | AO28: 43.9 | AP28: 1149 | AQ28: 1347 | AR28: 81.4 | AS28: 316 | AT28: 350 | AU28: 364 | AV28: 416 | AW28: 45.5 | AX28: -164 | AY28: 27.2 | AZ28: 32.5 | BA28: 833 | BB28: 997 | BC28: 2.3 | BD28: 3.3 | BE28: 41.2 | BF28: 8.4 | BG28: 6.1 | BH28: 90 | BI28: 55.1 | BJ28: 72.5 | BK28: 48.7 | BL28: 849 | BM28: 894 | BN28: 468 | BO28: 710 | BP28: 565 | BQ28: 590 | BR28: 535 | BS28: 17 | BT28: 21 | BU28: 4 | BV28: 1840.9 | BW28: =Table1[[#This Row],[SF]]/Table1[[#This Row],[CF]] -> 0.5505617978 | BX28: =Table1[[#This Row],[MSF]]/Table1[[#This Row],[CF]] -> 0.2088565763 | BY28: =Table1[[#This Row],[BSF]]/Table1[[#This Row],[CF]] -> 0.2405816259 | BZ28: =Table1[[#This Row],[SA]]/Table1[[#This Row],[CA]] -> 0.5655133296 | CA28: =Table1[[#This Row],[MSA]]/Table1[[#This Row],[CA]] -> 0.1985252411 | CB28: =Table1[[#This Row],[BSA]]/Table1[[#This Row],[CA]] -> 0.2359614294
A29: 5v5 | B29: Tied | C29: CBJ | D29: 81 | E29: 20052006 | F29: 40 | G29: 61 | H29: -21 | I29: 45.7 | J29: 106.7 | K29: 74.9 | L29: 7.8 | M29: 90 | N29: 47.2 | O29: 97.7 | P29: 46.2 | Q29: 46.7 | R29: -24 | S29: 172 | T29: 196 | U29: 9.4 | V29: 10.7 | W29: 20 | X29: 44.8 | Y29: -98 | Z29: 421 | AA29: 519 | AB29: 22.9 | AC29: 28.2 | AD29: 51.1 | AE29: 45.7 | AF29: -167 | AG29: 898 | AH29: 1065 | AI29: 48.8 | AJ29: 57.9 | AK29: 106.7 | AL29: 45.4 | AM29: -139 | AN29: 37.2 | AO29: 44.8 | AP29: 685 | AQ29: 824 | AR29: 82 | AS29: 172 | AT29: 217 | AU29: 213 | AV29: 241 | AW29: 45.8 | AX29: -94 | AY29: 27.9 | AZ29: 33 | BA29: 513 | BB29: 607 | BC29: 2.2 | BD29: 3.3 | BE29: 39.6 | BF29: 7.8 | BG29: 5.8 | BH29: 90 | BI29: 57.1 | BJ29: 74.9 | BK29: 47.2 | BL29: 492 | BM29: 550 | BN29: 289 | BO29: 417 | BP29: 336 | BQ29: 348 | BR29: 308 | BS29: 13 | BT29: 16 | BU29: 3 | BV29: 1103.7 | BW29: =Table1[[#This Row],[SF]]/Table1[[#This Row],[CF]] -> 0.5712694878 | BX29: =Table1[[#This Row],[MSF]]/Table1[[#This Row],[CF]] -> 0.1915367483 | BY29: =Table1[[#This Row],[BSF]]/Table1[[#This Row],[CF]] -> 0.2371937639 | BZ29: =Table1[[#This Row],[SA]]/Table1[[#This Row],[CA]] -> 0.5699530516 | CA29: =Table1[[#This Row],[MSA]]/Table1[[#This Row],[CA]] -> 0.2037558685 | CB29: =Table1[[#This Row],[BSA]]/Table1[[#This Row],[CA]] -> 0.2262910798
A30: 5v5 | B30: Up1 | C30: CBJ | D30: 44 | E30: 20052006 | F30: 19 | G30: 27 | H30: -8 | I30: 40.4 | J30: 107.4 | K30: 70.5 | L30: 12.4 | M30: 88.3 | N30: 49.9 | O30: 100.7 | P30: 38 | Q30: 43 | R30: -20 | S30: 61 | T30: 81 | U30: 9.8 | V30: 13.1 | W30: 22.9 | X30: 41.1 | Y30: -59 | Z30: 137 | AA30: 196 | AB30: 22.1 | AC30: 31.6 | AD30: 53.7 | AE30: 40.4 | AF30: -128 | AG30: 269 | AH30: 397 | AI30: 43.4 | AJ30: 64 | AK30: 107.4 | AL30: 41 | AM30: -95 | AN30: 35 | AO30: 50.3 | AP30: 217 | AQ30: 312 | AR30: 85.3 | AS30: 64 | AT30: 82 | AU30: 52 | AV30: 85 | AW30: 39.9 | AX30: -77 | AY30: 24.7 | AZ30: 37.1 | BA30: 153 | BB30: 230 | BC30: 3.1 | BD30: 4.4 | BE30: 41.3 | BF30: 12.4 | BG30: 8.8 | BH30: 88.3 | BI30: 56.9 | BJ30: 70.5 | BK30: 49.9 | BL30: 176 | BM30: 177 | BN30: 76 | BO30: 153 | BP30: 124 | BQ30: 100 | BR30: 115 | BS30: 3 | BT30: 3 | BU30: 0 | BV30: 372 | BW30: =Table1[[#This Row],[SF]]/Table1[[#This Row],[CF]] -> 0.5687732342 | BX30: =Table1[[#This Row],[MSF]]/Table1[[#This Row],[CF]] -> 0.2379182156 | BY30: =Table1[[#This Row],[BSF]]/Table1[[#This Row],[CF]] -> 0.1933085502 | BZ30: =Table1[[#This Row],[SA]]/Table1[[#This Row],[CA]] -> 0.5793450882 | CA30: =Table1[[#This Row],[MSA]]/Table1[[#This Row],[CA]] -> 0.2065491184 | CB30: =Table1[[#This Row],[BSA]]/Table1[[#This Row],[CA]] -> 0.2141057935
A31: 5v5 | B31: Dn1 | C31: CBJ | D31: 67 | E31: 20052006 | F31: 28 | G31: 34 | H31: -6 | I31: 49.2 | J31: 105 | K31: 71.6 | L31: 8.2 | M31: 91 | N31: 52.7 | O31: 99.2 | P31: 48.7 | Q31: 47 | R31: -16 | S31: 125 | T31: 141 | U31: 10 | V31: 11.3 | W31: 21.2 | X31: 45.7 | Y31: -55 | Z31: 296 | AA31: 351 | AB31: 23.6 | AC31: 28 | AD31: 51.6 | AE31: 49.2 | AF31: -20 | AG31: 648 | AH31: 668 | AI31: 51.7 | AJ31: 53.3 | AK31: 105 | AL31: 48.4 | AM31: -31 | AN31: 38 | AO31: 40.5 | AP31: 476 | AQ31: 507 | AR31: 78.4 | AS31: 135 | AT31: 131 | AU31: 172 | AV31: 161 | AW31: 47.6 | AX31: -35 | AY31: 27.2 | AZ31: 30 | BA31: 341 | BB31: 376 | BC31: 2.2 | BD31: 2.7 | BE31: 45.2 | BF31: 8.2 | BG31: 5.9 | BH31: 91 | BI31: 52.6 | BJ31: 71.6 | BK31: 52.7 | BL31: 382 | BM31: 343 | BN31: 204 | BO31: 306 | BP31: 215 | BQ31: 235 | BR31: 193 | BS31: 6 | BT31: 8 | BU31: 2 | BV31: 751.8 | BW31: =Table1[[#This Row],[SF]]/Table1[[#This Row],[CF]] -> 0.5262345679 | BX31: =Table1[[#This Row],[MSF]]/Table1[[#This Row],[CF]] -> 0.2083333333 | BY31: =Table1[[#This Row],[BSF]]/Table1[[#This Row],[CF]] -> 0.2654320988 | BZ31: =Table1[[#This Row],[SA]]/Table1[[#This Row],[CA]] -> 0.5628742515 | CA31: =Table1[[#This Row],[MSA]]/Table1[[#This Row],[CA]] -> 0.1961077844 | CB31: =Table1[[#This Row],[BSA]]/Table1[[#This Row],[CA]] -> 0.2410179641
A32: 5v5 | B32: ScAdj | C32: CGY | D32: 82 | E32: 20052006 | F32: 105 | G32: 89 | H32: 16 | I32: 52.2 | J32: 98.1 | K32: 70 | L32: 8 | M32: 92.7 | N32: 50.7 | O32: 100.7 | P32: 54.7 | Q32: 53.4 | R32: 64.4 | S32: 504.8 | T32: 440.4 | U32: 10.5 | V32: 9.1 | W32: 19.6 | X32: 53.3 | Y32: 158.7 | Z32: 1271.1 | AA32: 1112.5 | AB32: 26.4 | AC32: 23.1 | AD32: 49.5 | AE32: 52.2 | AF32: 204.5 | AG32: 2464.8 | AH32: 2260.3 | AI32: 51.2 | AJ32: 46.9 | AK32: 98.1 | AL32: 51.7 | AM32: 124.3 | AN32: 39 | AO32: 36.4 | AP32: 1877.9 | AQ32: 1753.5 | AR32: 75.4 | AS32: 563.1 | AT32: 538.2 | AU32: 587 | AV32: 506.8 | AW32: 52 | AX32: 99.4 | AY32: 27.3 | AZ32: 25.2 | BA32: 1314.7 | BB32: 1215.3 | BC32: 2.2 | BD32: 1.8 | BE32: 54.1 | BF32: 8 | BG32: 5.6 | BH32: 92.7 | BI32: 53.3 | BJ32: 70 | BK32: 50.7 | BL32: 1357 | BM32: 1321 | BN32: 878 | BO32: 1072 | BP32: 728 | BQ32: 1263 | BR32: 1161 | BS32: 36 | BT32: 33 | BU32: -3 | BV32: 2890.8 | BW32: =Table1[[#This Row],[SF]]/Table1[[#This Row],[CF]] -> 0.5333901331 | BX32: =Table1[[#This Row],[MSF]]/Table1[[#This Row],[CF]] -> 0.2284566699 | BY32: =Table1[[#This Row],[BSF]]/Table1[[#This Row],[CF]] -> 0.238153197 | BZ32: =Table1[[#This Row],[SA]]/Table1[[#This Row],[CA]] -> 0.5376719904 | CA32: =Table1[[#This Row],[MSA]]/Table1[[#This Row],[CA]] -> 0.2381099854 | CB32: =Table1[[#This Row],[BSA]]/Table1[[#This Row],[CA]] -> 0.2242180242
A33: 5v5 | B33: Close | C33: CGY | D33: 82 | E33: 20052006 | F33: 68 | G33: 56 | H33: 12 | I33: 51.6 | J33: 102.2 | K33: 70.6 | L33: 8 | M33: 93.1 | N33: 50.8 | O33: 101 | P33: 55.7 | Q33: 55.1 | R33: 61 | S33: 332 | T33: 271 | U33: 10.8 | V33: 8.8 | W33: 19.7 | X33: 54.5 | Y33: 138 | Z33: 833 | AA33: 695 | AB33: 27.2 | AC33: 22.7 | AD33: 49.8 | AE33: 51.6 | AF33: 103 | AG33: 1619 | AH33: 1516 | AI33: 52.8 | AJ33: 49.4 | AK33: 102.2 | AL33: 50.7 | AM33: 35 | AN33: 39.4 | AO33: 38.2 | AP33: 1207 | AQ33: 1172 | AR33: 77.6 | AS33: 355 | AT33: 365 | AU33: 412 | AV33: 344 | AW33: 51.4 | AX33: 45 | AY33: 27.8 | AZ33: 26.3 | BA33: 852 | BB33: 807 | BC33: 2.2 | BD33: 1.8 | BE33: 54.8 | BF33: 8 | BG33: 5.6 | BH33: 93.1 | BI33: 52.6 | BJ33: 70.6 | BK33: 50.8 | BL33: 869 | BM33: 840 | BN33: 577 | BO33: 673 | BP33: 459 | BQ33: 873 | BR33: 794 | BS33: 28 | BT33: 23 | BU33: -5 | BV33: 1839.9 | BW33: =Table1[[#This Row],[SF]]/Table1[[#This Row],[CF]] -> 0.5262507721 | BX33: =Table1[[#This Row],[MSF]]/Table1[[#This Row],[CF]] -> 0.219271155 | BY33: =Table1[[#This Row],[BSF]]/Table1[[#This Row],[CF]] -> 0.2544780729 | BZ33: =Table1[[#This Row],[SA]]/Table1[[#This Row],[CA]] -> 0.5323218997 | CA33: =Table1[[#This Row],[MSA]]/Table1[[#This Row],[CA]] -> 0.2407651715 | CB33: =Table1[[#This Row],[BSA]]/Table1[[#This Row],[CA]] -> 0.2269129288
A34: 5v5 | B34: Tied | C34: CGY | D34: 82 | E34: 20052006 | F34: 50 | G34: 33 | H34: 17 | I34: 52.2 | J34: 104.6 | K34: 72.1 | L34: 9.2 | M34: 93.6 | N34: 49.3 | O34: 102.8 | P34: 55.7 | Q34: 55.5 | R34: 42 | S34: 212 | T34: 170 | U34: 11.4 | V34: 9.2 | W34: 20.6 | X34: 55.3 | Y34: 104 | Z34: 540 | AA34: 436 | AB34: 29.1 | AC34: 23.5 | AD34: 52.5 | AE34: 52.2 | AF34: 86 | AG34: 1014 | AH34: 928 | AI34: 54.6 | AJ34: 50 | AK34: 104.6 | AL34: 51 | AM34: 31 | AN34: 40.7 | AO34: 39 | AP34: 755 | AQ34: 724 | AR34: 79.6 | AS34: 211 | AT34: 210 | AU34: 259 | AV34: 204 | AW34: 51.4 | AX34: 30 | AY34: 29.3 | AZ34: 27.7 | BA34: 544 | BB34: 514 | BC34: 2.7 | BD34: 1.8 | BE34: 60.2 | BF34: 9.2 | BG34: 6.6 | BH34: 93.6 | BI34: 53.6 | BJ34: 72.1 | BK34: 49.3 | BL34: 510 | BM34: 525 | BN34: 352 | BO34: 403 | BP34: 280 | BQ34: 524 | BR34: 451 | BS34: 14 | BT34: 11 | BU34: -3 | BV34: 1114.4 | BW34: =Table1[[#This Row],[SF]]/Table1[[#This Row],[CF]] -> 0.5364891519 | BX34: =Table1[[#This Row],[MSF]]/Table1[[#This Row],[CF]] -> 0.208086785 | BY34: =Table1[[#This Row],[BSF]]/Table1[[#This Row],[CF]] -> 0.2554240631 | BZ34: =Table1[[#This Row],[SA]]/Table1[[#This Row],[CA]] -> 0.5538793103 | CA34: =Table1[[#This Row],[MSA]]/Table1[[#This Row],[CA]] -> 0.2262931034 | CB34: =Table1[[#This Row],[BSA]]/Table1[[#This Row],[CA]] -> 0.2198275862
A35: 5v5 | B35: Up1 | C35: CGY | D35: 62 | E35: 20052006 | F35: 23 | G35: 22 | H35: 1 | I35: 49.7 | J35: 97.2 | K35: 67.8 | L35: 7.4 | M35: 92.8 | N35: 51.7 | O35: 100.2 | P35: 51.4 | Q35: 52.1 | R35: 10 | S35: 122 | T35: 112 | U35: 9.7 | V35: 8.9 | W35: 18.6 | X35: 51.4 | Y35: 16 | Z35: 297 | AA35: 281 | AB35: 23.6 | AC35: 22.4 | AD35: 46 | AE35: 49.7 | AF35: -7 | AG35: 607 | AH35: 614 | AI35: 48.3 | AJ35: 48.9 | AK35: 97.2 | AL35: 50.1 | AM35: 2 | AN35: 36.5 | AO35: 36.4 | AP35: 459 | AQ35: 457 | AR35: 72.9 | AS35: 148 | AT35: 153 | AU35: 148 | AV35: 157 | AW35: 50.6 | AX35: 7 | AY35: 24.8 | AZ35: 24.2 | BA35: 311 | BB35: 304 | BC35: 1.8 | BD35: 1.8 | BE35: 51.1 | BF35: 7.4 | BG35: 5 | BH35: 92.8 | BI35: 51.2 | BJ35: 67.8 | BK35: 51.7 | BL35: 345 | BM35: 322 | BN35: 208 | BO35: 262 | BP35: 197 | BQ35: 307 | BR35: 322 | BS35: 9 | BT35: 7 | BU35: -2 | BV35: 753.7 | BW35: =Table1[[#This Row],[SF]]/Table1[[#This Row],[CF]] -> 0.5123558484 | BX35: =Table1[[#This Row],[MSF]]/Table1[[#This Row],[CF]] -> 0.2438220758 | BY35: =Table1[[#This Row],[BSF]]/Table1[[#This Row],[CF]] -> 0.2438220758 | BZ35: =Table1[[#This Row],[SA]]/Table1[[#This Row],[CA]] -> 0.4951140065 | CA35: =Table1[[#This Row],[MSA]]/Table1[[#This Row],[CA]] -> 0.2491856678 | CB35: =Table1[[#This Row],[BSA]]/Table1[[#This Row],[CA]] -> 0.2557003257
A36: 5v5 | B36: Dn1 | C36: CGY | D36: 49 | E36: 20052006 | F36: 16 | G36: 10 | H36: 6 | I36: 57.1 | J36: 100.7 | K36: 69.1 | L36: 7.8 | M36: 93.2 | N36: 53.8 | O36: 101 | P36: 63.6 | Q36: 61 | R36: 31 | S36: 86 | T36: 55 | U36: 12.5 | V36: 8 | W36: 20.5 | X36: 59.1 | Y36: 64 | Z36: 207 | AA36: 143 | AB36: 30 | AC36: 20.8 | AD36: 50.8 | AE36: 57.1 | AF36: 98 | AG36: 396 | AH36: 298 | AI36: 57.5 | AJ36: 43.2 | AK36: 100.7 | AL36: 56.5 | AM36: 69 | AN36: 43.2 | AO36: 33.2 | AP36: 298 | AQ36: 229 | AR36: 76.5 | AS36: 92 | AT36: 81 | AU36: 98 | AV36: 69 | AW36: 58.2 | AX36: 58 | AY36: 29.9 | AZ36: 21.5 | BA36: 206 | BB36: 148 | BC36: 2.3 | BD36: 1.5 | BE36: 61.5 | BF36: 7.8 | BG36: 5.4 | BH36: 93.2 | BI36: 52 | BJ36: 69.1 | BK36: 53.8 | BL36: 210 | BM36: 180 | BN36: 147 | BO36: 159 | BP36: 84 | BQ36: 195 | BR36: 188 | BS36: 6 | BT36: 6 | BU36: 0 | BV36: 413.5 | BW36: =Table1[[#This Row],[SF]]/Table1[[#This Row],[CF]] -> 0.5202020202 | BX36: =Table1[[#This Row],[MSF]]/Table1[[#This Row],[CF]] -> 0.2323232323 | BY36: =Table1[[#This Row],[BSF]]/Table1[[#This Row],[CF]] -> 0.2474747475 | BZ36: =Table1[[#This Row],[SA]]/Table1[[#This Row],[CA]] -> 0.4966442953 | CA36: =Table1[[#This Row],[MSA]]/Table1[[#This Row],[CA]] -> 0.2718120805 | CB36: =Table1[[#This Row],[BSA]]/Table1[[#This Row],[CA]] -> 0.2315436242
A37: 5v5 | B37: ScAdj | C37: CHI | D37: 82 | E37: 20052006 | F37: 133 | G37: 159 | H37: -26 | I37: 51.3 | J37: 105.7 | K37: 73.4 | L37: 8.8 | M37: 88.9 | N37: 48.1 | O37: 97.7 | P37: 52.7 | Q37: 45.5 | R37: -90.5 | S37: 458.7 | T37: 549.2 | U37: 9.3 | V37: 11.1 | W37: 20.4 | X37: 49.1 | Y37: -49 | Z37: 1273.3 | AA37: 1322.3 | AB37: 25.8 | AC37: 26.8 | AD37: 52.6 | AE37: 51.3 | AF37: 136.4 | AG37: 2673.1 | AH37: 2536.7 | AI37: 54.2 | AJ37: 51.5 | AK37: 105.7 | AL37: 51.5 | AM37: 118 | AN37: 41.9 | AO37: 39.6 | AP37: 2068.1 | AQ37: 1950.1 | AR37: 81.5 | AS37: 550.6 | AT37: 516.3 | AU37: 605 | AV37: 586.6 | AW37: 51.4 | AX37: 83.7 | AY37: 30.8 | AZ37: 29.1 | BA37: 1517.5 | BB37: 1433.8 | BC37: 2.7 | BD37: 3.2 | BE37: 45.5 | BF37: 8.8 | BG37: 6.4 | BH37: 88.9 | BI37: 56.8 | BJ37: 73.4 | BK37: 48.1 | BL37: 1290 | BM37: 1392 | BN37: 829 | BO37: 1110 | BP37: 743 | BQ37: 1026 | BR37: 937 | BS37: 40 | BT37: 42 | BU37: 2 | BV37: 2958.3 | BW37: =Table1[[#This Row],[SF]]/Table1[[#This Row],[CF]] -> 0.5676929408 | BX37: =Table1[[#This Row],[MSF]]/Table1[[#This Row],[CF]] -> 0.2059780779 | BY37: =Table1[[#This Row],[BSF]]/Table1[[#This Row],[CF]] -> 0.2263289813 | BZ37: =Table1[[#This Row],[SA]]/Table1[[#This Row],[CA]] -> 0.5652225332 | CA37: =Table1[[#This Row],[MSA]]/Table1[[#This Row],[CA]] -> 0.2035321481 | CB37: =Table1[[#This Row],[BSA]]/Table1[[#This Row],[CA]] -> 0.2312453187
A38: 5v5 | B38: Close | C38: CHI | D38: 82 | E38: 20052006 | F38: 89 | G38: 100 | H38: -11 | I38: 51 | J38: 104.9 | K38: 76.8 | L38: 9.3 | M38: 88.8 | N38: 48 | O38: 98 | P38: 51.9 | Q38: 44.2 | R38: -74 | S38: 284 | T38: 358 | U38: 9.7 | V38: 12.2 | W38: 21.9 | X38: 48.7 | Y38: -43 | Z38: 776 | AA38: 819 | AB38: 26.5 | AC38: 27.9 | AD38: 54.4 | AE38: 51 | AF38: 64 | AG38: 1569 | AH38: 1505 | AI38: 53.5 | AJ38: 51.3 | AK38: 104.9 | AL38: 51.5 | AM38: 74 | AN38: 42.7 | AO38: 40.2 | AP38: 1251 | AQ38: 1177 | AR38: 82.8 | AS38: 290 | AT38: 288 | AU38: 318 | AV38: 328 | AW38: 51.9 | AX38: 72 | AY38: 32.8 | AZ38: 30.3 | BA38: 961 | BB38: 889 | BC38: 3 | BD38: 3.4 | BE38: 47.1 | BF38: 9.3 | BG38: 7.1 | BH38: 88.8 | BI38: 61.2 | BJ38: 76.8 | BK38: 48 | BL38: 774 | BM38: 838 | BN38: 495 | BO38: 659 | BP38: 458 | BQ38: 645 | BR38: 602 | BS38: 23 | BT38: 21 | BU38: -2 | BV38: 1758.8 | BW38: =Table1[[#This Row],[SF]]/Table1[[#This Row],[CF]] -> 0.6124920331 | BX38: =Table1[[#This Row],[MSF]]/Table1[[#This Row],[CF]] -> 0.1848311026 | BY38: =Table1[[#This Row],[BSF]]/Table1[[#This Row],[CF]] -> 0.2026768642 | BZ38: =Table1[[#This Row],[SA]]/Table1[[#This Row],[CA]] -> 0.5906976744 | CA38: =Table1[[#This Row],[MSA]]/Table1[[#This Row],[CA]] -> 0.1913621262 | CB38: =Table1[[#This Row],[BSA]]/Table1[[#This Row],[CA]] -> 0.2179401993
A39: 5v5 | B39: Tied | C39: CHI | D39: 82 | E39: 20052006 | F39: 47 | G39: 63 | H39: -16 | I39: 52.6 | J39: 102.9 | K39: 77.5 | L39: 7.5 | M39: 88.6 | N39: 50 | O39: 96.1 | P39: 53 | Q39: 45.4 | R39: -37 | S39: 184 | T39: 221 | U39: 9.7 | V39: 11.6 | W39: 21.3 | X39: 50.4 | Y39: 8 | Z39: 512 | AA39: 504 | AB39: 26.9 | AC39: 26.5 | AD39: 53.3 | AE39: 52.6 | AF39: 101 | AG39: 1030 | AH39: 929 | AI39: 54.1 | AJ39: 48.8 | AK39: 102.9 | AL39: 52.7 | AM39: 84 | AN39: 42.6 | AO39: 38.2 | AP39: 812 | AQ39: 728 | AR39: 80.9 | AS39: 183 | AT39: 174 | AU39: 218 | AV39: 201 | AW39: 53.2 | AX39: 75 | AY39: 33 | AZ39: 29.1 | BA39: 629 | BB39: 554 | BC39: 2.5 | BD39: 3.3 | BE39: 42.7 | BF39: 7.5 | BG39: 5.8 | BH39: 88.6 | BI39: 61.1 | BJ39: 77.5 | BK39: 50 | BL39: 511 | BM39: 511 | BN39: 322 | BO39: 415 | BP39: 285 | BQ39: 423 | BR39: 380 | BS39: 12 | BT39: 13 | BU39: 1 | BV39: 1142.7 | BW39: =Table1[[#This Row],[SF]]/Table1[[#This Row],[CF]] -> 0.6106796117 | BX39: =Table1[[#This Row],[MSF]]/Table1[[#This Row],[CF]] -> 0.1776699029 | BY39: =Table1[[#This Row],[BSF]]/Table1[[#This Row],[CF]] -> 0.2116504854 | BZ39: =Table1[[#This Row],[SA]]/Table1[[#This Row],[CA]] -> 0.5963401507 | CA39: =Table1[[#This Row],[MSA]]/Table1[[#This Row],[CA]] -> 0.1872981701 | CB39: =Table1[[#This Row],[BSA]]/Table1[[#This Row],[CA]] -> 0.2163616792
A40: 5v5 | B40: Up1 | C40: CHI | D40: 42 | E40: 20052006 | F40: 16 | G40: 19 | H40: -3 | I40: 47.4 | J40: 107 | K40: 75.7 | L40: 9 | M40: 89.9 | N40: 42.9 | O40: 98.9 | P40: 48 | Q40: 38.3 | R40: -28 | S40: 46 | T40: 74 | U40: 8.3 | V40: 13.4 | W40: 21.7 | X40: 43.4 | Y40: -39 | Z40: 129 | AA40: 168 | AB40: 23.3 | AC40: 30.3 | AD40: 53.6 | AE40: 47.4 | AF40: -31 | AG40: 281 | AH40: 312 | AI40: 50.7 | AJ40: 56.3 | AK40: 107 | AL40: 48.6 | AM40: -14 | AN40: 42.4 | AO40: 44.9 | AP40: 235 | AQ40: 249 | AR40: 87.3 | AS40: 57 | AT40: 61 | AU40: 46 | AV40: 63 | AW40: 48.6 | AX40: -10 | AY40: 32.1 | AZ40: 33.9 | BA40: 178 | BB40: 188 | BC40: 2.9 | BD40: 3.4 | BE40: 45.7 | BF40: 9 | BG40: 6.8 | BH40: 89.9 | BI40: 63.3 | BJ40: 75.7 | BK40: 42.9 | BL40: 142 | BM40: 189 | BN40: 94 | BO40: 135 | BP40: 102 | BQ40: 108 | BR40: 118 | BS40: 4 | BT40: 4 | BU40: 0 | BV40: 332.5 | BW40: =Table1[[#This Row],[SF]]/Table1[[#This Row],[CF]] -> 0.6334519573 | BX40: =Table1[[#This Row],[MSF]]/Table1[[#This Row],[CF]] -> 0.2028469751 | BY40: =Table1[[#This Row],[BSF]]/Table1[[#This Row],[CF]] -> 0.1637010676 | BZ40: =Table1[[#This Row],[SA]]/Table1[[#This Row],[CA]] -> 0.6025641026 | CA40: =Table1[[#This Row],[MSA]]/Table1[[#This Row],[CA]] -> 0.1955128205 | CB40: =Table1[[#This Row],[BSA]]/Table1[[#This Row],[CA]] -> 0.2019230769
A41: 5v5 | B41: Dn1 | C41: CHI | D41: 63 | E41: 20052006 | F41: 33 | G41: 34 | H41: -1 | I41: 52.5 | J41: 101.3 | K41: 74.1 | L41: 11.1 | M41: 87.6 | N41: 48.4 | O41: 98.7 | P41: 53 | Q41: 43.9 | R41: -25 | S41: 90 | T41: 115 | U41: 9.1 | V41: 11.6 | W41: 20.7 | X41: 47.8 | Y41: -22 | Z41: 242 | AA41: 264 | AB41: 24.4 | AC41: 26.6 | AD41: 51 | AE41: 52.5 | AF41: 51 | AG41: 528 | AH41: 477 | AI41: 53.2 | AJ41: 48.1 | AK41: 101.3 | AL41: 52.1 | AM41: 32 | AN41: 40.5 | AO41: 37.3 | AP41: 402 | AQ41: 370 | AR41: 77.8 | AS41: 104 | AT41: 95 | AU41: 126 | AV41: 107 | AW41: 52 | AX41: 23 | AY41: 30 | AZ41: 27.7 | BA41: 298 | BB41: 275 | BC41: 3.3 | BD41: 3.4 | BE41: 49.3 | BF41: 11.1 | BG41: 8.2 | BH41: 87.6 | BI41: 56.4 | BJ41: 74.1 | BK41: 48.4 | BL41: 253 | BM41: 270 | BN41: 169 | BO41: 204 | BP41: 150 | BQ41: 190 | BR41: 183 | BS41: 7 | BT41: 4 | BU41: -3 | BV41: 595.3 | BW41: =Table1[[#This Row],[SF]]/Table1[[#This Row],[CF]] -> 0.5643939394 | BX41: =Table1[[#This Row],[MSF]]/Table1[[#This Row],[CF]] -> 0.196969697 | BY41: =Table1[[#This Row],[BSF]]/Table1[[#This Row],[CF]] -> 0.2386363636 | BZ41: =Table1[[#This Row],[SA]]/Table1[[#This Row],[CA]] -> 0.5765199161 | CA41: =Table1[[#This Row],[MSA]]/Table1[[#This Row],[CA]] -> 0.1991614256 | CB41: =Table1[[#This Row],[BSA]]/Table1[[#This Row],[CA]] -> 0.2243186583
A42: 5v5 | B42: ScAdj | C42: COL | D42: 82 | E42: 20052006 | F42: 162 | G42: 150 | H42: 12 | I42: 48.1 | J42: 106.8 | K42: 73 | L42: 11.6 | M42: 89.1 | N42: 47.8 | O42: 100.7 | P42: 50.4 | Q42: 52 | R42: 47.7 | S42: 619.2 | T42: 571.5 | U42: 12.7 | V42: 11.7 | W42: 24.5 | X42: 48.8 | Y42: -69.8 | Z42: 1400.5 | AA42: 1470.3 | AB42: 28.8 | AC42: 30.2 | AD42: 59 | AE42: 48.1 | AF42: -199.9 | AG42: 2499.2 | AH42: 2699.1 | AI42: 51.3 | AJ42: 55.4 | AK42: 106.8 | AL42: 48.7 | AM42: -103.4 | AN42: 39.2 | AO42: 41.4 | AP42: 1910.8 | AQ42: 2014.1 | AR42: 80.6 | AS42: 516.4 | AT42: 640.8 | AU42: 588.5 | AV42: 685 | AW42: 50.4 | AX42: 21 | AY42: 28.6 | AZ42: 28.2 | BA42: 1394.3 | BB42: 1373.4 | BC42: 3.3 | BD42: 3.1 | BE42: 51.9 | BF42: 11.6 | BG42: 8.5 | BH42: 89.1 | BI42: 55.8 | BJ42: 73 | BK42: 47.8 | BL42: 1317 | BM42: 1441 | BN42: 805 | BO42: 1162 | BP42: 791 | BQ42: 701 | BR42: 920 | BS42: 26 | BT42: 36 | BU42: 10 | BV42: 2920.9 | BW42: =Table1[[#This Row],[SF]]/Table1[[#This Row],[CF]] -> 0.5578985275 | BX42: =Table1[[#This Row],[MSF]]/Table1[[#This Row],[CF]] -> 0.2066261204 | BY42: =Table1[[#This Row],[BSF]]/Table1[[#This Row],[CF]] -> 0.2354753521 | BZ42: =Table1[[#This Row],[SA]]/Table1[[#This Row],[CA]] -> 0.5088362788 | CA42: =Table1[[#This Row],[MSA]]/Table1[[#This Row],[CA]] -> 0.2374124708 | CB42: =Table1[[#This Row],[BSA]]/Table1[[#This Row],[CA]] -> 0.2537882998
A43: 5v5 | B43: Close | C43: COL | D43: 82 | E43: 20052006 | F43: 92 | G43: 90 | H43: 2 | I43: 48.9 | J43: 113.6 | K43: 73.3 | L43: 10.7 | M43: 89.3 | N43: 47.8 | O43: 100 | P43: 51.9 | Q43: 51 | R43: 15 | S43: 371 | T43: 356 | U43: 13 | V43: 12.5 | W43: 25.5 | X43: 49.8 | Y43: -7 | Z43: 877 | AA43: 884 | AB43: 30.8 | AC43: 31.1 | AD43: 61.9 | AE43: 48.9 | AF43: -74 | AG43: 1580 | AH43: 1654 | AI43: 55.5 | AJ43: 58.1 | AK43: 113.6 | AL43: 49.3 | AM43: -35 | AN43: 41.2 | AO43: 42.5 | AP43: 1174 | AQ43: 1209 | AR43: 83.7 | AS43: 314 | AT43: 367 | AU43: 406 | AV43: 445 | AW43: 50.5 | AX43: 18 | AY43: 30.2 | AZ43: 29.6 | BA43: 860 | BB43: 842 | BC43: 3.2 | BD43: 3.2 | BE43: 50.5 | BF43: 10.7 | BG43: 7.8 | BH43: 89.3 | BI43: 54.4 | BJ43: 73.3 | BK43: 47.8 | BL43: 794 | BM43: 867 | BN43: 507 | BO43: 684 | BP43: 470 | BQ43: 421 | BR43: 579 | BS43: 16 | BT43: 23 | BU43: 7 | BV43: 1708.1 | BW43: =Table1[[#This Row],[SF]]/Table1[[#This Row],[CF]] -> 0.5443037975 | BX43: =Table1[[#This Row],[MSF]]/Table1[[#This Row],[CF]] -> 0.1987341772 | BY43: =Table1[[#This Row],[BSF]]/Table1[[#This Row],[CF]] -> 0.2569620253 | BZ43: =Table1[[#This Row],[SA]]/Table1[[#This Row],[CA]] -> 0.5090689238 | CA43: =Table1[[#This Row],[MSA]]/Table1[[#This Row],[CA]] -> 0.2218863362 | CB43: =Table1[[#This Row],[BSA]]/Table1[[#This Row],[CA]] -> 0.26904474
A44: 5v5 | B44: Tied | C44: COL | D44: 82 | E44: 20052006 | F44: 49 | G44: 51 | H44: -2 | I44: 49.9 | J44: 111.6 | K44: 72.9 | L44: 9.2 | M44: 90 | N44: 46.7 | O44: 99.2 | P44: 53.7 | Q44: 52.2 | R44: 19 | S44: 227 | T44: 208 | U44: 12.8 | V44: 11.7 | W44: 24.5 | X44: 50.7 | Y44: 14 | Z44: 535 | AA44: 521 | AB44: 30.2 | AC44: 29.4 | AD44: 59.5 | AE44: 49.9 | AF44: -5 | AG44: 987 | AH44: 992 | AI44: 55.6 | AJ44: 55.9 | AK44: 111.6 | AL44: 50.4 | AM44: 12 | AN44: 41.3 | AO44: 40.6 | AP44: 733 | AQ44: 721 | AR44: 82 | AS44: 199 | AT44: 212 | AU44: 254 | AV44: 271 | AW44: 51.2 | AX44: 25 | AY44: 30.1 | AZ44: 28.7 | BA44: 534 | BB44: 509 | BC44: 2.8 | BD44: 2.9 | BE44: 49 | BF44: 9.2 | BG44: 6.7 | BH44: 90 | BI44: 54.1 | BJ44: 72.9 | BK44: 46.7 | BL44: 474 | BM44: 540 | BN44: 329 | BO44: 401 | BP44: 284 | BQ44: 244 | BR44: 378 | BS44: 10 | BT44: 15 | BU44: 5 | BV44: 1064.4 | BW44: =Table1[[#This Row],[SF]]/Table1[[#This Row],[CF]] -> 0.5410334347 | BX44: =Table1[[#This Row],[MSF]]/Table1[[#This Row],[CF]] -> 0.201621074 | BY44: =Table1[[#This Row],[BSF]]/Table1[[#This Row],[CF]] -> 0.2573454914 | BZ44: =Table1[[#This Row],[SA]]/Table1[[#This Row],[CA]] -> 0.5131048387 | CA44: =Table1[[#This Row],[MSA]]/Table1[[#This Row],[CA]] -> 0.2137096774 | CB44: =Table1[[#This Row],[BSA]]/Table1[[#This Row],[CA]] -> 0.2731854839
A45: 5v5 | B45: Up1 | C45: COL | D45: 60 | E45: 20052006 | F45: 31 | G45: 35 | H45: -4 | I45: 44.8 | J45: 114.4 | K45: 76.7 | L45: 11.7 | M45: 87 | N45: 46.2 | O45: 98.8 | P45: 46 | Q45: 48.9 | R45: -5 | S45: 115 | T45: 120 | U45: 13 | V45: 13.6 | W45: 26.6 | X45: 45.4 | Y45: -51 | Z45: 252 | AA45: 303 | AB45: 28.5 | AC45: 34.2 | AD45: 62.7 | AE45: 44.8 | AF45: -106 | AG45: 453 | AH45: 559 | AI45: 51.2 | AJ45: 63.2 | AK45: 114.4 | AL45: 46.7 | AM45: -48 | AN45: 38.9 | AO45: 44.3 | AP45: 344 | AQ45: 392 | AR45: 83.2 | AS45: 80 | AT45: 122 | AU45: 109 | AV45: 167 | AW45: 49.4 | AX45: -6 | AY45: 29.8 | AZ45: 30.5 | BA45: 264 | BB45: 270 | BC45: 3.5 | BD45: 4 | BE45: 47 | BF45: 11.7 | BG45: 9 | BH45: 87 | BI45: 58.3 | BJ45: 76.7 | BK45: 46.2 | BL45: 233 | BM45: 271 | BN45: 133 | BO45: 215 | BP45: 156 | BQ45: 148 | BR45: 134 | BS45: 3 | BT45: 3 | BU45: 0 | BV45: 530.9 | BW45: =Table1[[#This Row],[SF]]/Table1[[#This Row],[CF]] -> 0.582781457 | BX45: =Table1[[#This Row],[MSF]]/Table1[[#This Row],[CF]] -> 0.1766004415 | BY45: =Table1[[#This Row],[BSF]]/Table1[[#This Row],[CF]] -> 0.2406181015 | BZ45: =Table1[[#This Row],[SA]]/Table1[[#This Row],[CA]] -> 0.4830053667 | CA45: =Table1[[#This Row],[MSA]]/Table1[[#This Row],[CA]] -> 0.2182468694 | CB45: =Table1[[#This Row],[BSA]]/Table1[[#This Row],[CA]] -> 0.2987477639
A46: 5v5 | B46: Dn1 | C46: COL | D46: 50 | E46: 20052006 | F46: 31 | G46: 25 | H46: 6 | I46: 51.7 | J46: 110.8 | K46: 73.1 | L46: 12.6 | M46: 89.1 | N46: 50.2 | O46: 101.7 | P46: 55.2 | Q46: 53 | R46: 12 | S46: 107 | T46: 95 | U46: 12.9 | V46: 11.5 | W46: 24.4 | X46: 53 | Y46: 29 | Z46: 255 | AA46: 226 | AB46: 30.8 | AC46: 27.3 | AD46: 58.1 | AE46: 51.7 | AF46: 31 | AG46: 474 | AH46: 443 | AI46: 57.3 | AJ46: 53.5 | AK46: 110.8 | AL46: 50.1 | AM46: 2 | AN46: 40.8 | AO46: 40.6 | AP46: 338 | AQ46: 336 | AR46: 81.4 | AS46: 91 | AT46: 106 | AU46: 136 | AV46: 107 | AW46: 51.8 | AX46: 17 | AY46: 29.8 | AZ46: 27.8 | BA46: 247 | BB46: 230 | BC46: 3.7 | BD46: 3 | BE46: 55.4 | BF46: 12.6 | BG46: 9.2 | BH46: 89.1 | BI46: 52.1 | BJ46: 73.1 | BK46: 50.2 | BL46: 240 | BM46: 238 | BN46: 153 | BO46: 201 | BP46: 124 | BQ46: 126 | BR46: 159 | BS46: 4 | BT46: 7 | BU46: 3 | BV46: 496.7 | BW46: =Table1[[#This Row],[SF]]/Table1[[#This Row],[CF]] -> 0.5210970464 | BX46: =Table1[[#This Row],[MSF]]/Table1[[#This Row],[CF]] -> 0.1919831224 | BY46: =Table1[[#This Row],[BSF]]/Table1[[#This Row],[CF]] -> 0.2869198312 | BZ46: =Table1[[#This Row],[SA]]/Table1[[#This Row],[CA]] -> 0.5191873589 | CA46: =Table1[[#This Row],[MSA]]/Table1[[#This Row],[CA]] -> 0.2392776524 | CB46: =Table1[[#This Row],[BSA]]/Table1[[#This Row],[CA]] -> 0.2415349887
A47: 5v5 | B47: ScAdj | C47: DAL | D47: 80 | E47: 20052006 | F47: 140 | G47: 118 | H47: 22 | I47: 53.9 | J47: 99.6 | K47: 71.3 | L47: 10.5 | M47: 89.1 | N47: 50.6 | O47: 99.6 | P47: 53.1 | Q47: 53.9 | R47: 67.5 | S47: 464.4 | T47: 396.9 | U47: 10.1 | V47: 8.6 | W47: 18.7 | X47: 52.7 | Y47: 126.9 | Z47: 1230.6 | AA47: 1103.7 | AB47: 26.7 | AC47: 24 | AD47: 50.7 | AE47: 53.9 | AF47: 360.6 | AG47: 2471.7 | AH47: 2111.1 | AI47: 53.7 | AJ47: 45.9 | AK47: 99.6 | AL47: 54.1 | AM47: 284 | AN47: 40.8 | AO47: 34.6 | AP47: 1876.7 | AQ47: 1592.7 | AR47: 75.4 | AS47: 539.3 | AT47: 509.1 | AU47: 595 | AV47: 518.4 | AW47: 55.2 | AX47: 253.8 | AY47: 29.1 | AZ47: 23.6 | BA47: 1337.4 | BB47: 1083.6 | BC47: 3 | BD47: 2.6 | BE47: 54.3 | BF47: 10.5 | BG47: 7.5 | BH47: 89.1 | BI47: 54.1 | BJ47: 71.3 | BK47: 50.6 | BL47: 1236 | BM47: 1205 | BN47: 766 | BO47: 999 | BP47: 676 | BQ47: 1258 | BR47: 1207 | BS47: 37 | BT47: 33 | BU47: -4 | BV47: 2760.6 | BW47: =Table1[[#This Row],[SF]]/Table1[[#This Row],[CF]] -> 0.5410850831 | BX47: =Table1[[#This Row],[MSF]]/Table1[[#This Row],[CF]] -> 0.2181899098 | BY47: =Table1[[#This Row],[BSF]]/Table1[[#This Row],[CF]] -> 0.2407250071 | BZ47: =Table1[[#This Row],[SA]]/Table1[[#This Row],[CA]] -> 0.513286912 | CA47: =Table1[[#This Row],[MSA]]/Table1[[#This Row],[CA]] -> 0.2411539008 | CB47: =Table1[[#This Row],[BSA]]/Table1[[#This Row],[CA]] -> 0.2455591872
A48: 5v5 | B48: Close | C48: DAL | D48: 79 | E48: 20052006 | F48: 76 | G48: 60 | H48: 16 | I48: 53.3 | J48: 101.5 | K48: 69.6 | L48: 9.7 | M48: 90.7 | N48: 49.7 | O48: 100.4 | P48: 53.2 | Q48: 52.9 | R48: 30 | S48: 274 | T48: 244 | U48: 10 | V48: 8.9 | W48: 18.9 | X48: 52.6 | Y48: 73 | Z48: 749 | AA48: 676 | AB48: 27.3 | AC48: 24.7 | AD48: 52 | AE48: 53.3 | AF48: 182 | AG48: 1481 | AH48: 1299 | AI48: 54.1 | AJ48: 47.4 | AK48: 101.5 | AL48: 53.5 | AM48: 148 | AN48: 41.1 | AO48: 35.7 | AP48: 1127 | AQ48: 979 | AR48: 76.9 | AS48: 343 | AT48: 334 | AU48: 354 | AV48: 320 | AW48: 54.9 | AX48: 139 | AY48: 28.6 | AZ48: 23.5 | BA48: 784 | BB48: 645 | BC48: 2.8 | BD48: 2.2 | BE48: 55.9 | BF48: 9.7 | BG48: 6.7 | BH48: 90.7 | BI48: 52.9 | BJ48: 69.6 | BK48: 49.7 | BL48: 724 | BM48: 734 | BN48: 467 | BO48: 581 | BP48: 410 | BQ48: 783 | BR48: 763 | BS48: 17 | BT48: 18 | BU48: 1 | BV48: 1643.6 | BW48: =Table1[[#This Row],[SF]]/Table1[[#This Row],[CF]] -> 0.5293720459 | BX48: =Table1[[#This Row],[MSF]]/Table1[[#This Row],[CF]] -> 0.2316002701 | BY48: =Table1[[#This Row],[BSF]]/Table1[[#This Row],[CF]] -> 0.239027684 | BZ48: =Table1[[#This Row],[SA]]/Table1[[#This Row],[CA]] -> 0.4965357968 | CA48: =Table1[[#This Row],[MSA]]/Table1[[#This Row],[CA]] -> 0.2571208622 | CB48: =Table1[[#This Row],[BSA]]/Table1[[#This Row],[CA]] -> 0.246343341
A49: 5v5 | B49: Tied | C49: DAL | D49: 79 | E49: 20052006 | F49: 37 | G49: 38 | H49: -1 | I49: 52.1 | J49: 99.1 | K49: 69.2 | L49: 8.4 | M49: 90.1 | N49: 50 | O49: 98.6 | P49: 52.5 | Q49: 52.9 | R49: 17 | S49: 157 | T49: 140 | U49: 9.7 | V49: 8.6 | W49: 18.3 | X49: 50.6 | Y49: 10 | Z49: 408 | AA49: 398 | AB49: 25.1 | AC49: 24.5 | AD49: 49.6 | AE49: 52.1 | AF49: 67 | AG49: 838 | AH49: 771 | AI49: 51.6 | AJ49: 47.5 | AK49: 99.1 | AL49: 52.2 | AM49: 53 | AN49: 39 | AO49: 35.7 | AP49: 633 | AQ49: 580 | AR49: 74.7 | AS49: 195 | AT49: 195 | AU49: 205 | AV49: 191 | AW49: 53.2 | AX49: 53 | AY49: 27 | AZ49: 23.7 | BA49: 438 | BB49: 385 | BC49: 2.3 | BD49: 2.3 | BE49: 49.3 | BF49: 8.4 | BG49: 5.8 | BH49: 90.1 | BI49: 52.3 | BJ49: 69.2 | BK49: 50 | BL49: 425 | BM49: 425 | BN49: 271 | BO49: 334 | BP49: 245 | BQ49: 460 | BR49: 468 | BS49: 8 | BT49: 8 | BU49: 0 | BV49: 974.5 | BW49: =Table1[[#This Row],[SF]]/Table1[[#This Row],[CF]] -> 0.522673031 | BX49: =Table1[[#This Row],[MSF]]/Table1[[#This Row],[CF]] -> 0.2326968974 | BY49: =Table1[[#This Row],[BSF]]/Table1[[#This Row],[CF]] -> 0.2446300716 | BZ49: =Table1[[#This Row],[SA]]/Table1[[#This Row],[CA]] -> 0.4993514916 | CA49: =Table1[[#This Row],[MSA]]/Table1[[#This Row],[CA]] -> 0.2529182879 | CB49: =Table1[[#This Row],[BSA]]/Table1[[#This Row],[CA]] -> 0.2477302205
A50: 5v5 | B50: Up1 | C50: DAL | D50: 61 | E50: 20052006 | F50: 27 | G50: 22 | H50: 5 | I50: 51.1 | J50: 106.1 | K50: 68.9 | L50: 10.7 | M50: 91.1 | N50: 51.5 | O50: 101.8 | P50: 52.6 | Q50: 46.9 | R50: -11 | S50: 83 | T50: 94 | U50: 8.9 | V50: 10.1 | W50: 19 | X50: 50.7 | Y50: 7 | Z50: 254 | AA50: 247 | AB50: 27.3 | AC50: 26.5 | AD50: 53.8 | AE50: 51.1 | AF50: 21 | AG50: 505 | AH50: 484 | AI50: 54.2 | AJ50: 51.9 | AK50: 106.1 | AL50: 50.6 | AM50: 9 | AN50: 39.4 | AO50: 38.4 | AP50: 367 | AQ50: 358 | AR50: 77.8 | AS50: 114 | AT50: 111 | AU50: 138 | AV50: 126 | AW50: 50.6 | AX50: 6 | AY50: 27.1 | AZ50: 26.5 | BA50: 253 | BB50: 247 | BC50: 2.9 | BD50: 2.4 | BE50: 55.1 | BF50: 10.7 | BG50: 7.4 | BH50: 91.1 | BI50: 50.1 | BJ50: 68.9 | BK50: 51.5 | BL50: 256 | BM50: 241 | BN50: 159 | BO50: 195 | BP50: 143 | BQ50: 245 | BR50: 222 | BS50: 10 | BT50: 9 | BU50: -1 | BV50: 559.1 | BW50: =Table1[[#This Row],[SF]]/Table1[[#This Row],[CF]] -> 0.500990099 | BX50: =Table1[[#This Row],[MSF]]/Table1[[#This Row],[CF]] -> 0.2257425743 | BY50: =Table1[[#This Row],[BSF]]/Table1[[#This Row],[CF]] -> 0.2732673267 | BZ50: =Table1[[#This Row],[SA]]/Table1[[#This Row],[CA]] -> 0.5103305785 | CA50: =Table1[[#This Row],[MSA]]/Table1[[#This Row],[CA]] -> 0.229338843 | CB50: =Table1[[#This Row],[BSA]]/Table1[[#This Row],[CA]] -> 0.2603305785
A51: 5v5 | B51: Dn1 | C51: DAL | D51: 51 | E51: 20052006 | F51: 33 | G51: 16 | H51: 17 | I51: 58.3 | J51: 101.8 | K51: 71.8 | L51: 11.7 | M51: 90.6 | N51: 50 | O51: 102.3 | P51: 56.7 | Q51: 55.9 | R51: 19 | S51: 90 | T51: 71 | U51: 10.7 | V51: 8.5 | W51: 19.2 | X51: 57.6 | Y51: 67 | Z51: 254 | AA51: 187 | AB51: 30.3 | AC51: 22.3 | AD51: 52.7 | AE51: 58.3 | AF51: 141 | AG51: 497 | AH51: 356 | AI51: 59.3 | AJ51: 42.5 | AK51: 101.8 | AL51: 59.2 | AM51: 122 | AN51: 47 | AO51: 32.5 | AP51: 394 | AQ51: 272 | AR51: 79.5 | AS51: 111 | AT51: 101 | AU51: 103 | AV51: 84 | AW51: 62.3 | AX51: 112 | AY51: 33.8 | AZ51: 20.4 | BA51: 283 | BB51: 171 | BC51: 3.9 | BD51: 1.9 | BE51: 67.3 | BF51: 11.7 | BG51: 8.4 | BH51: 90.6 | BI51: 56.9 | BJ51: 71.8 | BK51: 50 | BL51: 223 | BM51: 223 | BN51: 149 | BO51: 183 | BP51: 114 | BQ51: 226 | BR51: 198 | BS51: 2 | BT51: 3 | BU51: 1 | BV51: 502.5 | BW51: =Table1[[#This Row],[SF]]/Table1[[#This Row],[CF]] -> 0.569416499 | BX51: =Table1[[#This Row],[MSF]]/Table1[[#This Row],[CF]] -> 0.2233400402 | BY51: =Table1[[#This Row],[BSF]]/Table1[[#This Row],[CF]] -> 0.2072434608 | BZ51: =Table1[[#This Row],[SA]]/Table1[[#This Row],[CA]] -> 0.4803370787 | CA51: =Table1[[#This Row],[MSA]]/Table1[[#This Row],[CA]] -> 0.2837078652 | CB51: =Table1[[#This Row],[BSA]]/Table1[[#This Row],[CA]] -> 0.2359550562
A52: 5v5 | B52: ScAdj | C52: DET | D52: 82 | E52: 20052006 | F52: 171 | G52: 113 | H52: 58 | I52: 57.8 | J52: 106.7 | K52: 69.8 | L52: 10.2 | M52: 90.9 | N52: 52.1 | O52: 101.2 | P52: 54 | Q52: 56.1 | R52: 128.6 | S52: 587.5 | T52: 458.9 | U52: 11.6 | V52: 9.1 | W52: 20.7 | X52: 56.5 | Y52: 342 | Z52: 1493.8 | AA52: 1151.8 | AB52: 29.6 | AC52: 22.8 | AD52: 52.4 | AE52: 57.8 | AF52: 843.6 | AG52: 3115.4 | AH52: 2271.7 | AI52: 61.7 | AJ52: 45 | AK52: 106.7 | AL52: 57.6 | AM52: 629.6 | AN52: 47.5 | AO52: 35 | AP52: 2398.5 | AQ52: 1768.9 | AR52: 82.5 | AS52: 724.8 | AT52: 521.6 | AU52: 716.8 | AV52: 502.8 | AW52: 57.3 | AX52: 426.4 | AY52: 33.1 | AZ52: 24.7 | BA52: 1673.7 | BB52: 1247.3 | BC52: 3.4 | BD52: 2.2 | BE52: 60.2 | BF52: 10.2 | BG52: 7.1 | BH52: 90.9 | BI52: 53.7 | BJ52: 69.8 | BK52: 52.1 | BL52: 1459 | BM52: 1342 | BN52: 907 | BO52: 1121 | BP52: 773 | BQ52: 896 | BR52: 1011 | BS52: 16 | BT52: 15 | BU52: -1 | BV52: 3029.5 | BW52: =Table1[[#This Row],[SF]]/Table1[[#This Row],[CF]] -> 0.537234384 | BX52: =Table1[[#This Row],[MSF]]/Table1[[#This Row],[CF]] -> 0.232650703 | BY52: =Table1[[#This Row],[BSF]]/Table1[[#This Row],[CF]] -> 0.2300828144 | BZ52: =Table1[[#This Row],[SA]]/Table1[[#This Row],[CA]] -> 0.5490601752 | CA52: =Table1[[#This Row],[MSA]]/Table1[[#This Row],[CA]] -> 0.2296077827 | CB52: =Table1[[#This Row],[BSA]]/Table1[[#This Row],[CA]] -> 0.2213320421
A53: 5v5 | B53: Close | C53: DET | D53: 82 | E53: 20052006 | F53: 100 | G53: 66 | H53: 34 | I53: 57.5 | J53: 114.4 | K53: 71 | L53: 9.3 | M53: 91.9 | N53: 53.9 | O53: 101.2 | P53: 55.4 | Q53: 57.9 | R53: 107 | S53: 390 | T53: 283 | U53: 12.7 | V53: 9.2 | W53: 21.9 | X53: 55.9 | Y53: 200 | Z53: 941 | AA53: 741 | AB53: 30.7 | AC53: 24.1 | AD53: 54.8 | AE53: 57.5 | AF53: 524 | AG53: 2017 | AH53: 1493 | AI53: 65.7 | AJ53: 48.7 | AK53: 114.4 | AL53: 57 | AM53: 373 | AN53: 49.4 | AO53: 37.3 | AP53: 1516 | AQ53: 1143 | AR53: 86.7 | AS53: 440 | AT53: 326 | AU53: 501 | AV53: 350 | AW53: 56.8 | AX53: 259 | AY53: 35.1 | AZ53: 26.6 | BA53: 1076 | BB53: 817 | BC53: 3.3 | BD53: 2.2 | BE53: 60.2 | BF53: 9.3 | BG53: 6.6 | BH53: 91.9 | BI53: 53.3 | BJ53: 71 | BK53: 53.9 | BL53: 937 | BM53: 803 | BN53: 579 | BO53: 694 | BP53: 467 | BQ53: 585 | BR53: 658 | BS53: 10 | BT53: 13 | BU53: 3 | BV53: 1841 | BW53: =Table1[[#This Row],[SF]]/Table1[[#This Row],[CF]] -> 0.5334655429 | BX53: =Table1[[#This Row],[MSF]]/Table1[[#This Row],[CF]] -> 0.218145761 | BY53: =Table1[[#This Row],[BSF]]/Table1[[#This Row],[CF]] -> 0.2483886961 | BZ53: =Table1[[#This Row],[SA]]/Table1[[#This Row],[CA]] -> 0.5472203617 | CA53: =Table1[[#This Row],[MSA]]/Table1[[#This Row],[CA]] -> 0.2183523108 | CB53: =Table1[[#This Row],[BSA]]/Table1[[#This Row],[CA]] -> 0.2344273275
A54: 5v5 | B54: Tied | C54: DET | D54: 82 | E54: 20052006 | F54: 58 | G54: 40 | H54: 18 | I54: 56.3 | J54: 117.5 | K54: 70.6 | L54: 8.8 | M54: 92.3 | N54: 53.4 | O54: 101.1 | P54: 55.2 | Q54: 56.1 | R54: 48 | S54: 222 | T54: 174 | U54: 12 | V54: 9.4 | W54: 21.5 | X54: 54.7 | Y54: 97 | Z54: 567 | AA54: 470 | AB54: 30.7 | AC54: 25.5 | AD54: 56.2 | AE54: 56.3 | AF54: 274 | AG54: 1221 | AH54: 947 | AI54: 66.2 | AJ54: 51.3 | AK54: 117.5 | AL54: 56.2 | AM54: 205 | AN54: 50.5 | AO54: 39.4 | AP54: 932 | AQ54: 727 | AR54: 89.9 | AS54: 274 | AT54: 209 | AU54: 289 | AV54: 220 | AW54: 56 | AX54: 140 | AY54: 35.7 | AZ54: 28.1 | BA54: 658 | BB54: 518 | BC54: 3.1 | BD54: 2.2 | BE54: 59.2 | BF54: 8.8 | BG54: 6.2 | BH54: 92.3 | BI54: 53.9 | BJ54: 70.6 | BK54: 53.4 | BL54: 570 | BM54: 498 | BN54: 369 | BO54: 400 | BP54: 299 | BQ54: 355 | BR54: 386 | BS54: 7 | BT54: 9 | BU54: 2 | BV54: 1107.4 | BW54: =Table1[[#This Row],[SF]]/Table1[[#This Row],[CF]] -> 0.5389025389 | BX54: =Table1[[#This Row],[MSF]]/Table1[[#This Row],[CF]] -> 0.2244062244 | BY54: =Table1[[#This Row],[BSF]]/Table1[[#This Row],[CF]] -> 0.2366912367 | BZ54: =Table1[[#This Row],[SA]]/Table1[[#This Row],[CA]] -> 0.5469904963 | CA54: =Table1[[#This Row],[MSA]]/Table1[[#This Row],[CA]] -> 0.2206969377 | CB54: =Table1[[#This Row],[BSA]]/Table1[[#This Row],[CA]] -> 0.232312566
A55: 5v5 | B55: Up1 | C55: DET | D55: 69 | E55: 20052006 | F55: 42 | G55: 25 | H55: 17 | I55: 57.1 | J55: 102.4 | K55: 70.9 | L55: 11.2 | M55: 90.7 | N55: 56.1 | O55: 101.9 | P55: 54.1 | Q55: 58.2 | R55: 44 | S55: 156 | T55: 112 | U55: 13 | V55: 9.4 | W55: 22.4 | X55: 55.7 | Y55: 70 | Z55: 341 | AA55: 271 | AB55: 28.5 | AC55: 22.7 | AD55: 51.2 | AE55: 57.1 | AF55: 175 | AG55: 700 | AH55: 525 | AI55: 58.5 | AJ55: 43.9 | AK55: 102.4 | AL55: 58 | AM55: 146 | AN55: 44.2 | AO55: 32 | AP55: 529 | AQ55: 383 | AR55: 76.2 | AS55: 154 | AT55: 114 | AU55: 171 | AV55: 142 | AW55: 58.2 | AX55: 106 | AY55: 31.3 | AZ55: 22.5 | BA55: 375 | BB55: 269 | BC55: 3.5 | BD55: 2.1 | BE55: 62.7 | BF55: 11.2 | BG55: 7.9 | BH55: 90.7 | BI55: 53.6 | BJ55: 70.9 | BK55: 56.1 | BL55: 352 | BM55: 276 | BN55: 198 | BO55: 262 | BP55: 168 | BQ55: 225 | BR55: 238 | BS55: 1 | BT55: 3 | BU55: 2 | BV55: 717.9 | BW55: =Table1[[#This Row],[SF]]/Table1[[#This Row],[CF]] -> 0.5357142857 | BX55: =Table1[[#This Row],[MSF]]/Table1[[#This Row],[CF]] -> 0.22 | BY55: =Table1[[#This Row],[BSF]]/Table1[[#This Row],[CF]] -> 0.2442857143 | BZ55: =Table1[[#This Row],[SA]]/Table1[[#This Row],[CA]] -> 0.5123809524 | CA55: =Table1[[#This Row],[MSA]]/Table1[[#This Row],[CA]] -> 0.2171428571 | CB55: =Table1[[#This Row],[BSA]]/Table1[[#This Row],[CA]] -> 0.2704761905
A56: 5v5 | B56: Dn1 | C56: DET | D56: 48 | E56: 20052006 | F56: 27 | G56: 11 | H56: 16 | I56: 60.2 | J56: 113.3 | K56: 71.4 | L56: 12.3 | M56: 93.1 | N56: 50.8 | O56: 105.4 | P56: 59.4 | Q56: 62 | R56: 34 | S56: 88 | T56: 54 | U56: 14.3 | V56: 8.8 | W56: 23.1 | X56: 61.8 | Y56: 79 | Z56: 207 | AA56: 128 | AB56: 33.7 | AC56: 20.8 | AD56: 54.5 | AE56: 60.2 | AF56: 142 | AG56: 419 | AH56: 277 | AI56: 68.2 | AJ56: 45.1 | AK56: 113.3 | AL56: 58.1 | AM56: 86 | AN56: 50.1 | AO56: 36.1 | AP56: 308 | AQ56: 222 | AR56: 86.3 | AS56: 88 | AT56: 62 | AU56: 111 | AV56: 55 | AW56: 57.9 | AX56: 60 | AY56: 35.8 | AZ56: 26.1 | BA56: 220 | BB56: 160 | BC56: 4.4 | BD56: 1.8 | BE56: 71.1 | BF56: 12.3 | BG56: 8.8 | BH56: 93.1 | BI56: 52.5 | BJ56: 71.4 | BK56: 50.8 | BL56: 165 | BM56: 160 | BN56: 111 | BO56: 138 | BP56: 76 | BQ56: 115 | BR56: 123 | BS56: 4 | BT56: 2 | BU56: -2 | BV56: 368.5 | BW56: =Table1[[#This Row],[SF]]/Table1[[#This Row],[CF]] -> 0.5250596659 | BX56: =Table1[[#This Row],[MSF]]/Table1[[#This Row],[CF]] -> 0.2100238663 | BY56: =Table1[[#This Row],[BSF]]/Table1[[#This Row],[CF]] -> 0.2649164678 | BZ56: =Table1[[#This Row],[SA]]/Table1[[#This Row],[CA]] -> 0.5776173285 | CA56: =Table1[[#This Row],[MSA]]/Table1[[#This Row],[CA]] -> 0.2238267148 | CB56: =Table1[[#This Row],[BSA]]/Table1[[#This Row],[CA]] -> 0.1985559567
A57: 5v5 | B57: ScAdj | C57: EDM | D57: 82 | E57: 20052006 | F57: 129 | G57: 146 | H57: -17 | I57: 51.4 | J57: 101.5 | K57: 68.6 | L57: 9.7 | M57: 88 | N57: 53.7 | O57: 97.7 | P57: 52.4 | Q57: 57 | R57: 136 | S57: 554.9 | T57: 418.9 | U57: 11.4 | V57: 8.6 | W57: 19.9 | X57: 53.4 | Y57: 170.6 | Z57: 1329.1 | AA57: 1158.5 | AB57: 27.2 | AC57: 23.7 | AD57: 51 | AE57: 51.4 | AF57: 135.5 | AG57: 2546.1 | AH57: 2410.6 | AI57: 52.2 | AJ57: 49.4 | AK57: 101.5 | AL57: 52.5 | AM57: 185.9 | AN57: 39.8 | AO57: 35.9 | AP57: 1941 | AQ57: 1755.1 | AR57: 75.7 | AS57: 608.5 | AT57: 538.5 | AU57: 605.1 | AV57: 655.5 | AW57: 52.3 | AX57: 115.9 | AY57: 27.3 | AZ57: 24.9 | BA57: 1332.5 | BB57: 1216.5 | BC57: 2.6 | BD57: 3 | BE57: 46.9 | BF57: 9.7 | BG57: 6.6 | BH57: 88 | BI57: 52.3 | BJ57: 68.6 | BK57: 53.7 | BL57: 1436 | BM57: 1239 | BN57: 813 | BO57: 1124 | BP57: 738 | BQ57: 909 | BR57: 884 | BS57: 19 | BT57: 20 | BU57: 1 | BV57: 2929.3 | BW57: =Table1[[#This Row],[SF]]/Table1[[#This Row],[CF]] -> 0.5233494364 | BX57: =Table1[[#This Row],[MSF]]/Table1[[#This Row],[CF]] -> 0.2389929696 | BY57: =Table1[[#This Row],[BSF]]/Table1[[#This Row],[CF]] -> 0.237657594 | BZ57: =Table1[[#This Row],[SA]]/Table1[[#This Row],[CA]] -> 0.5046461462 | CA57: =Table1[[#This Row],[MSA]]/Table1[[#This Row],[CA]] -> 0.223388368 | CB57: =Table1[[#This Row],[BSA]]/Table1[[#This Row],[CA]] -> 0.2719240023
A58: 5v5 | B58: Close | C58: EDM | D58: 82 | E58: 20052006 | F58: 82 | G58: 96 | H58: -14 | I58: 50.4 | J58: 106.1 | K58: 68.6 | L58: 9.2 | M58: 88.5 | N58: 52.6 | O58: 97.8 | P58: 50.7 | Q58: 55.6 | R58: 74 | S58: 369 | T58: 295 | U58: 11.5 | V58: 9.2 | W58: 20.7 | X58: 52.2 | Y58: 74 | Z58: 870 | AA58: 796 | AB58: 27.2 | AC58: 24.9 | AD58: 52 | AE58: 50.4 | AF58: 24 | AG58: 1710 | AH58: 1686 | AI58: 53.4 | AJ58: 52.7 | AK58: 106.1 | AL58: 51.3 | AM58: 65 | AN58: 40.4 | AO58: 38.4 | AP58: 1293 | AQ58: 1228 | AR58: 78.7 | AS58: 406 | AT58: 392 | AU58: 417 | AV58: 458 | AW58: 51.5 | AX58: 51 | AY58: 27.7 | AZ58: 26.1 | BA58: 887 | BB58: 836 | BC58: 2.6 | BD58: 3 | BE58: 46.1 | BF58: 9.2 | BG58: 6.3 | BH58: 88.5 | BI58: 51.9 | BJ58: 68.6 | BK58: 52.6 | BL58: 905 | BM58: 817 | BN58: 496 | BO58: 744 | BP58: 482 | BQ58: 636 | BR58: 596 | BS58: 11 | BT58: 12 | BU58: 1 | BV58: 1921.2 | BW58: =Table1[[#This Row],[SF]]/Table1[[#This Row],[CF]] -> 0.5187134503 | BX58: =Table1[[#This Row],[MSF]]/Table1[[#This Row],[CF]] -> 0.2374269006 | BY58: =Table1[[#This Row],[BSF]]/Table1[[#This Row],[CF]] -> 0.2438596491 | BZ58: =Table1[[#This Row],[SA]]/Table1[[#This Row],[CA]] -> 0.4958481613 | CA58: =Table1[[#This Row],[MSA]]/Table1[[#This Row],[CA]] -> 0.2325029656 | CB58: =Table1[[#This Row],[BSA]]/Table1[[#This Row],[CA]] -> 0.2716488731
A59: 5v5 | B59: Tied | C59: EDM | D59: 82 | E59: 20052006 | F59: 50 | G59: 57 | H59: -7 | I59: 50.2 | J59: 104 | K59: 68.4 | L59: 8.8 | M59: 89.5 | N59: 52.2 | O59: 98.3 | P59: 50.7 | Q59: 57 | R59: 58 | S59: 236 | T59: 178 | U59: 11.3 | V59: 8.6 | W59: 19.9 | X59: 51.4 | Y59: 29 | Z59: 538 | AA59: 509 | AB59: 25.9 | AC59: 24.5 | AD59: 50.3 | AE59: 50.2 | AF59: 8 | AG59: 1086 | AH59: 1078 | AI59: 52.2 | AJ59: 51.8 | AK59: 104 | AL59: 51.3 | AM59: 42 | AN59: 39.9 | AO59: 37.9 | AP59: 830 | AQ59: 788 | AR59: 77.8 | AS59: 262 | AT59: 244 | AU59: 256 | AV59: 290 | AW59: 51.1 | AX59: 24 | AY59: 27.3 | AZ59: 26.1 | BA59: 568 | BB59: 544 | BC59: 2.4 | BD59: 2.7 | BE59: 46.7 | BF59: 8.8 | BG59: 6 | BH59: 89.5 | BI59: 52.3 | BJ59: 68.4 | BK59: 52.2 | BL59: 570 | BM59: 521 | BN59: 319 | BO59: 462 | BP59: 310 | BQ59: 391 | BR59: 388 | BS59: 5 | BT59: 6 | BU59: 1 | BV59: 1248.5 | BW59: =Table1[[#This Row],[SF]]/Table1[[#This Row],[CF]] -> 0.5230202578 | BX59: =Table1[[#This Row],[MSF]]/Table1[[#This Row],[CF]] -> 0.241252302 | BY59: =Table1[[#This Row],[BSF]]/Table1[[#This Row],[CF]] -> 0.2357274401 | BZ59: =Table1[[#This Row],[SA]]/Table1[[#This Row],[CA]] -> 0.5046382189 | CA59: =Table1[[#This Row],[MSA]]/Table1[[#This Row],[CA]] -> 0.2263450835 | CB59: =Table1[[#This Row],[BSA]]/Table1[[#This Row],[CA]] -> 0.2690166976
A60: 5v5 | B60: Up1 | C60: EDM | D60: 55 | E60: 20052006 | F60: 13 | G60: 38 | H60: -25 | I60: 46.7 | J60: 107.3 | K60: 67.4 | L60: 5.8 | M60: 85.1 | N60: 54.3 | O60: 90.9 | P60: 49.6 | Q60: 50.8 | R60: 3 | S60: 95 | T60: 92 | U60: 10.6 | V60: 10.2 | W60: 20.8 | X60: 50.8 | Y60: 8 | Z60: 247 | AA60: 239 | AB60: 27.5 | AC60: 26.6 | AD60: 54.1 | AE60: 46.7 | AF60: -64 | AG60: 450 | AH60: 514 | AI60: 50.1 | AJ60: 57.2 | AK60: 107.3 | AL60: 48 | AM60: -27 | AN60: 36.8 | AO60: 39.8 | AP60: 331 | AQ60: 358 | AR60: 76.7 | AS60: 108 | AT60: 103 | AU60: 119 | AV60: 156 | AW60: 46.7 | AX60: -32 | AY60: 24.8 | AZ60: 28.4 | BA60: 223 | BB60: 255 | BC60: 1.4 | BD60: 4.2 | BE60: 25.5 | BF60: 5.8 | BG60: 3.9 | BH60: 85.1 | BI60: 49.6 | BJ60: 67.4 | BK60: 54.3 | BL60: 265 | BM60: 223 | BN60: 135 | BO60: 216 | BP60: 137 | BQ60: 165 | BR60: 172 | BS60: 5 | BT60: 6 | BU60: 1 | BV60: 539.1 | BW60: =Table1[[#This Row],[SF]]/Table1[[#This Row],[CF]] -> 0.4955555556 | BX60: =Table1[[#This Row],[MSF]]/Table1[[#This Row],[CF]] -> 0.24 | BY60: =Table1[[#This Row],[BSF]]/Table1[[#This Row],[CF]] -> 0.2644444444 | BZ60: =Table1[[#This Row],[SA]]/Table1[[#This Row],[CA]] -> 0.4961089494 | CA60: =Table1[[#This Row],[MSA]]/Table1[[#This Row],[CA]] -> 0.2003891051 | CB60: =Table1[[#This Row],[BSA]]/Table1[[#This Row],[CA]] -> 0.3035019455
A61: 5v5 | B61: Dn1 | C61: EDM | D61: 59 | E61: 20052006 | F61: 35 | G61: 29 | H61: 6 | I61: 57.5 | J61: 107.3 | K61: 67 | L61: 13.6 | M61: 83.4 | N61: 49.9 | O61: 97 | P61: 56.8 | Q61: 64.5 | R61: 53 | S61: 118 | T61: 65 | U61: 14.5 | V61: 8 | W61: 22.5 | X61: 59.5 | Y61: 82 | Z61: 256 | AA61: 174 | AB61: 31.5 | AC61: 21.4 | AD61: 53 | AE61: 57.5 | AF61: 131 | AG61: 501 | AH61: 370 | AI61: 61.7 | AJ61: 45.6 | AK61: 107.3 | AL61: 58.4 | AM61: 111 | AN61: 47.4 | AO61: 33.8 | AP61: 385 | AQ61: 274 | AR61: 81.2 | AS61: 127 | AT61: 99 | AU61: 116 | AV61: 96 | AW61: 59.6 | AX61: 83 | AY61: 31.8 | AZ61: 21.6 | BA61: 258 | BB61: 175 | BC61: 4.3 | BD61: 3.6 | BE61: 54.7 | BF61: 13.6 | BG61: 9.1 | BH61: 83.4 | BI61: 51.5 | BJ61: 67 | BK61: 49.9 | BL61: 230 | BM61: 231 | BN61: 146 | BO61: 204 | BP61: 111 | BQ61: 176 | BR61: 133 | BS61: 1 | BT61: 0 | BU61: -1 | BV61: 487 | BW61: =Table1[[#This Row],[SF]]/Table1[[#This Row],[CF]] -> 0.5149700599 | BX61: =Table1[[#This Row],[MSF]]/Table1[[#This Row],[CF]] -> 0.253493014 | BY61: =Table1[[#This Row],[BSF]]/Table1[[#This Row],[CF]] -> 0.2315369261 | BZ61: =Table1[[#This Row],[SA]]/Table1[[#This Row],[CA]] -> 0.472972973 | CA61: =Table1[[#This Row],[MSA]]/Table1[[#This Row],[CA]] -> 0.2675675676 | CB61: =Table1[[#This Row],[BSA]]/Table1[[#This Row],[CA]] -> 0.2594594595
A62: 5v5 | B62: ScAdj | C62: FLA | D62: 79 | E62: 20052006 | F62: 140 | G62: 124 | H62: 16 | I62: 53.3 | J62: 109.7 | K62: 72.5 | L62: 9 | M62: 91.5 | N62: 52 | O62: 100.5 | P62: 49.4 | Q62: 50.4 | R62: 8.1 | S62: 489.1 | T62: 481 | U62: 10.2 | V62: 10 | W62: 20.3 | X62: 51.3 | Y62: 63.1 | Z62: 1292.4 | AA62: 1229.2 | AB62: 27 | AC62: 25.7 | AD62: 52.7 | AE62: 53.3 | AF62: 351.1 | AG62: 2802.8 | AH62: 2451.6 | AI62: 58.5 | AJ62: 51.2 | AK62: 109.7 | AL62: 51.8 | AM62: 150.8 | AN62: 44.9 | AO62: 41.8 | AP62: 2151 | AQ62: 2000.1 | AR62: 86.7 | AS62: 590.5 | AT62: 544.5 | AU62: 651.8 | AV62: 451.5 | AW62: 51.7 | AX62: 104.9 | AY62: 32.6 | AZ62: 30.4 | BA62: 1560.5 | BB62: 1455.6 | BC62: 2.9 | BD62: 2.6 | BE62: 53 | BF62: 9 | BG62: 6.5 | BH62: 91.5 | BI62: 55.7 | BJ62: 72.5 | BK62: 52 | BL62: 1490 | BM62: 1378 | BN62: 866 | BO62: 1115 | BP62: 887 | BQ62: 805 | BR62: 705 | BS62: 21 | BT62: 21 | BU62: 0 | BV62: 2872.7 | BW62: =Table1[[#This Row],[SF]]/Table1[[#This Row],[CF]] -> 0.5567646639 | BX62: =Table1[[#This Row],[MSF]]/Table1[[#This Row],[CF]] -> 0.210682175 | BY62: =Table1[[#This Row],[BSF]]/Table1[[#This Row],[CF]] -> 0.2325531611 | BZ62: =Table1[[#This Row],[SA]]/Table1[[#This Row],[CA]] -> 0.5937347039 | CA62: =Table1[[#This Row],[MSA]]/Table1[[#This Row],[CA]] -> 0.2220998532 | CB62: =Table1[[#This Row],[BSA]]/Table1[[#This Row],[CA]] -> 0.184165443
A63: 5v5 | B63: Close | C63: FLA | D63: 79 | E63: 20052006 | F63: 90 | G63: 71 | H63: 19 | I63: 53.8 | J63: 116.2 | K63: 72.4 | L63: 8.4 | M63: 92.7 | N63: 52 | O63: 101.1 | P63: 49 | Q63: 51.2 | R63: 15 | S63: 324 | T63: 309 | U63: 10.6 | V63: 10.1 | W63: 20.8 | X63: 52.1 | Y63: 69 | Z63: 871 | AA63: 802 | AB63: 28.6 | AC63: 26.3 | AD63: 54.9 | AE63: 53.8 | AF63: 270 | AG63: 1907 | AH63: 1637 | AI63: 62.6 | AJ63: 53.7 | AK63: 116.2 | AL63: 52.4 | AM63: 135 | AN63: 48.4 | AO63: 44 | AP63: 1476 | AQ63: 1341 | AR63: 92.4 | AS63: 407 | AT63: 368 | AU63: 431 | AV63: 296 | AW63: 52.4 | AX63: 96 | AY63: 35.1 | AZ63: 31.9 | BA63: 1069 | BB63: 973 | BC63: 3 | BD63: 2.3 | BE63: 55.9 | BF63: 8.4 | BG63: 6.1 | BH63: 92.7 | BI63: 56.1 | BJ63: 72.4 | BK63: 52 | BL63: 954 | BM63: 880 | BN63: 567 | BO63: 678 | BP63: 589 | BQ63: 542 | BR63: 458 | BS63: 10 | BT63: 14 | BU63: 4 | BV63: 1829.2 | BW63: =Table1[[#This Row],[SF]]/Table1[[#This Row],[CF]] -> 0.5605663346 | BX63: =Table1[[#This Row],[MSF]]/Table1[[#This Row],[CF]] -> 0.2134242265 | BY63: =Table1[[#This Row],[BSF]]/Table1[[#This Row],[CF]] -> 0.2260094389 | BZ63: =Table1[[#This Row],[SA]]/Table1[[#This Row],[CA]] -> 0.5943799633 | CA63: =Table1[[#This Row],[MSA]]/Table1[[#This Row],[CA]] -> 0.2248014661 | CB63: =Table1[[#This Row],[BSA]]/Table1[[#This Row],[CA]] -> 0.1808185706
A64: 5v5 | B64: Tied | C64: FLA | D64: 78 | E64: 20052006 | F64: 51 | G64: 46 | H64: 5 | I64: 52.5 | J64: 117 | K64: 71.8 | L64: 7.3 | M64: 93.2 | N64: 51.7 | O64: 100.5 | P64: 47.2 | Q64: 48.3 | R64: -14 | S64: 197 | T64: 211 | U64: 9.6 | V64: 10.3 | W64: 19.9 | X64: 51 | Y64: 23 | Z64: 560 | AA64: 537 | AB64: 27.3 | AC64: 26.2 | AD64: 53.5 | AE64: 52.5 | AF64: 120 | AG64: 1259 | AH64: 1139 | AI64: 61.4 | AJ64: 55.6 | AK64: 117 | AL64: 51.1 | AM64: 41 | AN64: 47.2 | AO64: 45.2 | AP64: 967 | AQ64: 926 | AR64: 92.4 | AS64: 273 | AT64: 252 | AU64: 292 | AV64: 213 | AW64: 50.7 | AX64: 20 | AY64: 33.9 | AZ64: 32.9 | BA64: 694 | BB64: 674 | BC64: 2.5 | BD64: 2.2 | BE64: 52.6 | BF64: 7.3 | BG64: 5.3 | BH64: 93.2 | BI64: 55.1 | BJ64: 71.8 | BK64: 51.7 | BL64: 622 | BM64: 580 | BN64: 367 | BO64: 424 | BP64: 411 | BQ64: 373 | BR64: 302 | BS64: 8 | BT64: 11 | BU64: 3 | BV64: 1229.8 | BW64: =Table1[[#This Row],[SF]]/Table1[[#This Row],[CF]] -> 0.5512311358 | BX64: =Table1[[#This Row],[MSF]]/Table1[[#This Row],[CF]] -> 0.2168387609 | BY64: =Table1[[#This Row],[BSF]]/Table1[[#This Row],[CF]] -> 0.2319301033 | BZ64: =Table1[[#This Row],[SA]]/Table1[[#This Row],[CA]] -> 0.5917471466 | CA64: =Table1[[#This Row],[MSA]]/Table1[[#This Row],[CA]] -> 0.2212467076 | CB64: =Table1[[#This Row],[BSA]]/Table1[[#This Row],[CA]] -> 0.1870061457
A65: 5v5 | B65: Up1 | C65: FLA | D65: 52 | E65: 20052006 | F65: 24 | G65: 25 | H65: -1 | I65: 49 | J65: 114.9 | K65: 76.9 | L65: 8.7 | M65: 90.3 | N65: 51.1 | O65: 98.9 | P65: 46.9 | Q65: 47.1 | R65: -11 | S65: 88 | T65: 99 | U65: 11.2 | V65: 12.6 | W65: 23.8 | X65: 47 | Y65: -27 | Z65: 209 | AA65: 236 | AB65: 26.6 | AC65: 30 | AD65: 56.6 | AE65: 49 | AF65: -18 | AG65: 443 | AH65: 461 | AI65: 56.3 | AJ65: 58.6 | AK65: 114.9 | AL65: 49.2 | AM65: -12 | AN65: 45.8 | AO65: 47.3 | AP65: 360 | AQ65: 372 | AR65: 93.1 | AS65: 83 | AT65: 115 | AU65: 83 | AV65: 89 | AW65: 51.9 | AX65: 20 | AY65: 35.2 | AZ65: 32.7 | BA65: 277 | BB65: 257 | BC65: 3.1 | BD65: 3.2 | BE65: 49 | BF65: 8.7 | BG65: 6.7 | BH65: 90.3 | BI65: 62.5 | BJ65: 76.9 | BK65: 51.1 | BL65: 249 | BM65: 238 | BN65: 137 | BO65: 195 | BP65: 155 | BQ65: 128 | BR65: 103 | BS65: 1 | BT65: 3 | BU65: 2 | BV65: 471.9 | BW65: =Table1[[#This Row],[SF]]/Table1[[#This Row],[CF]] -> 0.625282167 | BX65: =Table1[[#This Row],[MSF]]/Table1[[#This Row],[CF]] -> 0.1873589165 | BY65: =Table1[[#This Row],[BSF]]/Table1[[#This Row],[CF]] -> 0.1873589165 | BZ65: =Table1[[#This Row],[SA]]/Table1[[#This Row],[CA]] -> 0.557483731 | CA65: =Table1[[#This Row],[MSA]]/Table1[[#This Row],[CA]] -> 0.2494577007 | CB65: =Table1[[#This Row],[BSA]]/Table1[[#This Row],[CA]] -> 0.1930585683
A66: 5v5 | B66: Dn1 | C66: FLA | D66: 51 | E66: 20052006 | F66: 24 | G66: 20 | H66: 4 | I66: 60.1 | J66: 107.4 | K66: 71.4 | L66: 8.9 | M66: 90.7 | N66: 52.4 | O66: 99.5 | P66: 55.8 | Q66: 56.9 | R66: 22 | S66: 91 | T66: 69 | U66: 11.7 | V66: 8.9 | W66: 20.7 | X66: 55.4 | Y66: 45 | Z66: 231 | AA66: 186 | AB66: 29.8 | AC66: 24 | AD66: 53.8 | AE66: 60.1 | AF66: 168 | AG66: 500 | AH66: 332 | AI66: 64.6 | AJ66: 42.9 | AK66: 107.4 | AL66: 57.6 | AM66: 100 | AN66: 48.8 | AO66: 35.9 | AP66: 378 | AQ66: 278 | AR66: 84.7 | AS66: 108 | AT66: 64 | AU66: 122 | AV66: 54 | AW66: 55.8 | AX66: 56 | AY66: 34.9 | AZ66: 27.6 | BA66: 270 | BB66: 214 | BC66: 3.1 | BD66: 2.6 | BE66: 54.5 | BF66: 8.9 | BG66: 6.3 | BH66: 90.7 | BI66: 54 | BJ66: 71.4 | BK66: 52.4 | BL66: 244 | BM66: 222 | BN66: 159 | BO66: 181 | BP66: 126 | BQ66: 125 | BR66: 128 | BS66: 3 | BT66: 1 | BU66: -2 | BV66: 464.7 | BW66: =Table1[[#This Row],[SF]]/Table1[[#This Row],[CF]] -> 0.54 | BX66: =Table1[[#This Row],[MSF]]/Table1[[#This Row],[CF]] -> 0.216 | BY66: =Table1[[#This Row],[BSF]]/Table1[[#This Row],[CF]] -> 0.244 | BZ66: =Table1[[#This Row],[SA]]/Table1[[#This Row],[CA]] -> 0.6445783133 | CA66: =Table1[[#This Row],[MSA]]/Table1[[#This Row],[CA]] -> 0.1927710843 | CB66: =Table1[[#This Row],[BSA]]/Table1[[#This Row],[CA]] -> 0.1626506024
A67: 5v5 | B67: ScAdj | C67: L.A | D67: 79 | E67: 20052006 | F67: 128 | G67: 135 | H67: -7 | I67: 47.9 | J67: 106.9 | K67: 70.9 | L67: 10.4 | M67: 89.9 | N67: 49 | O67: 100.3 | P67: 46.4 | Q67: 46.1 | R67: -77.1 | S67: 460.2 | T67: 537.3 | U67: 10.3 | V67: 12.1 | W67: 22.4 | X67: 46.7 | Y67: -173 | Z67: 1214 | AA67: 1387 | AB67: 27.3 | AC67: 31.2 | AD67: 58.5 | AE67: 47.9 | AF67: -199.1 | AG67: 2276.7 | AH67: 2475.8 | AI67: 51.2 | AJ67: 55.7 | AK67: 106.9 | AL67: 47.7 | AM67: -165.2 | AN67: 39.2 | AO67: 42.9 | AP67: 1741.7 | AQ67: 1906.9 | AR67: 82 | AS67: 506.9 | AT67: 565.6 | AU67: 535 | AV67: 568.9 | AW67: 47.9 | AX67: -106.5 | AY67: 27.8 | AZ67: 30.2 | BA67: 1234.8 | BB67: 1341.2 | BC67: 2.9 | BD67: 3 | BE67: 48.7 | BF67: 10.4 | BG67: 7.3 | BH67: 89.9 | BI67: 54.2 | BJ67: 70.9 | BK67: 49 | BL67: 1216 | BM67: 1265 | BN67: 668 | BO67: 1041 | BP67: 772 | BQ67: 976 | BR67: 894 | BS67: 40 | BT67: 38 | BU67: -2 | BV67: 2668.7 | BW67: =Table1[[#This Row],[SF]]/Table1[[#This Row],[CF]] -> 0.5423639478 | BX67: =Table1[[#This Row],[MSF]]/Table1[[#This Row],[CF]] -> 0.2226468134 | BY67: =Table1[[#This Row],[BSF]]/Table1[[#This Row],[CF]] -> 0.2349892388 | BZ67: =Table1[[#This Row],[SA]]/Table1[[#This Row],[CA]] -> 0.5417238872 | CA67: =Table1[[#This Row],[MSA]]/Table1[[#This Row],[CA]] -> 0.2284514096 | CB67: =Table1[[#This Row],[BSA]]/Table1[[#This Row],[CA]] -> 0.2297843121
A68: 5v5 | B68: Close | C68: L.A | D68: 79 | E68: 20052006 | F68: 75 | G68: 75 | H68: 0 | I68: 49.5 | J68: 114.4 | K68: 71 | L68: 9.2 | M68: 90.7 | N68: 49.3 | O68: 100 | P68: 48.1 | Q68: 46.8 | R68: -41 | S68: 301 | T68: 342 | U68: 11.4 | V68: 13 | W68: 24.4 | X68: 47.6 | Y68: -81 | Z68: 795 | AA68: 876 | AB68: 30.1 | AC68: 33.2 | AD68: 63.3 | AE68: 49.5 | AF68: -29 | AG68: 1494 | AH68: 1523 | AI68: 56.6 | AJ68: 57.7 | AK68: 114.4 | AL68: 49.3 | AM68: -33 | AN68: 43.4 | AO68: 44.6 | AP68: 1144 | AQ68: 1177 | AR68: 88 | AS68: 332 | AT68: 369 | AU68: 350 | AV68: 346 | AW68: 50.1 | AX68: 4 | AY68: 30.8 | AZ68: 30.6 | BA68: 812 | BB68: 808 | BC68: 2.8 | BD68: 2.8 | BE68: 50 | BF68: 9.2 | BG68: 6.6 | BH68: 90.7 | BI68: 54.4 | BJ68: 71 | BK68: 49.3 | BL68: 714 | BM68: 734 | BN68: 408 | BO68: 599 | BP68: 441 | BQ68: 630 | BR68: 559 | BS68: 26 | BT68: 22 | BU68: -4 | BV68: 1582.8 | BW68: =Table1[[#This Row],[SF]]/Table1[[#This Row],[CF]] -> 0.5435073628 | BX68: =Table1[[#This Row],[MSF]]/Table1[[#This Row],[CF]] -> 0.2222222222 | BY68: =Table1[[#This Row],[BSF]]/Table1[[#This Row],[CF]] -> 0.234270415 | BZ68: =Table1[[#This Row],[SA]]/Table1[[#This Row],[CA]] -> 0.530531845 | CA68: =Table1[[#This Row],[MSA]]/Table1[[#This Row],[CA]] -> 0.2422849639 | CB68: =Table1[[#This Row],[BSA]]/Table1[[#This Row],[CA]] -> 0.2271831911
A69: 5v5 | B69: Tied | C69: L.A | D69: 79 | E69: 20052006 | F69: 42 | G69: 43 | H69: -1 | I69: 48.9 | J69: 115 | K69: 72.8 | L69: 8.1 | M69: 91.6 | N69: 50.1 | O69: 99.6 | P69: 49.2 | Q69: 48.5 | R69: -12 | S69: 189 | T69: 201 | U69: 11.5 | V69: 12.2 | W69: 23.7 | X69: 46.7 | Y69: -68 | Z69: 489 | AA69: 557 | AB69: 29.7 | AC69: 33.8 | AD69: 63.6 | AE69: 48.9 | AF69: -41 | AG69: 926 | AH69: 967 | AI69: 56.3 | AJ69: 58.8 | AK69: 115 | AL69: 48.8 | AM69: -35 | AN69: 43.4 | AO69: 45.5 | AP69: 714 | AQ69: 749 | AR69: 88.9 | AS69: 194 | AT69: 240 | AU69: 212 | AV69: 218 | AW69: 50.5 | AX69: 11 | AY69: 31.6 | AZ69: 30.9 | BA69: 520 | BB69: 509 | BC69: 2.6 | BD69: 2.6 | BE69: 49.4 | BF69: 8.1 | BG69: 5.9 | BH69: 91.6 | BI69: 56.2 | BJ69: 72.8 | BK69: 50.1 | BL69: 452 | BM69: 450 | BN69: 274 | BO69: 345 | BP69: 283 | BQ69: 384 | BR69: 345 | BS69: 17 | BT69: 15 | BU69: -2 | BV69: 987.5 | BW69: =Table1[[#This Row],[SF]]/Table1[[#This Row],[CF]] -> 0.5615550756 | BX69: =Table1[[#This Row],[MSF]]/Table1[[#This Row],[CF]] -> 0.2095032397 | BY69: =Table1[[#This Row],[BSF]]/Table1[[#This Row],[CF]] -> 0.2289416847 | BZ69: =Table1[[#This Row],[SA]]/Table1[[#This Row],[CA]] -> 0.5263702172 | CA69: =Table1[[#This Row],[MSA]]/Table1[[#This Row],[CA]] -> 0.2481902792 | CB69: =Table1[[#This Row],[BSA]]/Table1[[#This Row],[CA]] -> 0.2254395036
A70: 5v5 | B70: Up1 | C70: L.A | D70: 50 | E70: 20052006 | F70: 23 | G70: 23 | H70: 0 | I70: 43.9 | J70: 109 | K70: 66 | L70: 13.5 | M70: 89.7 | N70: 47.8 | O70: 103.2 | P70: 40.7 | Q70: 43.2 | R70: -21 | S70: 67 | T70: 88 | U70: 9.7 | V70: 12.8 | W70: 22.5 | X70: 43.6 | Y70: -51 | Z70: 175 | AA70: 226 | AB70: 25.4 | AC70: 32.8 | AD70: 58.2 | AE70: 43.9 | AF70: -91 | AG70: 330 | AH70: 421 | AI70: 47.9 | AJ70: 61.1 | AK70: 109 | AL70: 45 | AM70: -57 | AN70: 37.6 | AO70: 45.9 | AP70: 259 | AQ70: 316 | AR70: 83.4 | AS70: 88 | AT70: 92 | AU70: 71 | AV70: 105 | AW70: 43.3 | AX70: -53 | AY70: 24.8 | AZ70: 32.5 | BA70: 171 | BB70: 224 | BC70: 3.3 | BD70: 3.3 | BE70: 50 | BF70: 13.5 | BG70: 8.9 | BH70: 89.7 | BI70: 51.8 | BJ70: 66 | BK70: 47.8 | BL70: 175 | BM70: 191 | BN70: 83 | BO70: 162 | BP70: 121 | BQ70: 175 | BR70: 148 | BS70: 2 | BT70: 0 | BU70: -2 | BV70: 413.5 | BW70: =Table1[[#This Row],[SF]]/Table1[[#This Row],[CF]] -> 0.5181818182 | BX70: =Table1[[#This Row],[MSF]]/Table1[[#This Row],[CF]] -> 0.2666666667 | BY70: =Table1[[#This Row],[BSF]]/Table1[[#This Row],[CF]] -> 0.2151515152 | BZ70: =Table1[[#This Row],[SA]]/Table1[[#This Row],[CA]] -> 0.5320665083 | CA70: =Table1[[#This Row],[MSA]]/Table1[[#This Row],[CA]] -> 0.2185273159 | CB70: =Table1[[#This Row],[BSA]]/Table1[[#This Row],[CA]] -> 0.2494061758
A71: 5v5 | B71: Dn1 | C71: L.A | D71: 53 | E71: 20052006 | F71: 24 | G71: 25 | H71: -1 | I71: 51.1 | J71: 112.6 | K71: 68.9 | L71: 10.6 | M71: 88.6 | N71: 48 | O71: 99.3 | P71: 47.3 | Q71: 44 | R71: -23 | S71: 84 | T71: 107 | U71: 10.9 | V71: 13.8 | W71: 24.7 | X71: 47.6 | Y71: -24 | Z71: 233 | AA71: 257 | AB71: 30.2 | AC71: 33.3 | AD71: 63.4 | AE71: 51.1 | AF71: 20 | AG71: 445 | AH71: 425 | AI71: 57.6 | AJ71: 55 | AK71: 112.6 | AL71: 50 | AM71: 0 | AN71: 42.4 | AO71: 42.4 | AP71: 328 | AQ71: 328 | AR71: 84.9 | AS71: 102 | AT71: 108 | AU71: 117 | AV71: 97 | AW71: 50.7 | AX71: 6 | AY71: 29.2 | AZ71: 28.5 | BA71: 226 | BB71: 220 | BC71: 3.1 | BD71: 3.2 | BE71: 49 | BF71: 10.6 | BG71: 7.3 | BH71: 88.6 | BI71: 50.8 | BJ71: 68.9 | BK71: 48 | BL71: 200 | BM71: 217 | BN71: 106 | BO71: 193 | BP71: 118 | BQ71: 161 | BR71: 144 | BS71: 8 | BT71: 7 | BU71: -1 | BV71: 463.6 | BW71: =Table1[[#This Row],[SF]]/Table1[[#This Row],[CF]] -> 0.5078651685 | BX71: =Table1[[#This Row],[MSF]]/Table1[[#This Row],[CF]] -> 0.2292134831 | BY71: =Table1[[#This Row],[BSF]]/Table1[[#This Row],[CF]] -> 0.2629213483 | BZ71: =Table1[[#This Row],[SA]]/Table1[[#This Row],[CA]] -> 0.5176470588 | CA71: =Table1[[#This Row],[MSA]]/Table1[[#This Row],[CA]] -> 0.2541176471 | CB71: =Table1[[#This Row],[BSA]]/Table1[[#This Row],[CA]] -> 0.2282352941
A72: 5v5 | B72: ScAdj | C72: MIN | D72: 82 | E72: 20052006 | F72: 119 | G72: 128 | H72: -9 | I72: 46.1 | J72: 102.3 | K72: 69.8 | L72: 9.9 | M72: 91.2 | N72: 48.9 | O72: 101.1 | P72: 40.9 | Q72: 43.3 | R72: -125.7 | S72: 407.3 | T72: 533 | U72: 8.4 | V72: 11 | W72: 19.5 | X72: 45.6 | Y72: -215.9 | Z72: 1115.6 | AA72: 1331.4 | AB72: 23.1 | AC72: 27.6 | AD72: 50.7 | AE72: 46.1 | AF72: -388.5 | AG72: 2273.9 | AH72: 2662.4 | AI72: 47.1 | AJ72: 55.2 | AK72: 102.3 | AL72: 45.8 | AM72: -317.3 | AN72: 35.8 | AO72: 42.4 | AP72: 1728.5 | AQ72: 2045.8 | AR72: 78.2 | AS72: 522.6 | AT72: 583.8 | AU72: 545.4 | AV72: 616.6 | AW72: 45.2 | AX72: -256 | AY72: 25 | AZ72: 30.3 | BA72: 1206 | BB72: 1462 | BC72: 2.5 | BD72: 2.7 | BE72: 48.2 | BF72: 9.9 | BG72: 6.9 | BH72: 91.2 | BI72: 53 | BJ72: 69.8 | BK72: 48.9 | BL72: 1279 | BM72: 1339 | BN72: 665 | BO72: 994 | BP72: 959 | BQ72: 627 | BR72: 850 | BS72: 33 | BT72: 22 | BU72: -11 | BV72: 2895.6 | BW72: =Table1[[#This Row],[SF]]/Table1[[#This Row],[CF]] -> 0.530366331 | BX72: =Table1[[#This Row],[MSF]]/Table1[[#This Row],[CF]] -> 0.2298254101 | BY72: =Table1[[#This Row],[BSF]]/Table1[[#This Row],[CF]] -> 0.2398522362 | BZ72: =Table1[[#This Row],[SA]]/Table1[[#This Row],[CA]] -> 0.5491286058 | CA72: =Table1[[#This Row],[MSA]]/Table1[[#This Row],[CA]] -> 0.2192758413 | CB72: =Table1[[#This Row],[BSA]]/Table1[[#This Row],[CA]] -> 0.2315955529
A73: 5v5 | B73: Close | C73: MIN | D73: 82 | E73: 20052006 | F73: 73 | G73: 85 | H73: -12 | I73: 46.1 | J73: 106.8 | K73: 67.9 | L73: 8.9 | M73: 91.5 | N73: 49.2 | O73: 100.4 | P73: 40.8 | Q73: 43.4 | R73: -84 | S73: 278 | T73: 362 | U73: 8.6 | V73: 11.2 | W73: 19.9 | X73: 45.9 | Y73: -139 | Z73: 772 | AA73: 911 | AB73: 24 | AC73: 28.3 | AD73: 52.3 | AE73: 46.1 | AF73: -268 | AG73: 1586 | AH73: 1854 | AI73: 49.2 | AJ73: 57.6 | AK73: 106.8 | AL73: 45.7 | AM73: -230 | AN73: 37.5 | AO73: 44.6 | AP73: 1208 | AQ73: 1438 | AR73: 82.2 | AS73: 388 | AT73: 436 | AU73: 378 | AV73: 416 | AW73: 45 | AX73: -182 | AY73: 25.5 | AZ73: 31.1 | BA73: 820 | BB73: 1002 | BC73: 2.3 | BD73: 2.6 | BE73: 46.2 | BF73: 8.9 | BG73: 6 | BH73: 91.5 | BI73: 51.7 | BJ73: 67.9 | BK73: 49.2 | BL73: 857 | BM73: 886 | BN73: 439 | BO73: 668 | BP73: 636 | BQ73: 438 | BR73: 595 | BS73: 24 | BT73: 17 | BU73: -7 | BV73: 1932.5 | BW73: =Table1[[#This Row],[SF]]/Table1[[#This Row],[CF]] -> 0.5170239596 | BX73: =Table1[[#This Row],[MSF]]/Table1[[#This Row],[CF]] -> 0.2446406053 | BY73: =Table1[[#This Row],[BSF]]/Table1[[#This Row],[CF]] -> 0.2383354351 | BZ73: =Table1[[#This Row],[SA]]/Table1[[#This Row],[CA]] -> 0.5404530744 | CA73: =Table1[[#This Row],[MSA]]/Table1[[#This Row],[CA]] -> 0.235167206 | CB73: =Table1[[#This Row],[BSA]]/Table1[[#This Row],[CA]] -> 0.2243797195
A74: 5v5 | B74: Tied | C74: MIN | D74: 82 | E74: 20052006 | F74: 43 | G74: 56 | H74: -13 | I74: 45.2 | J74: 105.9 | K74: 68.1 | L74: 8.5 | M74: 91.5 | N74: 50.1 | O74: 100 | P74: 39.9 | Q74: 42.3 | R74: -60 | S74: 165 | T74: 225 | U74: 8 | V74: 11 | W74: 19 | X74: 45.6 | Y74: -93 | Z74: 477 | AA74: 570 | AB74: 23.3 | AC74: 27.8 | AD74: 51 | AE74: 45.2 | AF74: -210 | AG74: 981 | AH74: 1191 | AI74: 47.8 | AJ74: 58.1 | AK74: 105.9 | AL74: 44.5 | AM74: -183 | AN74: 36.4 | AO74: 45.3 | AP74: 746 | AQ74: 929 | AR74: 81.6 | AS74: 238 | AT74: 268 | AU74: 235 | AV74: 262 | AW74: 43.5 | AX74: -153 | AY74: 24.8 | AZ74: 32.2 | BA74: 508 | BB74: 661 | BC74: 2.1 | BD74: 2.7 | BE74: 43.4 | BF74: 8.5 | BG74: 5.8 | BH74: 91.5 | BI74: 51.8 | BJ74: 68.1 | BK74: 50.1 | BL74: 554 | BM74: 551 | BN74: 270 | BO74: 429 | BP74: 406 | BQ74: 271 | BR74: 378 | BS74: 10 | BT74: 4 | BU74: -6 | BV74: 1230.9 | BW74: =Table1[[#This Row],[SF]]/Table1[[#This Row],[CF]] -> 0.5178389399 | BX74: =Table1[[#This Row],[MSF]]/Table1[[#This Row],[CF]] -> 0.2426095821 | BY74: =Table1[[#This Row],[BSF]]/Table1[[#This Row],[CF]] -> 0.2395514781 | BZ74: =Table1[[#This Row],[SA]]/Table1[[#This Row],[CA]] -> 0.5549958018 | CA74: =Table1[[#This Row],[MSA]]/Table1[[#This Row],[CA]] -> 0.2250209908 | CB74: =Table1[[#This Row],[BSA]]/Table1[[#This Row],[CA]] -> 0.2199832074
A75: 5v5 | B75: Up1 | C75: MIN | D75: 56 | E75: 20052006 | F75: 23 | G75: 25 | H75: -2 | I75: 41.3 | J75: 112.6 | K75: 68.5 | L75: 10.3 | M75: 91.5 | N75: 43.9 | O75: 101.8 | P75: 34.6 | Q75: 39.4 | R75: -44 | S75: 82 | T75: 126 | U75: 9.6 | V75: 14.7 | W75: 24.3 | X75: 42.6 | Y75: -72 | Z75: 208 | AA75: 280 | AB75: 24.3 | AC75: 32.8 | AD75: 57.1 | AE75: 41.3 | AF75: -167 | AG75: 398 | AH75: 565 | AI75: 46.6 | AJ75: 66.1 | AK75: 112.6 | AL75: 43.4 | AM75: -100 | AN75: 38.3 | AO75: 49.9 | AP75: 327 | AQ75: 427 | AR75: 88.2 | AS75: 103 | AT75: 132 | AU75: 71 | AV75: 138 | AW75: 43.2 | AX75: -71 | AY75: 26.2 | AZ75: 34.5 | BA75: 224 | BB75: 295 | BC75: 2.7 | BD75: 2.9 | BE75: 47.9 | BF75: 10.3 | BG75: 7 | BH75: 91.5 | BI75: 56.3 | BJ75: 68.5 | BK75: 43.9 | BL75: 202 | BM75: 258 | BN75: 102 | BO75: 165 | BP75: 193 | BQ75: 103 | BR75: 176 | BS75: 8 | BT75: 7 | BU75: -1 | BV75: 512.9 | BW75: =Table1[[#This Row],[SF]]/Table1[[#This Row],[CF]] -> 0.5628140704 | BX75: =Table1[[#This Row],[MSF]]/Table1[[#This Row],[CF]] -> 0.2587939698 | BY75: =Table1[[#This Row],[BSF]]/Table1[[#This Row],[CF]] -> 0.1783919598 | BZ75: =Table1[[#This Row],[SA]]/Table1[[#This Row],[CA]] -> 0.5221238938 | CA75: =Table1[[#This Row],[MSA]]/Table1[[#This Row],[CA]] -> 0.2336283186 | CB75: =Table1[[#This Row],[BSA]]/Table1[[#This Row],[CA]] -> 0.2442477876
A76: 5v5 | B76: Dn1 | C76: MIN | D76: 56 | E76: 20052006 | F76: 28 | G76: 18 | H76: 10 | I76: 51.7 | J76: 100.9 | K76: 69.6 | L76: 10.2 | M76: 93 | N76: 51 | O76: 103.2 | P76: 47.3 | Q76: 50.3 | R76: 1 | S76: 99 | T76: 98 | U76: 9.5 | V76: 9.4 | W76: 19 | X76: 47.9 | Y76: -21 | Z76: 244 | AA76: 265 | AB76: 23.5 | AC76: 25.5 | AD76: 49 | AE76: 51.7 | AF76: 36 | AG76: 542 | AH76: 506 | AI76: 52.2 | AJ76: 48.7 | AK76: 100.9 | AL76: 50.5 | AM76: 8 | AN76: 38 | AO76: 37.3 | AP76: 395 | AQ76: 387 | AR76: 75.3 | AS76: 120 | AT76: 129 | AU76: 147 | AV76: 119 | AW76: 51.6 | AX76: 17 | AY76: 26.5 | AZ76: 24.8 | BA76: 275 | BB76: 258 | BC76: 2.7 | BD76: 1.7 | BE76: 60.9 | BF76: 10.2 | BG76: 7.1 | BH76: 93 | BI76: 50.7 | BJ76: 69.6 | BK76: 51 | BL76: 284 | BM76: 273 | BN76: 168 | BO76: 202 | BP76: 187 | BQ76: 135 | BR76: 154 | BS76: 6 | BT76: 6 | BU76: 0 | BV76: 623.2 | BW76: =Table1[[#This Row],[SF]]/Table1[[#This Row],[CF]] -> 0.5073800738 | BX76: =Table1[[#This Row],[MSF]]/Table1[[#This Row],[CF]] -> 0.221402214 | BY76: =Table1[[#This Row],[BSF]]/Table1[[#This Row],[CF]] -> 0.2712177122 | BZ76: =Table1[[#This Row],[SA]]/Table1[[#This Row],[CA]] -> 0.5098814229 | CA76: =Table1[[#This Row],[MSA]]/Table1[[#This Row],[CA]] -> 0.2549407115 | CB76: =Table1[[#This Row],[BSA]]/Table1[[#This Row],[CA]] -> 0.2351778656
A77: 5v5 | B77: ScAdj | C77: MTL | D77: 41 | E77: 20052006 | F77: 74 | G77: 65 | H77: 9 | I77: 50.1 | J77: 106.4 | K77: 68.5 | L77: 10.7 | M77: 90.8 | N77: 48.1 | O77: 101.4 | P77: 47.2 | Q77: 51.2 | R77: 12.7 | S77: 263 | T77: 250.3 | U77: 10.4 | V77: 9.9 | W77: 20.4 | X77: 51.4 | Y77: 39 | Z77: 705.2 | AA77: 666.1 | AB77: 28 | AC77: 26.4 | AD77: 54.4 | AE77: 50.1 | AF77: 5.4 | AG77: 1343.1 | AH77: 1337.7 | AI77: 53.3 | AJ77: 53.1 | AK77: 106.4 | AL77: 50 | AM77: -0.7 | AN77: 40.2 | AO77: 40.2 | AP77: 1013.2 | AQ77: 1013.9 | AR77: 80.4 | AS77: 319 | AT77: 308.8 | AU77: 329.9 | AV77: 323.8 | AW77: 49.6 | AX77: -10.9 | AY77: 27.5 | AZ77: 28 | BA77: 694.2 | BB77: 705.1 | BC77: 2.9 | BD77: 2.6 | BE77: 53.2 | BF77: 10.7 | BG77: 7.3 | BH77: 90.8 | BI77: 51.7 | BJ77: 68.5 | BK77: 48.1 | BL77: 690 | BM77: 744 | BN77: 393 | BO77: 602 | BP77: 439 | BQ77: 507 | BR77: 513 | BS77: 13 | BT77: 11 | BU77: -2 | BV77: 1512.2 | BW77: =Table1[[#This Row],[SF]]/Table1[[#This Row],[CF]] -> 0.5168639714 | BX77: =Table1[[#This Row],[MSF]]/Table1[[#This Row],[CF]] -> 0.2375102375 | BY77: =Table1[[#This Row],[BSF]]/Table1[[#This Row],[CF]] -> 0.2456257911 | BZ77: =Table1[[#This Row],[SA]]/Table1[[#This Row],[CA]] -> 0.5270987516 | CA77: =Table1[[#This Row],[MSA]]/Table1[[#This Row],[CA]] -> 0.2308439859 | CB77: =Table1[[#This Row],[BSA]]/Table1[[#This Row],[CA]] -> 0.2420572625
A78: 5v5 | B78: Close | C78: MTL | D78: 41 | E78: 20052006 | F78: 41 | G78: 40 | H78: 1 | I78: 46 | J78: 112.1 | K78: 69 | L78: 10.2 | M78: 91.7 | N78: 47.6 | O78: 101.9 | P78: 44.6 | Q78: 43.2 | R78: -43 | S78: 137 | T78: 180 | U78: 8.9 | V78: 11.7 | W78: 20.6 | X78: 46.3 | Y78: -65 | Z78: 407 | AA78: 472 | AB78: 26.4 | AC78: 30.6 | AD78: 57 | AE78: 46 | AF78: -137 | AG78: 796 | AH78: 933 | AI78: 51.6 | AJ78: 60.5 | AK78: 112.1 | AL78: 45.4 | AM78: -117 | AN78: 37.6 | AO78: 45.2 | AP78: 580 | AQ78: 697 | AR78: 82.8 | AS78: 180 | AT78: 217 | AU78: 216 | AV78: 236 | AW78: 45.5 | AX78: -80 | AY78: 25.9 | AZ78: 31.1 | BA78: 400 | BB78: 480 | BC78: 2.7 | BD78: 2.6 | BE78: 50.6 | BF78: 10.2 | BG78: 7.1 | BH78: 91.7 | BI78: 50.3 | BJ78: 69 | BK78: 47.6 | BL78: 417 | BM78: 459 | BN78: 227 | BO78: 367 | BP78: 282 | BQ78: 332 | BR78: 328 | BS78: 7 | BT78: 6 | BU78: -1 | BV78: 925 | BW78: =Table1[[#This Row],[SF]]/Table1[[#This Row],[CF]] -> 0.5025125628 | BX78: =Table1[[#This Row],[MSF]]/Table1[[#This Row],[CF]] -> 0.2261306533 | BY78: =Table1[[#This Row],[BSF]]/Table1[[#This Row],[CF]] -> 0.2713567839 | BZ78: =Table1[[#This Row],[SA]]/Table1[[#This Row],[CA]] -> 0.5144694534 | CA78: =Table1[[#This Row],[MSA]]/Table1[[#This Row],[CA]] -> 0.2325830654 | CB78: =Table1[[#This Row],[BSA]]/Table1[[#This Row],[CA]] -> 0.2529474812
A79: 5v5 | B79: Tied | C79: MTL | D79: 41 | E79: 20052006 | F79: 25 | G79: 21 | H79: 4 | I79: 47.3 | J79: 114.4 | K79: 69.5 | L79: 9.9 | M79: 92.3 | N79: 49 | O79: 102.2 | P79: 43.6 | Q79: 45.9 | R79: -15 | S79: 85 | T79: 100 | U79: 9.3 | V79: 10.9 | W79: 20.3 | X79: 48.5 | Y79: -16 | Z79: 256 | AA79: 272 | AB79: 28 | AC79: 29.8 | AD79: 57.8 | AE79: 47.3 | AF79: -57 | AG79: 494 | AH79: 551 | AI79: 54.1 | AJ79: 60.3 | AK79: 114.4 | AL79: 47.3 | AM79: -41 | AN79: 39.9 | AO79: 44.3 | AP79: 364 | AQ79: 405 | AR79: 84.2 | AS79: 111 | AT79: 131 | AU79: 130 | AV79: 146 | AW79: 48 | AX79: -21 | AY79: 27.7 | AZ79: 30 | BA79: 253 | BB79: 274 | BC79: 2.7 | BD79: 2.3 | BE79: 54.3 | BF79: 9.9 | BG79: 6.9 | BH79: 92.3 | BI79: 51.2 | BJ79: 69.5 | BK79: 49 | BL79: 245 | BM79: 255 | BN79: 130 | BO79: 202 | BP79: 168 | BQ79: 191 | BR79: 206 | BS79: 4 | BT79: 3 | BU79: -1 | BV79: 548 | BW79: =Table1[[#This Row],[SF]]/Table1[[#This Row],[CF]] -> 0.512145749 | BX79: =Table1[[#This Row],[MSF]]/Table1[[#This Row],[CF]] -> 0.2246963563 | BY79: =Table1[[#This Row],[BSF]]/Table1[[#This Row],[CF]] -> 0.2631578947 | BZ79: =Table1[[#This Row],[SA]]/Table1[[#This Row],[CA]] -> 0.497277677 | CA79: =Table1[[#This Row],[MSA]]/Table1[[#This Row],[CA]] -> 0.2377495463 | CB79: =Table1[[#This Row],[BSA]]/Table1[[#This Row],[CA]] -> 0.2649727768
A80: 5v5 | B80: Up1 | C80: MTL | D80: 28 | E80: 20052006 | F80: 11 | G80: 14 | H80: -3 | I80: 44.1 | J80: 101.9 | K80: 67.1 | L80: 11 | M80: 90.3 | N80: 50.4 | O80: 101.3 | P80: 43.6 | Q80: 40.4 | R80: -17 | S80: 36 | T80: 53 | U80: 8 | V80: 11.8 | W80: 19.8 | X80: 41.8 | Y80: -39 | Z80: 99 | AA80: 138 | AB80: 22 | AC80: 30.7 | AD80: 52.7 | AE80: 44.1 | AF80: -54 | AG80: 202 | AH80: 256 | AI80: 44.9 | AJ80: 56.9 | AK80: 101.9 | AL80: 44.3 | AM80: -38 | AN80: 33.1 | AO80: 41.6 | AP80: 149 | AQ80: 187 | AR80: 74.7 | AS80: 49 | AT80: 42 | AU80: 53 | AV80: 69 | AW80: 40.8 | AX80: -45 | AY80: 22.2 | AZ80: 32.2 | BA80: 100 | BB80: 145 | BC80: 2.4 | BD80: 3.1 | BE80: 44 | BF80: 11 | BG80: 7.4 | BH80: 90.3 | BI80: 49.5 | BJ80: 67.1 | BK80: 50.4 | BL80: 139 | BM80: 137 | BN80: 68 | BO80: 120 | BP80: 88 | BQ80: 94 | BR80: 81 | BS80: 3 | BT80: 3 | BU80: 0 | BV80: 269.8 | BW80: =Table1[[#This Row],[SF]]/Table1[[#This Row],[CF]] -> 0.495049505 | BX80: =Table1[[#This Row],[MSF]]/Table1[[#This Row],[CF]] -> 0.2425742574 | BY80: =Table1[[#This Row],[BSF]]/Table1[[#This Row],[CF]] -> 0.2623762376 | BZ80: =Table1[[#This Row],[SA]]/Table1[[#This Row],[CA]] -> 0.56640625 | CA80: =Table1[[#This Row],[MSA]]/Table1[[#This Row],[CA]] -> 0.1640625 | CB80: =Table1[[#This Row],[BSA]]/Table1[[#This Row],[CA]] -> 0.26953125
A81: 5v5 | B81: Dn1 | C81: MTL | D81: 29 | E81: 20052006 | F81: 18 | G81: 14 | H81: 4 | I81: 51 | J81: 107.8 | K81: 67.7 | L81: 11.8 | M81: 90.8 | N81: 45.5 | O81: 102.6 | P81: 52.2 | Q81: 54.4 | R81: 11 | S81: 68 | T81: 57 | U81: 12.3 | V81: 10.3 | W81: 22.7 | X81: 53.5 | Y81: 21 | Z81: 161 | AA81: 140 | AB81: 29.2 | AC81: 25.4 | AD81: 54.6 | AE81: 51 | AF81: 12 | AG81: 303 | AH81: 291 | AI81: 55 | AJ81: 52.8 | AK81: 107.8 | AL81: 49.5 | AM81: -5 | AN81: 41 | AO81: 41.9 | AP81: 226 | AQ81: 231 | AR81: 82.9 | AS81: 73 | AT81: 79 | AU81: 77 | AV81: 60 | AW81: 50.2 | AX81: 1 | AY81: 27.8 | AZ81: 27.6 | BA81: 153 | BB81: 152 | BC81: 3.3 | BD81: 2.5 | BE81: 56.2 | BF81: 11.8 | BG81: 8 | BH81: 90.8 | BI81: 50.5 | BJ81: 67.7 | BK81: 45.5 | BL81: 131 | BM81: 157 | BN81: 84 | BO81: 127 | BP81: 77 | BQ81: 115 | BR81: 106 | BS81: 2 | BT81: 1 | BU81: -1 | BV81: 330.6 | BW81: =Table1[[#This Row],[SF]]/Table1[[#This Row],[CF]] -> 0.504950495 | BX81: =Table1[[#This Row],[MSF]]/Table1[[#This Row],[CF]] -> 0.2409240924 | BY81: =Table1[[#This Row],[BSF]]/Table1[[#This Row],[CF]] -> 0.2541254125 | BZ81: =Table1[[#This Row],[SA]]/Table1[[#This Row],[CA]] -> 0.5223367698 | CA81: =Table1[[#This Row],[MSA]]/Table1[[#This Row],[CA]] -> 0.2714776632 | CB81: =Table1[[#This Row],[BSA]]/Table1[[#This Row],[CA]] -> 0.206185567
A82: 5v5 | B82: ScAdj | C82: N.J | D82: 80 | E82: 20052006 | F82: 135 | G82: 137 | H82: -2 | I82: 50.2 | J82: 105.2 | K82: 69 | L82: 9.5 | M82: 90.6 | N82: 49.1 | O82: 100.1 | P82: 51.2 | Q82: 47.7 | R82: -45.5 | S82: 469.9 | T82: 515.4 | U82: 9.1 | V82: 9.9 | W82: 19 | X82: 48.3 | Y82: -93.5 | Z82: 1326.3 | AA82: 1419.8 | AB82: 25.6 | AC82: 27.4 | AD82: 52.9 | AE82: 50.2 | AF82: 17.9 | AG82: 2738 | AH82: 2720.2 | AI82: 52.8 | AJ82: 52.4 | AK82: 105.2 | AL82: 49.8 | AM82: -14.9 | AN82: 39.5 | AO82: 39.8 | AP82: 2048.5 | AQ82: 2063.5 | AR82: 79.3 | AS82: 634.4 | AT82: 607.9 | AU82: 689.5 | AV82: 656.7 | AW82: 49.3 | AX82: -41.4 | AY82: 27.3 | AZ82: 28.1 | BA82: 1414.1 | BB82: 1455.6 | BC82: 2.6 | BD82: 2.6 | BE82: 49.6 | BF82: 9.5 | BG82: 6.6 | BH82: 90.6 | BI82: 51.6 | BJ82: 69 | BK82: 49.1 | BL82: 1283 | BM82: 1328 | BN82: 814 | BO82: 1021 | BP82: 776 | BQ82: 939 | BR82: 785 | BS82: 16 | BT82: 19 | BU82: 3 | BV82: 3111.9 | BW82: =Table1[[#This Row],[SF]]/Table1[[#This Row],[CF]] -> 0.5164718773 | BX82: =Table1[[#This Row],[MSF]]/Table1[[#This Row],[CF]] -> 0.2317019722 | BY82: =Table1[[#This Row],[BSF]]/Table1[[#This Row],[CF]] -> 0.2518261505 | BZ82: =Table1[[#This Row],[SA]]/Table1[[#This Row],[CA]] -> 0.5351077127 | CA82: =Table1[[#This Row],[MSA]]/Table1[[#This Row],[CA]] -> 0.223476215 | CB82: =Table1[[#This Row],[BSA]]/Table1[[#This Row],[CA]] -> 0.2414160723
A83: 5v5 | B83: Close | C83: N.J | D83: 80 | E83: 20052006 | F83: 70 | G83: 77 | H83: -7 | I83: 49.7 | J83: 107.2 | K83: 70.4 | L83: 8.6 | M83: 91.2 | N83: 48.4 | O83: 99.8 | P83: 51.9 | Q83: 50.1 | R83: 1 | S83: 287 | T83: 286 | U83: 9.8 | V83: 9.7 | W83: 19.5 | X83: 48.7 | Y83: -42 | Z83: 771 | AA83: 813 | AB83: 26.2 | AC83: 27.7 | AD83: 53.9 | AE83: 49.7 | AF83: -18 | AG83: 1566 | AH83: 1584 | AI83: 53.3 | AJ83: 53.9 | AK83: 107.2 | AL83: 49.5 | AM83: -23 | AN83: 39.4 | AO83: 40.2 | AP83: 1158 | AQ83: 1181 | AR83: 79.6 | AS83: 343 | AT83: 301 | AU83: 408 | AV83: 403 | AW83: 48.1 | AX83: -65 | AY83: 27.7 | AZ83: 30 | BA83: 815 | BB83: 880 | BC83: 2.4 | BD83: 2.6 | BE83: 47.6 | BF83: 8.6 | BG83: 6 | BH83: 91.2 | BI83: 52 | BJ83: 70.4 | BK83: 48.4 | BL83: 720 | BM83: 768 | BN83: 475 | BO83: 573 | BP83: 440 | BQ83: 555 | BR83: 477 | BS83: 12 | BT83: 14 | BU83: 2 | BV83: 1762.7 | BW83: =Table1[[#This Row],[SF]]/Table1[[#This Row],[CF]] -> 0.5204342273 | BX83: =Table1[[#This Row],[MSF]]/Table1[[#This Row],[CF]] -> 0.2190293742 | BY83: =Table1[[#This Row],[BSF]]/Table1[[#This Row],[CF]] -> 0.2605363985 | BZ83: =Table1[[#This Row],[SA]]/Table1[[#This Row],[CA]] -> 0.5555555556 | CA83: =Table1[[#This Row],[MSA]]/Table1[[#This Row],[CA]] -> 0.1900252525 | CB83: =Table1[[#This Row],[BSA]]/Table1[[#This Row],[CA]] -> 0.2544191919
A84: 5v5 | B84: Tied | C84: N.J | D84: 80 | E84: 20052006 | F84: 44 | G84: 38 | H84: 6 | I84: 51.1 | J84: 106.5 | K84: 72 | L84: 8.7 | M84: 92.3 | N84: 47.3 | O84: 101 | P84: 52.6 | Q84: 52.9 | R84: 19 | S84: 171 | T84: 152 | U84: 9.9 | V84: 8.8 | W84: 18.6 | X84: 50.3 | Y84: 6 | Z84: 461 | AA84: 455 | AB84: 26.6 | AC84: 26.2 | AD84: 52.8 | AE84: 51.1 | AF84: 42 | AG84: 945 | AH84: 903 | AI84: 54.5 | AJ84: 52.1 | AK84: 106.5 | AL84: 50.9 | AM84: 24 | AN84: 40.4 | AO84: 39 | AP84: 700 | AQ84: 676 | AR84: 79.3 | AS84: 196 | AT84: 183 | AU84: 245 | AV84: 227 | AW84: 50.6 | AX84: 11 | AY84: 29.1 | AZ84: 28.4 | BA84: 504 | BB84: 493 | BC84: 2.5 | BD84: 2.2 | BE84: 53.7 | BF84: 8.7 | BG84: 6.3 | BH84: 92.3 | BI84: 53.3 | BJ84: 72 | BK84: 47.3 | BL84: 414 | BM84: 461 | BN84: 285 | BO84: 333 | BP84: 257 | BQ84: 322 | BR84: 287 | BS84: 7 | BT84: 7 | BU84: 0 | BV84: 1040.7 | BW84: =Table1[[#This Row],[SF]]/Table1[[#This Row],[CF]] -> 0.5333333333 | BX84: =Table1[[#This Row],[MSF]]/Table1[[#This Row],[CF]] -> 0.2074074074 | BY84: =Table1[[#This Row],[BSF]]/Table1[[#This Row],[CF]] -> 0.2592592593 | BZ84: =Table1[[#This Row],[SA]]/Table1[[#This Row],[CA]] -> 0.5459579181 | CA84: =Table1[[#This Row],[MSA]]/Table1[[#This Row],[CA]] -> 0.2026578073 | CB84: =Table1[[#This Row],[BSA]]/Table1[[#This Row],[CA]] -> 0.2513842746
A85: 5v5 | B85: Up1 | C85: N.J | D85: 56 | E85: 20052006 | F85: 18 | G85: 26 | H85: -8 | I85: 43.5 | J85: 103.1 | K85: 72.1 | L85: 7.6 | M85: 92 | N85: 51.9 | O85: 99.5 | P85: 46.7 | Q85: 40.1 | R85: -39 | S85: 79 | T85: 118 | U85: 7.9 | V85: 11.9 | W85: 19.8 | X85: 41.5 | Y85: -89 | Z85: 218 | AA85: 307 | AB85: 21.9 | AC85: 30.9 | AD85: 52.8 | AE85: 43.5 | AF85: -133 | AG85: 446 | AH85: 579 | AI85: 44.9 | AJ85: 58.3 | AK85: 103.1 | AL85: 44 | AM85: -90 | AN85: 33.2 | AO85: 42.3 | AP85: 330 | AQ85: 420 | AR85: 75.5 | AS85: 92 | AT85: 96 | AU85: 116 | AV85: 159 | AW85: 42.3 | AX85: -86 | AY85: 23.9 | AZ85: 32.6 | BA85: 238 | BB85: 324 | BC85: 1.8 | BD85: 2.6 | BE85: 40.9 | BF85: 7.6 | BG85: 5.5 | BH85: 92 | BI85: 53.4 | BJ85: 72.1 | BK85: 51.9 | BL85: 252 | BM85: 234 | BN85: 141 | BO85: 184 | BP85: 161 | BQ85: 177 | BR85: 156 | BS85: 3 | BT85: 4 | BU85: 1 | BV85: 596.3 | BW85: =Table1[[#This Row],[SF]]/Table1[[#This Row],[CF]] -> 0.533632287 | BX85: =Table1[[#This Row],[MSF]]/Table1[[#This Row],[CF]] -> 0.2062780269 | BY85: =Table1[[#This Row],[BSF]]/Table1[[#This Row],[CF]] -> 0.2600896861 | BZ85: =Table1[[#This Row],[SA]]/Table1[[#This Row],[CA]] -> 0.5595854922 | CA85: =Table1[[#This Row],[MSA]]/Table1[[#This Row],[CA]] -> 0.1658031088 | CB85: =Table1[[#This Row],[BSA]]/Table1[[#This Row],[CA]] -> 0.274611399
A86: 5v5 | B86: Dn1 | C86: N.J | D86: 48 | E86: 20052006 | F86: 22 | G86: 24 | H86: -2 | I86: 53.9 | J86: 108 | K86: 64.2 | L86: 9.6 | M86: 89.8 | N86: 51.4 | O86: 99.4 | P86: 57.5 | Q86: 52.4 | R86: 8 | S86: 89 | T86: 81 | U86: 10.6 | V86: 9.6 | W86: 20.2 | X86: 52.2 | Y86: 20 | Z86: 242 | AA86: 222 | AB86: 28.8 | AC86: 26.4 | AD86: 55.3 | AE86: 53.9 | AF86: 71 | AG86: 489 | AH86: 418 | AI86: 58.2 | AJ86: 49.8 | AK86: 108 | AL86: 52.6 | AM86: 35 | AN86: 42.6 | AO86: 38.5 | AP86: 358 | AQ86: 323 | AR86: 81.1 | AS86: 128 | AT86: 88 | AU86: 131 | AV86: 95 | AW86: 49.5 | AX86: -5 | AY86: 27.4 | AZ86: 28 | BA86: 230 | BB86: 235 | BC86: 2.6 | BD86: 2.9 | BE86: 47.8 | BF86: 9.6 | BG86: 6.1 | BH86: 89.8 | BI86: 47 | BJ86: 64.2 | BK86: 51.4 | BL86: 221 | BM86: 209 | BN86: 153 | BO86: 164 | BP86: 113 | BQ86: 162 | BR86: 131 | BS86: 2 | BT86: 3 | BU86: 1 | BV86: 503.9 | BW86: =Table1[[#This Row],[SF]]/Table1[[#This Row],[CF]] -> 0.4703476483 | BX86: =Table1[[#This Row],[MSF]]/Table1[[#This Row],[CF]] -> 0.2617586912 | BY86: =Table1[[#This Row],[BSF]]/Table1[[#This Row],[CF]] -> 0.2678936605 | BZ86: =Table1[[#This Row],[SA]]/Table1[[#This Row],[CA]] -> 0.5622009569 | CA86: =Table1[[#This Row],[MSA]]/Table1[[#This Row],[CA]] -> 0.2105263158 | CB86: =Table1[[#This Row],[BSA]]/Table1[[#This Row],[CA]] -> 0.2272727273
A87: 5v5 | B87: ScAdj | C87: NSH | D87: 81 | E87: 20052006 | F87: 134 | G87: 113 | H87: 21 | I87: 47.8 | J87: 108 | K87: 72.3 | L87: 10.1 | M87: 92.1 | N87: 53.7 | O87: 102.2 | P87: 46.1 | Q87: 45.4 | R87: -82.6 | S87: 406.6 | T87: 489.2 | U87: 8.9 | V87: 10.7 | W87: 19.5 | X87: 47.5 | Y87: -123.9 | Z87: 1173.2 | AA87: 1297.1 | AB87: 25.6 | AC87: 28.3 | AD87: 53.9 | AE87: 47.8 | AF87: -213.1 | AG87: 2368.9 | AH87: 2582 | AI87: 51.7 | AJ87: 56.3 | AK87: 108 | AL87: 48 | AM87: -153.3 | AN87: 39.9 | AO87: 43.2 | AP87: 1829.2 | AQ87: 1982.5 | AR87: 83.1 | AS87: 507.1 | AT87: 553.5 | AU87: 539.6 | AV87: 599.5 | AW87: 48.1 | AX87: -106.9 | AY87: 28.8 | AZ87: 31.2 | BA87: 1322.1 | BB87: 1429 | BC87: 2.9 | BD87: 2.5 | BE87: 54.3 | BF87: 10.1 | BG87: 7.3 | BH87: 92.1 | BI87: 55.8 | BJ87: 72.3 | BK87: 53.7 | BL87: 1454 | BM87: 1252 | BN87: 759 | BO87: 1060 | BP87: 887 | BQ87: 883 | BR87: 924 | BS87: 19 | BT87: 16 | BU87: -3 | BV87: 2751.5 | BW87: =Table1[[#This Row],[SF]]/Table1[[#This Row],[CF]] -> 0.5581071383 | BX87: =Table1[[#This Row],[MSF]]/Table1[[#This Row],[CF]] -> 0.2140656001 | BY87: =Table1[[#This Row],[BSF]]/Table1[[#This Row],[CF]] -> 0.2277850479 | BZ87: =Table1[[#This Row],[SA]]/Table1[[#This Row],[CA]] -> 0.5534469404 | CA87: =Table1[[#This Row],[MSA]]/Table1[[#This Row],[CA]] -> 0.2143687064 | CB87: =Table1[[#This Row],[BSA]]/Table1[[#This Row],[CA]] -> 0.2321843532
A88: 5v5 | B88: Close | C88: NSH | D88: 81 | E88: 20052006 | F88: 86 | G88: 71 | H88: 15 | I88: 46.8 | J88: 109.1 | K88: 73.5 | L88: 10.4 | M88: 92.4 | N88: 54.9 | O88: 102.8 | P88: 45.7 | Q88: 44.4 | R88: -65 | S88: 258 | T88: 323 | U88: 9 | V88: 11.2 | W88: 20.2 | X88: 46 | Y88: -124 | Z88: 720 | AA88: 844 | AB88: 25 | AC88: 29.3 | AD88: 54.3 | AE88: 46.8 | AF88: -204 | AG88: 1468 | AH88: 1672 | AI88: 51 | AJ88: 58.1 | AK88: 109.1 | AL88: 46.5 | AM88: -169 | AN88: 38.9 | AO88: 44.8 | AP88: 1119 | AQ88: 1288 | AR88: 83.6 | AS88: 296 | AT88: 358 | AU88: 349 | AV88: 384 | AW88: 46.9 | AX88: -107 | AY88: 28.6 | AZ88: 32.3 | BA88: 823 | BB88: 930 | BC88: 3 | BD88: 2.5 | BE88: 54.8 | BF88: 10.4 | BG88: 7.7 | BH88: 92.4 | BI88: 56.1 | BJ88: 73.5 | BK88: 54.9 | BL88: 935 | BM88: 767 | BN88: 476 | BO88: 660 | BP88: 566 | BQ88: 600 | BR88: 624 | BS88: 6 | BT88: 6 | BU88: 0 | BV88: 1726.6 | BW88: =Table1[[#This Row],[SF]]/Table1[[#This Row],[CF]] -> 0.560626703 | BX88: =Table1[[#This Row],[MSF]]/Table1[[#This Row],[CF]] -> 0.2016348774 | BY88: =Table1[[#This Row],[BSF]]/Table1[[#This Row],[CF]] -> 0.2377384196 | BZ88: =Table1[[#This Row],[SA]]/Table1[[#This Row],[CA]] -> 0.5562200957 | CA88: =Table1[[#This Row],[MSA]]/Table1[[#This Row],[CA]] -> 0.2141148325 | CB88: =Table1[[#This Row],[BSA]]/Table1[[#This Row],[CA]] -> 0.2296650718
A89: 5v5 | B89: Tied | C89: NSH | D89: 81 | E89: 20052006 | F89: 57 | G89: 41 | H89: 16 | I89: 46.4 | J89: 108.7 | K89: 73.7 | L89: 11.7 | M89: 92.8 | N89: 53.4 | O89: 104.5 | P89: 45.4 | Q89: 45 | R89: -33 | S89: 147 | T89: 180 | U89: 8.7 | V89: 10.7 | W89: 19.4 | X89: 46 | Y89: -70 | Z89: 408 | AA89: 478 | AB89: 24.3 | AC89: 28.4 | AD89: 52.7 | AE89: 46.4 | AF89: -132 | AG89: 848 | AH89: 980 | AI89: 50.4 | AJ89: 58.3 | AK89: 108.7 | AL89: 46.2 | AM89: -108 | AN89: 39.2 | AO89: 45.6 | AP89: 659 | AQ89: 767 | AR89: 84.8 | AS89: 173 | AT89: 200 | AU89: 189 | AV89: 213 | AW89: 46.2 | AX89: -81 | AY89: 28.9 | AZ89: 33.7 | BA89: 486 | BB89: 567 | BC89: 3.4 | BD89: 2.4 | BE89: 58.2 | BF89: 11.7 | BG89: 8.6 | BH89: 92.8 | BI89: 57.3 | BJ89: 73.7 | BK89: 53.4 | BL89: 528 | BM89: 461 | BN89: 275 | BO89: 383 | BP89: 331 | BQ89: 357 | BR89: 351 | BS89: 4 | BT89: 6 | BU89: 2 | BV89: 1009.2 | BW89: =Table1[[#This Row],[SF]]/Table1[[#This Row],[CF]] -> 0.5731132075 | BX89: =Table1[[#This Row],[MSF]]/Table1[[#This Row],[CF]] -> 0.204009434 | BY89: =Table1[[#This Row],[BSF]]/Table1[[#This Row],[CF]] -> 0.2228773585 | BZ89: =Table1[[#This Row],[SA]]/Table1[[#This Row],[CA]] -> 0.5785714286 | CA89: =Table1[[#This Row],[MSA]]/Table1[[#This Row],[CA]] -> 0.2040816327 | CB89: =Table1[[#This Row],[BSA]]/Table1[[#This Row],[CA]] -> 0.2173469388
A90: 5v5 | B90: Up1 | C90: NSH | D90: 65 | E90: 20052006 | F90: 19 | G90: 21 | H90: -2 | I90: 42.8 | J90: 111.5 | K90: 69.7 | L90: 8.1 | M90: 93.3 | N90: 56.2 | O90: 101.4 | P90: 40.4 | Q90: 40.6 | R90: -38 | S90: 82 | T90: 120 | U90: 8.5 | V90: 12.4 | W90: 20.9 | X90: 40.9 | Y90: -97 | Z90: 219 | AA90: 316 | AB90: 22.7 | AC90: 32.7 | AD90: 55.3 | AE90: 42.8 | AF90: -156 | AG90: 461 | AH90: 617 | AI90: 47.7 | AJ90: 63.8 | AK90: 111.5 | AL90: 42.5 | AM90: -119 | AN90: 34.9 | AO90: 47.2 | AP90: 337 | AQ90: 456 | AR90: 82 | AS90: 102 | AT90: 143 | AU90: 124 | AV90: 161 | AW90: 42.9 | AX90: -78 | AY90: 24.3 | AZ90: 32.4 | BA90: 235 | BB90: 313 | BC90: 2 | BD90: 2.2 | BE90: 47.5 | BF90: 8.1 | BG90: 5.6 | BH90: 93.3 | BI90: 51 | BJ90: 69.7 | BK90: 56.2 | BL90: 324 | BM90: 252 | BN90: 144 | BO90: 220 | BP90: 212 | BQ90: 190 | BR90: 212 | BS90: 4 | BT90: 2 | BU90: -2 | BV90: 580.1 | BW90: =Table1[[#This Row],[SF]]/Table1[[#This Row],[CF]] -> 0.5097613883 | BX90: =Table1[[#This Row],[MSF]]/Table1[[#This Row],[CF]] -> 0.2212581345 | BY90: =Table1[[#This Row],[BSF]]/Table1[[#This Row],[CF]] -> 0.2689804772 | BZ90: =Table1[[#This Row],[SA]]/Table1[[#This Row],[CA]] -> 0.5072933549 | CA90: =Table1[[#This Row],[MSA]]/Table1[[#This Row],[CA]] -> 0.2317666126 | CB90: =Table1[[#This Row],[BSA]]/Table1[[#This Row],[CA]] -> 0.2609400324
A91: 5v5 | B91: Dn1 | C91: NSH | D91: 54 | E91: 20052006 | F91: 21 | G91: 19 | H91: 2 | I91: 55.3 | J91: 111.6 | K91: 73.7 | L91: 8.5 | M91: 90.2 | N91: 53.2 | O91: 98.7 | P91: 55.4 | Q91: 53 | R91: 8 | S91: 71 | T91: 63 | U91: 9.9 | V91: 8.8 | W91: 18.6 | X91: 55.4 | Y91: 43 | Z91: 221 | AA91: 178 | AB91: 30.7 | AC91: 24.7 | AD91: 55.5 | AE91: 55.3 | AF91: 85 | AG91: 444 | AH91: 359 | AI91: 61.7 | AJ91: 49.9 | AK91: 111.6 | AL91: 54.6 | AM91: 56 | AN91: 46.4 | AO91: 38.6 | AP91: 334 | AQ91: 278 | AR91: 85.1 | AS91: 88 | AT91: 85 | AU91: 110 | AV91: 81 | AW91: 56 | AX91: 53 | AY91: 34.2 | AZ91: 26.8 | BA91: 246 | BB91: 193 | BC91: 2.9 | BD91: 2.6 | BE91: 52.5 | BF91: 8.5 | BG91: 6.3 | BH91: 90.2 | BI91: 55.4 | BJ91: 73.7 | BK91: 53.2 | BL91: 210 | BM91: 185 | BN91: 129 | BO91: 162 | BP91: 104 | BQ91: 147 | BR91: 151 | BS91: 0 | BT91: 0 | BU91: 0 | BV91: 431.6 | BW91: =Table1[[#This Row],[SF]]/Table1[[#This Row],[CF]] -> 0.5540540541 | BX91: =Table1[[#This Row],[MSF]]/Table1[[#This Row],[CF]] -> 0.1981981982 | BY91: =Table1[[#This Row],[BSF]]/Table1[[#This Row],[CF]] -> 0.2477477477 | BZ91: =Table1[[#This Row],[SA]]/Table1[[#This Row],[CA]] -> 0.5376044568 | CA91: =Table1[[#This Row],[MSA]]/Table1[[#This Row],[CA]] -> 0.2367688022 | CB91: =Table1[[#This Row],[BSA]]/Table1[[#This Row],[CA]] -> 0.2256267409
A92: 5v5 | B92: ScAdj | C92: NYI | D92: 80 | E92: 20052006 | F92: 130 | G92: 136 | H92: -6 | I92: 50.5 | J92: 111.4 | K92: 70.9 | L92: 8.7 | M92: 90.7 | N92: 49.4 | O92: 99.4 | P92: 47.8 | Q92: 48.1 | R92: -41.4 | S92: 528 | T92: 569.4 | U92: 10.7 | V92: 11.5 | W92: 22.2 | X92: 48.7 | Y92: -76.5 | Z92: 1381.4 | AA92: 1457.9 | AB92: 27.9 | AC92: 29.5 | AD92: 57.4 | AE92: 50.5 | AF92: 51.1 | AG92: 2780.9 | AH92: 2729.7 | AI92: 56.2 | AJ92: 55.2 | AK92: 111.4 | AL92: 50.2 | AM92: 18.2 | AN92: 42.4 | AO92: 42.1 | AP92: 2099.8 | AQ92: 2081.6 | AR92: 84.5 | AS92: 610.3 | AT92: 616.9 | AU92: 681.1 | AV92: 648.2 | AW92: 50.4 | AX92: 24.8 | AY92: 30.1 | AZ92: 29.6 | BA92: 1489.4 | BB92: 1464.7 | BC92: 2.6 | BD92: 2.7 | BE92: 48.9 | BF92: 8.7 | BG92: 6.2 | BH92: 90.7 | BI92: 53.6 | BJ92: 70.9 | BK92: 49.4 | BL92: 1366 | BM92: 1399 | BN92: 783 | BO92: 1126 | BP92: 856 | BQ92: 1107 | BR92: 1007 | BS92: 30 | BT92: 30 | BU92: 0 | BV92: 2969.3 | BW92: =Table1[[#This Row],[SF]]/Table1[[#This Row],[CF]] -> 0.5355820058 | BX92: =Table1[[#This Row],[MSF]]/Table1[[#This Row],[CF]] -> 0.2194613255 | BY92: =Table1[[#This Row],[BSF]]/Table1[[#This Row],[CF]] -> 0.2449207091 | BZ92: =Table1[[#This Row],[SA]]/Table1[[#This Row],[CA]] -> 0.5365791113 | CA92: =Table1[[#This Row],[MSA]]/Table1[[#This Row],[CA]] -> 0.2259955306 | CB92: =Table1[[#This Row],[BSA]]/Table1[[#This Row],[CA]] -> 0.2374619922
A93: 5v5 | B93: Close | C93: NYI | D93: 80 | E93: 20052006 | F93: 86 | G93: 73 | H93: 13 | I93: 51.3 | J93: 117.4 | K93: 71.1 | L93: 9 | M93: 91.9 | N93: 48.8 | O93: 101 | P93: 48.1 | Q93: 48.9 | R93: -16 | S93: 345 | T93: 361 | U93: 11.3 | V93: 11.8 | W93: 23.1 | X93: 49.4 | Y93: -21 | Z93: 882 | AA93: 903 | AB93: 28.8 | AC93: 29.5 | AD93: 58.4 | AE93: 51.3 | AF93: 90 | AG93: 1840 | AH93: 1750 | AI93: 60.2 | AJ93: 57.2 | AK93: 117.4 | AL93: 51 | AM93: 51 | AN93: 43.8 | AO93: 42.1 | AP93: 1338 | AQ93: 1287 | AR93: 85.8 | AS93: 387 | AT93: 382 | AU93: 502 | AV93: 463 | AW93: 51.2 | AX93: 46 | AY93: 31.1 | AZ93: 29.6 | BA93: 951 | BB93: 905 | BC93: 2.8 | BD93: 2.4 | BE93: 54.1 | BF93: 9 | BG93: 6.4 | BH93: 91.9 | BI93: 51.7 | BJ93: 71.1 | BK93: 48.8 | BL93: 856 | BM93: 899 | BN93: 508 | BO93: 699 | BP93: 548 | BQ93: 698 | BR93: 683 | BS93: 17 | BT93: 17 | BU93: 0 | BV93: 1834.7 | BW93: =Table1[[#This Row],[SF]]/Table1[[#This Row],[CF]] -> 0.5168478261 | BX93: =Table1[[#This Row],[MSF]]/Table1[[#This Row],[CF]] -> 0.210326087 | BY93: =Table1[[#This Row],[BSF]]/Table1[[#This Row],[CF]] -> 0.272826087 | BZ93: =Table1[[#This Row],[SA]]/Table1[[#This Row],[CA]] -> 0.5171428571 | CA93: =Table1[[#This Row],[MSA]]/Table1[[#This Row],[CA]] -> 0.2182857143 | CB93: =Table1[[#This Row],[BSA]]/Table1[[#This Row],[CA]] -> 0.2645714286
A94: 5v5 | B94: Tied | C94: NYI | D94: 80 | E94: 20052006 | F94: 49 | G94: 41 | H94: 8 | I94: 51.1 | J94: 116.2 | K94: 72.3 | L94: 8.6 | M94: 92.5 | N94: 49.9 | O94: 101 | P94: 47.8 | Q94: 49.1 | R94: -7 | S94: 199 | T94: 206 | U94: 10.7 | V94: 11.1 | W94: 21.8 | X94: 48.9 | Y94: -23 | Z94: 514 | AA94: 537 | AB94: 27.6 | AC94: 28.9 | AD94: 56.5 | AE94: 51.1 | AF94: 47 | AG94: 1105 | AH94: 1058 | AI94: 59.4 | AJ94: 56.9 | AK94: 116.2 | AL94: 51 | AM94: 32 | AN94: 42.5 | AO94: 40.8 | AP94: 791 | AQ94: 759 | AR94: 83.3 | AS94: 219 | AT94: 215 | AU94: 314 | AV94: 299 | AW94: 51.3 | AX94: 28 | AY94: 30.7 | AZ94: 29.2 | BA94: 572 | BB94: 544 | BC94: 2.6 | BD94: 2.2 | BE94: 54.4 | BF94: 8.6 | BG94: 6.2 | BH94: 92.5 | BI94: 51.8 | BJ94: 72.3 | BK94: 49.9 | BL94: 536 | BM94: 539 | BN94: 310 | BO94: 427 | BP94: 338 | BQ94: 425 | BR94: 418 | BS94: 9 | BT94: 8 | BU94: -1 | BV94: 1116.5 | BW94: =Table1[[#This Row],[SF]]/Table1[[#This Row],[CF]] -> 0.5176470588 | BX94: =Table1[[#This Row],[MSF]]/Table1[[#This Row],[CF]] -> 0.1981900452 | BY94: =Table1[[#This Row],[BSF]]/Table1[[#This Row],[CF]] -> 0.2841628959 | BZ94: =Table1[[#This Row],[SA]]/Table1[[#This Row],[CA]] -> 0.5141776938 | CA94: =Table1[[#This Row],[MSA]]/Table1[[#This Row],[CA]] -> 0.2032136106 | CB94: =Table1[[#This Row],[BSA]]/Table1[[#This Row],[CA]] -> 0.2826086957
A95: 5v5 | B95: Up1 | C95: NYI | D95: 51 | E95: 20052006 | F95: 23 | G95: 22 | H95: 1 | I95: 46.6 | J95: 111.4 | K95: 70.1 | L95: 8.9 | M95: 92 | N95: 45.6 | O95: 100.9 | P95: 44.2 | Q95: 40.1 | R95: -43 | S95: 87 | T95: 130 | U95: 9.2 | V95: 13.7 | W95: 22.8 | X95: 45.3 | Y95: -50 | Z95: 241 | AA95: 291 | AB95: 25.4 | AC95: 30.6 | AD95: 56 | AE95: 46.6 | AF95: -73 | AG95: 493 | AH95: 566 | AI95: 51.9 | AJ95: 59.5 | AK95: 111.4 | AL95: 46.9 | AM95: -49 | AN95: 38.7 | AO95: 43.9 | AP95: 368 | AQ95: 417 | AR95: 82.6 | AS95: 110 | AT95: 142 | AU95: 125 | AV95: 149 | AW95: 48.4 | AX95: -17 | AY95: 27.1 | AZ95: 28.9 | BA95: 258 | BB95: 275 | BC95: 2.4 | BD95: 2.3 | BE95: 51.1 | BF95: 8.9 | BG95: 6.2 | BH95: 92 | BI95: 52.3 | BJ95: 70.1 | BK95: 45.6 | BL95: 232 | BM95: 277 | BN95: 133 | BO95: 208 | BP95: 168 | BQ95: 207 | BR95: 202 | BS95: 4 | BT95: 4 | BU95: 0 | BV95: 570.3 | BW95: =Table1[[#This Row],[SF]]/Table1[[#This Row],[CF]] -> 0.523326572 | BX95: =Table1[[#This Row],[MSF]]/Table1[[#This Row],[CF]] -> 0.2231237323 | BY95: =Table1[[#This Row],[BSF]]/Table1[[#This Row],[CF]] -> 0.2535496957 | BZ95: =Table1[[#This Row],[SA]]/Table1[[#This Row],[CA]] -> 0.4858657244 | CA95: =Table1[[#This Row],[MSA]]/Table1[[#This Row],[CA]] -> 0.2508833922 | CB95: =Table1[[#This Row],[BSA]]/Table1[[#This Row],[CA]] -> 0.2632508834
A96: 5v5 | B96: Dn1 | C96: NYI | D96: 58 | E96: 20052006 | F96: 28 | G96: 23 | H96: 5 | I96: 54.8 | J96: 122.2 | K96: 69.1 | L96: 9.9 | M96: 91.1 | N96: 48.8 | O96: 101 | P96: 51.7 | Q96: 52.2 | R96: 9 | S96: 106 | T96: 97 | U96: 12.9 | V96: 11.8 | W96: 24.6 | X96: 51.4 | Y96: 15 | Z96: 270 | AA96: 255 | AB96: 32.7 | AC96: 30.9 | AD96: 63.7 | AE96: 54.8 | AF96: 96 | AG96: 552 | AH96: 456 | AI96: 66.9 | AJ96: 55.3 | AK96: 122.2 | AL96: 53.7 | AM96: 56 | AN96: 49.5 | AO96: 42.7 | AP96: 408 | AQ96: 352 | AR96: 92.1 | AS96: 126 | AT96: 95 | AU96: 144 | AV96: 104 | AW96: 52.3 | AX96: 25 | AY96: 34.2 | AZ96: 31.2 | BA96: 282 | BB96: 257 | BC96: 3.4 | BD96: 2.8 | BE96: 54.9 | BF96: 9.9 | BG96: 6.9 | BH96: 91.1 | BI96: 51.1 | BJ96: 69.1 | BK96: 48.8 | BL96: 223 | BM96: 234 | BN96: 140 | BO96: 186 | BP96: 131 | BQ96: 187 | BR96: 158 | BS96: 5 | BT96: 6 | BU96: 1 | BV96: 494.9 | BW96: =Table1[[#This Row],[SF]]/Table1[[#This Row],[CF]] -> 0.5108695652 | BX96: =Table1[[#This Row],[MSF]]/Table1[[#This Row],[CF]] -> 0.2282608696 | BY96: =Table1[[#This Row],[BSF]]/Table1[[#This Row],[CF]] -> 0.2608695652 | BZ96: =Table1[[#This Row],[SA]]/Table1[[#This Row],[CA]] -> 0.5635964912 | CA96: =Table1[[#This Row],[MSA]]/Table1[[#This Row],[CA]] -> 0.2083333333 | CB96: =Table1[[#This Row],[BSA]]/Table1[[#This Row],[CA]] -> 0.2280701754
A97: 5v5 | B97: ScAdj | C97: NYR | D97: 79 | E97: 20052006 | F97: 133 | G97: 105 | H97: 28 | I97: 51.9 | J97: 103.8 | K97: 70.4 | L97: 9.4 | M97: 91.5 | N97: 47 | O97: 100.9 | P97: 53.9 | Q97: 51.9 | R97: 36.6 | S97: 509.5 | T97: 472.9 | U97: 10.5 | V97: 9.7 | W97: 20.2 | X97: 52.7 | Y97: 139.8 | Z97: 1374.6 | AA97: 1234.8 | AB97: 28.2 | AC97: 25.4 | AD97: 53.6 | AE97: 51.9 | AF97: 193.2 | AG97: 2623.6 | AH97: 2430.3 | AI97: 53.9 | AJ97: 49.9 | AK97: 103.8 | AL97: 52.3 | AM97: 180.4 | AN97: 41.4 | AO97: 37.7 | AP97: 2014.4 | AQ97: 1834 | AR97: 79 | AS97: 596.3 | AT97: 598.3 | AU97: 609.2 | AV97: 596.3 | AW97: 53.4 | AX97: 182.4 | AY97: 29.1 | AZ97: 25.4 | BA97: 1418.1 | BB97: 1235.7 | BC97: 2.7 | BD97: 2.2 | BE97: 55.9 | BF97: 9.4 | BG97: 6.6 | BH97: 91.5 | BI97: 54.1 | BJ97: 70.4 | BK97: 47 | BL97: 1138 | BM97: 1282 | BN97: 740 | BO97: 1046 | BP97: 634 | BQ97: 884 | BR97: 1194 | BS97: 24 | BT97: 26 | BU97: 2 | BV97: 2921.3 | BW97: =Table1[[#This Row],[SF]]/Table1[[#This Row],[CF]] -> 0.5405168471 | BX97: =Table1[[#This Row],[MSF]]/Table1[[#This Row],[CF]] -> 0.2272831224 | BY97: =Table1[[#This Row],[BSF]]/Table1[[#This Row],[CF]] -> 0.2322000305 | BZ97: =Table1[[#This Row],[SA]]/Table1[[#This Row],[CA]] -> 0.5084557462 | CA97: =Table1[[#This Row],[MSA]]/Table1[[#This Row],[CA]] -> 0.2461835987 | CB97: =Table1[[#This Row],[BSA]]/Table1[[#This Row],[CA]] -> 0.2453606551
A98: 5v5 | B98: Close | C98: NYR | D98: 79 | E98: 20052006 | F98: 76 | G98: 66 | H98: 10 | I98: 51.4 | J98: 107.3 | K98: 72.3 | L98: 8.3 | M98: 92.1 | N98: 47.1 | O98: 100.3 | P98: 52.2 | Q98: 50.9 | R98: 11 | S98: 316 | T98: 305 | U98: 10.2 | V98: 9.8 | W98: 20 | X98: 51.3 | Y98: 44 | Z98: 857 | AA98: 813 | AB98: 27.5 | AC98: 26.1 | AD98: 53.7 | AE98: 51.4 | AF98: 91 | AG98: 1715 | AH98: 1624 | AI98: 55.1 | AJ98: 52.2 | AK98: 107.3 | AL98: 51.7 | AM98: 82 | AN98: 40.9 | AO98: 38.2 | AP98: 1272 | AQ98: 1190 | AR98: 79.1 | AS98: 352 | AT98: 358 | AU98: 443 | AV98: 434 | AW98: 52.5 | AX98: 88 | AY98: 29.6 | AZ98: 26.7 | BA98: 920 | BB98: 832 | BC98: 2.4 | BD98: 2.1 | BE98: 53.5 | BF98: 8.3 | BG98: 6 | BH98: 92.1 | BI98: 53.6 | BJ98: 72.3 | BK98: 47.1 | BL98: 717 | BM98: 804 | BN98: 453 | BO98: 653 | BP98: 415 | BQ98: 602 | BR98: 788 | BS98: 22 | BT98: 21 | BU98: -1 | BV98: 1866.7 | BW98: =Table1[[#This Row],[SF]]/Table1[[#This Row],[CF]] -> 0.5364431487 | BX98: =Table1[[#This Row],[MSF]]/Table1[[#This Row],[CF]] -> 0.2052478134 | BY98: =Table1[[#This Row],[BSF]]/Table1[[#This Row],[CF]] -> 0.2583090379 | BZ98: =Table1[[#This Row],[SA]]/Table1[[#This Row],[CA]] -> 0.5123152709 | CA98: =Table1[[#This Row],[MSA]]/Table1[[#This Row],[CA]] -> 0.2204433498 | CB98: =Table1[[#This Row],[BSA]]/Table1[[#This Row],[CA]] -> 0.2672413793
A99: 5v5 | B99: Tied | C99: NYR | D99: 79 | E99: 20052006 | F99: 45 | G99: 34 | H99: 11 | I99: 52.1 | J99: 106 | K99: 72.1 | L99: 7.7 | M99: 93.3 | N99: 47.9 | O99: 101.1 | P99: 50.1 | Q99: 50.7 | R99: 5 | S99: 191 | T99: 186 | U99: 9.8 | V99: 9.6 | W99: 19.4 | X99: 53 | Y99: 60 | Z99: 532 | AA99: 472 | AB99: 27.4 | AC99: 24.3 | AD99: 51.7 | AE99: 52.1 | AF99: 85 | AG99: 1073 | AH99: 988 | AI99: 55.2 | AJ99: 50.8 | AK99: 106 | AL99: 52.6 | AM99: 80 | AN99: 41.5 | AO99: 37.3 | AP99: 806 | AQ99: 726 | AR99: 78.8 | AS99: 225 | AT99: 216 | AU99: 267 | AV99: 262 | AW99: 53.3 | AX99: 71 | AY99: 29.9 | AZ99: 26.2 | BA99: 581 | BB99: 510 | BC99: 2.3 | BD99: 1.7 | BE99: 57 | BF99: 7.7 | BG99: 5.6 | BH99: 93.3 | BI99: 54.1 | BJ99: 72.1 | BK99: 47.9 | BL99: 446 | BM99: 486 | BN99: 268 | BO99: 397 | BP99: 267 | BQ99: 379 | BR99: 466 | BS99: 13 | BT99: 12 | BU99: -1 | BV99: 1166.3 | BW99: =Table1[[#This Row],[SF]]/Table1[[#This Row],[CF]] -> 0.541472507 | BX99: =Table1[[#This Row],[MSF]]/Table1[[#This Row],[CF]] -> 0.2096924511 | BY99: =Table1[[#This Row],[BSF]]/Table1[[#This Row],[CF]] -> 0.2488350419 | BZ99: =Table1[[#This Row],[SA]]/Table1[[#This Row],[CA]] -> 0.516194332 | CA99: =Table1[[#This Row],[MSA]]/Table1[[#This Row],[CA]] -> 0.2186234818 | CB99: =Table1[[#This Row],[BSA]]/Table1[[#This Row],[CA]] -> 0.2651821862
A100: 5v5 | B100: Up1 | C100: NYR | D100: 57 | E100: 20052006 | F100: 21 | G100: 22 | H100: -1 | I100: 48.5 | J100: 110.2 | K100: 72.4 | L100: 8.3 | M100: 91.1 | N100: 43.8 | O100: 99.3 | P100: 53.2 | Q100: 51.3 | R100: 5 | S100: 102 | T100: 97 | U100: 11.5 | V100: 10.9 | W100: 22.4 | X100: 49.2 | Y100: -8 | Z100: 246 | AA100: 254 | AB100: 27.7 | AC100: 28.6 | AD100: 56.3 | AE100: 48.5 | AF100: -29 | AG100: 475 | AH100: 504 | AI100: 53.5 | AJ100: 56.7 | AK100: 110.2 | AL100: 49.2 | AM100: -12 | AN100: 39.5 | AO100: 40.9 | AP100: 351 | AQ100: 363 | AR100: 80.4 | AS100: 97 | AT100: 117 | AU100: 124 | AV100: 141 | AW100: 50.8 | AX100: 8 | AY100: 28.6 | AZ100: 27.7 | BA100: 254 | BB100: 246 | BC100: 2.4 | BD100: 2.5 | BE100: 48.8 | BF100: 8.3 | BG100: 6 | BH100: 91.1 | BI100: 53.5 | BJ100: 72.4 | BK100: 43.8 | BL100: 189 | BM100: 243 | BN100: 126 | BO100: 195 | BP100: 111 | BQ100: 171 | BR100: 240 | BS100: 4 | BT100: 3 | BU100: -1 | BV100: 533 | BW100: =Table1[[#This Row],[SF]]/Table1[[#This Row],[CF]] -> 0.5347368421 | BX100: =Table1[[#This Row],[MSF]]/Table1[[#This Row],[CF]] -> 0.2042105263 | BY100: =Table1[[#This Row],[BSF]]/Table1[[#This Row],[CF]] -> 0.2610526316 | BZ100: =Table1[[#This Row],[SA]]/Table1[[#This Row],[CA]] -> 0.4880952381 | CA100: =Table1[[#This Row],[MSA]]/Table1[[#This Row],[CA]] -> 0.2321428571 | CB100: =Table1[[#This Row],[BSA]]/Table1[[#This Row],[CA]] -> 0.2797619048
A101: 5v5 | B101: Dn1 | C101: NYR | D101: 47 | E101: 20052006 | F101: 24 | G101: 21 | H101: 3 | I101: 54.5 | J101: 107.2 | K101: 70.7 | L101: 9.4 | M101: 89.9 | N101: 49.7 | O101: 99.3 | P101: 59.9 | Q101: 51.2 | R101: 4 | S101: 84 | T101: 80 | U101: 9.6 | V101: 9.2 | W101: 18.8 | X101: 53.3 | Y101: 31 | Z101: 253 | AA101: 222 | AB101: 29 | AC101: 25.4 | AD101: 54.5 | AE101: 54.5 | AF101: 85 | AG101: 510 | AH101: 425 | AI101: 58.5 | AJ101: 48.7 | AK101: 107.2 | AL101: 53.6 | AM101: 48 | AN101: 41.5 | AO101: 36 | AP101: 362 | AQ101: 314 | AR101: 77.5 | AS101: 106 | AT101: 106 | AU101: 148 | AV101: 111 | AW101: 55.2 | AX101: 48 | AY101: 29.3 | AZ101: 23.8 | BA101: 256 | BB101: 208 | BC101: 2.8 | BD101: 2.4 | BE101: 53.3 | BF101: 9.4 | BG101: 6.6 | BH101: 89.9 | BI101: 50.2 | BJ101: 70.7 | BK101: 49.7 | BL101: 232 | BM101: 235 | BN101: 161 | BO101: 198 | BP101: 108 | BQ101: 144 | BR101: 214 | BS101: 5 | BT101: 6 | BU101: 1 | BV101: 523.4 | BW101: =Table1[[#This Row],[SF]]/Table1[[#This Row],[CF]] -> 0.5019607843 | BX101: =Table1[[#This Row],[MSF]]/Table1[[#This Row],[CF]] -> 0.2078431373 | BY101: =Table1[[#This Row],[BSF]]/Table1[[#This Row],[CF]] -> 0.2901960784 | BZ101: =Table1[[#This Row],[SA]]/Table1[[#This Row],[CA]] -> 0.4894117647 | CA101: =Table1[[#This Row],[MSA]]/Table1[[#This Row],[CA]] -> 0.2494117647 | CB101: =Table1[[#This Row],[BSA]]/Table1[[#This Row],[CA]] -> 0.2611764706
A102: 5v5 | B102: ScAdj | C102: OTT | D102: 76 | E102: 20052006 | F102: 160 | G102: 98 | H102: 62 | I102: 55.1 | J102: 110.2 | K102: 69.9 | L102: 10.6 | M102: 92 | N102: 50.2 | O102: 102.6 | P102: 56.5 | Q102: 51.9 | R102: 37.2 | S102: 516.2 | T102: 479 | U102: 11.2 | V102: 10.3 | W102: 21.5 | X102: 52.3 | Y102: 118.7 | Z102: 1353.7 | AA102: 1234.9 | AB102: 29.2 | AC102: 26.7 | AD102: 55.9 | AE102: 55.1 | AF102: 520.6 | AG102: 2812.2 | AH102: 2291.6 | AI102: 60.7 | AJ102: 49.5 | AK102: 110.2 | AL102: 55.3 | AM102: 414.3 | AN102: 46.6 | AO102: 37.6 | AP102: 2156.6 | AQ102: 1742.3 | AR102: 84.2 | AS102: 648.6 | AT102: 518.3 | AU102: 655.6 | AV102: 549.3 | AW102: 55.2 | AX102: 284 | AY102: 32.6 | AZ102: 26.4 | BA102: 1508 | BB102: 1223.9 | BC102: 3.5 | BD102: 2.1 | BE102: 62 | BF102: 10.6 | BG102: 7.4 | BH102: 92 | BI102: 53.6 | BJ102: 69.9 | BK102: 50.2 | BL102: 1303 | BM102: 1295 | BN102: 862 | BO102: 1073 | BP102: 663 | BQ102: 1295 | BR102: 1147 | BS102: 31 | BT102: 30 | BU102: -1 | BV102: 2777.7 | BW102: =Table1[[#This Row],[SF]]/Table1[[#This Row],[CF]] -> 0.5362349762 | BX102: =Table1[[#This Row],[MSF]]/Table1[[#This Row],[CF]] -> 0.2306379347 | BY102: =Table1[[#This Row],[BSF]]/Table1[[#This Row],[CF]] -> 0.2331270891 | BZ102: =Table1[[#This Row],[SA]]/Table1[[#This Row],[CA]] -> 0.5340809914 | CA102: =Table1[[#This Row],[MSA]]/Table1[[#This Row],[CA]] -> 0.2261738523 | CB102: =Table1[[#This Row],[BSA]]/Table1[[#This Row],[CA]] -> 0.2397015186
A103: 5v5 | B103: Close | C103: OTT | D103: 76 | E103: 20052006 | F103: 72 | G103: 47 | H103: 25 | I103: 53.4 | J103: 117.9 | K103: 71.6 | L103: 9 | M103: 92.9 | N103: 51.9 | O103: 101.9 | P103: 54.5 | Q103: 50.4 | R103: 4 | S103: 267 | T103: 263 | U103: 11.4 | V103: 11.2 | W103: 22.6 | X103: 50.5 | Y103: 14 | Z103: 704 | AA103: 690 | AB103: 30 | AC103: 29.4 | AD103: 59.3 | AE103: 53.4 | AF103: 191 | AG103: 1481 | AH103: 1290 | AI103: 63 | AJ103: 54.9 | AK103: 117.9 | AL103: 54.2 | AM103: 174 | AN103: 47.5 | AO103: 40.1 | AP103: 1117 | AQ103: 943 | AR103: 87.7 | AS103: 317 | AT103: 277 | AU103: 364 | AV103: 347 | AW103: 54.6 | AX103: 134 | AY103: 34 | AZ103: 28.3 | BA103: 800 | BB103: 666 | BC103: 3.1 | BD103: 2 | BE103: 60.5 | BF103: 9 | BG103: 6.4 | BH103: 92.9 | BI103: 54 | BJ103: 71.6 | BK103: 51.9 | BL103: 686 | BM103: 635 | BN103: 421 | BO103: 548 | BP103: 352 | BQ103: 715 | BR103: 622 | BS103: 9 | BT103: 11 | BU103: 2 | BV103: 1410.1 | BW103: =Table1[[#This Row],[SF]]/Table1[[#This Row],[CF]] -> 0.5401755571 | BX103: =Table1[[#This Row],[MSF]]/Table1[[#This Row],[CF]] -> 0.2140445645 | BY103: =Table1[[#This Row],[BSF]]/Table1[[#This Row],[CF]] -> 0.2457798785 | BZ103: =Table1[[#This Row],[SA]]/Table1[[#This Row],[CA]] -> 0.5162790698 | CA103: =Table1[[#This Row],[MSA]]/Table1[[#This Row],[CA]] -> 0.2147286822 | CB103: =Table1[[#This Row],[BSA]]/Table1[[#This Row],[CA]] -> 0.2689922481
A104: 5v5 | B104: Tied | C104: OTT | D104: 76 | E104: 20052006 | F104: 39 | G104: 25 | H104: 14 | I104: 53.1 | J104: 119.7 | K104: 73.3 | L104: 8.9 | M104: 93.2 | N104: 50.1 | O104: 102 | P104: 58.2 | Q104: 52 | R104: 12 | S104: 156 | T104: 144 | U104: 12.3 | V104: 11.3 | W104: 23.6 | X104: 50.5 | Y104: 7 | Z104: 391 | AA104: 384 | AB104: 30.7 | AC104: 30.2 | AD104: 60.9 | AE104: 53.1 | AF104: 94 | AG104: 809 | AH104: 715 | AI104: 63.5 | AJ104: 56.2 | AK104: 119.7 | AL104: 53.3 | AM104: 75 | AN104: 47.1 | AO104: 41.2 | AP104: 600 | AQ104: 525 | AR104: 88.3 | AS104: 160 | AT104: 160 | AU104: 209 | AV104: 190 | AW104: 54.7 | AX104: 75 | AY104: 34.6 | AZ104: 28.7 | BA104: 440 | BB104: 365 | BC104: 3.1 | BD104: 2 | BE104: 60.9 | BF104: 8.9 | BG104: 6.5 | BH104: 93.2 | BI104: 54.4 | BJ104: 73.3 | BK104: 50.1 | BL104: 353 | BM104: 351 | BN104: 235 | BO104: 300 | BP104: 169 | BQ104: 392 | BR104: 331 | BS104: 4 | BT104: 5 | BU104: 1 | BV104: 764 | BW104: =Table1[[#This Row],[SF]]/Table1[[#This Row],[CF]] -> 0.543881335 | BX104: =Table1[[#This Row],[MSF]]/Table1[[#This Row],[CF]] -> 0.1977750309 | BY104: =Table1[[#This Row],[BSF]]/Table1[[#This Row],[CF]] -> 0.2583436341 | BZ104: =Table1[[#This Row],[SA]]/Table1[[#This Row],[CA]] -> 0.5104895105 | CA104: =Table1[[#This Row],[MSA]]/Table1[[#This Row],[CA]] -> 0.2237762238 | CB104: =Table1[[#This Row],[BSA]]/Table1[[#This Row],[CA]] -> 0.2657342657
A105: 5v5 | B105: Up1 | C105: OTT | D105: 53 | E105: 20052006 | F105: 26 | G105: 14 | H105: 12 | I105: 49.9 | J105: 112.8 | K105: 71.1 | L105: 10.7 | M105: 93.9 | N105: 54.7 | O105: 104.6 | P105: 50.2 | Q105: 53.7 | R105: 13 | S105: 94 | T105: 81 | U105: 11.7 | V105: 10.1 | W105: 21.9 | X105: 49.7 | Y105: -3 | Z105: 226 | AA105: 229 | AB105: 28.2 | AC105: 28.6 | AD105: 56.8 | AE105: 49.9 | AF105: -1 | AG105: 451 | AH105: 452 | AI105: 56.3 | AJ105: 56.4 | AK105: 112.8 | AL105: 51.2 | AM105: 16 | AN105: 42.7 | AO105: 40.7 | AP105: 342 | AQ105: 326 | AR105: 83.4 | AS105: 99 | AT105: 97 | AU105: 109 | AV105: 126 | AW105: 51.5 | AX105: 14 | AY105: 30.3 | AZ105: 28.6 | BA105: 243 | BB105: 229 | BC105: 3.2 | BD105: 1.7 | BE105: 65 | BF105: 10.7 | BG105: 7.6 | BH105: 93.9 | BI105: 53.9 | BJ105: 71.1 | BK105: 54.7 | BL105: 249 | BM105: 206 | BN105: 134 | BO105: 188 | BP105: 133 | BQ105: 244 | BR105: 219 | BS105: 3 | BT105: 4 | BU105: 1 | BV105: 480.4 | BW105: =Table1[[#This Row],[SF]]/Table1[[#This Row],[CF]] -> 0.5388026608 | BX105: =Table1[[#This Row],[MSF]]/Table1[[#This Row],[CF]] -> 0.2195121951 | BY105: =Table1[[#This Row],[BSF]]/Table1[[#This Row],[CF]] -> 0.2416851441 | BZ105: =Table1[[#This Row],[SA]]/Table1[[#This Row],[CA]] -> 0.5066371681 | CA105: =Table1[[#This Row],[MSA]]/Table1[[#This Row],[CA]] -> 0.2146017699 | CB105: =Table1[[#This Row],[BSA]]/Table1[[#This Row],[CA]] -> 0.2787610619
A106: 5v5 | B106: Dn1 | C106: OTT | D106: 40 | E106: 20052006 | F106: 19 | G106: 14 | H106: 5 | I106: 58.6 | J106: 116.1 | K106: 69.9 | L106: 8.5 | M106: 91.1 | N106: 49 | O106: 99.6 | P106: 57.5 | Q106: 49.6 | R106: -1 | S106: 58 | T106: 59 | U106: 9.6 | V106: 9.7 | W106: 19.3 | X106: 54 | Y106: 27 | Z106: 182 | AA106: 155 | AB106: 30.1 | AC106: 25.6 | AD106: 55.7 | AE106: 58.6 | AF106: 121 | AG106: 412 | AH106: 291 | AI106: 68.1 | AJ106: 48.1 | AK106: 116.1 | AL106: 59.3 | AM106: 100 | AN106: 52.7 | AO106: 36.2 | AP106: 319 | AQ106: 219 | AR106: 88.9 | AS106: 96 | AT106: 62 | AU106: 93 | AV106: 72 | AW106: 58.7 | AX106: 66 | AY106: 36.8 | AZ106: 25.9 | BA106: 223 | BB106: 157 | BC106: 3.1 | BD106: 2.3 | BE106: 57.6 | BF106: 8.5 | BG106: 6 | BH106: 91.1 | BI106: 54.1 | BJ106: 69.9 | BK106: 49 | BL106: 165 | BM106: 172 | BN106: 123 | BO106: 123 | BP106: 91 | BQ106: 172 | BR106: 148 | BS106: 2 | BT106: 3 | BU106: 1 | BV106: 363.2 | BW106: =Table1[[#This Row],[SF]]/Table1[[#This Row],[CF]] -> 0.5412621359 | BX106: =Table1[[#This Row],[MSF]]/Table1[[#This Row],[CF]] -> 0.2330097087 | BY106: =Table1[[#This Row],[BSF]]/Table1[[#This Row],[CF]] -> 0.2257281553 | BZ106: =Table1[[#This Row],[SA]]/Table1[[#This Row],[CA]] -> 0.5395189003 | CA106: =Table1[[#This Row],[MSA]]/Table1[[#This Row],[CA]] -> 0.2130584192 | CB106: =Table1[[#This Row],[BSA]]/Table1[[#This Row],[CA]] -> 0.2474226804
A107: 5v5 | B107: ScAdj | C107: PHI | D107: 80 | E107: 20052006 | F107: 139 | G107: 133 | H107: 6 | I107: 53.1 | J107: 104.4 | K107: 67.9 | L107: 9.6 | M107: 90.1 | N107: 50.2 | O107: 99.7 | P107: 53.1 | Q107: 55.2 | R107: 104.3 | S107: 552.4 | T107: 448.1 | U107: 11 | V107: 8.9 | W107: 19.9 | X107: 53.4 | Y107: 181.1 | Z107: 1440.4 | AA107: 1259.3 | AB107: 28.7 | AC107: 25.1 | AD107: 53.8 | AE107: 53.1 | AF107: 323.1 | AG107: 2781.4 | AH107: 2458.3 | AI107: 55.4 | AJ107: 49 | AK107: 104.4 | AL107: 53.2 | AM107: 258 | AN107: 42.3 | AO107: 37.1 | AP107: 2121.5 | AQ107: 1863.5 | AR107: 79.4 | AS107: 680.7 | AT107: 521.2 | AU107: 659.9 | AV107: 594.8 | AW107: 51.8 | AX107: 98.5 | AY107: 28.7 | AZ107: 26.7 | BA107: 1440.8 | BB107: 1342.3 | BC107: 2.8 | BD107: 2.7 | BE107: 51.1 | BF107: 9.6 | BG107: 6.6 | BH107: 90.1 | BI107: 51.8 | BJ107: 67.9 | BK107: 50.2 | BL107: 1322 | BM107: 1311 | BN107: 781 | BO107: 1162 | BP107: 690 | BQ107: 965 | BR107: 1075 | BS107: 27 | BT107: 21 | BU107: -6 | BV107: 3010.9 | BW107: =Table1[[#This Row],[SF]]/Table1[[#This Row],[CF]] -> 0.5180125117 | BX107: =Table1[[#This Row],[MSF]]/Table1[[#This Row],[CF]] -> 0.2447328683 | BY107: =Table1[[#This Row],[BSF]]/Table1[[#This Row],[CF]] -> 0.23725462 | BZ107: =Table1[[#This Row],[SA]]/Table1[[#This Row],[CA]] -> 0.5460277427 | CA107: =Table1[[#This Row],[MSA]]/Table1[[#This Row],[CA]] -> 0.2120164341 | CB107: =Table1[[#This Row],[BSA]]/Table1[[#This Row],[CA]] -> 0.2419558231
A108: 5v5 | B108: Close | C108: PHI | D108: 80 | E108: 20052006 | F108: 82 | G108: 72 | H108: 10 | I108: 52.4 | J108: 110.3 | K108: 67.3 | L108: 9.4 | M108: 91.6 | N108: 49.8 | O108: 101 | P108: 50 | Q108: 54.7 | R108: 58 | S108: 336 | T108: 278 | U108: 11.2 | V108: 9.3 | W108: 20.4 | X108: 52.7 | Y108: 91 | Z108: 875 | AA108: 784 | AB108: 29.1 | AC108: 26.1 | AD108: 55.2 | AE108: 52.4 | AF108: 161 | AG108: 1736 | AH108: 1575 | AI108: 57.8 | AJ108: 52.4 | AK108: 110.3 | AL108: 52.5 | AM108: 124 | AN108: 43 | AO108: 38.8 | AP108: 1290 | AQ108: 1166 | AR108: 81.8 | AS108: 422 | AT108: 310 | AU108: 446 | AV108: 409 | AW108: 50.3 | AX108: 12 | AY108: 28.9 | AZ108: 28.5 | BA108: 868 | BB108: 856 | BC108: 2.7 | BD108: 2.4 | BE108: 53.2 | BF108: 9.4 | BG108: 6.4 | BH108: 91.6 | BI108: 50 | BJ108: 67.3 | BK108: 49.8 | BL108: 788 | BM108: 794 | BN108: 451 | BO108: 680 | BP108: 451 | BQ108: 624 | BR108: 688 | BS108: 15 | BT108: 10 | BU108: -5 | BV108: 1801.7 | BW108: =Table1[[#This Row],[SF]]/Table1[[#This Row],[CF]] -> 0.5 | BX108: =Table1[[#This Row],[MSF]]/Table1[[#This Row],[CF]] -> 0.2430875576 | BY108: =Table1[[#This Row],[BSF]]/Table1[[#This Row],[CF]] -> 0.2569124424 | BZ108: =Table1[[#This Row],[SA]]/Table1[[#This Row],[CA]] -> 0.5434920635 | CA108: =Table1[[#This Row],[MSA]]/Table1[[#This Row],[CA]] -> 0.1968253968 | CB108: =Table1[[#This Row],[BSA]]/Table1[[#This Row],[CA]] -> 0.2596825397
A109: 5v5 | B109: Tied | C109: PHI | D109: 80 | E109: 20052006 | F109: 44 | G109: 40 | H109: 4 | I109: 51.5 | J109: 109.6 | K109: 65.1 | L109: 8.9 | M109: 92.3 | N109: 49.9 | O109: 101.2 | P109: 50 | Q109: 53.5 | R109: 26 | S109: 198 | T109: 172 | U109: 11 | V109: 9.6 | W109: 20.6 | X109: 51.3 | Y109: 25 | Z109: 498 | AA109: 473 | AB109: 27.8 | AC109: 26.4 | AD109: 54.2 | AE109: 51.5 | AF109: 59 | AG109: 1011 | AH109: 952 | AI109: 56.4 | AJ109: 53.1 | AK109: 109.6 | AL109: 51.8 | AM109: 54 | AN109: 42.4 | AO109: 39.4 | AP109: 760 | AQ109: 706 | AR109: 81.8 | AS109: 265 | AT109: 186 | AU109: 251 | AV109: 246 | AW109: 48.8 | AX109: -25 | AY109: 27.6 | AZ109: 29 | BA109: 495 | BB109: 520 | BC109: 2.5 | BD109: 2.2 | BE109: 52.4 | BF109: 8.9 | BG109: 5.8 | BH109: 92.3 | BI109: 49 | BJ109: 65.1 | BK109: 49.9 | BL109: 462 | BM109: 463 | BN109: 264 | BO109: 397 | BP109: 264 | BQ109: 367 | BR109: 397 | BS109: 6 | BT109: 4 | BU109: -2 | BV109: 1075.1 | BW109: =Table1[[#This Row],[SF]]/Table1[[#This Row],[CF]] -> 0.4896142433 | BX109: =Table1[[#This Row],[MSF]]/Table1[[#This Row],[CF]] -> 0.2621167161 | BY109: =Table1[[#This Row],[BSF]]/Table1[[#This Row],[CF]] -> 0.2482690406 | BZ109: =Table1[[#This Row],[SA]]/Table1[[#This Row],[CA]] -> 0.5462184874 | CA109: =Table1[[#This Row],[MSA]]/Table1[[#This Row],[CA]] -> 0.1953781513 | CB109: =Table1[[#This Row],[BSA]]/Table1[[#This Row],[CA]] -> 0.2584033613
A110: 5v5 | B110: Up1 | C110: PHI | D110: 58 | E110: 20052006 | F110: 33 | G110: 31 | H110: 2 | I110: 47.3 | J110: 102.4 | K110: 71.6 | L110: 11.4 | M110: 90 | N110: 50.3 | O110: 101.4 | P110: 46.5 | Q110: 46.1 | R110: -16 | S110: 95 | T110: 111 | U110: 8.7 | V110: 10.2 | W110: 19 | X110: 47.9 | Y110: -23 | Z110: 268 | AA110: 291 | AB110: 24.7 | AC110: 26.8 | AD110: 51.4 | AE110: 47.3 | AF110: -61 | AG110: 526 | AH110: 587 | AI110: 48.4 | AJ110: 54 | AK110: 102.4 | AL110: 48.7 | AM110: -22 | AN110: 37.3 | AO110: 39.3 | AP110: 405 | AQ110: 427 | AR110: 76.6 | AS110: 115 | AT110: 116 | AU110: 121 | AV110: 160 | AW110: 48.3 | AX110: -21 | AY110: 26.7 | AZ110: 28.6 | BA110: 290 | BB110: 311 | BC110: 3 | BD110: 2.9 | BE110: 51.6 | BF110: 11.4 | BG110: 8.1 | BH110: 90 | BI110: 55.1 | BJ110: 71.6 | BK110: 50.3 | BL110: 294 | BM110: 291 | BN110: 151 | BO110: 260 | BP110: 174 | BQ110: 221 | BR110: 261 | BS110: 8 | BT110: 5 | BU110: -3 | BV110: 652 | BW110: =Table1[[#This Row],[SF]]/Table1[[#This Row],[CF]] -> 0.5513307985 | BX110: =Table1[[#This Row],[MSF]]/Table1[[#This Row],[CF]] -> 0.2186311787 | BY110: =Table1[[#This Row],[BSF]]/Table1[[#This Row],[CF]] -> 0.2300380228 | BZ110: =Table1[[#This Row],[SA]]/Table1[[#This Row],[CA]] -> 0.5298126065 | CA110: =Table1[[#This Row],[MSA]]/Table1[[#This Row],[CA]] -> 0.1976149915 | CB110: =Table1[[#This Row],[BSA]]/Table1[[#This Row],[CA]] -> 0.272572402
A111: 5v5 | B111: Dn1 | C111: PHI | D111: 53 | E111: 20052006 | F111: 26 | G111: 25 | H111: 1 | I111: 60.1 | J111: 108 | K111: 67.9 | L111: 10 | M111: 87.2 | N111: 48.6 | O111: 97.2 | P111: 61.7 | Q111: 64.8 | R111: 48 | S111: 105 | T111: 57 | U111: 12.7 | V111: 6.9 | W111: 19.6 | X111: 60.6 | Y111: 99 | Z111: 282 | AA111: 183 | AB111: 34.1 | AC111: 22.1 | AD111: 56.3 | AE111: 60.1 | AF111: 181 | AG111: 537 | AH111: 356 | AI111: 65 | AJ111: 43.1 | AK111: 108 | AL111: 57.9 | AM111: 104 | AN111: 46.3 | AO111: 33.8 | AP111: 383 | AQ111: 279 | AR111: 80.1 | AS111: 123 | AT111: 84 | AU111: 154 | AV111: 77 | AW111: 57.1 | AX111: 65 | AY111: 31.5 | AZ111: 23.6 | BA111: 260 | BB111: 195 | BC111: 3.1 | BD111: 3 | BE111: 51 | BF111: 10 | BG111: 6.8 | BH111: 87.2 | BI111: 48.4 | BJ111: 67.9 | BK111: 48.6 | BL111: 204 | BM111: 216 | BN111: 145 | BO111: 185 | BP111: 90 | BQ111: 174 | BR111: 173 | BS111: 2 | BT111: 3 | BU111: 1 | BV111: 495.9 | BW111: =Table1[[#This Row],[SF]]/Table1[[#This Row],[CF]] -> 0.4841713222 | BX111: =Table1[[#This Row],[MSF]]/Table1[[#This Row],[CF]] -> 0.2290502793 | BY111: =Table1[[#This Row],[BSF]]/Table1[[#This Row],[CF]] -> 0.2867783985 | BZ111: =Table1[[#This Row],[SA]]/Table1[[#This Row],[CA]] -> 0.547752809 | CA111: =Table1[[#This Row],[MSA]]/Table1[[#This Row],[CA]] -> 0.2359550562 | CB111: =Table1[[#This Row],[BSA]]/Table1[[#This Row],[CA]] -> 0.2162921348
A112: 5v5 | B112: ScAdj | C112: PHX | D112: 79 | E112: 20052006 | F112: 113 | G112: 131 | H112: -18 | I112: 48.1 | J112: 105.4 | K112: 67.8 | L112: 9.4 | M112: 90.1 | N112: 48.7 | O112: 99.5 | P112: 50.3 | Q112: 49.1 | R112: -17.1 | S112: 467.1 | T112: 484.2 | U112: 10.2 | V112: 10.6 | W112: 20.8 | X112: 47.4 | Y112: -131.1 | Z112: 1174.8 | AA112: 1305.9 | AB112: 25.7 | AC112: 28.6 | AD112: 54.3 | AE112: 48.1 | AF112: -178.6 | AG112: 2317.7 | AH112: 2496.3 | AI112: 50.8 | AJ112: 54.7 | AK112: 105.4 | AL112: 48.1 | AM112: -137.7 | AN112: 38.7 | AO112: 41.7 | AP112: 1768.1 | AQ112: 1905.8 | AR112: 80.5 | AS112: 569.2 | AT112: 586.8 | AU112: 549.6 | AV112: 590.5 | AW112: 47.6 | AX112: -120.1 | AY112: 26.3 | AZ112: 28.9 | BA112: 1198.9 | BB112: 1319 | BC112: 2.5 | BD112: 2.9 | BE112: 46.3 | BF112: 9.4 | BG112: 6.4 | BH112: 90.1 | BI112: 51.7 | BJ112: 67.8 | BK112: 48.7 | BL112: 1240 | BM112: 1306 | BN112: 731 | BO112: 1092 | BP112: 723 | BQ112: 992 | BR112: 1048 | BS112: 28 | BT112: 25 | BU112: -3 | BV112: 2739.3 | BW112: =Table1[[#This Row],[SF]]/Table1[[#This Row],[CF]] -> 0.5172800621 | BX112: =Table1[[#This Row],[MSF]]/Table1[[#This Row],[CF]] -> 0.2455882987 | BY112: =Table1[[#This Row],[BSF]]/Table1[[#This Row],[CF]] -> 0.2371316391 | BZ112: =Table1[[#This Row],[SA]]/Table1[[#This Row],[CA]] -> 0.5283820054 | CA112: =Table1[[#This Row],[MSA]]/Table1[[#This Row],[CA]] -> 0.2350679005 | CB112: =Table1[[#This Row],[BSA]]/Table1[[#This Row],[CA]] -> 0.2365500941
A113: 5v5 | B113: Close | C113: PHX | D113: 79 | E113: 20052006 | F113: 66 | G113: 74 | H113: -8 | I113: 48.7 | J113: 107.7 | K113: 67.9 | L113: 9 | M113: 90.7 | N113: 47.9 | O113: 99.7 | P113: 49.5 | Q113: 50.4 | R113: 5 | S113: 282 | T113: 277 | U113: 10.5 | V113: 10.4 | W113: 20.9 | X113: 47.8 | Y113: -64 | Z113: 702 | AA113: 766 | AB113: 26.2 | AC113: 28.6 | AD113: 54.9 | AE113: 48.7 | AF113: -73 | AG113: 1404 | AH113: 1477 | AI113: 52.5 | AJ113: 55.2 | AK113: 107.7 | AL113: 48.6 | AM113: -60 | AN113: 40.2 | AO113: 42.5 | AP113: 1076 | AQ113: 1136 | AR113: 82.7 | AS113: 345 | AT113: 339 | AU113: 328 | AV113: 341 | AW113: 47.8 | AX113: -66 | AY113: 27.3 | AZ113: 29.8 | BA113: 731 | BB113: 797 | BC113: 2.5 | BD113: 2.8 | BE113: 47.1 | BF113: 9 | BG113: 6.1 | BH113: 90.7 | BI113: 52.1 | BJ113: 67.9 | BK113: 47.9 | BL113: 712 | BM113: 775 | BN113: 429 | BO113: 621 | BP113: 437 | BQ113: 624 | BR113: 667 | BS113: 18 | BT113: 18 | BU113: 0 | BV113: 1605.6 | BW113: =Table1[[#This Row],[SF]]/Table1[[#This Row],[CF]] -> 0.5206552707 | BX113: =Table1[[#This Row],[MSF]]/Table1[[#This Row],[CF]] -> 0.2457264957 | BY113: =Table1[[#This Row],[BSF]]/Table1[[#This Row],[CF]] -> 0.2336182336 | BZ113: =Table1[[#This Row],[SA]]/Table1[[#This Row],[CA]] -> 0.5396073121 | CA113: =Table1[[#This Row],[MSA]]/Table1[[#This Row],[CA]] -> 0.2295192959 | CB113: =Table1[[#This Row],[BSA]]/Table1[[#This Row],[CA]] -> 0.230873392
A114: 5v5 | B114: Tied | C114: PHX | D114: 79 | E114: 20052006 | F114: 39 | G114: 42 | H114: -3 | I114: 49.3 | J114: 104.4 | K114: 68.8 | L114: 9.2 | M114: 90.4 | N114: 49.9 | O114: 99.6 | P114: 48.9 | Q114: 51.4 | R114: 9 | S114: 164 | T114: 155 | U114: 10.6 | V114: 10 | W114: 20.6 | X114: 50.4 | Y114: 6 | Z114: 411 | AA114: 405 | AB114: 26.5 | AC114: 26.1 | AD114: 52.6 | AE114: 49.3 | AF114: -22 | AG114: 798 | AH114: 820 | AI114: 51.5 | AJ114: 52.9 | AK114: 104.4 | AL114: 49.8 | AM114: -6 | AN114: 39.7 | AO114: 40.1 | AP114: 616 | AQ114: 622 | AR114: 79.8 | AS114: 192 | AT114: 184 | AU114: 182 | AV114: 198 | AW114: 49.2 | AX114: -14 | AY114: 27.3 | AZ114: 28.2 | BA114: 424 | BB114: 438 | BC114: 2.5 | BD114: 2.7 | BE114: 48.1 | BF114: 9.2 | BG114: 6.3 | BH114: 90.4 | BI114: 53.1 | BJ114: 68.8 | BK114: 49.9 | BL114: 430 | BM114: 431 | BN114: 248 | BO114: 354 | BP114: 259 | BQ114: 362 | BR114: 377 | BS114: 11 | BT114: 11 | BU114: 0 | BV114: 930.3 | BW114: =Table1[[#This Row],[SF]]/Table1[[#This Row],[CF]] -> 0.5313283208 | BX114: =Table1[[#This Row],[MSF]]/Table1[[#This Row],[CF]] -> 0.2406015038 | BY114: =Table1[[#This Row],[BSF]]/Table1[[#This Row],[CF]] -> 0.2280701754 | BZ114: =Table1[[#This Row],[SA]]/Table1[[#This Row],[CA]] -> 0.5341463415 | CA114: =Table1[[#This Row],[MSA]]/Table1[[#This Row],[CA]] -> 0.2243902439 | CB114: =Table1[[#This Row],[BSA]]/Table1[[#This Row],[CA]] -> 0.2414634146
A115: 5v5 | B115: Up1 | C115: PHX | D115: 48 | E115: 20052006 | F115: 21 | G115: 22 | H115: -1 | I115: 44.8 | J115: 109.3 | K115: 67 | L115: 11.4 | M115: 91.1 | N115: 45.1 | O115: 102.5 | P115: 45 | Q115: 45.7 | R115: -12 | S115: 63 | T115: 75 | U115: 8.7 | V115: 10.4 | W115: 19.1 | X115: 43.6 | Y115: -51 | Z115: 174 | AA115: 225 | AB115: 24.1 | AC115: 31.1 | AD115: 55.2 | AE115: 44.8 | AF115: -82 | AG115: 354 | AH115: 436 | AI115: 49 | AJ115: 60.3 | AK115: 109.3 | AL115: 45.3 | AM115: -57 | AN115: 38.2 | AO115: 46.1 | AP115: 276 | AQ115: 333 | AR115: 84.3 | AS115: 91 | AT115: 85 | AU115: 78 | AV115: 103 | AW115: 42.7 | AX115: -63 | AY115: 25.6 | AZ115: 34.3 | BA115: 185 | BB115: 248 | BC115: 2.9 | BD115: 3 | BE115: 48.8 | BF115: 11.4 | BG115: 7.6 | BH115: 91.1 | BI115: 52.3 | BJ115: 67 | BK115: 45.1 | BL115: 176 | BM115: 214 | BN115: 98 | BO115: 172 | BP115: 120 | BQ115: 140 | BR115: 176 | BS115: 1 | BT115: 1 | BU115: 0 | BV115: 433.5 | BW115: =Table1[[#This Row],[SF]]/Table1[[#This Row],[CF]] -> 0.5225988701 | BX115: =Table1[[#This Row],[MSF]]/Table1[[#This Row],[CF]] -> 0.2570621469 | BY115: =Table1[[#This Row],[BSF]]/Table1[[#This Row],[CF]] -> 0.2203389831 | BZ115: =Table1[[#This Row],[SA]]/Table1[[#This Row],[CA]] -> 0.5688073394 | CA115: =Table1[[#This Row],[MSA]]/Table1[[#This Row],[CA]] -> 0.1949541284 | CB115: =Table1[[#This Row],[BSA]]/Table1[[#This Row],[CA]] -> 0.2362385321
A116: 5v5 | B116: Dn1 | C116: PHX | D116: 56 | E116: 20052006 | F116: 22 | G116: 24 | H116: -2 | I116: 52.1 | J116: 107.6 | K116: 66 | L116: 8.9 | M116: 90 | N116: 47.2 | O116: 99 | P116: 53 | Q116: 48.7 | R116: -5 | S116: 92 | T116: 97 | U116: 10.2 | V116: 10.7 | W116: 20.9 | X116: 47.4 | Y116: -26 | Z116: 238 | AA116: 264 | AB116: 26.3 | AC116: 29.1 | AD116: 55.4 | AE116: 52.1 | AF116: 41 | AG116: 508 | AH116: 467 | AI116: 56.1 | AJ116: 51.5 | AK116: 107.6 | AL116: 50.4 | AM116: 6 | AN116: 41.2 | AO116: 40.5 | AP116: 373 | AQ116: 367 | AR116: 81.7 | AS116: 127 | AT116: 126 | AU116: 135 | AV116: 100 | AW116: 50.5 | AX116: 5 | AY116: 27.1 | AZ116: 26.6 | BA116: 246 | BB116: 241 | BC116: 2.4 | BD116: 2.6 | BE116: 47.8 | BF116: 8.9 | BG116: 5.9 | BH116: 90 | BI116: 48.4 | BJ116: 66 | BK116: 47.2 | BL116: 239 | BM116: 267 | BN116: 151 | BO116: 221 | BP116: 134 | BQ116: 211 | BR116: 231 | BS116: 7 | BT116: 6 | BU116: -1 | BV116: 543.8 | BW116: =Table1[[#This Row],[SF]]/Table1[[#This Row],[CF]] -> 0.4842519685 | BX116: =Table1[[#This Row],[MSF]]/Table1[[#This Row],[CF]] -> 0.25 | BY116: =Table1[[#This Row],[BSF]]/Table1[[#This Row],[CF]] -> 0.2657480315 | BZ116: =Table1[[#This Row],[SA]]/Table1[[#This Row],[CA]] -> 0.5160599572 | CA116: =Table1[[#This Row],[MSA]]/Table1[[#This Row],[CA]] -> 0.2698072805 | CB116: =Table1[[#This Row],[BSA]]/Table1[[#This Row],[CA]] -> 0.2141327623
A117: 5v5 | B117: ScAdj | C117: PIT | D117: 80 | E117: 20052006 | F117: 119 | G117: 148 | H117: -29 | I117: 43.6 | J117: 107.9 | K117: 71.7 | L117: 9.7 | M117: 90.1 | N117: 46.5 | O117: 99.8 | P117: 47.7 | Q117: 46.3 | R117: -80.1 | S117: 501 | T117: 581.1 | U117: 10.6 | V117: 12.3 | W117: 22.9 | X117: 46.2 | Y117: -205.5 | Z117: 1240.3 | AA117: 1445.9 | AB117: 26.2 | AC117: 30.6 | AD117: 56.8 | AE117: 43.6 | AF117: -650.5 | AG117: 2223 | AH117: 2873.6 | AI117: 47 | AJ117: 60.8 | AK117: 107.9 | AL117: 44.3 | AM117: -439 | AN117: 36.3 | AO117: 45.6 | AP117: 1713.7 | AQ117: 2152.6 | AR117: 81.8 | AS117: 484.3 | AT117: 652.5 | AU117: 509.4 | AV117: 720.9 | AW117: 45 | AX117: -270.8 | AY117: 26 | AZ117: 31.7 | BA117: 1229.4 | BB117: 1500.1 | BC117: 2.5 | BD117: 3.1 | BE117: 44.6 | BF117: 9.7 | BG117: 6.9 | BH117: 90.1 | BI117: 55.3 | BJ117: 71.7 | BK117: 46.5 | BL117: 1207 | BM117: 1390 | BN117: 718 | BO117: 1092 | BP117: 787 | BQ117: 963 | BR117: 834 | BS117: 30 | BT117: 30 | BU117: 0 | BV117: 2835.3 | BW117: =Table1[[#This Row],[SF]]/Table1[[#This Row],[CF]] -> 0.5530364372 | BX117: =Table1[[#This Row],[MSF]]/Table1[[#This Row],[CF]] -> 0.2178587494 | BY117: =Table1[[#This Row],[BSF]]/Table1[[#This Row],[CF]] -> 0.2291497976 | BZ117: =Table1[[#This Row],[SA]]/Table1[[#This Row],[CA]] -> 0.522028118 | CA117: =Table1[[#This Row],[MSA]]/Table1[[#This Row],[CA]] -> 0.2270670935 | CB117: =Table1[[#This Row],[BSA]]/Table1[[#This Row],[CA]] -> 0.2508699889
A118: 5v5 | B118: Close | C118: PIT | D118: 80 | E118: 20052006 | F118: 46 | G118: 82 | H118: -36 | I118: 43.2 | J118: 110.1 | K118: 71.7 | L118: 7.1 | M118: 89.8 | N118: 46.6 | O118: 96.9 | P118: 47.8 | Q118: 45.1 | R118: -55 | S118: 255 | T118: 310 | U118: 10.4 | V118: 12.6 | W118: 23 | X118: 45.4 | Y118: -132 | Z118: 653 | AA118: 785 | AB118: 26.6 | AC118: 32 | AD118: 58.6 | AE118: 43.2 | AF118: -370 | AG118: 1167 | AH118: 1537 | AI118: 47.5 | AJ118: 62.6 | AK118: 110.1 | AL118: 44.6 | AM118: -221 | AN118: 37 | AO118: 46 | AP118: 908 | AQ118: 1129 | AR118: 82.9 | AS118: 257 | AT118: 322 | AU118: 259 | AV118: 408 | AW118: 44.7 | AX118: -156 | AY118: 26.5 | AZ118: 32.9 | BA118: 651 | BB118: 807 | BC118: 1.9 | BD118: 3.3 | BE118: 35.9 | BF118: 7.1 | BG118: 5.1 | BH118: 89.8 | BI118: 55.8 | BJ118: 71.7 | BK118: 46.6 | BL118: 625 | BM118: 715 | BN118: 365 | BO118: 577 | BP118: 398 | BQ118: 566 | BR118: 467 | BS118: 12 | BT118: 14 | BU118: 2 | BV118: 1473.6 | BW118: =Table1[[#This Row],[SF]]/Table1[[#This Row],[CF]] -> 0.557840617 | BX118: =Table1[[#This Row],[MSF]]/Table1[[#This Row],[CF]] -> 0.2202227935 | BY118: =Table1[[#This Row],[BSF]]/Table1[[#This Row],[CF]] -> 0.2219365895 | BZ118: =Table1[[#This Row],[SA]]/Table1[[#This Row],[CA]] -> 0.5250487964 | CA118: =Table1[[#This Row],[MSA]]/Table1[[#This Row],[CA]] -> 0.2094990241 | CB118: =Table1[[#This Row],[BSA]]/Table1[[#This Row],[CA]] -> 0.2654521796
A119: 5v5 | B119: Tied | C119: PIT | D119: 80 | E119: 20052006 | F119: 21 | G119: 49 | H119: -28 | I119: 44 | J119: 109.2 | K119: 69.7 | L119: 5.9 | M119: 88.8 | N119: 46.7 | O119: 94.7 | P119: 47 | Q119: 46.3 | R119: -23 | S119: 144 | T119: 167 | U119: 10.6 | V119: 12.3 | W119: 22.9 | X119: 45.8 | Y119: -67 | Z119: 367 | AA119: 434 | AB119: 27.1 | AC119: 32 | AD119: 59 | AE119: 44 | AF119: -177 | AG119: 652 | AH119: 829 | AI119: 48.1 | AJ119: 61.1 | AK119: 109.2 | AL119: 45.2 | AM119: -107 | AN119: 37.4 | AO119: 45.3 | AP119: 508 | AQ119: 615 | AR119: 82.8 | AS119: 154 | AT119: 177 | AU119: 144 | AV119: 214 | AW119: 44.7 | AX119: -84 | AY119: 26.1 | AZ119: 32.3 | BA119: 354 | BB119: 438 | BC119: 1.5 | BD119: 3.6 | BE119: 30 | BF119: 5.9 | BG119: 4.1 | BH119: 88.8 | BI119: 54.3 | BJ119: 69.7 | BK119: 46.7 | BL119: 342 | BM119: 391 | BN119: 193 | BO119: 322 | BP119: 218 | BQ119: 301 | BR119: 252 | BS119: 7 | BT119: 8 | BU119: 1 | BV119: 814 | BW119: =Table1[[#This Row],[SF]]/Table1[[#This Row],[CF]] -> 0.5429447853 | BX119: =Table1[[#This Row],[MSF]]/Table1[[#This Row],[CF]] -> 0.236196319 | BY119: =Table1[[#This Row],[BSF]]/Table1[[#This Row],[CF]] -> 0.2208588957 | BZ119: =Table1[[#This Row],[SA]]/Table1[[#This Row],[CA]] -> 0.5283474065 | CA119: =Table1[[#This Row],[MSA]]/Table1[[#This Row],[CA]] -> 0.2135102533 | CB119: =Table1[[#This Row],[BSA]]/Table1[[#This Row],[CA]] -> 0.2581423402
A120: 5v5 | B120: Up1 | C120: PIT | D120: 36 | E120: 20052006 | F120: 20 | G120: 15 | H120: 5 | I120: 40.4 | J120: 119.1 | K120: 77.8 | L120: 14.6 | M120: 91 | N120: 50.2 | O120: 105.6 | P120: 42.2 | Q120: 47.4 | R120: -6 | S120: 54 | T120: 60 | U120: 11.3 | V120: 12.6 | W120: 23.9 | X120: 44.7 | Y120: -31 | Z120: 131 | AA120: 162 | AB120: 27.4 | AC120: 33.9 | AD120: 61.4 | AE120: 40.4 | AF120: -109 | AG120: 230 | AH120: 339 | AI120: 48.2 | AJ120: 71 | AK120: 119.1 | AL120: 41.8 | AM120: -69 | AN120: 36.9 | AO120: 51.3 | AP120: 176 | AQ120: 245 | AR120: 88.2 | AS120: 39 | AT120: 78 | AU120: 54 | AV120: 94 | AW120: 45.1 | AX120: -30 | AY120: 28.7 | AZ120: 35 | BA120: 137 | BB120: 167 | BC120: 4.2 | BD120: 3.1 | BE120: 57.1 | BF120: 14.6 | BG120: 11.4 | BH120: 91 | BI120: 59.6 | BJ120: 77.8 | BK120: 50.2 | BL120: 126 | BM120: 125 | BN120: 62 | BO120: 104 | BP120: 85 | BQ120: 94 | BR120: 80 | BS120: 2 | BT120: 1 | BU120: -1 | BV120: 286.5 | BW120: =Table1[[#This Row],[SF]]/Table1[[#This Row],[CF]] -> 0.5956521739 | BX120: =Table1[[#This Row],[MSF]]/Table1[[#This Row],[CF]] -> 0.1695652174 | BY120: =Table1[[#This Row],[BSF]]/Table1[[#This Row],[CF]] -> 0.2347826087 | BZ120: =Table1[[#This Row],[SA]]/Table1[[#This Row],[CA]] -> 0.4926253687 | CA120: =Table1[[#This Row],[MSA]]/Table1[[#This Row],[CA]] -> 0.2300884956 | CB120: =Table1[[#This Row],[BSA]]/Table1[[#This Row],[CA]] -> 0.2772861357
A121: 5v5 | B121: Dn1 | C121: PIT | D121: 62 | E121: 20052006 | F121: 14 | G121: 30 | H121: -16 | I121: 46.7 | J121: 104.5 | K121: 70.9 | L121: 4.6 | M121: 91 | N121: 46.5 | O121: 95.6 | P121: 50.9 | Q121: 46.6 | R121: -17 | S121: 118 | T121: 135 | U121: 10.3 | V121: 11.8 | W121: 22.1 | X121: 47.9 | Y121: -26 | Z121: 292 | AA121: 318 | AB121: 25.5 | AC121: 27.7 | AD121: 53.2 | AE121: 46.7 | AF121: -79 | AG121: 560 | AH121: 639 | AI121: 48.8 | AJ121: 55.7 | AK121: 104.5 | AL121: 47.3 | AM121: -49 | AN121: 37.1 | AO121: 41.4 | AP121: 426 | AQ121: 475 | AR121: 78.5 | AS121: 124 | AT121: 143 | AU121: 134 | AV121: 164 | AW121: 47.6 | AX121: -30 | AY121: 26.3 | AZ121: 28.9 | BA121: 302 | BB121: 332 | BC121: 1.2 | BD121: 2.6 | BE121: 31.8 | BF121: 4.6 | BG121: 3.3 | BH121: 91 | BI121: 53.9 | BJ121: 70.9 | BK121: 46.5 | BL121: 290 | BM121: 334 | BN121: 190 | BO121: 251 | BP121: 183 | BQ121: 258 | BR121: 213 | BS121: 5 | BT121: 7 | BU121: 2 | BV121: 688.4 | BW121: =Table1[[#This Row],[SF]]/Table1[[#This Row],[CF]] -> 0.5392857143 | BX121: =Table1[[#This Row],[MSF]]/Table1[[#This Row],[CF]] -> 0.2214285714 | BY121: =Table1[[#This Row],[BSF]]/Table1[[#This Row],[CF]] -> 0.2392857143 | BZ121: =Table1[[#This Row],[SA]]/Table1[[#This Row],[CA]] -> 0.5195618153 | CA121: =Table1[[#This Row],[MSA]]/Table1[[#This Row],[CA]] -> 0.2237871674 | CB121: =Table1[[#This Row],[BSA]]/Table1[[#This Row],[CA]] -> 0.2566510172
A122: 5v5 | B122: ScAdj | C122: S.J | D122: 81 | E122: 20052006 | F122: 148 | G122: 130 | H122: 18 | I122: 50.7 | J122: 98.3 | K122: 71.1 | L122: 10.6 | M122: 90.2 | N122: 48.7 | O122: 100.8 | P122: 54.6 | Q122: 56.4 | R122: 120.5 | S122: 528.8 | T122: 408.3 | U122: 10.3 | V122: 8 | W122: 18.3 | X122: 55 | Y122: 247.5 | Z122: 1362.3 | AA122: 1114.7 | AB122: 26.6 | AC122: 21.8 | AD122: 48.4 | AE122: 50.7 | AF122: 68 | AG122: 2548.2 | AH122: 2480.2 | AI122: 49.8 | AJ122: 48.5 | AK122: 98.3 | AL122: 51.1 | AM122: 81.3 | AN122: 38.6 | AO122: 37 | AP122: 1971.5 | AQ122: 1890.1 | AR122: 75.5 | AS122: 570 | AT122: 558.6 | AU122: 576.8 | AV122: 590.1 | AW122: 51.3 | AX122: 69.9 | AY122: 27.4 | AZ122: 26 | BA122: 1401.5 | BB122: 1331.5 | BC122: 2.9 | BD122: 2.5 | BE122: 53.2 | BF122: 10.6 | BG122: 7.5 | BH122: 90.2 | BI122: 55 | BJ122: 71.1 | BK122: 48.7 | BL122: 1336 | BM122: 1410 | BN122: 836 | BO122: 1214 | BP122: 696 | BQ122: 1111 | BR122: 1168 | BS122: 19 | BT122: 22 | BU122: 3 | BV122: 3068 | BW122: =Table1[[#This Row],[SF]]/Table1[[#This Row],[CF]] -> 0.5499960757 | BX122: =Table1[[#This Row],[MSF]]/Table1[[#This Row],[CF]] -> 0.2236873087 | BY122: =Table1[[#This Row],[BSF]]/Table1[[#This Row],[CF]] -> 0.226355859 | BZ122: =Table1[[#This Row],[SA]]/Table1[[#This Row],[CA]] -> 0.5368518668 | CA122: =Table1[[#This Row],[MSA]]/Table1[[#This Row],[CA]] -> 0.2252237723 | CB122: =Table1[[#This Row],[BSA]]/Table1[[#This Row],[CA]] -> 0.2379243609
A123: 5v5 | B123: Close | C123: S.J | D123: 81 | E123: 20052006 | F123: 92 | G123: 79 | H123: 13 | I123: 50.8 | J123: 99.6 | K123: 69.9 | L123: 10.2 | M123: 90.9 | N123: 49.7 | O123: 101 | P123: 56.1 | Q123: 55.1 | R123: 66 | S123: 356 | T123: 290 | U123: 10.9 | V123: 8.9 | W123: 19.7 | X123: 54.1 | Y123: 136 | Z123: 891 | AA123: 755 | AB123: 27.2 | AC123: 23.1 | AD123: 50.3 | AE123: 50.8 | AF123: 53 | AG123: 1656 | AH123: 1603 | AI123: 50.6 | AJ123: 49 | AK123: 99.6 | AL123: 51 | AM123: 53 | AN123: 39.5 | AO123: 37.9 | AP123: 1294 | AQ123: 1241 | AR123: 77.4 | AS123: 389 | AT123: 377 | AU123: 362 | AV123: 362 | AW123: 51.2 | AX123: 41 | AY123: 27.6 | AZ123: 26.4 | BA123: 905 | BB123: 864 | BC123: 2.8 | BD123: 2.4 | BE123: 53.8 | BF123: 10.2 | BG123: 7.1 | BH123: 90.9 | BI123: 54.6 | BJ123: 69.9 | BK123: 49.7 | BL123: 871 | BM123: 881 | BN123: 555 | BO123: 762 | BP123: 435 | BQ123: 735 | BR123: 797 | BS123: 11 | BT123: 11 | BU123: 0 | BV123: 1963.9 | BW123: =Table1[[#This Row],[SF]]/Table1[[#This Row],[CF]] -> 0.5464975845 | BX123: =Table1[[#This Row],[MSF]]/Table1[[#This Row],[CF]] -> 0.2349033816 | BY123: =Table1[[#This Row],[BSF]]/Table1[[#This Row],[CF]] -> 0.2185990338 | BZ123: =Table1[[#This Row],[SA]]/Table1[[#This Row],[CA]] -> 0.5389893949 | CA123: =Table1[[#This Row],[MSA]]/Table1[[#This Row],[CA]] -> 0.2351840299 | CB123: =Table1[[#This Row],[BSA]]/Table1[[#This Row],[CA]] -> 0.2258265752
A124: 5v5 | B124: Tied | C124: S.J | D124: 81 | E124: 20052006 | F124: 56 | G124: 45 | H124: 11 | I124: 50.2 | J124: 99.1 | K124: 70.1 | L124: 10.2 | M124: 91.6 | N124: 48.1 | O124: 101.8 | P124: 56.1 | Q124: 53.9 | R124: 30 | S124: 205 | T124: 175 | U124: 10.3 | V124: 8.8 | W124: 19.1 | X124: 53.3 | Y124: 65 | Z124: 522 | AA124: 457 | AB124: 26.2 | AC124: 23 | AD124: 49.2 | AE124: 50.2 | AF124: 7 | AG124: 989 | AH124: 982 | AI124: 49.7 | AJ124: 49.4 | AK124: 99.1 | AL124: 50.3 | AM124: 9 | AN124: 39.3 | AO124: 38.9 | AP124: 782 | AQ124: 773 | AR124: 78.2 | AS124: 234 | AT124: 237 | AU124: 207 | AV124: 209 | AW124: 50.6 | AX124: 12 | AY124: 27.5 | AZ124: 26.9 | BA124: 548 | BB124: 536 | BC124: 2.8 | BD124: 2.3 | BE124: 55.4 | BF124: 10.2 | BG124: 7.2 | BH124: 91.6 | BI124: 55.4 | BJ124: 70.1 | BK124: 48.1 | BL124: 509 | BM124: 549 | BN124: 338 | BO124: 456 | BP124: 264 | BQ124: 421 | BR124: 496 | BS124: 4 | BT124: 2 | BU124: -2 | BV124: 1193.8 | BW124: =Table1[[#This Row],[SF]]/Table1[[#This Row],[CF]] -> 0.5540950455 | BX124: =Table1[[#This Row],[MSF]]/Table1[[#This Row],[CF]] -> 0.2366026289 | BY124: =Table1[[#This Row],[BSF]]/Table1[[#This Row],[CF]] -> 0.2093023256 | BZ124: =Table1[[#This Row],[SA]]/Table1[[#This Row],[CA]] -> 0.5458248473 | CA124: =Table1[[#This Row],[MSA]]/Table1[[#This Row],[CA]] -> 0.2413441955 | CB124: =Table1[[#This Row],[BSA]]/Table1[[#This Row],[CA]] -> 0.2128309572
A125: 5v5 | B125: Up1 | C125: S.J | D125: 55 | E125: 20052006 | F125: 25 | G125: 29 | H125: -4 | I125: 46.6 | J125: 99.3 | K125: 70.3 | L125: 10.2 | M125: 89.5 | N125: 49.7 | O125: 99.7 | P125: 50.2 | Q125: 54.4 | R125: 17 | S125: 105 | T125: 88 | U125: 10.9 | V125: 9.1 | W125: 20.1 | X125: 52.5 | Y125: 25 | Z125: 259 | AA125: 234 | AB125: 26.9 | AC125: 24.3 | AD125: 51.2 | AE125: 46.6 | AF125: -65 | AG125: 445 | AH125: 510 | AI125: 46.2 | AJ125: 53 | AK125: 99.3 | AL125: 47 | AM125: -44 | AN125: 36.1 | AO125: 40.6 | AP125: 347 | AQ125: 391 | AR125: 76.7 | AS125: 103 | AT125: 115 | AU125: 98 | AV125: 119 | AW125: 46.9 | AX125: -32 | AY125: 25.4 | AZ125: 28.7 | BA125: 244 | BB125: 276 | BC125: 2.6 | BD125: 3 | BE125: 46.3 | BF125: 10.2 | BG125: 7.2 | BH125: 89.5 | BI125: 54.8 | BJ125: 70.3 | BK125: 49.7 | BL125: 256 | BM125: 259 | BN125: 141 | BO125: 234 | BP125: 140 | BQ125: 221 | BR125: 223 | BS125: 3 | BT125: 4 | BU125: 1 | BV125: 577.3 | BW125: =Table1[[#This Row],[SF]]/Table1[[#This Row],[CF]] -> 0.5483146067 | BX125: =Table1[[#This Row],[MSF]]/Table1[[#This Row],[CF]] -> 0.2314606742 | BY125: =Table1[[#This Row],[BSF]]/Table1[[#This Row],[CF]] -> 0.2202247191 | BZ125: =Table1[[#This Row],[SA]]/Table1[[#This Row],[CA]] -> 0.5411764706 | CA125: =Table1[[#This Row],[MSA]]/Table1[[#This Row],[CA]] -> 0.2254901961 | CB125: =Table1[[#This Row],[BSA]]/Table1[[#This Row],[CA]] -> 0.2333333333
A126: 5v5 | B126: Dn1 | C126: S.J | D126: 55 | E126: 20052006 | F126: 30 | G126: 20 | H126: 10 | I126: 53.1 | J126: 95.4 | K126: 70.9 | L126: 12.2 | M126: 91.2 | N126: 51.1 | O126: 103.4 | P126: 55.2 | Q126: 58.1 | R126: 26 | S126: 93 | T126: 67 | U126: 10.3 | V126: 7.4 | W126: 17.7 | X126: 56.3 | Y126: 55 | Z126: 245 | AA126: 190 | AB126: 27.1 | AC126: 21 | AD126: 48.1 | AE126: 53.1 | AF126: 53 | AG126: 458 | AH126: 405 | AI126: 50.6 | AJ126: 44.8 | AK126: 95.4 | AL126: 52.5 | AM126: 33 | AN126: 38.3 | AO126: 34.7 | AP126: 347 | AQ126: 314 | AR126: 73 | AS126: 101 | AT126: 87 | AU126: 111 | AV126: 91 | AW126: 52 | AX126: 19 | AY126: 27.2 | AZ126: 25.1 | BA126: 246 | BB126: 227 | BC126: 3.3 | BD126: 2.2 | BE126: 60 | BF126: 12.2 | BG126: 8.6 | BH126: 91.2 | BI126: 53.7 | BJ126: 70.9 | BK126: 51.1 | BL126: 253 | BM126: 242 | BN126: 158 | BO126: 209 | BP126: 128 | BQ126: 204 | BR126: 193 | BS126: 4 | BT126: 5 | BU126: 1 | BV126: 542.9 | BW126: =Table1[[#This Row],[SF]]/Table1[[#This Row],[CF]] -> 0.5371179039 | BX126: =Table1[[#This Row],[MSF]]/Table1[[#This Row],[CF]] -> 0.2205240175 | BY126: =Table1[[#This Row],[BSF]]/Table1[[#This Row],[CF]] -> 0.2423580786 | BZ126: =Table1[[#This Row],[SA]]/Table1[[#This Row],[CA]] -> 0.5604938272 | CA126: =Table1[[#This Row],[MSA]]/Table1[[#This Row],[CA]] -> 0.2148148148 | CB126: =Table1[[#This Row],[BSA]]/Table1[[#This Row],[CA]] -> 0.224691358
A127: 5v5 | B127: ScAdj | C127: STL | D127: 82 | E127: 20052006 | F127: 101 | G127: 165 | H127: -64 | I127: 47.5 | J127: 106.5 | K127: 69.9 | L127: 7.6 | M127: 88.7 | N127: 50.4 | O127: 96.2 | P127: 46.3 | Q127: 46.7 | R127: -67.9 | S127: 485.5 | T127: 553.4 | U127: 9.8 | V127: 11.2 | W127: 21 | X127: 47.9 | Y127: -110.5 | Z127: 1270.6 | AA127: 1381.1 | AB127: 25.7 | AC127: 27.9 | AD127: 53.6 | AE127: 47.5 | AF127: -267.9 | AG127: 2501 | AH127: 2768.8 | AI127: 50.5 | AJ127: 55.9 | AK127: 106.5 | AL127: 48 | AM127: -159.8 | AN127: 38.6 | AO127: 41.8 | AP127: 1909.2 | AQ127: 2069 | AR127: 80.4 | AS127: 574.1 | AT127: 612.6 | AU127: 591.8 | AV127: 699.9 | AW127: 47.8 | AX127: -121.3 | AY127: 27 | AZ127: 29.4 | BA127: 1335 | BB127: 1456.3 | BC127: 2 | BD127: 3.3 | BE127: 38 | BF127: 7.6 | BG127: 5.3 | BH127: 88.7 | BI127: 53.4 | BJ127: 69.9 | BK127: 50.4 | BL127: 1411 | BM127: 1389 | BN127: 760 | BO127: 1160 | BP127: 880 | BQ127: 939 | BR127: 920 | BS127: 36 | BT127: 39 | BU127: 3 | BV127: 2970.1 | BW127: =Table1[[#This Row],[SF]]/Table1[[#This Row],[CF]] -> 0.5337864854 | BX127: =Table1[[#This Row],[MSF]]/Table1[[#This Row],[CF]] -> 0.2295481807 | BY127: =Table1[[#This Row],[BSF]]/Table1[[#This Row],[CF]] -> 0.2366253499 | BZ127: =Table1[[#This Row],[SA]]/Table1[[#This Row],[CA]] -> 0.5259679283 | CA127: =Table1[[#This Row],[MSA]]/Table1[[#This Row],[CA]] -> 0.2212510835 | CB127: =Table1[[#This Row],[BSA]]/Table1[[#This Row],[CA]] -> 0.2527809882
A128: 5v5 | B128: Close | C128: STL | D128: 82 | E128: 20052006 | F128: 62 | G128: 104 | H128: -42 | I128: 47.1 | J128: 113.9 | K128: 67.5 | L128: 7.2 | M128: 89.5 | N128: 50.2 | O128: 96.7 | P128: 44.5 | Q128: 45 | R128: -68 | S128: 307 | T128: 375 | U128: 9.8 | V128: 12 | W128: 21.8 | X128: 47.5 | Y128: -89 | Z128: 837 | AA128: 926 | AB128: 26.8 | AC128: 29.6 | AD128: 56.4 | AE128: 47.1 | AF128: -203 | AG128: 1678 | AH128: 1881 | AI128: 53.7 | AJ128: 60.2 | AK128: 113.9 | AL128: 47.6 | AM128: -129 | AN128: 40.6 | AO128: 44.7 | AP128: 1269 | AQ128: 1398 | AR128: 85.3 | AS128: 412 | AT128: 410 | AU128: 409 | AV128: 483 | AW128: 46.4 | AX128: -131 | AY128: 27.4 | AZ128: 31.6 | BA128: 857 | BB128: 988 | BC128: 2 | BD128: 3.3 | BE128: 37.3 | BF128: 7.2 | BG128: 4.9 | BH128: 89.5 | BI128: 51.1 | BJ128: 67.5 | BK128: 50.2 | BL128: 880 | BM128: 873 | BN128: 459 | BO128: 722 | BP128: 572 | BQ128: 632 | BR128: 614 | BS128: 18 | BT128: 16 | BU128: -2 | BV128: 1875.1 | BW128: =Table1[[#This Row],[SF]]/Table1[[#This Row],[CF]] -> 0.510727056 | BX128: =Table1[[#This Row],[MSF]]/Table1[[#This Row],[CF]] -> 0.2455303933 | BY128: =Table1[[#This Row],[BSF]]/Table1[[#This Row],[CF]] -> 0.2437425507 | BZ128: =Table1[[#This Row],[SA]]/Table1[[#This Row],[CA]] -> 0.5252525253 | CA128: =Table1[[#This Row],[MSA]]/Table1[[#This Row],[CA]] -> 0.2179691653 | CB128: =Table1[[#This Row],[BSA]]/Table1[[#This Row],[CA]] -> 0.2567783094
A129: 5v5 | B129: Tied | C129: STL | D129: 82 | E129: 20052006 | F129: 42 | G129: 58 | H129: -16 | I129: 47.2 | J129: 112.7 | K129: 68.4 | L129: 7.8 | M129: 90.2 | N129: 51.1 | O129: 97.9 | P129: 45.7 | Q129: 46.4 | R129: -31 | S129: 200 | T129: 231 | U129: 10.3 | V129: 11.9 | W129: 22.1 | X129: 47.7 | Y129: -51 | Z129: 521 | AA129: 572 | AB129: 26.7 | AC129: 29.3 | AD129: 56.1 | AE129: 47.2 | AF129: -125 | AG129: 1036 | AH129: 1161 | AI129: 53.1 | AJ129: 59.6 | AK129: 112.7 | AL129: 48.4 | AM129: -53 | AN129: 40.5 | AO129: 43.2 | AP129: 789 | AQ129: 842 | AR129: 83.7 | AS129: 249 | AT129: 252 | AU129: 247 | AV129: 319 | AW129: 47.8 | AX129: -50 | AY129: 27.7 | AZ129: 30.3 | BA129: 540 | BB129: 590 | BC129: 2.2 | BD129: 3 | BE129: 42 | BF129: 7.8 | BG129: 5.3 | BH129: 90.2 | BI129: 52.1 | BJ129: 68.4 | BK129: 51.1 | BL129: 531 | BM129: 508 | BN129: 283 | BO129: 420 | BP129: 336 | BQ129: 385 | BR129: 371 | BS129: 8 | BT129: 8 | BU129: 0 | BV129: 1169.6 | BW129: =Table1[[#This Row],[SF]]/Table1[[#This Row],[CF]] -> 0.5212355212 | BX129: =Table1[[#This Row],[MSF]]/Table1[[#This Row],[CF]] -> 0.2403474903 | BY129: =Table1[[#This Row],[BSF]]/Table1[[#This Row],[CF]] -> 0.2384169884 | BZ129: =Table1[[#This Row],[SA]]/Table1[[#This Row],[CA]] -> 0.5081826012 | CA129: =Table1[[#This Row],[MSA]]/Table1[[#This Row],[CA]] -> 0.2170542636 | CB129: =Table1[[#This Row],[BSA]]/Table1[[#This Row],[CA]] -> 0.2747631352
A130: 5v5 | B130: Up1 | C130: STL | D130: 51 | E130: 20052006 | F130: 14 | G130: 37 | H130: -23 | I130: 43.4 | J130: 119.4 | K130: 66 | L130: 7.5 | M130: 85.8 | N130: 48.5 | O130: 93.3 | P130: 42.9 | Q130: 41.4 | R130: -28 | S130: 67 | T130: 95 | U130: 9.2 | V130: 13.1 | W130: 22.4 | X130: 45 | Y130: -42 | Z130: 191 | AA130: 233 | AB130: 26.4 | AC130: 32.2 | AD130: 58.5 | AE130: 43.4 | AF130: -115 | AG130: 375 | AH130: 490 | AI130: 51.8 | AJ130: 67.6 | AK130: 119.4 | AL130: 43.3 | AM130: -88 | AN130: 38.9 | AO130: 51.1 | AP130: 282 | AQ130: 370 | AR130: 90 | AS130: 96 | AT130: 110 | AU130: 93 | AV130: 120 | AW130: 41.7 | AX130: -74 | AY130: 25.7 | AZ130: 35.9 | BA130: 186 | BB130: 260 | BC130: 1.9 | BD130: 5.1 | BE130: 27.5 | BF130: 7.5 | BG130: 5 | BH130: 85.8 | BI130: 49.6 | BJ130: 66 | BK130: 48.5 | BL130: 211 | BM130: 224 | BN130: 112 | BO130: 174 | BP130: 149 | BQ130: 134 | BR130: 148 | BS130: 3 | BT130: 3 | BU130: 0 | BV130: 434.8 | BW130: =Table1[[#This Row],[SF]]/Table1[[#This Row],[CF]] -> 0.496 | BX130: =Table1[[#This Row],[MSF]]/Table1[[#This Row],[CF]] -> 0.256 | BY130: =Table1[[#This Row],[BSF]]/Table1[[#This Row],[CF]] -> 0.248 | BZ130: =Table1[[#This Row],[SA]]/Table1[[#This Row],[CA]] -> 0.5306122449 | CA130: =Table1[[#This Row],[MSA]]/Table1[[#This Row],[CA]] -> 0.2244897959 | CB130: =Table1[[#This Row],[BSA]]/Table1[[#This Row],[CA]] -> 0.2448979592
A131: 5v5 | B131: Dn1 | C131: STL | D131: 62 | E131: 20052006 | F131: 17 | G131: 32 | H131: -15 | I131: 51.3 | J131: 107.7 | K131: 68.3 | L131: 7.1 | M131: 86.6 | N131: 50.1 | O131: 93.6 | P131: 47.9 | Q131: 46.4 | R131: -12 | S131: 78 | T131: 90 | U131: 9.1 | V131: 10.5 | W131: 19.5 | X131: 51.8 | Y131: 16 | Z131: 234 | AA131: 218 | AB131: 27.2 | AC131: 25.3 | AD131: 52.5 | AE131: 51.3 | AF131: 25 | AG131: 476 | AH131: 451 | AI131: 55.3 | AJ131: 52.4 | AK131: 107.7 | AL131: 50.9 | AM131: 13 | AN131: 41 | AO131: 39.5 | AP131: 353 | AQ131: 340 | AR131: 80.5 | AS131: 112 | AT131: 102 | AU131: 123 | AV131: 111 | AW131: 50.3 | AX131: 3 | AY131: 28 | AZ131: 27.7 | BA131: 241 | BB131: 238 | BC131: 2 | BD131: 3.7 | BE131: 34.7 | BF131: 7.1 | BG131: 4.8 | BH131: 86.6 | BI131: 50.6 | BJ131: 68.3 | BK131: 50.1 | BL131: 261 | BM131: 260 | BN131: 138 | BO131: 233 | BP131: 150 | BQ131: 171 | BR131: 166 | BS131: 7 | BT131: 7 | BU131: 0 | BV131: 516.4 | BW131: =Table1[[#This Row],[SF]]/Table1[[#This Row],[CF]] -> 0.506302521 | BX131: =Table1[[#This Row],[MSF]]/Table1[[#This Row],[CF]] -> 0.2352941176 | BY131: =Table1[[#This Row],[BSF]]/Table1[[#This Row],[CF]] -> 0.2584033613 | BZ131: =Table1[[#This Row],[SA]]/Table1[[#This Row],[CA]] -> 0.5277161863 | CA131: =Table1[[#This Row],[MSA]]/Table1[[#This Row],[CA]] -> 0.2261640798 | CB131: =Table1[[#This Row],[BSA]]/Table1[[#This Row],[CA]] -> 0.2461197339
A132: 5v5 | B132: ScAdj | C132: T.B | D132: 80 | E132: 20052006 | F132: 130 | G132: 149 | H132: -19 | I132: 50.6 | J132: 105.6 | K132: 71.4 | L132: 9 | M132: 89.2 | N132: 49.4 | O132: 98.2 | P132: 51.9 | Q132: 54.5 | R132: 104.5 | S132: 628.1 | T132: 523.6 | U132: 12.5 | V132: 10.5 | W132: 23 | X132: 51.7 | Y132: 97.7 | Z132: 1451.1 | AA132: 1353.4 | AB132: 29 | AC132: 27 | AD132: 56 | AE132: 50.6 | AF132: 67.8 | AG132: 2679.5 | AH132: 2611.7 | AI132: 53.5 | AJ132: 52.1 | AK132: 105.6 | AL132: 51.4 | AM132: 112.3 | AN132: 40.6 | AO132: 38.4 | AP132: 2034.2 | AQ132: 1921.9 | AR132: 79 | AS132: 582.5 | AT132: 540.3 | AU132: 645.3 | AV132: 689.8 | AW132: 51.2 | AX132: 70 | AY132: 29 | AZ132: 27.6 | BA132: 1451.6 | BB132: 1381.6 | BC132: 2.6 | BD132: 3 | BE132: 46.6 | BF132: 9 | BG132: 6.4 | BH132: 89.2 | BI132: 54.2 | BJ132: 71.4 | BK132: 49.4 | BL132: 1405 | BM132: 1438 | BN132: 864 | BO132: 1178 | BP132: 801 | BQ132: 697 | BR132: 967 | BS132: 13 | BT132: 15 | BU132: 2 | BV132: 3005.8 | BW132: =Table1[[#This Row],[SF]]/Table1[[#This Row],[CF]] -> 0.5417428625 | BX132: =Table1[[#This Row],[MSF]]/Table1[[#This Row],[CF]] -> 0.2173913043 | BY132: =Table1[[#This Row],[BSF]]/Table1[[#This Row],[CF]] -> 0.2408285128 | BZ132: =Table1[[#This Row],[SA]]/Table1[[#This Row],[CA]] -> 0.5290040969 | CA132: =Table1[[#This Row],[MSA]]/Table1[[#This Row],[CA]] -> 0.2068767469 | CB132: =Table1[[#This Row],[BSA]]/Table1[[#This Row],[CA]] -> 0.2641191561
A133: 5v5 | B133: Close | C133: T.B | D133: 80 | E133: 20052006 | F133: 80 | G133: 88 | H133: -8 | I133: 50.4 | J133: 107 | K133: 70.3 | L133: 8.5 | M133: 90.2 | N133: 50.2 | O133: 98.6 | P133: 51.9 | Q133: 57.2 | R133: 109 | S133: 431 | T133: 322 | U133: 13.4 | V133: 10 | W133: 23.4 | X133: 52 | Y133: 72 | Z133: 943 | AA133: 871 | AB133: 29.3 | AC133: 27.1 | AD133: 56.3 | AE133: 50.4 | AF133: 28 | AG133: 1736 | AH133: 1708 | AI133: 53.9 | AJ133: 53.1 | AK133: 107 | AL133: 51.5 | AM133: 78 | AN133: 41.7 | AO133: 39.3 | AP133: 1344 | AQ133: 1266 | AR133: 81.1 | AS133: 399 | AT133: 372 | AU133: 392 | AV133: 442 | AW133: 51.4 | AX133: 51 | AY133: 29.4 | AZ133: 27.8 | BA133: 945 | BB133: 894 | BC133: 2.5 | BD133: 2.7 | BE133: 47.6 | BF133: 8.5 | BG133: 6 | BH133: 90.2 | BI133: 54.4 | BJ133: 70.3 | BK133: 50.2 | BL133: 917 | BM133: 909 | BN133: 565 | BO133: 737 | BP133: 524 | BQ133: 442 | BR133: 627 | BS133: 8 | BT133: 10 | BU133: 2 | BV133: 1931.7 | BW133: =Table1[[#This Row],[SF]]/Table1[[#This Row],[CF]] -> 0.5443548387 | BX133: =Table1[[#This Row],[MSF]]/Table1[[#This Row],[CF]] -> 0.2298387097 | BY133: =Table1[[#This Row],[BSF]]/Table1[[#This Row],[CF]] -> 0.2258064516 | BZ133: =Table1[[#This Row],[SA]]/Table1[[#This Row],[CA]] -> 0.5234192037 | CA133: =Table1[[#This Row],[MSA]]/Table1[[#This Row],[CA]] -> 0.2177985948 | CB133: =Table1[[#This Row],[BSA]]/Table1[[#This Row],[CA]] -> 0.2587822014
A134: 5v5 | B134: Tied | C134: T.B | D134: 80 | E134: 20052006 | F134: 41 | G134: 54 | H134: -13 | I134: 49.7 | J134: 105 | K134: 69.8 | L134: 7.6 | M134: 89.9 | N134: 50.6 | O134: 97.5 | P134: 50.8 | Q134: 58.1 | R134: 67 | S134: 241 | T134: 174 | U134: 12.5 | V134: 9 | W134: 21.5 | X134: 51.4 | Y134: 30 | Z134: 539 | AA134: 509 | AB134: 28 | AC134: 26.4 | AD134: 54.3 | AE134: 49.7 | AF134: -12 | AG134: 1006 | AH134: 1018 | AI134: 52.2 | AJ134: 52.8 | AK134: 105 | AL134: 50.5 | AM134: 14 | AN134: 40 | AO134: 39.3 | AP134: 771 | AQ134: 757 | AR134: 79.2 | AS134: 233 | AT134: 221 | AU134: 235 | AV134: 261 | AW134: 50.1 | AX134: 2 | AY134: 27.9 | AZ134: 27.8 | BA134: 538 | BB134: 536 | BC134: 2.1 | BD134: 2.8 | BE134: 43.2 | BF134: 7.6 | BG134: 5.3 | BH134: 89.9 | BI134: 53.5 | BJ134: 69.8 | BK134: 50.6 | BL134: 552 | BM134: 538 | BN134: 334 | BO134: 433 | BP134: 323 | BQ134: 269 | BR134: 389 | BS134: 4 | BT134: 8 | BU134: 4 | BV134: 1157 | BW134: =Table1[[#This Row],[SF]]/Table1[[#This Row],[CF]] -> 0.5347912525 | BX134: =Table1[[#This Row],[MSF]]/Table1[[#This Row],[CF]] -> 0.231610338 | BY134: =Table1[[#This Row],[BSF]]/Table1[[#This Row],[CF]] -> 0.2335984095 | BZ134: =Table1[[#This Row],[SA]]/Table1[[#This Row],[CA]] -> 0.5265225933 | CA134: =Table1[[#This Row],[MSA]]/Table1[[#This Row],[CA]] -> 0.2170923379 | CB134: =Table1[[#This Row],[BSA]]/Table1[[#This Row],[CA]] -> 0.2563850688
A135: 5v5 | B135: Up1 | C135: T.B | D135: 53 | E135: 20052006 | F135: 28 | G135: 26 | H135: 2 | I135: 47.4 | J135: 103.8 | K135: 72.8 | L135: 11 | M135: 89.7 | N135: 52 | O135: 100.7 | P135: 51.6 | Q135: 48.8 | R135: -5 | S135: 104 | T135: 109 | U135: 11.5 | V135: 12.1 | W135: 23.6 | X135: 48.4 | Y135: -16 | Z135: 240 | AA135: 256 | AB135: 26.6 | AC135: 28.3 | AD135: 54.9 | AE135: 47.4 | AF135: -48 | AG135: 445 | AH135: 493 | AI135: 49.3 | AJ135: 54.6 | AK135: 103.8 | AL135: 49.3 | AM135: -10 | AN135: 38.6 | AO135: 39.7 | AP135: 349 | AQ135: 359 | AR135: 78.4 | AS135: 95 | AT135: 107 | AU135: 96 | AV135: 134 | AW135: 50.2 | AX135: 2 | AY135: 28.1 | AZ135: 27.9 | BA135: 254 | BB135: 252 | BC135: 3.1 | BD135: 2.9 | BE135: 51.9 | BF135: 11 | BG135: 8 | BH135: 89.7 | BI135: 57.1 | BJ135: 72.8 | BK135: 52 | BL135: 268 | BM135: 247 | BN135: 160 | BO135: 205 | BP135: 150 | BQ135: 102 | BR135: 172 | BS135: 3 | BT135: 2 | BU135: -1 | BV135: 542.1 | BW135: =Table1[[#This Row],[SF]]/Table1[[#This Row],[CF]] -> 0.5707865169 | BX135: =Table1[[#This Row],[MSF]]/Table1[[#This Row],[CF]] -> 0.2134831461 | BY135: =Table1[[#This Row],[BSF]]/Table1[[#This Row],[CF]] -> 0.2157303371 | BZ135: =Table1[[#This Row],[SA]]/Table1[[#This Row],[CA]] -> 0.5111561866 | CA135: =Table1[[#This Row],[MSA]]/Table1[[#This Row],[CA]] -> 0.2170385396 | CB135: =Table1[[#This Row],[BSA]]/Table1[[#This Row],[CA]] -> 0.2718052738
A136: 5v5 | B136: Dn1 | C136: T.B | D136: 52 | E136: 20052006 | F136: 30 | G136: 25 | H136: 5 | I136: 55.3 | J136: 112.7 | K136: 70.8 | L136: 9.6 | M136: 89.9 | N136: 49.2 | O136: 99.6 | P136: 56.6 | Q136: 61.4 | R136: 57 | S136: 154 | T136: 97 | U136: 16.9 | V136: 10.6 | W136: 27.5 | X136: 57.2 | Y136: 82 | Z136: 324 | AA136: 242 | AB136: 35.5 | AC136: 26.5 | AD136: 62.1 | AE136: 55.3 | AF136: 109 | AG136: 568 | AH136: 459 | AI136: 62.3 | AJ136: 50.4 | AK136: 112.7 | AL136: 56.1 | AM136: 96 | AN136: 48.2 | AO136: 37.6 | AP136: 439 | AQ136: 343 | AR136: 85.8 | AS136: 128 | AT136: 95 | AU136: 129 | AV136: 116 | AW136: 55.6 | AX136: 63 | AY136: 34.1 | AZ136: 27.2 | BA136: 311 | BB136: 248 | BC136: 3.3 | BD136: 2.7 | BE136: 54.5 | BF136: 9.6 | BG136: 6.8 | BH136: 89.9 | BI136: 54.8 | BJ136: 70.8 | BK136: 49.2 | BL136: 259 | BM136: 267 | BN136: 175 | BO136: 217 | BP136: 134 | BQ136: 133 | BR136: 145 | BS136: 2 | BT136: 2 | BU136: 0 | BV136: 546.9 | BW136: =Table1[[#This Row],[SF]]/Table1[[#This Row],[CF]] -> 0.5475352113 | BX136: =Table1[[#This Row],[MSF]]/Table1[[#This Row],[CF]] -> 0.2253521127 | BY136: =Table1[[#This Row],[BSF]]/Table1[[#This Row],[CF]] -> 0.2271126761 | BZ136: =Table1[[#This Row],[SA]]/Table1[[#This Row],[CA]] -> 0.5403050109 | CA136: =Table1[[#This Row],[MSA]]/Table1[[#This Row],[CA]] -> 0.2069716776 | CB136: =Table1[[#This Row],[BSA]]/Table1[[#This Row],[CA]] -> 0.2527233115
A137: 5v5 | B137: ScAdj | C137: TOR | D137: 77 | E137: 20052006 | F137: 111 | G137: 135 | H137: -24 | I137: 47 | J137: 102.9 | K137: 68.3 | L137: 9.5 | M137: 90.2 | N137: 51.7 | O137: 99.6 | P137: 50.5 | Q137: 45.2 | R137: -99.7 | S137: 469.6 | T137: 569.3 | U137: 10.1 | V137: 12.2 | W137: 22.3 | X137: 45.9 | Y137: -216.2 | Z137: 1209.3 | AA137: 1425.5 | AB137: 26 | AC137: 30.6 | AD137: 56.5 | AE137: 47 | AF137: -287.3 | AG137: 2253.8 | AH137: 2541 | AI137: 48.4 | AJ137: 54.5 | AK137: 102.9 | AL137: 46.8 | AM137: -232.6 | AN137: 36.9 | AO137: 41.9 | AP137: 1719.7 | AQ137: 1952.3 | AR137: 78.8 | AS137: 545.6 | AT137: 581.6 | AU137: 534.1 | AV137: 588.7 | AW137: 46.1 | AX137: -196.6 | AY137: 25.2 | AZ137: 29.4 | BA137: 1174.1 | BB137: 1370.7 | BC137: 2.4 | BD137: 2.9 | BE137: 45.1 | BF137: 9.5 | BG137: 6.5 | BH137: 90.2 | BI137: 52.1 | BJ137: 68.3 | BK137: 51.7 | BL137: 1334 | BM137: 1246 | BN137: 737 | BO137: 1122 | BP137: 721 | BQ137: 1322 | BR137: 1161 | BS137: 18 | BT137: 20 | BU137: 2 | BV137: 2795.9 | BW137: =Table1[[#This Row],[SF]]/Table1[[#This Row],[CF]] -> 0.5209424084 | BX137: =Table1[[#This Row],[MSF]]/Table1[[#This Row],[CF]] -> 0.2420800426 | BY137: =Table1[[#This Row],[BSF]]/Table1[[#This Row],[CF]] -> 0.236977549 | BZ137: =Table1[[#This Row],[SA]]/Table1[[#This Row],[CA]] -> 0.539433294 | CA137: =Table1[[#This Row],[MSA]]/Table1[[#This Row],[CA]] -> 0.2288862652 | CB137: =Table1[[#This Row],[BSA]]/Table1[[#This Row],[CA]] -> 0.2316804408
A138: 5v5 | B138: Close | C138: TOR | D138: 77 | E138: 20052006 | F138: 66 | G138: 73 | H138: -7 | I138: 48.1 | J138: 108.4 | K138: 67.3 | L138: 8.8 | M138: 91 | N138: 51.3 | O138: 99.9 | P138: 50.5 | Q138: 48.3 | R138: -22 | S138: 320 | T138: 342 | U138: 11.2 | V138: 12 | W138: 23.2 | X138: 46.9 | Y138: -103 | Z138: 772 | AA138: 875 | AB138: 27.1 | AC138: 30.7 | AD138: 57.8 | AE138: 48.1 | AF138: -116 | AG138: 1486 | AH138: 1602 | AI138: 52.2 | AJ138: 56.2 | AK138: 108.4 | AL138: 47.7 | AM138: -109 | AN138: 38.9 | AO138: 42.7 | AP138: 1108 | AQ138: 1217 | AR138: 81.6 | AS138: 362 | AT138: 403 | AU138: 378 | AV138: 385 | AW138: 47.8 | AX138: -68 | AY138: 26.2 | AZ138: 28.6 | BA138: 746 | BB138: 814 | BC138: 2.3 | BD138: 2.6 | BE138: 47.5 | BF138: 8.8 | BG138: 6 | BH138: 91 | BI138: 50.2 | BJ138: 67.3 | BK138: 51.3 | BL138: 821 | BM138: 778 | BN138: 452 | BO138: 704 | BP138: 443 | BQ138: 821 | BR138: 737 | BS138: 4 | BT138: 4 | BU138: 0 | BV138: 1709.4 | BW138: =Table1[[#This Row],[SF]]/Table1[[#This Row],[CF]] -> 0.5020188425 | BX138: =Table1[[#This Row],[MSF]]/Table1[[#This Row],[CF]] -> 0.2436069987 | BY138: =Table1[[#This Row],[BSF]]/Table1[[#This Row],[CF]] -> 0.2543741588 | BZ138: =Table1[[#This Row],[SA]]/Table1[[#This Row],[CA]] -> 0.5081148564 | CA138: =Table1[[#This Row],[MSA]]/Table1[[#This Row],[CA]] -> 0.2515605493 | CB138: =Table1[[#This Row],[BSA]]/Table1[[#This Row],[CA]] -> 0.2403245943
A139: 5v5 | B139: Tied | C139: TOR | D139: 77 | E139: 20052006 | F139: 43 | G139: 44 | H139: -1 | I139: 48.8 | J139: 105.3 | K139: 67.1 | L139: 10.1 | M139: 90.6 | N139: 50.1 | O139: 100.7 | P139: 52.6 | Q139: 48.6 | R139: -11 | S139: 190 | T139: 201 | U139: 11.6 | V139: 12.3 | W139: 23.8 | X139: 46.6 | Y139: -63 | Z139: 435 | AA139: 498 | AB139: 26.5 | AC139: 30.4 | AD139: 56.9 | AE139: 48.8 | AF139: -43 | AG139: 842 | AH139: 885 | AI139: 51.4 | AJ139: 54 | AK139: 105.3 | AL139: 48.5 | AM139: -39 | AN139: 38.5 | AO139: 40.9 | AP139: 632 | AQ139: 671 | AR139: 79.5 | AS139: 208 | AT139: 204 | AU139: 210 | AV139: 214 | AW139: 47.6 | AX139: -43 | AY139: 25.9 | AZ139: 28.5 | BA139: 424 | BB139: 467 | BC139: 2.6 | BD139: 2.7 | BE139: 49.4 | BF139: 10.1 | BG139: 6.8 | BH139: 90.6 | BI139: 50.4 | BJ139: 67.1 | BK139: 50.1 | BL139: 450 | BM139: 449 | BN139: 260 | BO139: 405 | BP139: 234 | BQ139: 463 | BR139: 401 | BS139: 2 | BT139: 2 | BU139: 0 | BV139: 983.8 | BW139: =Table1[[#This Row],[SF]]/Table1[[#This Row],[CF]] -> 0.5035629454 | BX139: =Table1[[#This Row],[MSF]]/Table1[[#This Row],[CF]] -> 0.2470308789 | BY139: =Table1[[#This Row],[BSF]]/Table1[[#This Row],[CF]] -> 0.2494061758 | BZ139: =Table1[[#This Row],[SA]]/Table1[[#This Row],[CA]] -> 0.5276836158 | CA139: =Table1[[#This Row],[MSA]]/Table1[[#This Row],[CA]] -> 0.2305084746 | CB139: =Table1[[#This Row],[BSA]]/Table1[[#This Row],[CA]] -> 0.2418079096
A140: 5v5 | B140: Up1 | C140: TOR | D140: 55 | E140: 20052006 | F140: 15 | G140: 28 | H140: -13 | I140: 41.7 | J140: 109.9 | K140: 63.6 | L140: 6.9 | M140: 91.2 | N140: 51.5 | O140: 98.1 | P140: 44.6 | Q140: 37.8 | R140: -54 | S140: 84 | T140: 138 | U140: 8.7 | V140: 14.3 | W140: 23.1 | X140: 41.3 | Y140: -98 | Z140: 233 | AA140: 331 | AB140: 24.2 | AC140: 34.4 | AD140: 58.6 | AE140: 41.7 | AF140: -175 | AG140: 441 | AH140: 616 | AI140: 45.8 | AJ140: 64 | AK140: 109.9 | AL140: 42 | AM140: -130 | AN140: 35.4 | AO140: 49 | AP140: 341 | AQ140: 471 | AR140: 84.4 | AS140: 124 | AT140: 154 | AU140: 100 | AV140: 145 | AW140: 40.6 | AX140: -100 | AY140: 22.6 | AZ140: 32.9 | BA140: 217 | BB140: 317 | BC140: 1.6 | BD140: 2.9 | BE140: 34.9 | BF140: 6.9 | BG140: 4.4 | BH140: 91.2 | BI140: 49.2 | BJ140: 63.6 | BK140: 51.5 | BL140: 268 | BM140: 252 | BN140: 133 | BO140: 222 | BP140: 165 | BQ140: 270 | BR140: 267 | BS140: 2 | BT140: 0 | BU140: -2 | BV140: 577.3 | BW140: =Table1[[#This Row],[SF]]/Table1[[#This Row],[CF]] -> 0.4920634921 | BX140: =Table1[[#This Row],[MSF]]/Table1[[#This Row],[CF]] -> 0.2811791383 | BY140: =Table1[[#This Row],[BSF]]/Table1[[#This Row],[CF]] -> 0.2267573696 | BZ140: =Table1[[#This Row],[SA]]/Table1[[#This Row],[CA]] -> 0.5146103896 | CA140: =Table1[[#This Row],[MSA]]/Table1[[#This Row],[CA]] -> 0.25 | CB140: =Table1[[#This Row],[BSA]]/Table1[[#This Row],[CA]] -> 0.2353896104
A141: 5v5 | B141: Dn1 | C141: TOR | D141: 49 | E141: 20052006 | F141: 21 | G141: 17 | H141: 4 | I141: 52.2 | J141: 107 | K141: 67.9 | L141: 8.5 | M141: 92.6 | N141: 53.7 | O141: 101.1 | P141: 52 | Q141: 52.8 | R141: 11 | S141: 105 | T141: 94 | U141: 11.8 | V141: 10.6 | W141: 22.4 | X141: 51.5 | Y141: 15 | Z141: 266 | AA141: 251 | AB141: 29.9 | AC141: 28.3 | AD141: 58.2 | AE141: 52.2 | AF141: 41 | AG141: 496 | AH141: 455 | AI141: 55.8 | AJ141: 51.2 | AK141: 107 | AL141: 50.5 | AM141: 7 | AN141: 41 | AO141: 40.2 | AP141: 364 | AQ141: 357 | AR141: 81.2 | AS141: 117 | AT141: 127 | AU141: 132 | AV141: 98 | AW141: 51.8 | AX141: 17 | AY141: 27.8 | AZ141: 25.9 | BA141: 247 | BB141: 230 | BC141: 2.4 | BD141: 1.9 | BE141: 55.3 | BF141: 8.5 | BG141: 5.8 | BH141: 92.6 | BI141: 49.8 | BJ141: 67.9 | BK141: 53.7 | BL141: 268 | BM141: 231 | BN141: 153 | BO141: 205 | BP141: 141 | BQ141: 269 | BR141: 220 | BS141: 1 | BT141: 2 | BU141: 1 | BV141: 533.1 | BW141: =Table1[[#This Row],[SF]]/Table1[[#This Row],[CF]] -> 0.497983871 | BX141: =Table1[[#This Row],[MSF]]/Table1[[#This Row],[CF]] -> 0.2358870968 | BY141: =Table1[[#This Row],[BSF]]/Table1[[#This Row],[CF]] -> 0.2661290323 | BZ141: =Table1[[#This Row],[SA]]/Table1[[#This Row],[CA]] -> 0.5054945055 | CA141: =Table1[[#This Row],[MSA]]/Table1[[#This Row],[CA]] -> 0.2791208791 | CB141: =Table1[[#This Row],[BSA]]/Table1[[#This Row],[CA]] -> 0.2153846154
A142: 5v5 | B142: ScAdj | C142: VAN | D142: 82 | E142: 20052006 | F142: 122 | G142: 131 | H142: -9 | I142: 50.8 | J142: 107.6 | K142: 68.9 | L142: 9.2 | M142: 90.5 | N142: 49.2 | O142: 99.7 | P142: 52.7 | Q142: 51.2 | R142: 23.2 | S142: 502.3 | T142: 479 | U142: 10.7 | V142: 10.2 | W142: 20.9 | X142: 50.8 | Y142: 40.2 | Z142: 1301.6 | AA142: 1261.3 | AB142: 27.7 | AC142: 26.9 | AD142: 54.6 | AE142: 50.8 | AF142: 77.4 | AG142: 2563.1 | AH142: 2485.7 | AI142: 54.6 | AJ142: 53 | AK142: 107.6 | AL142: 49.9 | AM142: -4.7 | AN142: 40.9 | AO142: 41 | AP142: 1916.6 | AQ142: 1921.3 | AR142: 81.8 | AS142: 595.7 | AT142: 545.8 | AU142: 646.5 | AV142: 564.4 | AW142: 49 | AX142: -54.6 | AY142: 28.2 | AZ142: 29.3 | BA142: 1320.8 | BB142: 1375.4 | BC142: 2.6 | BD142: 2.8 | BE142: 48.2 | BF142: 9.2 | BG142: 6.4 | BH142: 90.5 | BI142: 51.5 | BJ142: 68.9 | BK142: 49.2 | BL142: 1272 | BM142: 1315 | BN142: 782 | BO142: 1102 | BP142: 703 | BQ142: 1045 | BR142: 979 | BS142: 42 | BT142: 44 | BU142: 2 | BV142: 2814.9 | BW142: =Table1[[#This Row],[SF]]/Table1[[#This Row],[CF]] -> 0.5153134876 | BX142: =Table1[[#This Row],[MSF]]/Table1[[#This Row],[CF]] -> 0.2324138738 | BY142: =Table1[[#This Row],[BSF]]/Table1[[#This Row],[CF]] -> 0.2522336233 | BZ142: =Table1[[#This Row],[SA]]/Table1[[#This Row],[CA]] -> 0.5533250191 | CA142: =Table1[[#This Row],[MSA]]/Table1[[#This Row],[CA]] -> 0.2195759746 | CB142: =Table1[[#This Row],[BSA]]/Table1[[#This Row],[CA]] -> 0.2270587762
A143: 5v5 | B143: Close | C143: VAN | D143: 82 | E143: 20052006 | F143: 80 | G143: 72 | H143: 8 | I143: 51.7 | J143: 108.4 | K143: 68.8 | L143: 9.8 | M143: 91.3 | N143: 49.1 | O143: 101 | P143: 53.4 | Q143: 51.5 | R143: 18 | S143: 317 | T143: 299 | U143: 11.3 | V143: 10.7 | W143: 22 | X143: 51.5 | Y143: 46 | Z143: 797 | AA143: 751 | AB143: 28.4 | AC143: 26.8 | AD143: 55.2 | AE143: 51.7 | AF143: 101 | AG143: 1570 | AH143: 1469 | AI143: 56 | AJ143: 52.4 | AK143: 108.4 | AL143: 51.2 | AM143: 57 | AN143: 42.5 | AO143: 40.5 | AP143: 1191 | AQ143: 1134 | AR143: 83 | AS143: 371 | AT143: 307 | AU143: 379 | AV143: 335 | AW143: 49.8 | AX143: -7 | AY143: 29.3 | AZ143: 29.5 | BA143: 820 | BB143: 827 | BC143: 2.9 | BD143: 2.6 | BE143: 52.6 | BF143: 9.8 | BG143: 6.7 | BH143: 91.3 | BI143: 52.2 | BJ143: 68.8 | BK143: 49.1 | BL143: 751 | BM143: 779 | BN143: 466 | BO143: 657 | BP143: 407 | BQ143: 678 | BR143: 639 | BS143: 31 | BT143: 30 | BU143: -1 | BV143: 1681.4 | BW143: =Table1[[#This Row],[SF]]/Table1[[#This Row],[CF]] -> 0.5222929936 | BX143: =Table1[[#This Row],[MSF]]/Table1[[#This Row],[CF]] -> 0.2363057325 | BY143: =Table1[[#This Row],[BSF]]/Table1[[#This Row],[CF]] -> 0.2414012739 | BZ143: =Table1[[#This Row],[SA]]/Table1[[#This Row],[CA]] -> 0.5629680054 | CA143: =Table1[[#This Row],[MSA]]/Table1[[#This Row],[CA]] -> 0.2089857046 | CB143: =Table1[[#This Row],[BSA]]/Table1[[#This Row],[CA]] -> 0.22804629
A144: 5v5 | B144: Tied | C144: VAN | D144: 82 | E144: 20052006 | F144: 49 | G144: 45 | H144: 4 | I144: 52.7 | J144: 106.8 | K144: 67.7 | L144: 9.8 | M144: 91 | N144: 49.5 | O144: 100.7 | P144: 54 | Q144: 51.4 | R144: 10 | S144: 189 | T144: 179 | U144: 10.9 | V144: 10.3 | W144: 21.2 | X144: 52.4 | Y144: 44 | Z144: 486 | AA144: 442 | AB144: 28.1 | AC144: 25.5 | AD144: 53.6 | AE144: 52.7 | AF144: 100 | AG144: 975 | AH144: 875 | AI144: 56.3 | AJ144: 50.5 | AK144: 106.8 | AL144: 52.4 | AM144: 69 | AN144: 42.8 | AO144: 38.8 | AP144: 742 | AQ144: 673 | AR144: 81.7 | AS144: 240 | AT144: 174 | AU144: 233 | AV144: 202 | AW144: 50.1 | AX144: 3 | AY144: 29 | AZ144: 28.8 | BA144: 502 | BB144: 499 | BC144: 2.8 | BD144: 2.6 | BE144: 52.1 | BF144: 9.8 | BG144: 6.6 | BH144: 91 | BI144: 51.5 | BJ144: 67.7 | BK144: 49.5 | BL144: 461 | BM144: 471 | BN144: 293 | BO144: 389 | BP144: 250 | BQ144: 435 | BR144: 391 | BS144: 22 | BT144: 18 | BU144: -4 | BV144: 1039.5 | BW144: =Table1[[#This Row],[SF]]/Table1[[#This Row],[CF]] -> 0.5148717949 | BX144: =Table1[[#This Row],[MSF]]/Table1[[#This Row],[CF]] -> 0.2461538462 | BY144: =Table1[[#This Row],[BSF]]/Table1[[#This Row],[CF]] -> 0.238974359 | BZ144: =Table1[[#This Row],[SA]]/Table1[[#This Row],[CA]] -> 0.5702857143 | CA144: =Table1[[#This Row],[MSA]]/Table1[[#This Row],[CA]] -> 0.1988571429 | CB144: =Table1[[#This Row],[BSA]]/Table1[[#This Row],[CA]] -> 0.2308571429
A145: 5v5 | B145: Up1 | C145: VAN | D145: 56 | E145: 20052006 | F145: 19 | G145: 28 | H145: -9 | I145: 45.9 | J145: 102.2 | K145: 68.5 | L145: 8.8 | M145: 88.6 | N145: 48.6 | O145: 97.5 | P145: 45.7 | Q145: 52.4 | R145: 8 | S145: 89 | T145: 81 | U145: 10.6 | V145: 9.7 | W145: 20.3 | X145: 47.5 | Y145: -23 | Z145: 216 | AA145: 239 | AB145: 25.8 | AC145: 28.5 | AD145: 54.3 | AE145: 45.9 | AF145: -71 | AG145: 393 | AH145: 464 | AI145: 46.9 | AJ145: 55.3 | AK145: 102.2 | AL145: 46.2 | AM145: -52 | AN145: 37.4 | AO145: 43.7 | AP145: 314 | AQ145: 366 | AR145: 81.1 | AS145: 99 | AT145: 120 | AU145: 79 | AV145: 98 | AW145: 46.6 | AX145: -31 | AY145: 25.6 | AZ145: 29.3 | BA145: 215 | BB145: 246 | BC145: 2.3 | BD145: 3.3 | BE145: 40.4 | BF145: 8.8 | BG145: 6.1 | BH145: 88.6 | BI145: 54.7 | BJ145: 68.5 | BK145: 48.6 | BL145: 225 | BM145: 238 | BN145: 118 | BO145: 205 | BP145: 140 | BQ145: 155 | BR145: 179 | BS145: 8 | BT145: 7 | BU145: -1 | BV145: 503.1 | BW145: =Table1[[#This Row],[SF]]/Table1[[#This Row],[CF]] -> 0.5470737913 | BX145: =Table1[[#This Row],[MSF]]/Table1[[#This Row],[CF]] -> 0.2519083969 | BY145: =Table1[[#This Row],[BSF]]/Table1[[#This Row],[CF]] -> 0.2010178117 | BZ145: =Table1[[#This Row],[SA]]/Table1[[#This Row],[CA]] -> 0.5301724138 | CA145: =Table1[[#This Row],[MSA]]/Table1[[#This Row],[CA]] -> 0.2586206897 | CB145: =Table1[[#This Row],[BSA]]/Table1[[#This Row],[CA]] -> 0.2112068966
A146: 5v5 | B146: Dn1 | C146: VAN | D146: 55 | E146: 20052006 | F146: 26 | G146: 19 | H146: 7 | I146: 51.9 | J146: 112.8 | K146: 69.3 | L146: 10.2 | M146: 93.1 | N146: 49.4 | O146: 103.3 | P146: 53.2 | Q146: 48.2 | R146: -7 | S146: 92 | T146: 99 | U146: 10.6 | V146: 11.4 | W146: 21.9 | X146: 49.5 | Y146: -5 | Z146: 246 | AA146: 251 | AB146: 28.3 | AC146: 28.8 | AD146: 57.1 | AE146: 51.9 | AF146: 38 | AG146: 510 | AH146: 472 | AI146: 58.6 | AJ146: 54.2 | AK146: 112.8 | AL146: 49.7 | AM146: -4 | AN146: 42.3 | AO146: 42.7 | AP146: 368 | AQ146: 372 | AR146: 85 | AS146: 113 | AT146: 95 | AU146: 142 | AV146: 100 | AW146: 47.9 | AX146: -22 | AY146: 29.3 | AZ146: 31.8 | BA146: 255 | BB146: 277 | BC146: 3 | BD146: 2.2 | BE146: 57.8 | BF146: 10.2 | BG146: 7.1 | BH146: 93.1 | BI146: 50 | BJ146: 69.3 | BK146: 49.4 | BL146: 233 | BM146: 239 | BN146: 151 | BO146: 188 | BP146: 133 | BQ146: 210 | BR146: 168 | BS146: 4 | BT146: 7 | BU146: 3 | BV146: 522.2 | BW146: =Table1[[#This Row],[SF]]/Table1[[#This Row],[CF]] -> 0.5 | BX146: =Table1[[#This Row],[MSF]]/Table1[[#This Row],[CF]] -> 0.2215686275 | BY146: =Table1[[#This Row],[BSF]]/Table1[[#This Row],[CF]] -> 0.2784313725 | BZ146: =Table1[[#This Row],[SA]]/Table1[[#This Row],[CA]] -> 0.5868644068 | CA146: =Table1[[#This Row],[MSA]]/Table1[[#This Row],[CA]] -> 0.2012711864 | CB146: =Table1[[#This Row],[BSA]]/Table1[[#This Row],[CA]] -> 0.2118644068
A147: 5v5 | B147: ScAdj | C147: WSH | D147: 80 | E147: 20052006 | F147: 129 | G147: 143 | H147: -14 | I147: 47.4 | J147: 107.8 | K147: 72 | L147: 9.9 | M147: 90.3 | N147: 49.7 | O147: 100.3 | P147: 47.7 | Q147: 48.9 | R147: -21.6 | S147: 484.7 | T147: 506.3 | U147: 10.5 | V147: 10.9 | W147: 21.4 | X147: 48.7 | Y147: -68.4 | Z147: 1255.9 | AA147: 1324.3 | AB147: 27.1 | AC147: 28.6 | AD147: 55.7 | AE147: 47.4 | AF147: -257.5 | AG147: 2368.5 | AH147: 2626 | AI147: 51.1 | AJ147: 56.7 | AK147: 107.8 | AL147: 46.8 | AM147: -249.4 | AN147: 39 | AO147: 44.4 | AP147: 1807.8 | AQ147: 2057.3 | AR147: 83.4 | AS147: 507.1 | AT147: 575.8 | AU147: 560.7 | AV147: 568.7 | AW147: 46.8 | AX147: -180.7 | AY147: 28.1 | AZ147: 32 | BA147: 1300.7 | BB147: 1481.5 | BC147: 2.8 | BD147: 3.1 | BE147: 47.4 | BF147: 9.9 | BG147: 7.1 | BH147: 90.3 | BI147: 54.9 | BJ147: 72 | BK147: 49.7 | BL147: 1305 | BM147: 1320 | BN147: 726 | BO147: 1102 | BP147: 797 | BQ147: 1117 | BR147: 962 | BS147: 32 | BT147: 27 | BU147: -5 | BV147: 2779.3 | BW147: =Table1[[#This Row],[SF]]/Table1[[#This Row],[CF]] -> 0.5491661389 | BX147: =Table1[[#This Row],[MSF]]/Table1[[#This Row],[CF]] -> 0.2141017522 | BY147: =Table1[[#This Row],[BSF]]/Table1[[#This Row],[CF]] -> 0.2367321089 | BZ147: =Table1[[#This Row],[SA]]/Table1[[#This Row],[CA]] -> 0.564166032 | CA147: =Table1[[#This Row],[MSA]]/Table1[[#This Row],[CA]] -> 0.21926885 | CB147: =Table1[[#This Row],[BSA]]/Table1[[#This Row],[CA]] -> 0.2165651181
A148: 5v5 | B148: Close | C148: WSH | D148: 80 | E148: 20052006 | F148: 72 | G148: 78 | H148: -6 | I148: 47.6 | J148: 113.9 | K148: 72.7 | L148: 8.9 | M148: 91.5 | N148: 47.8 | O148: 100.3 | P148: 48.4 | Q148: 46.8 | R148: -39 | S148: 287 | T148: 326 | U148: 10.3 | V148: 11.7 | W148: 22.1 | X148: 48.5 | Y148: -47 | Z148: 765 | AA148: 812 | AB148: 27.5 | AC148: 29.2 | AD148: 56.7 | AE148: 47.6 | AF148: -151 | AG148: 1508 | AH148: 1659 | AI148: 54.3 | AJ148: 59.7 | AK148: 113.9 | AL148: 47 | AM148: -141 | AN148: 40.1 | AO148: 45.2 | AP148: 1115 | AQ148: 1256 | AR148: 85.3 | AS148: 304 | AT148: 343 | AU148: 393 | AV148: 403 | AW148: 47 | AX148: -102 | AY148: 29.2 | AZ148: 32.8 | BA148: 811 | BB148: 913 | BC148: 2.6 | BD148: 2.8 | BE148: 48 | BF148: 8.9 | BG148: 6.5 | BH148: 91.5 | BI148: 53.8 | BJ148: 72.7 | BK148: 47.8 | BL148: 754 | BM148: 822 | BN148: 453 | BO148: 641 | BP148: 482 | BQ148: 684 | BR148: 628 | BS148: 18 | BT148: 13 | BU148: -5 | BV148: 1667.6 | BW148: =Table1[[#This Row],[SF]]/Table1[[#This Row],[CF]] -> 0.5377984085 | BX148: =Table1[[#This Row],[MSF]]/Table1[[#This Row],[CF]] -> 0.2015915119 | BY148: =Table1[[#This Row],[BSF]]/Table1[[#This Row],[CF]] -> 0.2606100796 | BZ148: =Table1[[#This Row],[SA]]/Table1[[#This Row],[CA]] -> 0.550331525 | CA148: =Table1[[#This Row],[MSA]]/Table1[[#This Row],[CA]] -> 0.2067510549 | CB148: =Table1[[#This Row],[BSA]]/Table1[[#This Row],[CA]] -> 0.2429174201
A149: 5v5 | B149: Tied | C149: WSH | D149: 79 | E149: 20052006 | F149: 38 | G149: 41 | H149: -3 | I149: 47.7 | J149: 114.3 | K149: 71.9 | L149: 7.7 | M149: 92.8 | N149: 49.2 | O149: 100.5 | P149: 47.1 | Q149: 48.3 | R149: -12 | S149: 169 | T149: 181 | U149: 9.9 | V149: 10.6 | W149: 20.5 | X149: 48.7 | Y149: -24 | Z149: 458 | AA149: 482 | AB149: 26.8 | AC149: 28.2 | AD149: 55 | AE149: 47.7 | AF149: -88 | AG149: 932 | AH149: 1020 | AI149: 54.6 | AJ149: 59.7 | AK149: 114.3 | AL149: 47.2 | AM149: -82 | AN149: 40.2 | AO149: 45 | AP149: 687 | AQ149: 769 | AR149: 85.3 | AS149: 193 | AT149: 202 | AU149: 245 | AV149: 251 | AW149: 46.6 | AX149: -73 | AY149: 28.9 | AZ149: 33.2 | BA149: 494 | BB149: 567 | BC149: 2.2 | BD149: 2.4 | BE149: 48.1 | BF149: 7.7 | BG149: 5.5 | BH149: 92.8 | BI149: 53 | BJ149: 71.9 | BK149: 49.2 | BL149: 466 | BM149: 481 | BN149: 264 | BO149: 387 | BP149: 296 | BQ149: 434 | BR149: 379 | BS149: 16 | BT149: 12 | BU149: -4 | BV149: 1024.5 | BW149: =Table1[[#This Row],[SF]]/Table1[[#This Row],[CF]] -> 0.5300429185 | BX149: =Table1[[#This Row],[MSF]]/Table1[[#This Row],[CF]] -> 0.2070815451 | BY149: =Table1[[#This Row],[BSF]]/Table1[[#This Row],[CF]] -> 0.2628755365 | BZ149: =Table1[[#This Row],[SA]]/Table1[[#This Row],[CA]] -> 0.5558823529 | CA149: =Table1[[#This Row],[MSA]]/Table1[[#This Row],[CA]] -> 0.1980392157 | CB149: =Table1[[#This Row],[BSA]]/Table1[[#This Row],[CA]] -> 0.2460784314
A150: 5v5 | B150: Up1 | C150: WSH | D150: 47 | E150: 20052006 | F150: 15 | G150: 25 | H150: -10 | I150: 40.5 | J150: 109.3 | K150: 67.7 | L150: 9.9 | M150: 89.1 | N150: 49.5 | O150: 99.1 | P150: 43.7 | Q150: 37 | R150: -38 | S150: 54 | T150: 92 | U150: 8 | V150: 13.6 | W150: 21.6 | X150: 41.1 | Y150: -67 | Z150: 154 | AA150: 221 | AB150: 22.8 | AC150: 32.7 | AD150: 55.5 | AE150: 40.5 | AF150: -140 | AG150: 299 | AH150: 439 | AI150: 44.3 | AJ150: 65 | AK150: 109.3 | AL150: 40.3 | AM150: -107 | AN150: 33 | AO150: 48.9 | AP150: 223 | AQ150: 330 | AR150: 81.9 | AS150: 72 | AT150: 100 | AU150: 76 | AV150: 109 | AW150: 39.6 | AX150: -79 | AY150: 22.4 | AZ150: 34.1 | BA150: 151 | BB150: 230 | BC150: 2.2 | BD150: 3.7 | BE150: 37.5 | BF150: 9.9 | BG150: 6.7 | BH150: 89.1 | BI150: 50.5 | BJ150: 67.7 | BK150: 49.5 | BL150: 197 | BM150: 201 | BN150: 101 | BO150: 167 | BP150: 130 | BQ150: 157 | BR150: 143 | BS150: 2 | BT150: 0 | BU150: -2 | BV150: 405.1 | BW150: =Table1[[#This Row],[SF]]/Table1[[#This Row],[CF]] -> 0.5050167224 | BX150: =Table1[[#This Row],[MSF]]/Table1[[#This Row],[CF]] -> 0.2408026756 | BY150: =Table1[[#This Row],[BSF]]/Table1[[#This Row],[CF]] -> 0.254180602 | BZ150: =Table1[[#This Row],[SA]]/Table1[[#This Row],[CA]] -> 0.5239179954 | CA150: =Table1[[#This Row],[MSA]]/Table1[[#This Row],[CA]] -> 0.2277904328 | CB150: =Table1[[#This Row],[BSA]]/Table1[[#This Row],[CA]] -> 0.2482915718
A151: 5v5 | B151: Dn1 | C151: WSH | D151: 64 | E151: 20052006 | F151: 32 | G151: 24 | H151: 8 | I151: 54.5 | J151: 110.2 | K151: 75.4 | L151: 10.3 | M151: 90.9 | N151: 46.3 | O151: 101.2 | P151: 53 | Q151: 55.3 | R151: 23 | S151: 121 | T151: 98 | U151: 13.1 | V151: 10.6 | W151: 23.7 | X151: 55.6 | Y151: 60 | Z151: 296 | AA151: 236 | AB151: 32 | AC151: 25.5 | AD151: 57.5 | AE151: 54.5 | AF151: 91 | AG151: 555 | AH151: 464 | AI151: 60 | AJ151: 50.2 | AK151: 110.2 | AL151: 53.7 | AM151: 56 | AN151: 44.4 | AO151: 38.4 | AP151: 411 | AQ151: 355 | AR151: 82.8 | AS151: 101 | AT151: 91 | AU151: 144 | AV151: 109 | AW151: 54 | AX151: 46 | AY151: 33.5 | AZ151: 28.5 | BA151: 310 | BB151: 264 | BC151: 3.5 | BD151: 2.6 | BE151: 57.1 | BF151: 10.3 | BG151: 7.8 | BH151: 90.9 | BI151: 55.9 | BJ151: 75.4 | BK151: 46.3 | BL151: 242 | BM151: 281 | BN151: 161 | BO151: 219 | BP151: 143 | BQ151: 197 | BR151: 194 | BS151: 3 | BT151: 4 | BU151: 1 | BV151: 554.9 | BW151: =Table1[[#This Row],[SF]]/Table1[[#This Row],[CF]] -> 0.5585585586 | BX151: =Table1[[#This Row],[MSF]]/Table1[[#This Row],[CF]] -> 0.181981982 | BY151: =Table1[[#This Row],[BSF]]/Table1[[#This Row],[CF]] -> 0.2594594595 | BZ151: =Table1[[#This Row],[SA]]/Table1[[#This Row],[CA]] -> 0.5689655172 | CA151: =Table1[[#This Row],[MSA]]/Table1[[#This Row],[CA]] -> 0.1961206897 | CB151: =Table1[[#This Row],[BSA]]/Table1[[#This Row],[CA]] -> 0.2349137931
A152: 5v5 | B152: ScAdj | C152: ANA | D152: 82 | E152: 20062007 | F152: 142 | G152: 123 | H152: 19 | I152: 54.5 | J152: 96.4 | K152: 71.6 | L152: 9.6 | M152: 90.3 | N152: 51.2 | O152: 100 | P152: 50.5 | Q152: 52.6 | R152: 51.7 | S152: 516.4 | T152: 464.8 | U152: 10 | V152: 9 | W152: 19 | X152: 53.4 | Y152: 171.1 | Z152: 1334 | AA152: 1162.9 | AB152: 25.8 | AC152: 22.5 | AD152: 48.3 | AE152: 54.5 | AF152: 452.2 | AG152: 2719.1 | AH152: 2266.9 | AI152: 52.6 | AJ152: 43.8 | AK152: 96.4 | AL152: 53.4 | AM152: 265.1 | AN152: 39.8 | AO152: 34.7 | AP152: 2061.2 | AQ152: 1796.1 | AR152: 74.5 | AS152: 585.9 | AT152: 522.5 | AU152: 658 | AV152: 470.8 | AW152: 53.7 | AX152: 201.6 | AY152: 28.5 | AZ152: 24.6 | BA152: 1475.3 | BB152: 1273.6 | BC152: 2.7 | BD152: 2.4 | BE152: 53.6 | BF152: 9.6 | BG152: 6.9 | BH152: 90.3 | BI152: 54.3 | BJ152: 71.6 | BK152: 51.2 | BL152: 1333 | BM152: 1273 | BN152: 754 | BO152: 1112 | BP152: 740 | BQ152: 1156 | BR152: 910 | BS152: 50 | BT152: 52 | BU152: 2 | BV152: 3104.5 | BW152: =Table1[[#This Row],[SF]]/Table1[[#This Row],[CF]] -> 0.5425692325 | BX152: =Table1[[#This Row],[MSF]]/Table1[[#This Row],[CF]] -> 0.2154757089 | BY152: =Table1[[#This Row],[BSF]]/Table1[[#This Row],[CF]] -> 0.2419918355 | BZ152: =Table1[[#This Row],[SA]]/Table1[[#This Row],[CA]] -> 0.5618245181 | CA152: =Table1[[#This Row],[MSA]]/Table1[[#This Row],[CA]] -> 0.2304909789 | CB152: =Table1[[#This Row],[BSA]]/Table1[[#This Row],[CA]] -> 0.2076845031
A153: 5v5 | B153: Close | C153: ANA | D153: 82 | E153: 20062007 | F153: 97 | G153: 72 | H153: 25 | I153: 54.6 | J153: 100.1 | K153: 72.4 | L153: 9.9 | M153: 91.3 | N153: 52.3 | O153: 101.2 | P153: 51.1 | Q153: 53.2 | R153: 41 | S153: 340 | T153: 299 | U153: 10.5 | V153: 9.2 | W153: 19.7 | X153: 53.4 | Y153: 110 | Z153: 857 | AA153: 747 | AB153: 26.5 | AC153: 23.1 | AD153: 49.6 | AE153: 54.6 | AF153: 296 | AG153: 1768 | AH153: 1472 | AI153: 54.6 | AJ153: 45.5 | AK153: 100.1 | AL153: 53.7 | AM153: 186 | AN153: 42 | AO153: 36.2 | AP153: 1359 | AQ153: 1173 | AR153: 78.2 | AS153: 375 | AT153: 343 | AU153: 409 | AV153: 299 | AW153: 54.2 | AX153: 154 | AY153: 30.4 | AZ153: 25.6 | BA153: 984 | BB153: 830 | BC153: 3 | BD153: 2.2 | BE153: 57.4 | BF153: 9.9 | BG153: 7.1 | BH153: 91.3 | BI153: 55.7 | BJ153: 72.4 | BK153: 52.3 | BL153: 853 | BM153: 778 | BN153: 482 | BO153: 688 | BP153: 461 | BQ153: 763 | BR153: 596 | BS153: 32 | BT153: 34 | BU153: 2 | BV153: 1942.1 | BW153: =Table1[[#This Row],[SF]]/Table1[[#This Row],[CF]] -> 0.556561086 | BX153: =Table1[[#This Row],[MSF]]/Table1[[#This Row],[CF]] -> 0.2121040724 | BY153: =Table1[[#This Row],[BSF]]/Table1[[#This Row],[CF]] -> 0.2313348416 | BZ153: =Table1[[#This Row],[SA]]/Table1[[#This Row],[CA]] -> 0.5638586957 | CA153: =Table1[[#This Row],[MSA]]/Table1[[#This Row],[CA]] -> 0.2330163043 | CB153: =Table1[[#This Row],[BSA]]/Table1[[#This Row],[CA]] -> 0.203125
A154: 5v5 | B154: Tied | C154: ANA | D154: 82 | E154: 20062007 | F154: 56 | G154: 44 | H154: 12 | I154: 55.9 | J154: 99.6 | K154: 71.8 | L154: 9.3 | M154: 91 | N154: 51.7 | O154: 100.2 | P154: 51.9 | Q154: 55.1 | R154: 41 | S154: 220 | T154: 179 | U154: 11 | V154: 9 | W154: 20 | X154: 55.4 | Y154: 107 | Z154: 549 | AA154: 442 | AB154: 27.5 | AC154: 22.2 | AD154: 49.7 | AE154: 55.9 | AF154: 236 | AG154: 1111 | AH154: 875 | AI154: 55.7 | AJ154: 43.9 | AK154: 99.6 | AL154: 54.6 | AM154: 141 | AN154: 42.3 | AO154: 35.2 | AP154: 843 | AQ154: 702 | AR154: 77.5 | AS154: 238 | AT154: 214 | AU154: 268 | AV154: 173 | AW154: 55.4 | AX154: 117 | AY154: 30.3 | AZ154: 24.5 | BA154: 605 | BB154: 488 | BC154: 2.8 | BD154: 2.2 | BE154: 56 | BF154: 9.3 | BG154: 6.6 | BH154: 91 | BI154: 54.5 | BJ154: 71.8 | BK154: 51.7 | BL154: 502 | BM154: 469 | BN154: 288 | BO154: 416 | BP154: 267 | BQ154: 489 | BR154: 372 | BS154: 15 | BT154: 17 | BU154: 2 | BV154: 1196.9 | BW154: =Table1[[#This Row],[SF]]/Table1[[#This Row],[CF]] -> 0.5445544554 | BX154: =Table1[[#This Row],[MSF]]/Table1[[#This Row],[CF]] -> 0.2142214221 | BY154: =Table1[[#This Row],[BSF]]/Table1[[#This Row],[CF]] -> 0.2412241224 | BZ154: =Table1[[#This Row],[SA]]/Table1[[#This Row],[CA]] -> 0.5577142857 | CA154: =Table1[[#This Row],[MSA]]/Table1[[#This Row],[CA]] -> 0.2445714286 | CB154: =Table1[[#This Row],[BSA]]/Table1[[#This Row],[CA]] -> 0.1977142857
A155: 5v5 | B155: Up1 | C155: ANA | D155: 62 | E155: 20062007 | F155: 29 | G155: 28 | H155: 1 | I155: 48.5 | J155: 98.2 | K155: 72 | L155: 9.6 | M155: 91.1 | N155: 53 | O155: 100.7 | P155: 45 | Q155: 45.4 | R155: -19 | S155: 93 | T155: 112 | U155: 8.5 | V155: 10.2 | W155: 18.7 | X155: 47.5 | Y155: -26 | Z155: 248 | AA155: 274 | AB155: 22.6 | AC155: 25 | AD155: 47.5 | AE155: 48.5 | AF155: -32 | AG155: 523 | AH155: 555 | AI155: 47.6 | AJ155: 50.5 | AK155: 98.2 | AL155: 49.1 | AM155: -15 | AN155: 38.1 | AO155: 39.4 | AP155: 418 | AQ155: 433 | AR155: 77.5 | AS155: 117 | AT155: 119 | AU155: 105 | AV155: 122 | AW155: 48.9 | AX155: -13 | AY155: 27.4 | AZ155: 28.6 | BA155: 301 | BB155: 314 | BC155: 2.6 | BD155: 2.6 | BE155: 50.9 | BF155: 9.6 | BG155: 6.9 | BH155: 91.1 | BI155: 57.6 | BJ155: 72 | BK155: 53 | BL155: 301 | BM155: 267 | BN155: 153 | BO155: 228 | BP155: 187 | BQ155: 226 | BR155: 178 | BS155: 14 | BT155: 15 | BU155: 1 | BV155: 658.8 | BW155: =Table1[[#This Row],[SF]]/Table1[[#This Row],[CF]] -> 0.5755258126 | BX155: =Table1[[#This Row],[MSF]]/Table1[[#This Row],[CF]] -> 0.223709369 | BY155: =Table1[[#This Row],[BSF]]/Table1[[#This Row],[CF]] -> 0.2007648184 | BZ155: =Table1[[#This Row],[SA]]/Table1[[#This Row],[CA]] -> 0.5657657658 | CA155: =Table1[[#This Row],[MSA]]/Table1[[#This Row],[CA]] -> 0.2144144144 | CB155: =Table1[[#This Row],[BSA]]/Table1[[#This Row],[CA]] -> 0.2198198198
A156: 5v5 | B156: Dn1 | C156: ANA | D156: 49 | E156: 20062007 | F156: 23 | G156: 17 | H156: 6 | I156: 59.7 | J156: 98.5 | K156: 72.9 | L156: 9.5 | M156: 90.3 | N156: 49.7 | O156: 99.8 | P156: 64.7 | Q156: 59 | R156: 24 | S156: 79 | T156: 55 | U156: 10.4 | V156: 7.2 | W156: 17.6 | X156: 56.9 | Y156: 49 | Z156: 203 | AA156: 154 | AB156: 26.7 | AC156: 20.3 | AD156: 47 | AE156: 59.7 | AF156: 145 | AG156: 447 | AH156: 302 | AI156: 58.8 | AJ156: 39.7 | AK156: 98.5 | AL156: 57.6 | AM156: 88 | AN156: 43.7 | AO156: 32.1 | AP156: 332 | AQ156: 244 | AR156: 75.8 | AS156: 90 | AT156: 68 | AU156: 115 | AV156: 58 | AW156: 57.9 | AX156: 66 | AY156: 31.8 | AZ156: 23.1 | BA156: 242 | BB156: 176 | BC156: 3 | BD156: 2.2 | BE156: 57.5 | BF156: 9.5 | BG156: 6.9 | BH156: 90.3 | BI156: 54.1 | BJ156: 72.9 | BK156: 49.7 | BL156: 192 | BM156: 194 | BN156: 141 | BO156: 168 | BP156: 77 | BQ156: 194 | BR156: 136 | BS156: 3 | BT156: 3 | BU156: 0 | BV156: 456.2 | BW156: =Table1[[#This Row],[SF]]/Table1[[#This Row],[CF]] -> 0.5413870246 | BX156: =Table1[[#This Row],[MSF]]/Table1[[#This Row],[CF]] -> 0.2013422819 | BY156: =Table1[[#This Row],[BSF]]/Table1[[#This Row],[CF]] -> 0.2572706935 | BZ156: =Table1[[#This Row],[SA]]/Table1[[#This Row],[CA]] -> 0.582781457 | CA156: =Table1[[#This Row],[MSA]]/Table1[[#This Row],[CA]] -> 0.2251655629 | CB156: =Table1[[#This Row],[BSA]]/Table1[[#This Row],[CA]] -> 0.1920529801
A157: 5v5 | B157: ScAdj | C157: ATL | D157: 80 | E157: 20062007 | F157: 144 | G157: 126 | H157: 18 | I157: 46.8 | J157: 110.8 | K157: 72.1 | L157: 9.8 | M157: 91.8 | N157: 53.7 | O157: 101.6 | P157: 44.1 | Q157: 49.8 | R157: -4.3 | S157: 572.1 | T157: 576.4 | U157: 11.1 | V157: 11.1 | W157: 22.2 | X157: 48.6 | Y157: -85 | Z157: 1449.9 | AA157: 1535 | AB157: 28 | AC157: 29.7 | AD157: 57.7 | AE157: 46.8 | AF157: -363.8 | AG157: 2684.1 | AH157: 3047.9 | AI157: 51.9 | AJ157: 58.9 | AK157: 110.8 | AL157: 48.2 | AM157: -155.9 | AN157: 39.3 | AO157: 42.4 | AP157: 2035.8 | AQ157: 2191.6 | AR157: 81.7 | AS157: 567 | AT157: 656.6 | AU157: 648.4 | AV157: 856.3 | AW157: 48.9 | AX157: -66.3 | AY157: 28.4 | AZ157: 29.7 | BA157: 1468.8 | BB157: 1535 | BC157: 2.8 | BD157: 2.4 | BE157: 53.3 | BF157: 9.8 | BG157: 7.1 | BH157: 91.8 | BI157: 54.7 | BJ157: 72.1 | BK157: 53.7 | BL157: 1580 | BM157: 1363 | BN157: 782 | BO157: 1170 | BP157: 991 | BQ157: 1136 | BR157: 1037 | BS157: 16 | BT157: 16 | BU157: 0 | BV157: 3104.3 | BW157: =Table1[[#This Row],[SF]]/Table1[[#This Row],[CF]] -> 0.5472225327 | BX157: =Table1[[#This Row],[MSF]]/Table1[[#This Row],[CF]] -> 0.2112439924 | BY157: =Table1[[#This Row],[BSF]]/Table1[[#This Row],[CF]] -> 0.2415707313 | BZ157: =Table1[[#This Row],[SA]]/Table1[[#This Row],[CA]] -> 0.503625447 | CA157: =Table1[[#This Row],[MSA]]/Table1[[#This Row],[CA]] -> 0.2154270153 | CB157: =Table1[[#This Row],[BSA]]/Table1[[#This Row],[CA]] -> 0.2809475376
A158: 5v5 | B158: Close | C158: ATL | D158: 80 | E158: 20062007 | F158: 90 | G158: 73 | H158: 17 | I158: 47.5 | J158: 114 | K158: 71.4 | L158: 9.5 | M158: 92.6 | N158: 53.7 | O158: 102 | P158: 43.7 | Q158: 49.8 | R158: -3 | S158: 374 | T158: 377 | U158: 11.5 | V158: 11.6 | W158: 23.1 | X158: 48.9 | Y158: -41 | Z158: 941 | AA158: 982 | AB158: 28.9 | AC158: 30.2 | AD158: 59.1 | AE158: 47.5 | AF158: -188 | AG158: 1759 | AH158: 1947 | AI158: 54.1 | AJ158: 59.9 | AK158: 114 | AL158: 48.6 | AM158: -79 | AN158: 40.9 | AO158: 43.3 | AP158: 1330 | AQ158: 1409 | AR158: 84.2 | AS158: 381 | AT158: 427 | AU158: 429 | AV158: 538 | AW158: 49.1 | AX158: -33 | AY158: 29.2 | AZ158: 30.2 | BA158: 949 | BB158: 982 | BC158: 2.8 | BD158: 2.2 | BE158: 55.2 | BF158: 9.5 | BG158: 6.8 | BH158: 92.6 | BI158: 54 | BJ158: 71.4 | BK158: 53.7 | BL158: 990 | BM158: 852 | BN158: 487 | BO158: 728 | BP158: 627 | BQ158: 768 | BR158: 672 | BS158: 9 | BT158: 9 | BU158: 0 | BV158: 1951 | BW158: =Table1[[#This Row],[SF]]/Table1[[#This Row],[CF]] -> 0.5395110858 | BX158: =Table1[[#This Row],[MSF]]/Table1[[#This Row],[CF]] -> 0.2166003411 | BY158: =Table1[[#This Row],[BSF]]/Table1[[#This Row],[CF]] -> 0.2438885731 | BZ158: =Table1[[#This Row],[SA]]/Table1[[#This Row],[CA]] -> 0.5043656908 | CA158: =Table1[[#This Row],[MSA]]/Table1[[#This Row],[CA]] -> 0.2193117617 | CB158: =Table1[[#This Row],[BSA]]/Table1[[#This Row],[CA]] -> 0.2763225475
A159: 5v5 | B159: Tied | C159: ATL | D159: 80 | E159: 20062007 | F159: 57 | G159: 40 | H159: 17 | I159: 48.5 | J159: 114.4 | K159: 71.4 | L159: 10.5 | M159: 92.6 | N159: 54.5 | O159: 103.1 | P159: 42.8 | Q159: 51.7 | R159: 15 | S159: 222 | T159: 207 | U159: 12 | V159: 11.2 | W159: 23.3 | X159: 49.9 | Y159: -2 | Z159: 534 | AA159: 536 | AB159: 29 | AC159: 29.1 | AD159: 58 | AE159: 48.5 | AF159: -64 | AG159: 1023 | AH159: 1087 | AI159: 55.5 | AJ159: 59 | AK159: 114.4 | AL159: 49.5 | AM159: -16 | AN159: 41.2 | AO159: 42 | AP159: 759 | AQ159: 775 | AR159: 83.2 | AS159: 217 | AT159: 234 | AU159: 264 | AV159: 312 | AW159: 50 | AX159: 1 | AY159: 29.4 | AZ159: 29.3 | BA159: 542 | BB159: 541 | BC159: 3.1 | BD159: 2.2 | BE159: 58.8 | BF159: 10.5 | BG159: 7.5 | BH159: 92.6 | BI159: 53 | BJ159: 71.4 | BK159: 54.5 | BL159: 558 | BM159: 465 | BN159: 272 | BO159: 387 | BP159: 364 | BQ159: 434 | BR159: 399 | BS159: 3 | BT159: 3 | BU159: 0 | BV159: 1106.3 | BW159: =Table1[[#This Row],[SF]]/Table1[[#This Row],[CF]] -> 0.5298142717 | BX159: =Table1[[#This Row],[MSF]]/Table1[[#This Row],[CF]] -> 0.2121212121 | BY159: =Table1[[#This Row],[BSF]]/Table1[[#This Row],[CF]] -> 0.2580645161 | BZ159: =Table1[[#This Row],[SA]]/Table1[[#This Row],[CA]] -> 0.497700092 | CA159: =Table1[[#This Row],[MSA]]/Table1[[#This Row],[CA]] -> 0.2152713891 | CB159: =Table1[[#This Row],[BSA]]/Table1[[#This Row],[CA]] -> 0.2870285189
A160: 5v5 | B160: Up1 | C160: ATL | D160: 59 | E160: 20062007 | F160: 26 | G160: 31 | H160: -5 | I160: 43.3 | J160: 110.2 | K160: 73.2 | L160: 7.6 | M160: 92.4 | N160: 51.9 | O160: 100 | P160: 41.7 | Q160: 43.1 | R160: -37 | S160: 115 | T160: 152 | U160: 9.2 | V160: 12.1 | W160: 21.3 | X160: 46.4 | Y160: -53 | Z160: 339 | AA160: 392 | AB160: 27 | AC160: 31.2 | AD160: 58.2 | AE160: 43.3 | AF160: -186 | AG160: 599 | AH160: 785 | AI160: 47.7 | AJ160: 62.5 | AK160: 110.2 | AL160: 44.3 | AM160: -120 | AN160: 37.1 | AO160: 46.7 | AP160: 466 | AQ160: 586 | AR160: 83.8 | AS160: 125 | AT160: 179 | AU160: 133 | AV160: 199 | AW160: 45.6 | AX160: -66 | AY160: 27.2 | AZ160: 32.4 | BA160: 341 | BB160: 407 | BC160: 2.1 | BD160: 2.5 | BE160: 45.6 | BF160: 7.6 | BG160: 5.6 | BH160: 92.4 | BI160: 56.9 | BJ160: 73.2 | BK160: 51.9 | BL160: 373 | BM160: 345 | BN160: 185 | BO160: 274 | BP160: 259 | BQ160: 262 | BR160: 252 | BS160: 3 | BT160: 2 | BU160: -1 | BV160: 753.4 | BW160: =Table1[[#This Row],[SF]]/Table1[[#This Row],[CF]] -> 0.5692821369 | BX160: =Table1[[#This Row],[MSF]]/Table1[[#This Row],[CF]] -> 0.2086811352 | BY160: =Table1[[#This Row],[BSF]]/Table1[[#This Row],[CF]] -> 0.2220367279 | BZ160: =Table1[[#This Row],[SA]]/Table1[[#This Row],[CA]] -> 0.5184713376 | CA160: =Table1[[#This Row],[MSA]]/Table1[[#This Row],[CA]] -> 0.2280254777 | CB160: =Table1[[#This Row],[BSA]]/Table1[[#This Row],[CA]] -> 0.2535031847
A161: 5v5 | B161: Dn1 | C161: ATL | D161: 53 | E161: 20062007 | F161: 27 | G161: 17 | H161: 10 | I161: 51.2 | J161: 114.3 | K161: 71.1 | L161: 10 | M161: 92.4 | N161: 54.9 | O161: 102.3 | P161: 49.5 | Q161: 54.9 | R161: 20 | S161: 113 | T161: 93 | U161: 13.5 | V161: 11.1 | W161: 24.6 | X161: 52.2 | Y161: 22 | Z161: 265 | AA161: 243 | AB161: 31.6 | AC161: 29 | AD161: 60.7 | AE161: 51.2 | AF161: 23 | AG161: 490 | AH161: 467 | AI161: 58.5 | AJ161: 55.8 | AK161: 114.3 | AL161: 54 | AM161: 57 | AN161: 45.5 | AO161: 38.7 | AP161: 381 | AQ161: 324 | AR161: 84.2 | AS161: 110 | AT161: 101 | AU161: 109 | AV161: 143 | AW161: 54.9 | AX161: 48 | AY161: 32.4 | AZ161: 26.6 | BA161: 271 | BB161: 223 | BC161: 3.2 | BD161: 2 | BE161: 61.4 | BF161: 10 | BG161: 7.1 | BH161: 92.4 | BI161: 55.3 | BJ161: 71.1 | BK161: 54.9 | BL161: 264 | BM161: 217 | BN161: 137 | BO161: 204 | BP161: 140 | BQ161: 183 | BR161: 152 | BS161: 3 | BT161: 4 | BU161: 1 | BV161: 502.4 | BW161: =Table1[[#This Row],[SF]]/Table1[[#This Row],[CF]] -> 0.5530612245 | BX161: =Table1[[#This Row],[MSF]]/Table1[[#This Row],[CF]] -> 0.2244897959 | BY161: =Table1[[#This Row],[BSF]]/Table1[[#This Row],[CF]] -> 0.2224489796 | BZ161: =Table1[[#This Row],[SA]]/Table1[[#This Row],[CA]] -> 0.47751606 | CA161: =Table1[[#This Row],[MSA]]/Table1[[#This Row],[CA]] -> 0.2162740899 | CB161: =Table1[[#This Row],[BSA]]/Table1[[#This Row],[CA]] -> 0.3062098501
A162: 5v5 | B162: ScAdj | C162: BOS | D162: 78 | E162: 20062007 | F162: 112 | G162: 160 | H162: -48 | I162: 45.5 | J162: 106.5 | K162: 71.2 | L162: 8.6 | M162: 90.2 | N162: 48.3 | O162: 98.8 | P162: 44.2 | Q162: 44.3 | R162: -120.1 | S162: 466.2 | T162: 586.2 | U162: 9.4 | V162: 11.9 | W162: 21.3 | X162: 44.4 | Y162: -303.6 | Z162: 1193.1 | AA162: 1496.8 | AB162: 24.2 | AC162: 30.3 | AD162: 54.5 | AE162: 45.5 | AF162: -470.9 | AG162: 2394.8 | AH162: 2865.6 | AI162: 48.5 | AJ162: 58 | AK162: 106.5 | AL162: 45.2 | AM162: -388.6 | AN162: 37 | AO162: 44.8 | AP162: 1825.3 | AQ162: 2213.9 | AR162: 81.8 | AS162: 525.7 | AT162: 581 | AU162: 569.4 | AV162: 651.7 | AW162: 44.3 | AX162: -333.2 | AY162: 26.3 | AZ162: 33.1 | BA162: 1299.7 | BB162: 1632.8 | BC162: 2.3 | BD162: 3.2 | BE162: 41.2 | BF162: 8.6 | BG162: 6.1 | BH162: 90.2 | BI162: 54.3 | BJ162: 71.2 | BK162: 48.3 | BL162: 1367 | BM162: 1466 | BN162: 769 | BO162: 1095 | BP162: 969 | BQ162: 1001 | BR162: 1058 | BS162: 34 | BT162: 27 | BU162: -7 | BV162: 2963.3 | BW162: =Table1[[#This Row],[SF]]/Table1[[#This Row],[CF]] -> 0.5427175547 | BX162: =Table1[[#This Row],[MSF]]/Table1[[#This Row],[CF]] -> 0.2195172875 | BY162: =Table1[[#This Row],[BSF]]/Table1[[#This Row],[CF]] -> 0.2377651578 | BZ162: =Table1[[#This Row],[SA]]/Table1[[#This Row],[CA]] -> 0.5697934115 | CA162: =Table1[[#This Row],[MSA]]/Table1[[#This Row],[CA]] -> 0.2027498604 | CB162: =Table1[[#This Row],[BSA]]/Table1[[#This Row],[CA]] -> 0.2274218314
A163: 5v5 | B163: Close | C163: BOS | D163: 78 | E163: 20062007 | F163: 79 | G163: 84 | H163: -5 | I163: 46.9 | J163: 107.6 | K163: 75 | L163: 9.1 | M163: 91.4 | N163: 48.4 | O163: 100.5 | P163: 46 | Q163: 45.4 | R163: -61 | S163: 300 | T163: 361 | U163: 10 | V163: 12 | W163: 22 | X163: 46.3 | Y163: -124 | Z163: 776 | AA163: 900 | AB163: 25.8 | AC163: 29.9 | AD163: 55.7 | AE163: 46.9 | AF163: -201 | AG163: 1517 | AH163: 1718 | AI163: 50.4 | AJ163: 57.1 | AK163: 107.6 | AL163: 46.9 | AM163: -153 | AN163: 38.4 | AO163: 43.5 | AP163: 1154 | AQ163: 1307 | AR163: 81.8 | AS163: 288 | AT163: 332 | AU163: 363 | AV163: 411 | AW163: 47 | AX163: -109 | AY163: 28.8 | AZ163: 32.4 | BA163: 866 | BB163: 975 | BC163: 2.6 | BD163: 2.8 | BE163: 48.5 | BF163: 9.1 | BG163: 6.8 | BH163: 91.4 | BI163: 57.1 | BJ163: 75 | BK163: 48.4 | BL163: 857 | BM163: 913 | BN163: 505 | BO163: 671 | BP163: 594 | BQ163: 660 | BR163: 657 | BS163: 19 | BT163: 16 | BU163: -3 | BV163: 1804.7 | BW163: =Table1[[#This Row],[SF]]/Table1[[#This Row],[CF]] -> 0.5708635465 | BX163: =Table1[[#This Row],[MSF]]/Table1[[#This Row],[CF]] -> 0.189848385 | BY163: =Table1[[#This Row],[BSF]]/Table1[[#This Row],[CF]] -> 0.2392880686 | BZ163: =Table1[[#This Row],[SA]]/Table1[[#This Row],[CA]] -> 0.5675203725 | CA163: =Table1[[#This Row],[MSA]]/Table1[[#This Row],[CA]] -> 0.1932479627 | CB163: =Table1[[#This Row],[BSA]]/Table1[[#This Row],[CA]] -> 0.2392316647
A164: 5v5 | B164: Tied | C164: BOS | D164: 77 | E164: 20062007 | F164: 53 | G164: 45 | H164: 8 | I164: 47.8 | J164: 109 | K164: 74.7 | L164: 10.4 | M164: 91.8 | N164: 46.9 | O164: 102.2 | P164: 45.4 | Q164: 43.5 | R164: -50 | S164: 167 | T164: 217 | U164: 9.6 | V164: 12.5 | W164: 22.1 | X164: 47.1 | Y164: -58 | Z164: 470 | AA164: 528 | AB164: 27.1 | AC164: 30.4 | AD164: 57.4 | AE164: 47.8 | AF164: -83 | AG164: 905 | AH164: 988 | AI164: 52.1 | AJ164: 56.9 | AK164: 109 | AL164: 47.9 | AM164: -59 | AN164: 39.4 | AO164: 42.8 | AP164: 685 | AQ164: 744 | AR164: 82.2 | AS164: 173 | AT164: 193 | AU164: 220 | AV164: 244 | AW164: 48.2 | AX164: -39 | AY164: 29.5 | AZ164: 31.7 | BA164: 512 | BB164: 551 | BC164: 3.1 | BD164: 2.6 | BE164: 54.1 | BF164: 10.4 | BG164: 7.7 | BH164: 91.8 | BI164: 56.6 | BJ164: 74.7 | BK164: 46.9 | BL164: 480 | BM164: 544 | BN164: 288 | BO164: 389 | BP164: 347 | BQ164: 382 | BR164: 353 | BS164: 11 | BT164: 7 | BU164: -4 | BV164: 1042.4 | BW164: =Table1[[#This Row],[SF]]/Table1[[#This Row],[CF]] -> 0.5657458564 | BX164: =Table1[[#This Row],[MSF]]/Table1[[#This Row],[CF]] -> 0.191160221 | BY164: =Table1[[#This Row],[BSF]]/Table1[[#This Row],[CF]] -> 0.2430939227 | BZ164: =Table1[[#This Row],[SA]]/Table1[[#This Row],[CA]] -> 0.5576923077 | CA164: =Table1[[#This Row],[MSA]]/Table1[[#This Row],[CA]] -> 0.1953441296 | CB164: =Table1[[#This Row],[BSA]]/Table1[[#This Row],[CA]] -> 0.2469635628
A165: 5v5 | B165: Up1 | C165: BOS | D165: 51 | E165: 20062007 | F165: 19 | G165: 28 | H165: -9 | I165: 42.1 | J165: 102.3 | K165: 75.7 | L165: 8.5 | M165: 90.8 | N165: 50 | O165: 99.3 | P165: 38.8 | Q165: 42.6 | R165: -29 | S165: 83 | T165: 112 | U165: 9.4 | V165: 12.7 | W165: 22.1 | X165: 43.4 | Y165: -61 | Z165: 199 | AA165: 260 | AB165: 22.6 | AC165: 29.5 | AD165: 52 | AE165: 42.1 | AF165: -142 | AG165: 380 | AH165: 522 | AI165: 43.1 | AJ165: 59.2 | AK165: 102.3 | AL165: 42.2 | AM165: -110 | AN165: 33.6 | AO165: 46 | AP165: 296 | AQ165: 406 | AR165: 79.6 | AS165: 72 | AT165: 100 | AU165: 84 | AV165: 116 | AW165: 42.3 | AX165: -82 | AY165: 25.4 | AZ165: 34.7 | BA165: 224 | BB165: 306 | BC165: 2.2 | BD165: 3.2 | BE165: 40.4 | BF165: 8.5 | BG165: 6.4 | BH165: 90.8 | BI165: 58.9 | BJ165: 75.7 | BK165: 50 | BL165: 264 | BM165: 264 | BN165: 126 | BO165: 203 | BP165: 199 | BQ165: 204 | BR165: 203 | BS165: 6 | BT165: 4 | BU165: -2 | BV165: 529.2 | BW165: =Table1[[#This Row],[SF]]/Table1[[#This Row],[CF]] -> 0.5894736842 | BX165: =Table1[[#This Row],[MSF]]/Table1[[#This Row],[CF]] -> 0.1894736842 | BY165: =Table1[[#This Row],[BSF]]/Table1[[#This Row],[CF]] -> 0.2210526316 | BZ165: =Table1[[#This Row],[SA]]/Table1[[#This Row],[CA]] -> 0.5862068966 | CA165: =Table1[[#This Row],[MSA]]/Table1[[#This Row],[CA]] -> 0.1915708812 | CB165: =Table1[[#This Row],[BSA]]/Table1[[#This Row],[CA]] -> 0.2222222222
A166: 5v5 | B166: Dn1 | C166: BOS | D166: 54 | E166: 20062007 | F166: 21 | G166: 29 | H166: -8 | I166: 48.9 | J166: 107.7 | K166: 73.8 | L166: 7.6 | M166: 90.7 | N166: 50 | O166: 98.3 | P166: 51.2 | Q166: 52.2 | R166: 9 | S166: 107 | T166: 98 | U166: 11.4 | V166: 10.4 | W166: 21.8 | X166: 45.2 | Y166: -49 | Z166: 232 | AA166: 281 | AB166: 24.7 | AC166: 29.9 | AD166: 54.7 | AE166: 48.9 | AF166: -23 | AG166: 494 | AH166: 517 | AI166: 52.6 | AJ166: 55.1 | AK166: 107.7 | AL166: 47.8 | AM166: -34 | AN166: 39.9 | AO166: 43.5 | AP166: 374 | AQ166: 408 | AR166: 83.3 | AS166: 98 | AT166: 95 | AU166: 120 | AV166: 109 | AW166: 46.9 | AX166: -37 | AY166: 29.4 | AZ166: 33.4 | BA166: 276 | BB166: 313 | BC166: 2.2 | BD166: 3.1 | BE166: 42 | BF166: 7.6 | BG166: 5.6 | BH166: 90.7 | BI166: 55.9 | BJ166: 73.8 | BK166: 50 | BL166: 261 | BM166: 261 | BN166: 177 | BO166: 176 | BP166: 169 | BQ166: 187 | BR166: 201 | BS166: 6 | BT166: 7 | BU166: 1 | BV166: 563 | BW166: =Table1[[#This Row],[SF]]/Table1[[#This Row],[CF]] -> 0.5587044534 | BX166: =Table1[[#This Row],[MSF]]/Table1[[#This Row],[CF]] -> 0.1983805668 | BY166: =Table1[[#This Row],[BSF]]/Table1[[#This Row],[CF]] -> 0.2429149798 | BZ166: =Table1[[#This Row],[SA]]/Table1[[#This Row],[CA]] -> 0.6054158607 | CA166: =Table1[[#This Row],[MSA]]/Table1[[#This Row],[CA]] -> 0.1837524178 | CB166: =Table1[[#This Row],[BSA]]/Table1[[#This Row],[CA]] -> 0.2108317215
A167: 5v5 | B167: ScAdj | C167: BUF | D167: 78 | E167: 20062007 | F167: 190 | G167: 132 | H167: 58 | I167: 48.3 | J167: 110.2 | K167: 71.4 | L167: 12.6 | M167: 91.7 | N167: 50.5 | O167: 104.3 | P167: 45.4 | Q167: 53.6 | R167: 85.2 | S167: 635 | T167: 549.8 | U167: 12.2 | V167: 10.5 | W167: 22.7 | X167: 50 | Y167: 1 | Z167: 1507.5 | AA167: 1506.5 | AB167: 28.9 | AC167: 28.9 | AD167: 57.8 | AE167: 48.3 | AF167: -200.5 | AG167: 2770.9 | AH167: 2971.4 | AI167: 53.2 | AJ167: 57 | AK167: 110.2 | AL167: 48.9 | AM167: -94.3 | AN167: 40.4 | AO167: 42.2 | AP167: 2104.9 | AQ167: 2199.2 | AR167: 82.6 | AS167: 601.9 | AT167: 618.4 | AU167: 666 | AV167: 772.2 | AW167: 48.7 | AX167: -77.8 | AY167: 28.8 | AZ167: 30.3 | BA167: 1503.1 | BB167: 1580.9 | BC167: 3.6 | BD167: 2.5 | BE167: 59 | BF167: 12.6 | BG167: 9 | BH167: 91.7 | BI167: 54.2 | BJ167: 71.4 | BK167: 50.5 | BL167: 1508 | BM167: 1476 | BN167: 793 | BO167: 1239 | BP167: 952 | BQ167: 1008 | BR167: 1166 | BS167: 23 | BT167: 26 | BU167: 3 | BV167: 3127.8 | BW167: =Table1[[#This Row],[SF]]/Table1[[#This Row],[CF]] -> 0.5424591288 | BX167: =Table1[[#This Row],[MSF]]/Table1[[#This Row],[CF]] -> 0.2172218413 | BY167: =Table1[[#This Row],[BSF]]/Table1[[#This Row],[CF]] -> 0.2403551193 | BZ167: =Table1[[#This Row],[SA]]/Table1[[#This Row],[CA]] -> 0.5320387696 | CA167: =Table1[[#This Row],[MSA]]/Table1[[#This Row],[CA]] -> 0.2081173857 | CB167: =Table1[[#This Row],[BSA]]/Table1[[#This Row],[CA]] -> 0.2598774988
A168: 5v5 | B168: Close | C168: BUF | D168: 78 | E168: 20062007 | F168: 112 | G168: 67 | H168: 45 | I168: 47.4 | J168: 113.2 | K168: 70.5 | L168: 12.1 | M168: 93.2 | N168: 50.7 | O168: 105.3 | P168: 45.4 | Q168: 54.1 | R168: 61 | S168: 399 | T168: 338 | U168: 12.4 | V168: 10.5 | W168: 22.8 | X168: 50.2 | Y168: 6 | Z168: 953 | AA168: 947 | AB168: 29.5 | AC168: 29.3 | AD168: 58.8 | AE168: 47.4 | AF168: -192 | AG168: 1731 | AH168: 1923 | AI168: 53.6 | AJ168: 59.6 | AK168: 113.2 | AL168: 48.4 | AM168: -84 | AN168: 40.6 | AO168: 43.2 | AP168: 1311 | AQ168: 1395 | AR168: 83.8 | AS168: 387 | AT168: 407 | AU168: 420 | AV168: 528 | AW168: 48.3 | AX168: -64 | AY168: 28.6 | AZ168: 30.6 | BA168: 924 | BB168: 988 | BC168: 3.5 | BD168: 2.1 | BE168: 62.6 | BF168: 12.1 | BG168: 8.5 | BH168: 93.2 | BI168: 53.4 | BJ168: 70.5 | BK168: 50.7 | BL168: 937 | BM168: 912 | BN168: 498 | BO168: 752 | BP168: 599 | BQ168: 637 | BR168: 768 | BS168: 11 | BT168: 12 | BU168: 1 | BV168: 1937.2 | BW168: =Table1[[#This Row],[SF]]/Table1[[#This Row],[CF]] -> 0.5337954939 | BX168: =Table1[[#This Row],[MSF]]/Table1[[#This Row],[CF]] -> 0.2235701906 | BY168: =Table1[[#This Row],[BSF]]/Table1[[#This Row],[CF]] -> 0.2426343154 | BZ168: =Table1[[#This Row],[SA]]/Table1[[#This Row],[CA]] -> 0.5137805512 | CA168: =Table1[[#This Row],[MSA]]/Table1[[#This Row],[CA]] -> 0.2116484659 | CB168: =Table1[[#This Row],[BSA]]/Table1[[#This Row],[CA]] -> 0.2745709828
A169: 5v5 | B169: Tied | C169: BUF | D169: 78 | E169: 20062007 | F169: 62 | G169: 41 | H169: 21 | I169: 48.2 | J169: 112.6 | K169: 69.6 | L169: 11.5 | M169: 92.8 | N169: 51.1 | O169: 104.3 | P169: 46.3 | Q169: 51.6 | R169: 13 | S169: 208 | T169: 195 | U169: 10.9 | V169: 10.3 | W169: 21.2 | X169: 48.8 | Y169: -26 | Z169: 524 | AA169: 550 | AB169: 27.6 | AC169: 28.9 | AD169: 56.5 | AE169: 48.2 | AF169: -79 | AG169: 1031 | AH169: 1110 | AI169: 54.2 | AJ169: 58.4 | AK169: 112.6 | AL169: 48.8 | AM169: -39 | AN169: 40.7 | AO169: 42.7 | AP169: 773 | AQ169: 812 | AR169: 83.4 | AS169: 235 | AT169: 246 | AU169: 258 | AV169: 298 | AW169: 48.7 | AX169: -28 | AY169: 28.3 | AZ169: 29.8 | BA169: 538 | BB169: 566 | BC169: 3.3 | BD169: 2.2 | BE169: 60.2 | BF169: 11.5 | BG169: 8 | BH169: 92.8 | BI169: 52.2 | BJ169: 69.6 | BK169: 51.1 | BL169: 542 | BM169: 519 | BN169: 293 | BO169: 428 | BP169: 340 | BQ169: 389 | BR169: 451 | BS169: 5 | BT169: 6 | BU169: 1 | BV169: 1140.9 | BW169: =Table1[[#This Row],[SF]]/Table1[[#This Row],[CF]] -> 0.5218234724 | BX169: =Table1[[#This Row],[MSF]]/Table1[[#This Row],[CF]] -> 0.2279340446 | BY169: =Table1[[#This Row],[BSF]]/Table1[[#This Row],[CF]] -> 0.250242483 | BZ169: =Table1[[#This Row],[SA]]/Table1[[#This Row],[CA]] -> 0.5099099099 | CA169: =Table1[[#This Row],[MSA]]/Table1[[#This Row],[CA]] -> 0.2216216216 | CB169: =Table1[[#This Row],[BSA]]/Table1[[#This Row],[CA]] -> 0.2684684685
A170: 5v5 | B170: Up1 | C170: BUF | D170: 63 | E170: 20062007 | F170: 38 | G170: 29 | H170: 9 | I170: 43.3 | J170: 114.3 | K170: 72.7 | L170: 13.6 | M170: 91.5 | N170: 48.8 | O170: 105.2 | P170: 39.3 | Q170: 51.2 | R170: 6 | S170: 123 | T170: 117 | U170: 12 | V170: 11.4 | W170: 23.4 | X170: 48.7 | Y170: -16 | Z170: 304 | AA170: 320 | AB170: 29.7 | AC170: 31.2 | AD170: 60.9 | AE170: 43.3 | AF170: -158 | AG170: 507 | AH170: 665 | AI170: 49.5 | AJ170: 64.9 | AK170: 114.3 | AL170: 45.1 | AM170: -84 | AN170: 37.5 | AO170: 45.7 | AP170: 384 | AQ170: 468 | AR170: 83.1 | AS170: 105 | AT170: 125 | AU170: 123 | AV170: 197 | AW170: 44.9 | AX170: -64 | AY170: 27.2 | AZ170: 33.5 | BA170: 279 | BB170: 343 | BC170: 3.7 | BD170: 2.8 | BE170: 56.7 | BF170: 13.6 | BG170: 9.9 | BH170: 91.5 | BI170: 55 | BJ170: 72.7 | BK170: 48.8 | BL170: 284 | BM170: 298 | BN170: 131 | BO170: 249 | BP170: 202 | BQ170: 163 | BR170: 235 | BS170: 4 | BT170: 4 | BU170: 0 | BV170: 615 | BW170: =Table1[[#This Row],[SF]]/Table1[[#This Row],[CF]] -> 0.550295858 | BX170: =Table1[[#This Row],[MSF]]/Table1[[#This Row],[CF]] -> 0.2071005917 | BY170: =Table1[[#This Row],[BSF]]/Table1[[#This Row],[CF]] -> 0.2426035503 | BZ170: =Table1[[#This Row],[SA]]/Table1[[#This Row],[CA]] -> 0.5157894737 | CA170: =Table1[[#This Row],[MSA]]/Table1[[#This Row],[CA]] -> 0.1879699248 | CB170: =Table1[[#This Row],[BSA]]/Table1[[#This Row],[CA]] -> 0.2962406015
A171: 5v5 | B171: Dn1 | C171: BUF | D171: 50 | E171: 20062007 | F171: 36 | G171: 18 | H171: 18 | I171: 51.6 | J171: 113 | K171: 72.4 | L171: 13 | M171: 93.4 | N171: 52.1 | O171: 106.4 | P171: 52.9 | Q171: 57.7 | R171: 34 | S171: 127 | T171: 93 | U171: 14.7 | V171: 10.8 | W171: 25.5 | X171: 55.6 | Y171: 59 | Z171: 295 | AA171: 236 | AB171: 34.2 | AC171: 27.3 | AD171: 61.5 | AE171: 51.6 | AF171: 31 | AG171: 503 | AH171: 472 | AI171: 58.3 | AJ171: 54.7 | AK171: 113 | AL171: 51.1 | AM171: 17 | AN171: 44.2 | AO171: 42.2 | AP171: 381 | AQ171: 364 | AR171: 86.3 | AS171: 105 | AT171: 93 | AU171: 122 | AV171: 108 | AW171: 50.5 | AX171: 5 | AY171: 32 | AZ171: 31.4 | BA171: 276 | BB171: 271 | BC171: 4.2 | BD171: 2.1 | BE171: 66.7 | BF171: 13 | BG171: 9.4 | BH171: 93.4 | BI171: 54.9 | BJ171: 72.4 | BK171: 52.1 | BL171: 264 | BM171: 243 | BN171: 164 | BO171: 197 | BP171: 146 | BQ171: 180 | BR171: 190 | BS171: 2 | BT171: 3 | BU171: 1 | BV171: 517.7 | BW171: =Table1[[#This Row],[SF]]/Table1[[#This Row],[CF]] -> 0.5487077535 | BX171: =Table1[[#This Row],[MSF]]/Table1[[#This Row],[CF]] -> 0.2087475149 | BY171: =Table1[[#This Row],[BSF]]/Table1[[#This Row],[CF]] -> 0.2425447316 | BZ171: =Table1[[#This Row],[SA]]/Table1[[#This Row],[CA]] -> 0.5741525424 | CA171: =Table1[[#This Row],[MSA]]/Table1[[#This Row],[CA]] -> 0.1970338983 | CB171: =Table1[[#This Row],[BSA]]/Table1[[#This Row],[CA]] -> 0.2288135593
A172: 5v5 | B172: ScAdj | C172: CAR | D172: 80 | E172: 20062007 | F172: 141 | G172: 163 | H172: -22 | I172: 53.1 | J172: 109.4 | K172: 70.9 | L172: 9.2 | M172: 88.7 | N172: 51.1 | O172: 97.9 | P172: 53.4 | Q172: 52 | R172: 46.5 | S172: 618.1 | T172: 571.6 | U172: 12.1 | V172: 11.2 | W172: 23.2 | X172: 51.3 | Y172: 76.4 | Z172: 1533.5 | AA172: 1457 | AB172: 29.9 | AC172: 28.4 | AD172: 58.4 | AE172: 53.1 | AF172: 342.8 | AG172: 2975.3 | AH172: 2632.5 | AI172: 58.1 | AJ172: 51.4 | AK172: 109.4 | AL172: 52.2 | AM172: 178.2 | AN172: 42.1 | AO172: 38.7 | AP172: 2159 | AQ172: 1980.8 | AR172: 80.8 | AS172: 629.1 | AT172: 543.9 | AU172: 816.2 | AV172: 651.7 | AW172: 51.6 | AX172: 93 | AY172: 29.9 | AZ172: 28 | BA172: 1529.9 | BB172: 1437 | BC172: 2.8 | BD172: 3.2 | BE172: 46.4 | BF172: 9.2 | BG172: 6.5 | BH172: 88.7 | BI172: 51.4 | BJ172: 70.9 | BK172: 51.1 | BL172: 1457 | BM172: 1395 | BN172: 884 | BO172: 1198 | BP172: 770 | BQ172: 1505 | BR172: 1585 | BS172: 18 | BT172: 22 | BU172: 4 | BV172: 3074.8 | BW172: =Table1[[#This Row],[SF]]/Table1[[#This Row],[CF]] -> 0.5142002487 | BX172: =Table1[[#This Row],[MSF]]/Table1[[#This Row],[CF]] -> 0.2114408631 | BY172: =Table1[[#This Row],[BSF]]/Table1[[#This Row],[CF]] -> 0.2743252781 | BZ172: =Table1[[#This Row],[SA]]/Table1[[#This Row],[CA]] -> 0.5458689459 | CA172: =Table1[[#This Row],[MSA]]/Table1[[#This Row],[CA]] -> 0.2066096866 | CB172: =Table1[[#This Row],[BSA]]/Table1[[#This Row],[CA]] -> 0.2475593542
A173: 5v5 | B173: Close | C173: CAR | D173: 80 | E173: 20062007 | F173: 83 | G173: 93 | H173: -10 | I173: 52.4 | J173: 115 | K173: 69.6 | L173: 9 | M173: 89.4 | N173: 50.7 | O173: 98.3 | P173: 53.8 | Q173: 51.4 | R173: 21 | S173: 382 | T173: 361 | U173: 12.6 | V173: 11.9 | W173: 24.6 | X173: 50.8 | Y173: 31 | Z173: 939 | AA173: 908 | AB173: 31.1 | AC173: 30.1 | AD173: 61.1 | AE173: 52.4 | AF173: 167 | AG173: 1821 | AH173: 1654 | AI173: 60.3 | AJ173: 54.7 | AK173: 115 | AL173: 52 | AM173: 104 | AN173: 44 | AO173: 40.5 | AP173: 1329 | AQ173: 1225 | AR173: 84.5 | AS173: 404 | AT173: 350 | AU173: 492 | AV173: 429 | AW173: 51.4 | AX173: 50 | AY173: 30.6 | AZ173: 29 | BA173: 925 | BB173: 875 | BC173: 2.7 | BD173: 3.1 | BE173: 47.2 | BF173: 9 | BG173: 6.2 | BH173: 89.4 | BI173: 50.8 | BJ173: 69.6 | BK173: 50.7 | BL173: 843 | BM173: 820 | BN173: 539 | BO173: 662 | BP173: 462 | BQ173: 944 | BR173: 1025 | BS173: 10 | BT173: 12 | BU173: 2 | BV173: 1812.9 | BW173: =Table1[[#This Row],[SF]]/Table1[[#This Row],[CF]] -> 0.5079626579 | BX173: =Table1[[#This Row],[MSF]]/Table1[[#This Row],[CF]] -> 0.221856123 | BY173: =Table1[[#This Row],[BSF]]/Table1[[#This Row],[CF]] -> 0.2701812191 | BZ173: =Table1[[#This Row],[SA]]/Table1[[#This Row],[CA]] -> 0.5290205562 | CA173: =Table1[[#This Row],[MSA]]/Table1[[#This Row],[CA]] -> 0.2116082225 | CB173: =Table1[[#This Row],[BSA]]/Table1[[#This Row],[CA]] -> 0.2593712213
A174: 5v5 | B174: Tied | C174: CAR | D174: 80 | E174: 20062007 | F174: 46 | G174: 57 | H174: -11 | I174: 50.9 | J174: 116.3 | K174: 70.8 | L174: 8.4 | M174: 89.1 | N174: 49.8 | O174: 97.5 | P174: 56 | Q174: 50.7 | R174: 6 | S174: 228 | T174: 222 | U174: 12.9 | V174: 12.6 | W174: 25.5 | X174: 50.5 | Y174: 12 | Z174: 556 | AA174: 544 | AB174: 31.5 | AC174: 30.8 | AD174: 62.2 | AE174: 50.9 | AF174: 39 | AG174: 1047 | AH174: 1008 | AI174: 59.2 | AJ174: 57 | AK174: 116.3 | AL174: 50.9 | AM174: 27 | AN174: 43.6 | AO174: 42.1 | AP174: 771 | AQ174: 744 | AR174: 85.7 | AS174: 225 | AT174: 220 | AU174: 276 | AV174: 264 | AW174: 51 | AX174: 22 | AY174: 30.9 | AZ174: 29.6 | BA174: 546 | BB174: 524 | BC174: 2.6 | BD174: 3.2 | BE174: 44.7 | BF174: 8.4 | BG174: 6 | BH174: 89.1 | BI174: 52.1 | BJ174: 70.8 | BK174: 49.8 | BL174: 487 | BM174: 491 | BN174: 336 | BO174: 378 | BP174: 264 | BQ174: 555 | BR174: 606 | BS174: 2 | BT174: 3 | BU174: 1 | BV174: 1060.6 | BW174: =Table1[[#This Row],[SF]]/Table1[[#This Row],[CF]] -> 0.5214899713 | BX174: =Table1[[#This Row],[MSF]]/Table1[[#This Row],[CF]] -> 0.2148997135 | BY174: =Table1[[#This Row],[BSF]]/Table1[[#This Row],[CF]] -> 0.2636103152 | BZ174: =Table1[[#This Row],[SA]]/Table1[[#This Row],[CA]] -> 0.5198412698 | CA174: =Table1[[#This Row],[MSA]]/Table1[[#This Row],[CA]] -> 0.2182539683 | CB174: =Table1[[#This Row],[BSA]]/Table1[[#This Row],[CA]] -> 0.2619047619
A175: 5v5 | B175: Up1 | C175: CAR | D175: 51 | E175: 20062007 | F175: 26 | G175: 27 | H175: -1 | I175: 55.2 | J175: 107.1 | K175: 64.2 | L175: 11.4 | M175: 86.9 | N175: 57.4 | O175: 98.3 | P175: 51.4 | Q175: 57.4 | R175: 30 | S175: 116 | T175: 86 | U175: 14.5 | V175: 10.7 | W175: 25.2 | X175: 54 | Y175: 40 | Z175: 269 | AA175: 229 | AB175: 33.6 | AC175: 28.6 | AD175: 62.2 | AE175: 55.2 | AF175: 90 | AG175: 474 | AH175: 384 | AI175: 59.2 | AJ175: 47.9 | AK175: 107.1 | AL175: 55 | AM175: 65 | AN175: 44.3 | AO175: 36.2 | AP175: 355 | AQ175: 290 | AR175: 80.5 | AS175: 127 | AT175: 84 | AU175: 119 | AV175: 94 | AW175: 52.5 | AX175: 22 | AY175: 28.5 | AZ175: 25.7 | BA175: 228 | BB175: 206 | BC175: 3.2 | BD175: 3.4 | BE175: 49.1 | BF175: 11.4 | BG175: 7.3 | BH175: 86.9 | BI175: 48.1 | BJ175: 64.2 | BK175: 57.4 | BL175: 252 | BM175: 187 | BN175: 130 | BO175: 186 | BP175: 123 | BQ175: 234 | BR175: 282 | BS175: 4 | BT175: 5 | BU175: 1 | BV175: 480.7 | BW175: =Table1[[#This Row],[SF]]/Table1[[#This Row],[CF]] -> 0.4810126582 | BX175: =Table1[[#This Row],[MSF]]/Table1[[#This Row],[CF]] -> 0.2679324895 | BY175: =Table1[[#This Row],[BSF]]/Table1[[#This Row],[CF]] -> 0.2510548523 | BZ175: =Table1[[#This Row],[SA]]/Table1[[#This Row],[CA]] -> 0.5364583333 | CA175: =Table1[[#This Row],[MSA]]/Table1[[#This Row],[CA]] -> 0.21875 | CB175: =Table1[[#This Row],[BSA]]/Table1[[#This Row],[CA]] -> 0.2447916667
A176: 5v5 | B176: Dn1 | C176: CAR | D176: 58 | E176: 20062007 | F176: 27 | G176: 33 | H176: -6 | I176: 55.6 | J176: 117.2 | K176: 69.6 | L176: 9.4 | M176: 87.3 | N176: 48.3 | O176: 96.6 | P176: 52.8 | Q176: 51.2 | R176: 5 | S176: 109 | T176: 104 | U176: 11.9 | V176: 11.3 | W176: 23.2 | X176: 49.7 | Y176: -3 | Z176: 265 | AA176: 268 | AB176: 28.9 | AC176: 29.2 | AD176: 58.1 | AE176: 55.6 | AF176: 120 | AG176: 598 | AH176: 478 | AI176: 65.1 | AJ176: 52.1 | AK176: 117.2 | AL176: 53.8 | AM176: 59 | AN176: 45.1 | AO176: 38.7 | AP176: 414 | AQ176: 355 | AR176: 83.8 | AS176: 126 | AT176: 96 | AU176: 184 | AV176: 123 | AW176: 52.7 | AX176: 29 | AY176: 31.4 | AZ176: 28.2 | BA176: 288 | BB176: 259 | BC176: 2.9 | BD176: 3.6 | BE176: 45 | BF176: 9.4 | BG176: 6.5 | BH176: 87.3 | BI176: 48.2 | BJ176: 69.6 | BK176: 48.3 | BL176: 245 | BM176: 262 | BN176: 152 | BO176: 219 | BP176: 136 | BQ176: 285 | BR176: 265 | BS176: 5 | BT176: 5 | BU176: 0 | BV176: 550.8 | BW176: =Table1[[#This Row],[SF]]/Table1[[#This Row],[CF]] -> 0.4816053512 | BX176: =Table1[[#This Row],[MSF]]/Table1[[#This Row],[CF]] -> 0.2107023411 | BY176: =Table1[[#This Row],[BSF]]/Table1[[#This Row],[CF]] -> 0.3076923077 | BZ176: =Table1[[#This Row],[SA]]/Table1[[#This Row],[CA]] -> 0.5418410042 | CA176: =Table1[[#This Row],[MSA]]/Table1[[#This Row],[CA]] -> 0.2008368201 | CB176: =Table1[[#This Row],[BSA]]/Table1[[#This Row],[CA]] -> 0.2573221757
A177: 5v5 | B177: ScAdj | C177: CBJ | D177: 82 | E177: 20062007 | F177: 110 | G177: 130 | H177: -20 | I177: 47.5 | J177: 99.2 | K177: 70.6 | L177: 8.4 | M177: 91.1 | N177: 50.8 | O177: 99.5 | P177: 48.6 | Q177: 49.3 | R177: -13.3 | S177: 466.1 | T177: 479.4 | U177: 9.1 | V177: 9.3 | W177: 18.4 | X177: 47.1 | Y177: -141.5 | Z177: 1170.4 | AA177: 1311.9 | AB177: 22.8 | AC177: 25.6 | AD177: 48.4 | AE177: 47.5 | AF177: -256.7 | AG177: 2417.2 | AH177: 2673.9 | AI177: 47.1 | AJ177: 52.1 | AK177: 99.2 | AL177: 47.2 | AM177: -219.9 | AN177: 36.1 | AO177: 40.4 | AP177: 1850.5 | AQ177: 2070.4 | AR177: 76.4 | AS177: 544.7 | AT177: 614.7 | AU177: 566.7 | AV177: 603.5 | AW177: 47.3 | AX177: -149.9 | AY177: 25.5 | AZ177: 28.4 | BA177: 1305.8 | BB177: 1455.7 | BC177: 2.1 | BD177: 2.5 | BE177: 45.8 | BF177: 8.4 | BG177: 5.9 | BH177: 91.1 | BI177: 54 | BJ177: 70.6 | BK177: 50.8 | BL177: 1337 | BM177: 1296 | BN177: 763 | BO177: 1064 | BP177: 806 | BQ177: 1107 | BR177: 921 | BS177: 31 | BT177: 31 | BU177: 0 | BV177: 3078.6 | BW177: =Table1[[#This Row],[SF]]/Table1[[#This Row],[CF]] -> 0.5402118153 | BX177: =Table1[[#This Row],[MSF]]/Table1[[#This Row],[CF]] -> 0.2253433725 | BY177: =Table1[[#This Row],[BSF]]/Table1[[#This Row],[CF]] -> 0.2344448122 | BZ177: =Table1[[#This Row],[SA]]/Table1[[#This Row],[CA]] -> 0.5444107857 | CA177: =Table1[[#This Row],[MSA]]/Table1[[#This Row],[CA]] -> 0.2298889263 | CB177: =Table1[[#This Row],[BSA]]/Table1[[#This Row],[CA]] -> 0.225700288
A178: 5v5 | B178: Close | C178: CBJ | D178: 82 | E178: 20062007 | F178: 61 | G178: 74 | H178: -13 | I178: 47 | J178: 102.2 | K178: 72 | L178: 8.3 | M178: 91.3 | N178: 50.4 | O178: 99.6 | P178: 46.3 | Q178: 47.5 | R178: -27 | S178: 260 | T178: 287 | U178: 9 | V178: 10 | W178: 19 | X178: 46.3 | Y178: -102 | Z178: 642 | AA178: 744 | AB178: 22.3 | AC178: 25.9 | AD178: 48.2 | AE178: 47 | AF178: -177 | AG178: 1380 | AH178: 1557 | AI178: 48 | AJ178: 54.2 | AK178: 102.2 | AL178: 46.2 | AM178: -168 | AN178: 35.5 | AO178: 41.4 | AP178: 1021 | AQ178: 1189 | AR178: 76.9 | AS178: 286 | AT178: 340 | AU178: 359 | AV178: 368 | AW178: 46.4 | AX178: -114 | AY178: 25.6 | AZ178: 29.5 | BA178: 735 | BB178: 849 | BC178: 2.1 | BD178: 2.6 | BE178: 45.2 | BF178: 8.3 | BG178: 6 | BH178: 91.3 | BI178: 53.3 | BJ178: 72 | BK178: 50.4 | BL178: 729 | BM178: 716 | BN178: 399 | BO178: 584 | BP178: 462 | BQ178: 675 | BR178: 558 | BS178: 12 | BT178: 13 | BU178: 1 | BV178: 1724.2 | BW178: =Table1[[#This Row],[SF]]/Table1[[#This Row],[CF]] -> 0.5326086957 | BX178: =Table1[[#This Row],[MSF]]/Table1[[#This Row],[CF]] -> 0.2072463768 | BY178: =Table1[[#This Row],[BSF]]/Table1[[#This Row],[CF]] -> 0.2601449275 | BZ178: =Table1[[#This Row],[SA]]/Table1[[#This Row],[CA]] -> 0.5452793834 | CA178: =Table1[[#This Row],[MSA]]/Table1[[#This Row],[CA]] -> 0.2183686577 | CB178: =Table1[[#This Row],[BSA]]/Table1[[#This Row],[CA]] -> 0.2363519589
A179: 5v5 | B179: Tied | C179: CBJ | D179: 82 | E179: 20062007 | F179: 37 | G179: 42 | H179: -5 | I179: 47.5 | J179: 102.4 | K179: 72.7 | L179: 8.4 | M179: 91.2 | N179: 50.4 | O179: 99.5 | P179: 46.9 | Q179: 49.5 | R179: -3 | S179: 159 | T179: 162 | U179: 9.5 | V179: 9.7 | W179: 19.1 | X179: 46.5 | Y179: -57 | Z179: 383 | AA179: 440 | AB179: 22.8 | AC179: 26.2 | AD179: 49 | AE179: 47.5 | AF179: -87 | AG179: 816 | AH179: 903 | AI179: 48.6 | AJ179: 53.8 | AK179: 102.4 | AL179: 46.7 | AM179: -85 | AN179: 36.2 | AO179: 41.3 | AP179: 608 | AQ179: 693 | AR179: 77.5 | AS179: 166 | AT179: 217 | AU179: 208 | AV179: 210 | AW179: 48.1 | AX179: -34 | AY179: 26.3 | AZ179: 28.4 | BA179: 442 | BB179: 476 | BC179: 2.2 | BD179: 2.5 | BE179: 46.8 | BF179: 8.4 | BG179: 6.1 | BH179: 91.2 | BI179: 54.2 | BJ179: 72.7 | BK179: 50.4 | BL179: 423 | BM179: 417 | BN179: 232 | BO179: 345 | BP179: 263 | BQ179: 396 | BR179: 336 | BS179: 6 | BT179: 6 | BU179: 0 | BV179: 1006.9 | BW179: =Table1[[#This Row],[SF]]/Table1[[#This Row],[CF]] -> 0.5416666667 | BX179: =Table1[[#This Row],[MSF]]/Table1[[#This Row],[CF]] -> 0.2034313725 | BY179: =Table1[[#This Row],[BSF]]/Table1[[#This Row],[CF]] -> 0.2549019608 | BZ179: =Table1[[#This Row],[SA]]/Table1[[#This Row],[CA]] -> 0.5271317829 | CA179: =Table1[[#This Row],[MSA]]/Table1[[#This Row],[CA]] -> 0.2403100775 | CB179: =Table1[[#This Row],[BSA]]/Table1[[#This Row],[CA]] -> 0.2325581395
A180: 5v5 | B180: Up1 | C180: CBJ | D180: 44 | E180: 20062007 | F180: 16 | G180: 20 | H180: -4 | I180: 40.2 | J180: 103.9 | K180: 72.9 | L180: 9.3 | M180: 91.9 | N180: 50.7 | O180: 101.2 | P180: 39 | Q180: 39.7 | R180: -30 | S180: 58 | T180: 88 | U180: 7.9 | V180: 11.9 | W180: 19.8 | X180: 40.6 | Y180: -67 | Z180: 145 | AA180: 212 | AB180: 19.7 | AC180: 28.7 | AD180: 48.4 | AE180: 40.2 | AF180: -151 | AG180: 308 | AH180: 459 | AI180: 41.7 | AJ180: 62.2 | AK180: 103.9 | AL180: 41.3 | AM180: -100 | AN180: 32 | AO180: 45.5 | AP180: 236 | AQ180: 336 | AR180: 77.5 | AS180: 64 | AT180: 90 | AU180: 72 | AV180: 123 | AW180: 41.1 | AX180: -74 | AY180: 23.3 | AZ180: 33.3 | BA180: 172 | BB180: 246 | BC180: 2.2 | BD180: 2.7 | BE180: 44.4 | BF180: 9.3 | BG180: 6.8 | BH180: 91.9 | BI180: 55.8 | BJ180: 72.9 | BK180: 50.7 | BL180: 188 | BM180: 183 | BN180: 90 | BO180: 140 | BP180: 141 | BQ180: 177 | BR180: 144 | BS180: 2 | BT180: 3 | BU180: 1 | BV180: 442.7 | BW180: =Table1[[#This Row],[SF]]/Table1[[#This Row],[CF]] -> 0.5584415584 | BX180: =Table1[[#This Row],[MSF]]/Table1[[#This Row],[CF]] -> 0.2077922078 | BY180: =Table1[[#This Row],[BSF]]/Table1[[#This Row],[CF]] -> 0.2337662338 | BZ180: =Table1[[#This Row],[SA]]/Table1[[#This Row],[CA]] -> 0.5359477124 | CA180: =Table1[[#This Row],[MSA]]/Table1[[#This Row],[CA]] -> 0.1960784314 | CB180: =Table1[[#This Row],[BSA]]/Table1[[#This Row],[CA]] -> 0.2679738562
A181: 5v5 | B181: Dn1 | C181: CBJ | D181: 61 | E181: 20062007 | F181: 21 | G181: 29 | H181: -8 | I181: 52.2 | J181: 100 | K181: 73.5 | L181: 7 | M181: 90.3 | N181: 51 | O181: 97.3 | P181: 51.1 | Q181: 52 | R181: 8 | S181: 106 | T181: 98 | U181: 9.9 | V181: 9.2 | W181: 19.1 | X181: 50.9 | Y181: 9 | Z181: 263 | AA181: 254 | AB181: 24.6 | AC181: 23.8 | AD181: 48.4 | AE181: 52.2 | AF181: 46 | AG181: 557 | AH181: 511 | AI181: 52.2 | AJ181: 47.9 | AK181: 100 | AL181: 50.5 | AM181: 8 | AN181: 38.2 | AO181: 37.5 | AP181: 408 | AQ181: 400 | AR181: 75.7 | AS181: 108 | AT181: 102 | AU181: 149 | AV181: 111 | AW181: 50.2 | AX181: 2 | AY181: 28.1 | AZ181: 27.9 | BA181: 300 | BB181: 298 | BC181: 2 | BD181: 2.7 | BE181: 42 | BF181: 7 | BG181: 5.1 | BH181: 90.3 | BI181: 53.9 | BJ181: 73.5 | BK181: 51 | BL181: 270 | BM181: 259 | BN181: 164 | BO181: 208 | BP181: 157 | BQ181: 225 | BR181: 181 | BS181: 10 | BT181: 10 | BU181: 0 | BV181: 640.7 | BW181: =Table1[[#This Row],[SF]]/Table1[[#This Row],[CF]] -> 0.5385996409 | BX181: =Table1[[#This Row],[MSF]]/Table1[[#This Row],[CF]] -> 0.1938958707 | BY181: =Table1[[#This Row],[BSF]]/Table1[[#This Row],[CF]] -> 0.2675044883 | BZ181: =Table1[[#This Row],[SA]]/Table1[[#This Row],[CA]] -> 0.5831702544 | CA181: =Table1[[#This Row],[MSA]]/Table1[[#This Row],[CA]] -> 0.1996086106 | CB181: =Table1[[#This Row],[BSA]]/Table1[[#This Row],[CA]] -> 0.217221135
A182: 5v5 | B182: ScAdj | C182: CGY | D182: 81 | E182: 20062007 | F182: 151 | G182: 119 | H182: 32 | I182: 48.8 | J182: 101.8 | K182: 71.5 | L182: 10.8 | M182: 92.1 | N182: 48.1 | O182: 102.9 | P182: 48.2 | Q182: 51.6 | R182: 32.5 | S182: 517.4 | T182: 485 | U182: 9.8 | V182: 9.1 | W182: 18.9 | X182: 49.7 | Y182: -15.2 | Z182: 1299.2 | AA182: 1314.3 | AB182: 24.5 | AC182: 24.8 | AD182: 49.3 | AE182: 48.8 | AF182: -131.9 | AG182: 2632.5 | AH182: 2764.4 | AI182: 49.7 | AJ182: 52.2 | AK182: 101.8 | AL182: 47.8 | AM182: -181.8 | AN182: 36.9 | AO182: 40.3 | AP182: 1956 | AQ182: 2137.8 | AR182: 77.2 | AS182: 558.3 | AT182: 623.6 | AU182: 676.5 | AV182: 626.6 | AW182: 48 | AX182: -116.5 | AY182: 26.4 | AZ182: 28.6 | BA182: 1397.7 | BB182: 1514.2 | BC182: 2.8 | BD182: 2.2 | BE182: 55.9 | BF182: 10.8 | BG182: 7.7 | BH182: 92.1 | BI182: 53.1 | BJ182: 71.5 | BK182: 48.1 | BL182: 1360 | BM182: 1467 | BN182: 816 | BO182: 1134 | BP182: 877 | BQ182: 1199 | BR182: 1106 | BS182: 34 | BT182: 32 | BU182: -2 | BV182: 3180.3 | BW182: =Table1[[#This Row],[SF]]/Table1[[#This Row],[CF]] -> 0.5309401709 | BX182: =Table1[[#This Row],[MSF]]/Table1[[#This Row],[CF]] -> 0.2120797721 | BY182: =Table1[[#This Row],[BSF]]/Table1[[#This Row],[CF]] -> 0.256980057 | BZ182: =Table1[[#This Row],[SA]]/Table1[[#This Row],[CA]] -> 0.5477499638 | CA182: =Table1[[#This Row],[MSA]]/Table1[[#This Row],[CA]] -> 0.2255824049 | CB182: =Table1[[#This Row],[BSA]]/Table1[[#This Row],[CA]] -> 0.2266676313
A183: 5v5 | B183: Close | C183: CGY | D183: 81 | E183: 20062007 | F183: 83 | G183: 75 | H183: 8 | I183: 48.4 | J183: 104.1 | K183: 72.1 | L183: 9.7 | M183: 92 | N183: 47.2 | O183: 101.7 | P183: 49.6 | Q183: 49.8 | R183: -3 | S183: 304 | T183: 307 | U183: 9.5 | V183: 9.6 | W183: 19 | X183: 48.5 | Y183: -48 | Z183: 773 | AA183: 821 | AB183: 24 | AC183: 25.5 | AD183: 49.6 | AE183: 48.4 | AF183: -105 | AG183: 1620 | AH183: 1725 | AI183: 50.4 | AJ183: 53.7 | AK183: 104.1 | AL183: 47.6 | AM183: -118 | AN183: 37 | AO183: 40.6 | AP183: 1188 | AQ183: 1306 | AR183: 77.6 | AS183: 331 | AT183: 368 | AU183: 432 | AV183: 419 | AW183: 47.7 | AX183: -81 | AY183: 26.7 | AZ183: 29.2 | BA183: 857 | BB183: 938 | BC183: 2.6 | BD183: 2.3 | BE183: 52.5 | BF183: 9.7 | BG183: 7 | BH183: 92 | BI183: 52.9 | BJ183: 72.1 | BK183: 47.2 | BL183: 799 | BM183: 894 | BN183: 513 | BO183: 658 | BP183: 522 | BQ183: 767 | BR183: 715 | BS183: 21 | BT183: 19 | BU183: -2 | BV183: 1928.6 | BW183: =Table1[[#This Row],[SF]]/Table1[[#This Row],[CF]] -> 0.5290123457 | BX183: =Table1[[#This Row],[MSF]]/Table1[[#This Row],[CF]] -> 0.2043209877 | BY183: =Table1[[#This Row],[BSF]]/Table1[[#This Row],[CF]] -> 0.2666666667 | BZ183: =Table1[[#This Row],[SA]]/Table1[[#This Row],[CA]] -> 0.5437681159 | CA183: =Table1[[#This Row],[MSA]]/Table1[[#This Row],[CA]] -> 0.2133333333 | CB183: =Table1[[#This Row],[BSA]]/Table1[[#This Row],[CA]] -> 0.2428985507
A184: 5v5 | B184: Tied | C184: CGY | D184: 81 | E184: 20062007 | F184: 52 | G184: 38 | H184: 14 | I184: 50.4 | J184: 103.6 | K184: 72.7 | L184: 9.2 | M184: 93.5 | N184: 47.4 | O184: 102.6 | P184: 51.4 | Q184: 50.1 | R184: 1 | S184: 186 | T184: 185 | U184: 9.1 | V184: 9 | W184: 18.1 | X184: 50.2 | Y184: 3 | Z184: 498 | AA184: 495 | AB184: 24.4 | AC184: 24.2 | AD184: 48.6 | AE184: 50.4 | AF184: 15 | AG184: 1067 | AH184: 1052 | AI184: 52.2 | AJ184: 51.4 | AK184: 103.6 | AL184: 49.5 | AM184: -16 | AN184: 38.2 | AO184: 39 | AP184: 781 | AQ184: 797 | AR184: 77.2 | AS184: 213 | AT184: 214 | AU184: 286 | AV184: 255 | AW184: 49.3 | AX184: -15 | AY184: 27.8 | AZ184: 28.5 | BA184: 568 | BB184: 583 | BC184: 2.5 | BD184: 1.9 | BE184: 57.8 | BF184: 9.2 | BG184: 6.7 | BH184: 93.5 | BI184: 53.2 | BJ184: 72.7 | BK184: 47.4 | BL184: 507 | BM184: 563 | BN184: 359 | BO184: 371 | BP184: 340 | BQ184: 490 | BR184: 453 | BS184: 13 | BT184: 12 | BU184: -1 | BV184: 1226.9 | BW184: =Table1[[#This Row],[SF]]/Table1[[#This Row],[CF]] -> 0.5323336457 | BX184: =Table1[[#This Row],[MSF]]/Table1[[#This Row],[CF]] -> 0.1996251172 | BY184: =Table1[[#This Row],[BSF]]/Table1[[#This Row],[CF]] -> 0.2680412371 | BZ184: =Table1[[#This Row],[SA]]/Table1[[#This Row],[CA]] -> 0.5541825095 | CA184: =Table1[[#This Row],[MSA]]/Table1[[#This Row],[CA]] -> 0.2034220532 | CB184: =Table1[[#This Row],[BSA]]/Table1[[#This Row],[CA]] -> 0.2423954373
A185: 5v5 | B185: Up1 | C185: CGY | D185: 62 | E185: 20062007 | F185: 29 | G185: 30 | H185: -1 | I185: 40.6 | J185: 108.4 | K185: 70 | L185: 12.8 | M185: 91.1 | N185: 49.4 | O185: 103.9 | P185: 40 | Q185: 45.8 | R185: -16 | S185: 87 | T185: 103 | U185: 8.6 | V185: 10.2 | W185: 18.9 | X185: 43.2 | Y185: -69 | Z185: 218 | AA185: 287 | AB185: 21.7 | AC185: 28.5 | AD185: 50.2 | AE185: 40.6 | AF185: -205 | AG185: 443 | AH185: 648 | AI185: 44 | AJ185: 64.4 | AK185: 108.4 | AL185: 40.3 | AM185: -156 | AN185: 32.1 | AO185: 47.6 | AP185: 323 | AQ185: 479 | AR185: 79.7 | AS185: 97 | AT185: 143 | AU185: 120 | AV185: 169 | AW185: 40.2 | AX185: -110 | AY185: 22.5 | AZ185: 33.4 | BA185: 226 | BB185: 336 | BC185: 2.9 | BD185: 3 | BE185: 49.2 | BF185: 12.8 | BG185: 9 | BH185: 91.1 | BI185: 51 | BJ185: 70 | BK185: 49.4 | BL185: 259 | BM185: 265 | BN185: 116 | BO185: 234 | BP185: 174 | BQ185: 222 | BR185: 199 | BS185: 6 | BT185: 6 | BU185: 0 | BV185: 603.8 | BW185: =Table1[[#This Row],[SF]]/Table1[[#This Row],[CF]] -> 0.5101580135 | BX185: =Table1[[#This Row],[MSF]]/Table1[[#This Row],[CF]] -> 0.2189616253 | BY185: =Table1[[#This Row],[BSF]]/Table1[[#This Row],[CF]] -> 0.2708803612 | BZ185: =Table1[[#This Row],[SA]]/Table1[[#This Row],[CA]] -> 0.5185185185 | CA185: =Table1[[#This Row],[MSA]]/Table1[[#This Row],[CA]] -> 0.2206790123 | CB185: =Table1[[#This Row],[BSA]]/Table1[[#This Row],[CA]] -> 0.2608024691
A186: 5v5 | B186: Dn1 | C186: CGY | D186: 50 | E186: 20062007 | F186: 23 | G186: 26 | H186: -3 | I186: 50.8 | J186: 100.1 | K186: 70.3 | L186: 10.9 | M186: 88.1 | N186: 44.7 | O186: 99 | P186: 54.2 | Q186: 58.1 | R186: 26 | S186: 93 | T186: 67 | U186: 11.8 | V186: 8.5 | W186: 20.3 | X186: 51.1 | Y186: 9 | Z186: 204 | AA186: 195 | AB186: 25.9 | AC186: 24.7 | AD186: 50.6 | AE186: 50.8 | AF186: 12 | AG186: 401 | AH186: 389 | AI186: 50.8 | AJ186: 49.3 | AK186: 100.1 | AL186: 50 | AM186: 0 | AN186: 38 | AO186: 38 | AP186: 300 | AQ186: 300 | AR186: 76.1 | AS186: 89 | AT186: 81 | AU186: 101 | AV186: 89 | AW186: 49.1 | AX186: -8 | AY186: 26.7 | AZ186: 27.8 | BA186: 211 | BB186: 219 | BC186: 2.9 | BD186: 3.3 | BE186: 46.9 | BF186: 10.9 | BG186: 7.7 | BH186: 88.1 | BI186: 52.6 | BJ186: 70.3 | BK186: 44.7 | BL186: 190 | BM186: 235 | BN186: 129 | BO186: 187 | BP186: 109 | BQ186: 166 | BR186: 181 | BS186: 3 | BT186: 1 | BU186: -2 | BV186: 473.4 | BW186: =Table1[[#This Row],[SF]]/Table1[[#This Row],[CF]] -> 0.5261845387 | BX186: =Table1[[#This Row],[MSF]]/Table1[[#This Row],[CF]] -> 0.2219451372 | BY186: =Table1[[#This Row],[BSF]]/Table1[[#This Row],[CF]] -> 0.2518703242 | BZ186: =Table1[[#This Row],[SA]]/Table1[[#This Row],[CA]] -> 0.5629820051 | CA186: =Table1[[#This Row],[MSA]]/Table1[[#This Row],[CA]] -> 0.2082262211 | CB186: =Table1[[#This Row],[BSA]]/Table1[[#This Row],[CA]] -> 0.2287917738
A187: 5v5 | B187: ScAdj | C187: CHI | D187: 82 | E187: 20062007 | F187: 124 | G187: 143 | H187: -19 | I187: 47.7 | J187: 98.2 | K187: 72.8 | L187: 9.1 | M187: 90 | N187: 46.9 | O187: 99.2 | P187: 47.7 | Q187: 43.7 | R187: -119 | S187: 409.5 | T187: 528.5 | U187: 7.9 | V187: 10.2 | W187: 18.1 | X187: 45.2 | Y187: -231.4 | Z187: 1091 | AA187: 1322.4 | AB187: 21 | AC187: 25.5 | AD187: 46.5 | AE187: 47.7 | AF187: -234 | AG187: 2430.6 | AH187: 2664.5 | AI187: 46.9 | AJ187: 51.4 | AK187: 98.2 | AL187: 48 | AM187: -151.9 | AN187: 36 | AO187: 38.9 | AP187: 1866.5 | AQ187: 2018.4 | AR187: 74.9 | AS187: 507.6 | AT187: 582.1 | AU187: 564.1 | AV187: 646.2 | AW187: 48.6 | AX187: -77.4 | AY187: 26.2 | AZ187: 27.7 | BA187: 1358.9 | BB187: 1436.3 | BC187: 2.4 | BD187: 2.8 | BE187: 46.4 | BF187: 9.1 | BG187: 6.6 | BH187: 90 | BI187: 55.9 | BJ187: 72.8 | BK187: 46.9 | BL187: 1245 | BM187: 1408 | BN187: 741 | BO187: 1099 | BP187: 813 | BQ187: 1065 | BR187: 904 | BS187: 37 | BT187: 37 | BU187: 0 | BV187: 3112.2 | BW187: =Table1[[#This Row],[SF]]/Table1[[#This Row],[CF]] -> 0.5590800625 | BX187: =Table1[[#This Row],[MSF]]/Table1[[#This Row],[CF]] -> 0.2088373241 | BY187: =Table1[[#This Row],[BSF]]/Table1[[#This Row],[CF]] -> 0.2320826133 | BZ187: =Table1[[#This Row],[SA]]/Table1[[#This Row],[CA]] -> 0.5390504785 | CA187: =Table1[[#This Row],[MSA]]/Table1[[#This Row],[CA]] -> 0.2184650028 | CB187: =Table1[[#This Row],[BSA]]/Table1[[#This Row],[CA]] -> 0.2425220492
A188: 5v5 | B188: Close | C188: CHI | D188: 82 | E188: 20062007 | F188: 75 | G188: 81 | H188: -6 | I188: 48 | J188: 96.2 | K188: 76.9 | L188: 8.3 | M188: 91.1 | N188: 47 | O188: 99.5 | P188: 47.9 | Q188: 45.8 | R188: -49 | S188: 265 | T188: 314 | U188: 8.1 | V188: 9.6 | W188: 17.6 | X188: 45.9 | Y188: -122 | Z188: 688 | AA188: 810 | AB188: 20.9 | AC188: 24.6 | AD188: 45.6 | AE188: 48 | AF188: -124 | AG188: 1519 | AH188: 1643 | AI188: 46.2 | AJ188: 50 | AK188: 96.2 | AL188: 48.6 | AM188: -67 | AN188: 35.7 | AO188: 37.7 | AP188: 1172 | AQ188: 1239 | AR188: 73.3 | AS188: 271 | AT188: 325 | AU188: 347 | AV188: 404 | AW188: 49.6 | AX188: -13 | AY188: 27.4 | AZ188: 27.8 | BA188: 901 | BB188: 914 | BC188: 2.3 | BD188: 2.5 | BE188: 48.1 | BF188: 8.3 | BG188: 6.4 | BH188: 91.1 | BI188: 59.3 | BJ188: 76.9 | BK188: 47 | BL188: 790 | BM188: 890 | BN188: 479 | BO188: 679 | BP188: 522 | BQ188: 700 | BR188: 592 | BS188: 22 | BT188: 24 | BU188: 2 | BV188: 1972.5 | BW188: =Table1[[#This Row],[SF]]/Table1[[#This Row],[CF]] -> 0.5931533904 | BX188: =Table1[[#This Row],[MSF]]/Table1[[#This Row],[CF]] -> 0.1784068466 | BY188: =Table1[[#This Row],[BSF]]/Table1[[#This Row],[CF]] -> 0.228439763 | BZ188: =Table1[[#This Row],[SA]]/Table1[[#This Row],[CA]] -> 0.5562994522 | CA188: =Table1[[#This Row],[MSA]]/Table1[[#This Row],[CA]] -> 0.1978088862 | CB188: =Table1[[#This Row],[BSA]]/Table1[[#This Row],[CA]] -> 0.2458916616
A189: 5v5 | B189: Tied | C189: CHI | D189: 82 | E189: 20062007 | F189: 46 | G189: 49 | H189: -3 | I189: 47.8 | J189: 96.5 | K189: 76.2 | L189: 8.9 | M189: 90.9 | N189: 48.8 | O189: 99.8 | P189: 45.1 | Q189: 45.8 | R189: -27 | S189: 146 | T189: 173 | U189: 7.6 | V189: 9 | W189: 16.6 | X189: 44.7 | Y189: -91 | Z189: 384 | AA189: 475 | AB189: 20 | AC189: 24.8 | AD189: 44.8 | AE189: 47.8 | AF189: -82 | AG189: 885 | AH189: 967 | AI189: 46.1 | AJ189: 50.4 | AK189: 96.5 | AL189: 47.9 | AM189: -60 | AN189: 35.2 | AO189: 38.4 | AP189: 676 | AQ189: 736 | AR189: 73.6 | AS189: 161 | AT189: 198 | AU189: 209 | AV189: 231 | AW189: 48.9 | AX189: -23 | AY189: 26.8 | AZ189: 28 | BA189: 515 | BB189: 538 | BC189: 2.4 | BD189: 2.6 | BE189: 48.4 | BF189: 8.9 | BG189: 6.8 | BH189: 90.9 | BI189: 58.2 | BJ189: 76.2 | BK189: 48.8 | BL189: 464 | BM189: 487 | BN189: 255 | BO189: 385 | BP189: 311 | BQ189: 406 | BR189: 349 | BS189: 13 | BT189: 13 | BU189: 0 | BV189: 1151.4 | BW189: =Table1[[#This Row],[SF]]/Table1[[#This Row],[CF]] -> 0.581920904 | BX189: =Table1[[#This Row],[MSF]]/Table1[[#This Row],[CF]] -> 0.181920904 | BY189: =Table1[[#This Row],[BSF]]/Table1[[#This Row],[CF]] -> 0.2361581921 | BZ189: =Table1[[#This Row],[SA]]/Table1[[#This Row],[CA]] -> 0.5563598759 | CA189: =Table1[[#This Row],[MSA]]/Table1[[#This Row],[CA]] -> 0.2047569804 | CB189: =Table1[[#This Row],[BSA]]/Table1[[#This Row],[CA]] -> 0.2388831437
A190: 5v5 | B190: Up1 | C190: CHI | D190: 52 | E190: 20062007 | F190: 17 | G190: 29 | H190: -12 | I190: 40.9 | J190: 94.1 | K190: 78.8 | L190: 7.9 | M190: 89.2 | N190: 43.8 | O190: 97.1 | P190: 43.2 | Q190: 38.5 | R190: -39 | S190: 65 | T190: 104 | U190: 7.6 | V190: 12.2 | W190: 19.9 | X190: 41.2 | Y190: -70 | Z190: 165 | AA190: 235 | AB190: 19.4 | AC190: 27.6 | AD190: 47.1 | AE190: 40.9 | AF190: -146 | AG190: 327 | AH190: 473 | AI190: 38.5 | AJ190: 55.6 | AK190: 94.1 | AL190: 44.2 | AM190: -71 | AN190: 32.1 | AO190: 40.5 | AP190: 273 | AQ190: 344 | AR190: 72.6 | AS190: 58 | AT190: 75 | AU190: 54 | AV190: 129 | AW190: 44.4 | AX190: -54 | AY190: 25.3 | AZ190: 31.6 | BA190: 215 | BB190: 269 | BC190: 2 | BD190: 3.4 | BE190: 37 | BF190: 7.9 | BG190: 6.2 | BH190: 89.2 | BI190: 65.7 | BJ190: 78.8 | BK190: 43.8 | BL190: 188 | BM190: 241 | BN190: 111 | BO190: 172 | BP190: 146 | BQ190: 161 | BR190: 145 | BS190: 4 | BT190: 4 | BU190: 0 | BV190: 510.1 | BW190: =Table1[[#This Row],[SF]]/Table1[[#This Row],[CF]] -> 0.6574923547 | BX190: =Table1[[#This Row],[MSF]]/Table1[[#This Row],[CF]] -> 0.1773700306 | BY190: =Table1[[#This Row],[BSF]]/Table1[[#This Row],[CF]] -> 0.1651376147 | BZ190: =Table1[[#This Row],[SA]]/Table1[[#This Row],[CA]] -> 0.5687103594 | CA190: =Table1[[#This Row],[MSA]]/Table1[[#This Row],[CA]] -> 0.1585623679 | CB190: =Table1[[#This Row],[BSA]]/Table1[[#This Row],[CA]] -> 0.2727272727
A191: 5v5 | B191: Dn1 | C191: CHI | D191: 61 | E191: 20062007 | F191: 27 | G191: 24 | H191: 3 | I191: 51.7 | J191: 95.1 | K191: 76.2 | L191: 8.1 | M191: 91.9 | N191: 45.4 | O191: 100.1 | P191: 55.9 | Q191: 48.8 | R191: -5 | S191: 100 | T191: 105 | U191: 8.3 | V191: 8.7 | W191: 17.1 | X191: 50.6 | Y191: 6 | Z191: 272 | AA191: 266 | AB191: 22.6 | AC191: 22.1 | AD191: 44.8 | AE191: 51.7 | AF191: 39 | AG191: 591 | AH191: 552 | AI191: 49.2 | AJ191: 45.9 | AK191: 95.1 | AL191: 51.3 | AM191: 22 | AN191: 36.3 | AO191: 34.5 | AP191: 437 | AQ191: 415 | AR191: 70.9 | AS191: 104 | AT191: 117 | AU191: 154 | AV191: 137 | AW191: 52.8 | AX191: 35 | AY191: 27.7 | AZ191: 24.8 | BA191: 333 | BB191: 298 | BC191: 2.2 | BD191: 2 | BE191: 52.9 | BF191: 8.1 | BG191: 6.2 | BH191: 91.9 | BI191: 56.3 | BJ191: 76.2 | BK191: 45.4 | BL191: 291 | BM191: 350 | BN191: 207 | BO191: 271 | BP191: 163 | BQ191: 266 | BR191: 203 | BS191: 8 | BT191: 10 | BU191: 2 | BV191: 721.3 | BW191: =Table1[[#This Row],[SF]]/Table1[[#This Row],[CF]] -> 0.5634517766 | BX191: =Table1[[#This Row],[MSF]]/Table1[[#This Row],[CF]] -> 0.1759729272 | BY191: =Table1[[#This Row],[BSF]]/Table1[[#This Row],[CF]] -> 0.2605752961 | BZ191: =Table1[[#This Row],[SA]]/Table1[[#This Row],[CA]] -> 0.5398550725 | CA191: =Table1[[#This Row],[MSA]]/Table1[[#This Row],[CA]] -> 0.2119565217 | CB191: =Table1[[#This Row],[BSA]]/Table1[[#This Row],[CA]] -> 0.2481884058
A192: 5v5 | B192: ScAdj | C192: COL | D192: 81 | E192: 20062007 | F192: 164 | G192: 149 | H192: 15 | I192: 49.4 | J192: 106.4 | K192: 75.8 | L192: 10 | M192: 89.9 | N192: 48.7 | O192: 99.9 | P192: 49.4 | Q192: 54.1 | R192: 97.4 | S192: 648.8 | T192: 551.4 | U192: 12.1 | V192: 10.3 | W192: 22.3 | X192: 52 | Y192: 121 | Z192: 1598.1 | AA192: 1477.1 | AB192: 29.7 | AC192: 27.5 | AD192: 57.2 | AE192: 49.4 | AF192: -70.1 | AG192: 2824.3 | AH192: 2894.3 | AI192: 52.5 | AJ192: 53.8 | AK192: 106.4 | AL192: 50.4 | AM192: 36.1 | AN192: 40.3 | AO192: 39.6 | AP192: 2164.2 | AQ192: 2128.1 | AR192: 79.8 | AS192: 523.5 | AT192: 657.5 | AU192: 660.1 | AV192: 766.2 | AW192: 52.7 | AX192: 170.1 | AY192: 30.5 | AZ192: 27.4 | BA192: 1640.7 | BB192: 1470.6 | BC192: 3.1 | BD192: 2.8 | BE192: 52.4 | BF192: 10 | BG192: 7.6 | BH192: 89.9 | BI192: 58.1 | BJ192: 75.8 | BK192: 48.7 | BL192: 1429 | BM192: 1503 | BN192: 838 | BO192: 1236 | BP192: 858 | BQ192: 773 | BR192: 1043 | BS192: 16 | BT192: 19 | BU192: 3 | BV192: 3225.4 | BW192: =Table1[[#This Row],[SF]]/Table1[[#This Row],[CF]] -> 0.5809227065 | BX192: =Table1[[#This Row],[MSF]]/Table1[[#This Row],[CF]] -> 0.1853556634 | BY192: =Table1[[#This Row],[BSF]]/Table1[[#This Row],[CF]] -> 0.2337216301 | BZ192: =Table1[[#This Row],[SA]]/Table1[[#This Row],[CA]] -> 0.5081021318 | CA192: =Table1[[#This Row],[MSA]]/Table1[[#This Row],[CA]] -> 0.2271706458 | CB192: =Table1[[#This Row],[BSA]]/Table1[[#This Row],[CA]] -> 0.2647272225
A193: 5v5 | B193: Close | C193: COL | D193: 81 | E193: 20062007 | F193: 107 | G193: 93 | H193: 14 | I193: 48.9 | J193: 110.5 | K193: 77.2 | L193: 10.1 | M193: 90.6 | N193: 49.6 | O193: 100.7 | P193: 48.4 | Q193: 55.1 | R193: 81 | S193: 436 | T193: 355 | U193: 13 | V193: 10.6 | W193: 23.6 | X193: 51.4 | Y193: 54 | Z193: 1027 | AA193: 973 | AB193: 30.6 | AC193: 29 | AD193: 59.7 | AE193: 48.9 | AF193: -84 | AG193: 1809 | AH193: 1893 | AI193: 54 | AJ193: 56.5 | AK193: 110.5 | AL193: 49.6 | AM193: -22 | AN193: 41 | AO193: 41.7 | AP193: 1374 | AQ193: 1396 | AR193: 82.6 | AS193: 313 | AT193: 409 | AU193: 435 | AV193: 497 | AW193: 51.8 | AX193: 74 | AY193: 31.7 | AZ193: 29.4 | BA193: 1061 | BB193: 987 | BC193: 3.2 | BD193: 2.8 | BE193: 53.5 | BF193: 10.1 | BG193: 7.8 | BH193: 90.6 | BI193: 58.7 | BJ193: 77.2 | BK193: 49.6 | BL193: 901 | BM193: 916 | BN193: 516 | BO193: 751 | BP193: 550 | BQ193: 522 | BR193: 668 | BS193: 10 | BT193: 9 | BU193: -1 | BV193: 2011 | BW193: =Table1[[#This Row],[SF]]/Table1[[#This Row],[CF]] -> 0.586511885 | BX193: =Table1[[#This Row],[MSF]]/Table1[[#This Row],[CF]] -> 0.17302377 | BY193: =Table1[[#This Row],[BSF]]/Table1[[#This Row],[CF]] -> 0.2404643449 | BZ193: =Table1[[#This Row],[SA]]/Table1[[#This Row],[CA]] -> 0.5213946117 | CA193: =Table1[[#This Row],[MSA]]/Table1[[#This Row],[CA]] -> 0.2160591653 | CB193: =Table1[[#This Row],[BSA]]/Table1[[#This Row],[CA]] -> 0.2625462229
A194: 5v5 | B194: Tied | C194: COL | D194: 81 | E194: 20062007 | F194: 61 | G194: 54 | H194: 7 | I194: 47.4 | J194: 108 | K194: 76.1 | L194: 10.2 | M194: 91 | N194: 49 | O194: 101.3 | P194: 47.1 | Q194: 54.9 | R194: 45 | S194: 252 | T194: 207 | U194: 12.5 | V194: 10.3 | W194: 22.8 | X194: 51.2 | Y194: 28 | Z194: 597 | AA194: 569 | AB194: 29.6 | AC194: 28.2 | AD194: 57.9 | AE194: 47.4 | AF194: -112 | AG194: 1032 | AH194: 1144 | AI194: 51.2 | AJ194: 56.8 | AK194: 108 | AL194: 47.8 | AM194: -72 | AN194: 39 | AO194: 42.5 | AP194: 785 | AQ194: 857 | AR194: 81.5 | AS194: 188 | AT194: 254 | AU194: 247 | AV194: 287 | AW194: 49.8 | AX194: -6 | AY194: 29.6 | AZ194: 29.9 | BA194: 597 | BB194: 603 | BC194: 3 | BD194: 2.7 | BE194: 53 | BF194: 10.2 | BG194: 7.8 | BH194: 91 | BI194: 57.8 | BJ194: 76.1 | BK194: 49 | BL194: 522 | BM194: 544 | BN194: 294 | BO194: 442 | BP194: 330 | BQ194: 304 | BR194: 372 | BS194: 3 | BT194: 4 | BU194: 1 | BV194: 1208.9 | BW194: =Table1[[#This Row],[SF]]/Table1[[#This Row],[CF]] -> 0.5784883721 | BX194: =Table1[[#This Row],[MSF]]/Table1[[#This Row],[CF]] -> 0.1821705426 | BY194: =Table1[[#This Row],[BSF]]/Table1[[#This Row],[CF]] -> 0.2393410853 | BZ194: =Table1[[#This Row],[SA]]/Table1[[#This Row],[CA]] -> 0.5270979021 | CA194: =Table1[[#This Row],[MSA]]/Table1[[#This Row],[CA]] -> 0.222027972 | CB194: =Table1[[#This Row],[BSA]]/Table1[[#This Row],[CA]] -> 0.2508741259
A195: 5v5 | B195: Up1 | C195: COL | D195: 58 | E195: 20062007 | F195: 32 | G195: 35 | H195: -3 | I195: 46.3 | J195: 110.8 | K195: 77.2 | L195: 9.6 | M195: 89.4 | N195: 51.7 | O195: 99.1 | P195: 47.6 | Q195: 50.8 | R195: 4 | S195: 128 | T195: 124 | U195: 11.4 | V195: 11.1 | W195: 22.5 | X195: 50 | Y195: 0 | Z195: 328 | AA195: 328 | AB195: 29.3 | AC195: 29.3 | AD195: 58.5 | AE195: 46.3 | AF195: -91 | AG195: 575 | AH195: 666 | AI195: 51.3 | AJ195: 59.4 | AK195: 110.8 | AL195: 48.1 | AM195: -34 | AN195: 38.4 | AO195: 41.4 | AP195: 430 | AQ195: 464 | AR195: 79.8 | AS195: 98 | AT195: 133 | AU195: 145 | AV195: 202 | AW195: 50.1 | AX195: 1 | AY195: 29.6 | AZ195: 29.5 | BA195: 332 | BB195: 331 | BC195: 2.9 | BD195: 3.1 | BE195: 47.8 | BF195: 9.6 | BG195: 7.4 | BH195: 89.4 | BI195: 57.7 | BJ195: 77.2 | BK195: 51.7 | BL195: 313 | BM195: 293 | BN195: 167 | BO195: 255 | BP195: 184 | BQ195: 179 | BR195: 226 | BS195: 1 | BT195: 1 | BU195: 0 | BV195: 672.3 | BW195: =Table1[[#This Row],[SF]]/Table1[[#This Row],[CF]] -> 0.5773913043 | BX195: =Table1[[#This Row],[MSF]]/Table1[[#This Row],[CF]] -> 0.1704347826 | BY195: =Table1[[#This Row],[BSF]]/Table1[[#This Row],[CF]] -> 0.252173913 | BZ195: =Table1[[#This Row],[SA]]/Table1[[#This Row],[CA]] -> 0.496996997 | CA195: =Table1[[#This Row],[MSA]]/Table1[[#This Row],[CA]] -> 0.1996996997 | CB195: =Table1[[#This Row],[BSA]]/Table1[[#This Row],[CA]] -> 0.3033033033
A196: 5v5 | B196: Dn1 | C196: COL | D196: 56 | E196: 20062007 | F196: 29 | G196: 25 | H196: 4 | I196: 54.3 | J196: 107.1 | K196: 78.1 | L196: 8.8 | M196: 89.5 | N196: 47.2 | O196: 98.2 | P196: 51.6 | Q196: 57.5 | R196: 33 | S196: 127 | T196: 94 | U196: 13.5 | V196: 10 | W196: 23.4 | X196: 53.8 | Y196: 43 | Z196: 306 | AA196: 263 | AB196: 32.4 | AC196: 27.9 | AD196: 60.3 | AE196: 54.3 | AF196: 87 | AG196: 549 | AH196: 462 | AI196: 58.2 | AJ196: 49 | AK196: 107.1 | AL196: 55.9 | AM196: 89 | AN196: 44.9 | AO196: 35.5 | AP196: 424 | AQ196: 335 | AR196: 80.4 | AS196: 93 | AT196: 98 | AU196: 125 | AV196: 127 | AW196: 58.3 | AX196: 94 | AY196: 35.1 | AZ196: 25.1 | BA196: 331 | BB196: 237 | BC196: 3.1 | BD196: 2.6 | BE196: 53.7 | BF196: 8.8 | BG196: 6.8 | BH196: 89.5 | BI196: 60.3 | BJ196: 78.1 | BK196: 47.2 | BL196: 244 | BM196: 273 | BN196: 149 | BO196: 228 | BP196: 140 | BQ196: 148 | BR196: 206 | BS196: 7 | BT196: 4 | BU196: -3 | BV196: 566.2 | BW196: =Table1[[#This Row],[SF]]/Table1[[#This Row],[CF]] -> 0.6029143898 | BX196: =Table1[[#This Row],[MSF]]/Table1[[#This Row],[CF]] -> 0.1693989071 | BY196: =Table1[[#This Row],[BSF]]/Table1[[#This Row],[CF]] -> 0.2276867031 | BZ196: =Table1[[#This Row],[SA]]/Table1[[#This Row],[CA]] -> 0.512987013 | CA196: =Table1[[#This Row],[MSA]]/Table1[[#This Row],[CA]] -> 0.2121212121 | CB196: =Table1[[#This Row],[BSA]]/Table1[[#This Row],[CA]] -> 0.2748917749
A197: 5v5 | B197: ScAdj | C197: DAL | D197: 82 | E197: 20062007 | F197: 116 | G197: 109 | H197: 7 | I197: 52.4 | J197: 96 | K197: 68.7 | L197: 8.1 | M197: 91.6 | N197: 50.8 | O197: 99.7 | P197: 53.6 | Q197: 52.6 | R197: 49.4 | S197: 501.4 | T197: 452 | U197: 9.2 | V197: 8.3 | W197: 17.4 | X197: 52.1 | Y197: 107.5 | Z197: 1342.2 | AA197: 1234.7 | AB197: 24.6 | AC197: 22.6 | AD197: 47.2 | AE197: 52.4 | AF197: 255.5 | AG197: 2750 | AH197: 2494.4 | AI197: 50.3 | AJ197: 45.6 | AK197: 96 | AL197: 52.7 | AM197: 215.8 | AN197: 38 | AO197: 34.1 | AP197: 2078.2 | AQ197: 1862.4 | AR197: 72.1 | AS197: 649.8 | AT197: 561.9 | AU197: 671.7 | AV197: 632 | AW197: 52.3 | AX197: 128 | AY197: 26.1 | AZ197: 23.8 | BA197: 1428.5 | BB197: 1300.5 | BC197: 2.1 | BD197: 2 | BE197: 51.6 | BF197: 8.1 | BG197: 5.6 | BH197: 91.6 | BI197: 51.9 | BJ197: 68.7 | BK197: 50.8 | BL197: 1327 | BM197: 1286 | BN197: 813 | BO197: 1096 | BP197: 704 | BQ197: 1387 | BR197: 1572 | BS197: 25 | BT197: 30 | BU197: 5 | BV197: 3278.6 | BW197: =Table1[[#This Row],[SF]]/Table1[[#This Row],[CF]] -> 0.5194545455 | BX197: =Table1[[#This Row],[MSF]]/Table1[[#This Row],[CF]] -> 0.2362909091 | BY197: =Table1[[#This Row],[BSF]]/Table1[[#This Row],[CF]] -> 0.2442545455 | BZ197: =Table1[[#This Row],[SA]]/Table1[[#This Row],[CA]] -> 0.521367864 | CA197: =Table1[[#This Row],[MSA]]/Table1[[#This Row],[CA]] -> 0.2252645927 | CB197: =Table1[[#This Row],[BSA]]/Table1[[#This Row],[CA]] -> 0.2533675433
A198: 5v5 | B198: Close | C198: DAL | D198: 82 | E198: 20062007 | F198: 70 | G198: 71 | H198: -1 | I198: 53.5 | J198: 100 | K198: 67 | L198: 7.4 | M198: 91.5 | N198: 51.3 | O198: 99 | P198: 56.2 | Q198: 53.5 | R198: 43 | S198: 333 | T198: 290 | U198: 9.6 | V198: 8.3 | W198: 17.9 | X198: 52.9 | Y198: 95 | Z198: 879 | AA198: 784 | AB198: 25.3 | AC198: 22.6 | AD198: 47.9 | AE198: 53.5 | AF198: 242 | AG198: 1858 | AH198: 1616 | AI198: 53.5 | AJ198: 46.5 | AK198: 100 | AL198: 54.2 | AM198: 218 | AN198: 40.5 | AO198: 34.2 | AP198: 1406 | AQ198: 1188 | AR198: 74.7 | AS198: 464 | AT198: 350 | AU198: 452 | AV198: 428 | AW198: 52.9 | AX198: 104 | AY198: 27.1 | AZ198: 24.1 | BA198: 942 | BB198: 838 | BC198: 2 | BD198: 2 | BE198: 49.6 | BF198: 7.4 | BG198: 5 | BH198: 91.5 | BI198: 50.7 | BJ198: 67 | BK198: 51.3 | BL198: 855 | BM198: 812 | BN198: 552 | BO198: 684 | BP198: 431 | BQ198: 927 | BR198: 1044 | BS198: 15 | BT198: 16 | BU198: 1 | BV198: 2084.6 | BW198: =Table1[[#This Row],[SF]]/Table1[[#This Row],[CF]] -> 0.5069967707 | BX198: =Table1[[#This Row],[MSF]]/Table1[[#This Row],[CF]] -> 0.2497308934 | BY198: =Table1[[#This Row],[BSF]]/Table1[[#This Row],[CF]] -> 0.2432723358 | BZ198: =Table1[[#This Row],[SA]]/Table1[[#This Row],[CA]] -> 0.5185643564 | CA198: =Table1[[#This Row],[MSA]]/Table1[[#This Row],[CA]] -> 0.2165841584 | CB198: =Table1[[#This Row],[BSA]]/Table1[[#This Row],[CA]] -> 0.2648514851
A199: 5v5 | B199: Tied | C199: DAL | D199: 82 | E199: 20062007 | F199: 41 | G199: 45 | H199: -4 | I199: 53 | J199: 102.7 | K199: 66.2 | L199: 7.2 | M199: 91.4 | N199: 51.4 | O199: 98.6 | P199: 55.3 | Q199: 51.4 | R199: 11 | S199: 207 | T199: 196 | U199: 10.2 | V199: 9.6 | W199: 19.8 | X199: 53 | Y199: 60 | Z199: 532 | AA199: 472 | AB199: 26.2 | AC199: 23.2 | AD199: 49.4 | AE199: 53 | AF199: 125 | AG199: 1107 | AH199: 982 | AI199: 54.4 | AJ199: 48.3 | AK199: 102.7 | AL199: 54.2 | AM199: 134 | AN199: 42.4 | AO199: 35.8 | AP199: 863 | AQ199: 729 | AR199: 78.3 | AS199: 292 | AT199: 204 | AU199: 244 | AV199: 253 | AW199: 52.1 | AX199: 46 | AY199: 28.1 | AZ199: 25.8 | BA199: 571 | BB199: 525 | BC199: 2 | BD199: 2.2 | BE199: 47.7 | BF199: 7.2 | BG199: 4.8 | BH199: 91.4 | BI199: 51.6 | BJ199: 66.2 | BK199: 51.4 | BL199: 499 | BM199: 472 | BN199: 326 | BO199: 382 | BP199: 263 | BQ199: 539 | BR199: 592 | BS199: 9 | BT199: 9 | BU199: 0 | BV199: 1220.5 | BW199: =Table1[[#This Row],[SF]]/Table1[[#This Row],[CF]] -> 0.5158084914 | BX199: =Table1[[#This Row],[MSF]]/Table1[[#This Row],[CF]] -> 0.2637759711 | BY199: =Table1[[#This Row],[BSF]]/Table1[[#This Row],[CF]] -> 0.2204155375 | BZ199: =Table1[[#This Row],[SA]]/Table1[[#This Row],[CA]] -> 0.5346232179 | CA199: =Table1[[#This Row],[MSA]]/Table1[[#This Row],[CA]] -> 0.2077393075 | CB199: =Table1[[#This Row],[BSA]]/Table1[[#This Row],[CA]] -> 0.2576374745
A200: 5v5 | B200: Up1 | C200: DAL | D200: 52 | E200: 20062007 | F200: 24 | G200: 17 | H200: 7 | I200: 49.1 | J200: 93.8 | K200: 70.3 | L200: 8.6 | M200: 94.2 | N200: 53.5 | O200: 102.8 | P200: 53.4 | Q200: 54.1 | R200: 15 | S200: 99 | T200: 84 | U200: 8.3 | V200: 7 | W200: 15.3 | X200: 47.9 | Y200: -23 | Z200: 268 | AA200: 291 | AB200: 22.4 | AC200: 24.4 | AD200: 46.8 | AE200: 49.1 | AF200: -21 | AG200: 550 | AH200: 571 | AI200: 46 | AJ200: 47.8 | AK200: 93.8 | AL200: 48.2 | AM200: -29 | AN200: 33.2 | AO200: 35.7 | AP200: 397 | AQ200: 426 | AR200: 68.9 | AS200: 118 | AT200: 133 | AU200: 153 | AV200: 145 | AW200: 48.8 | AX200: -14 | AY200: 23.4 | AZ200: 24.5 | BA200: 279 | BB200: 293 | BC200: 2 | BD200: 1.4 | BE200: 58.5 | BF200: 8.6 | BG200: 6 | BH200: 94.2 | BI200: 50.7 | BJ200: 70.3 | BK200: 53.5 | BL200: 305 | BM200: 265 | BN200: 181 | BO200: 231 | BP200: 158 | BQ200: 309 | BR200: 393 | BS200: 3 | BT200: 3 | BU200: 0 | BV200: 716.7 | BW200: =Table1[[#This Row],[SF]]/Table1[[#This Row],[CF]] -> 0.5072727273 | BX200: =Table1[[#This Row],[MSF]]/Table1[[#This Row],[CF]] -> 0.2145454545 | BY200: =Table1[[#This Row],[BSF]]/Table1[[#This Row],[CF]] -> 0.2781818182 | BZ200: =Table1[[#This Row],[SA]]/Table1[[#This Row],[CA]] -> 0.5131348511 | CA200: =Table1[[#This Row],[MSA]]/Table1[[#This Row],[CA]] -> 0.2329246935 | CB200: =Table1[[#This Row],[BSA]]/Table1[[#This Row],[CA]] -> 0.2539404553
... 925 more rows

Sheet NHL5v4
A1: Strength | B1: Sit | C1: Team | D1: Gm | E1: season | F1: GF | G1: GA | H1: G+/- | I1: CF% | J1: CP60 | K1: OFOn% | L1: OSh% | M1: OSv% | N1: FO% | O1: PDO | P1: ZSO% | Q1: HSCF% | R1: HSC+/- | S1: HSCF | T1: HSCA | U1: HSCF60 | V1: HSCA60 | W1: HSCP60 | X1: SCF% | Y1: SC+/- | Z1: SCF | AA1: SCA | AB1: SCF60 | AC1: SCA60 | AD1: SCP60 | AE1: CF%2 | AF1: C+/- | AG1: CF | AH1: CA | AI1: CF60 | AJ1: CA60 | AK1: CP603 | AL1: FF% | AM1: F+/- | AN1: FF60 | AO1: FA60 | AP1: FF | AQ1: FA | AR1: FP60 | AS1: MSF | AT1: MSA | AU1: BSF | AV1: BSA | AW1: SF% | AX1: S+/- | AY1: SF60 | AZ1: SA60 | BA1: SF | BB1: SA | BC1: GF60 | BD1: GA60 | BE1: GF% | BF1: OSh%4 | BG1: OFenSh% | BH1: OSv%5 | BI1: OCOn% | BJ1: OFOn%6 | BK1: FO%7 | BL1: FO_W | BM1: FO_L | BN1: ZSO | BO1: ZSN | BP1: ZSD | BQ1: HIT | BR1: HIT- | BS1: PN | BT1: PN- | BU1: PenD | BV1: TOI | BW1: Csh | BX1: Msh | BY1: Bsh
A2: 5v4 | B2: Close | C2: ANA | D2: 79 | E2: 20052006 | F2: 1900-02-19 | G2: 3 | H2: 47 | I2: 84.1 | J2: 109.1 | K2: 72.8 | L2: 12.4 | M2: 96.8 | N2: 54.8 | O2: 109.2 | P2: 86.6 | Q2: 84.1 | R2: 120 | S2: 148 | T2: 28 | U2: 18.9 | V2: 3.6 | W2: 22.5 | X2: 83 | Y2: 294 | Z2: 370 | AA2: 76 | AB2: 47.3 | AC2: 9.7 | AD2: 57 | AE2: 84.1 | AF2: 581 | AG2: 717 | AH2: 136 | AI2: 91.7 | AJ2: 17.4 | AK2: 109.1 | AL2: 82.7 | AM2: 439 | AN2: 71 | AO2: 14.8 | AP2: 555 | AQ2: 116 | AR2: 85.8 | AS2: 151 | AT2: 23 | AU2: 162 | AV2: 20 | AW2: 81.3 | AX2: 311 | AY2: 51.7 | AZ2: 11.9 | BA2: 404 | BB2: 93 | BC2: 6.4 | BD2: 0.4 | BE2: 94.3 | BF2: 12.4 | BG2: 9 | BH2: 96.8 | BI2: 56.3 | BJ2: 72.8 | BK2: 54.8 | BL2: 288 | BM2: 238 | BN2: 311 | BO2: 167 | BP2: 48 | BQ2: 54 | BR2: 75 | BS2: 8 | BT2: 235 | BU2: 227 | BV2: 469.2 | BW2: =Table2[[#This Row],[SF]]/Table2[[#This Row],[CF]] -> 0.5634588563 | BX2: =Table2[[#This Row],[MSF]]/Table2[[#This Row],[CF]] -> 0.2105997211 | BY2: =Table2[[#This Row],[BSF]]/Table2[[#This Row],[CF]] -> 0.2259414226
A3: 5v4 | B3: Dn1 | C3: ANA | D3: 47 | E3: 20052006 | F3: 1900-01-17 | G3: 1 | H3: 16 | I3: 85.8 | J3: 111.4 | K3: 74.1 | L3: 11.4 | M3: 96.8 | N3: 54.4 | O3: 108.2 | P3: 88.8 | Q3: 90.9 | R3: 54 | S3: 60 | T3: 6 | U3: 21.1 | V3: 2.1 | W3: 23.2 | X3: 82.9 | Y3: 112 | Z3: 141 | AA3: 29 | AB3: 49.6 | AC3: 10.2 | AD3: 59.8 | AE3: 85.8 | AF3: 227 | AG3: 272 | AH3: 45 | AI3: 95.6 | AJ3: 15.8 | AK3: 111.4 | AL3: 84.1 | AM3: 163 | AN3: 70.7 | AO3: 13.4 | AP3: 201 | AQ3: 38 | AR3: 84 | AS3: 52 | AT3: 7 | AU3: 71 | AV3: 7 | AW3: 82.8 | AX3: 118 | AY3: 52.4 | AZ3: 10.9 | BA3: 149 | BB3: 31 | BC3: 6 | BD3: 0.4 | BE3: 94.4 | BF3: 11.4 | BG3: 8.5 | BH3: 96.8 | BI3: 54.8 | BJ3: 74.1 | BK3: 54.4 | BL3: 99 | BM3: 83 | BN3: 111 | BO3: 57 | BP3: 14 | BQ3: 17 | BR3: 35 | BS3: 2 | BT3: 82 | BU3: 80 | BV3: 170.7 | BW3: =Table2[[#This Row],[SF]]/Table2[[#This Row],[CF]] -> 0.5477941176 | BX3: =Table2[[#This Row],[MSF]]/Table2[[#This Row],[CF]] -> 0.1911764706 | BY3: =Table2[[#This Row],[BSF]]/Table2[[#This Row],[CF]] -> 0.2610294118
A4: 5v4 | B4: ScAdj | C4: ANA | D4: 80 | E4: 20052006 | F4: 1900-03-24 | G4: 10 | H4: 74 | I4: 85.2 | J4: 107.2 | K4: 71.4 | L4: 13.5 | M4: 93 | N4: 54.8 | O4: 106.4 | P4: 86.3 | Q4: 84.9 | R4: 189.3 | S4: 230.3 | T4: 41 | U4: 17.9 | V4: 3.2 | W4: 21.1 | X4: 84.8 | Y4: 497.9 | Z4: 606.9 | AA4: 109 | AB4: 47.2 | AC4: 8.5 | AD4: 55.7 | AE4: 85.2 | AF4: 971.4 | AG4: 1175.4 | AH4: 204 | AI4: 91.4 | AJ4: 15.9 | AK4: 107.2 | AL4: 83 | AM4: 693 | AN4: 67.8 | AO4: 13.9 | AP4: 872 | AQ4: 179 | AR4: 81.7 | AS4: 249.3 | AT4: 37 | AU4: 303.4 | AV4: 25 | AW4: 81.4 | AX4: 480.7 | AY4: 48.4 | AZ4: 11 | BA4: 622.7 | BB4: 142 | BC4: 6.5 | BD4: 0.8 | BE4: 89.4 | BF4: 13.5 | BG4: 9.6 | BH4: 93 | BI4: 53 | BJ4: 71.4 | BK4: 54.8 | BL4: 481 | BM4: 397 | BN4: 496 | BO4: 303 | BP4: 79 | BQ4: 73 | BR4: 119 | BS4: 19 | BT4: 390 | BU4: 371 | BV4: 771.8 | BW4: =Table2[[#This Row],[SF]]/Table2[[#This Row],[CF]] -> 0.5297770972 | BX4: =Table2[[#This Row],[MSF]]/Table2[[#This Row],[CF]] -> 0.2120980092 | BY4: =Table2[[#This Row],[BSF]]/Table2[[#This Row],[CF]] -> 0.2581248937
A5: 5v4 | B5: Tied | C5: ANA | D5: 68 | E5: 20052006 | F5: 1900-01-29 | G5: 1 | H5: 28 | I5: 82.8 | J5: 110.6 | K5: 71.7 | L5: 12.8 | M5: 98.3 | N5: 51.9 | O5: 111.1 | P5: 87.3 | Q5: 82.5 | R5: 63 | S5: 80 | T5: 17 | U5: 18.3 | V5: 3.9 | W5: 22.2 | X5: 82.5 | Y5: 160 | Z5: 203 | AA5: 43 | AB5: 46.5 | AC5: 9.9 | AD5: 56.4 | AE5: 82.8 | AF5: 317 | AG5: 400 | AH5: 83 | AI5: 91.6 | AJ5: 19 | AK5: 110.6 | AL5: 81.2 | AM5: 242 | AN5: 72.2 | AO5: 16.7 | AP5: 315 | AQ5: 73 | AR5: 88.9 | AS5: 89 | AT5: 15 | AU5: 85 | AV5: 10 | AW5: 79.6 | AX5: 168 | AY5: 51.8 | AZ5: 13.3 | BA5: 226 | BB5: 58 | BC5: 6.6 | BD5: 0.2 | BE5: 96.7 | BF5: 12.8 | BG5: 9.2 | BH5: 98.3 | BI5: 56.5 | BJ5: 71.7 | BK5: 51.9 | BL5: 153 | BM5: 142 | BN5: 178 | BO5: 91 | BP5: 26 | BQ5: 27 | BR5: 35 | BS5: 2 | BT5: 127 | BU5: 125 | BV5: 261.9 | BW5: =Table2[[#This Row],[SF]]/Table2[[#This Row],[CF]] -> 0.565 | BX5: =Table2[[#This Row],[MSF]]/Table2[[#This Row],[CF]] -> 0.2225 | BY5: =Table2[[#This Row],[BSF]]/Table2[[#This Row],[CF]] -> 0.2125
A6: 5v4 | B6: Up1 | C6: ANA | D6: 49 | E6: 20052006 | F6: 1900-01-12 | G6: 4 | H6: 8 | I6: 83.8 | J6: 87.7 | K6: 72.8 | L6: 12.1 | M6: 84 | N6: 57.3 | O6: 96.1 | P6: 80.4 | Q6: 80.6 | R6: 22 | S6: 29 | T6: 7 | U6: 12.5 | V6: 3 | W6: 15.5 | X6: 85.1 | Y6: 66 | Z6: 80 | AA6: 14 | AB6: 34.4 | AC6: 6 | AD6: 40.4 | AE6: 83.8 | AF6: 138 | AG6: 171 | AH6: 33 | AI6: 73.5 | AJ6: 14.2 | AK6: 87.7 | AL6: 83.4 | AM6: 109 | AN6: 58.5 | AO6: 11.6 | AP6: 136 | AQ6: 27 | AR6: 70.1 | AS6: 37 | AT6: 2 | AU6: 35 | AV6: 6 | AW6: 79.8 | AX6: 74 | AY6: 42.6 | AZ6: 10.8 | BA6: 99 | BB6: 25 | BC6: 5.2 | BD6: 1.7 | BE6: 75 | BF6: 12.1 | BG6: 8.8 | BH6: 84 | BI6: 57.9 | BJ6: 72.8 | BK6: 57.3 | BL6: 94 | BM6: 70 | BN6: 78 | BO6: 67 | BP6: 19 | BQ6: 17 | BR6: 20 | BS6: 7 | BT6: 76 | BU6: 69 | BV6: 139.5 | BW6: =Table2[[#This Row],[SF]]/Table2[[#This Row],[CF]] -> 0.5789473684 | BX6: =Table2[[#This Row],[MSF]]/Table2[[#This Row],[CF]] -> 0.216374269 | BY6: =Table2[[#This Row],[BSF]]/Table2[[#This Row],[CF]] -> 0.2046783626
A7: 5v4 | B7: Close | C7: ATL | D7: 74 | E7: 20052006 | F7: 1900-02-21 | G7: 6 | H7: 46 | I7: 83.4 | J7: 112.6 | K7: 72.4 | L7: 12.1 | M7: 93.5 | N7: 56.2 | O7: 105.5 | P7: 87.8 | Q7: 82.1 | R7: 126 | S7: 161 | T7: 35 | U7: 20.1 | V7: 4.4 | W7: 24.5 | X7: 82.9 | Y7: 312 | Z7: 393 | AA7: 81 | AB7: 49.1 | AC7: 10.1 | AD7: 59.3 | AE7: 83.4 | AF7: 601 | AG7: 751 | AH7: 150 | AI7: 93.9 | AJ7: 18.8 | AK7: 112.6 | AL7: 83.5 | AM7: 477 | AN7: 74.4 | AO7: 14.8 | AP7: 595 | AQ7: 118 | AR7: 89.1 | AS7: 164 | AT7: 26 | AU7: 156 | AV7: 32 | AW7: 82.4 | AX7: 339 | AY7: 53.9 | AZ7: 11.5 | BA7: 431 | BB7: 92 | BC7: 6.5 | BD7: 0.8 | BE7: 89.7 | BF7: 12.1 | BG7: 8.7 | BH7: 93.5 | BI7: 57.4 | BJ7: 72.4 | BK7: 56.2 | BL7: 288 | BM7: 224 | BN7: 316 | BO7: 152 | BP7: 44 | BQ7: 58 | BR7: 88 | BS7: 9 | BT7: 242 | BU7: 233 | BV7: 479.9 | BW7: =Table2[[#This Row],[SF]]/Table2[[#This Row],[CF]] -> 0.5739014647 | BX7: =Table2[[#This Row],[MSF]]/Table2[[#This Row],[CF]] -> 0.2183754993 | BY7: =Table2[[#This Row],[BSF]]/Table2[[#This Row],[CF]] -> 0.207723036
A8: 5v4 | B8: Dn1 | C8: ATL | D8: 50 | E8: 20052006 | F8: 1900-01-19 | G8: 2 | H8: 17 | I8: 84 | J8: 116 | K8: 70.4 | L8: 9.3 | M8: 95.1 | N8: 55.9 | O8: 104.4 | P8: 90.2 | Q8: 83.7 | R8: 70 | S8: 87 | T8: 17 | U8: 23.4 | V8: 4.6 | W8: 27.9 | X8: 83.9 | Y8: 152 | Z8: 188 | AA8: 36 | AB8: 50.5 | AC8: 9.7 | AD8: 60.2 | AE8: 84 | AF8: 294 | AG8: 363 | AH8: 69 | AI8: 97.5 | AJ8: 18.5 | AK8: 116 | AL8: 84.6 | AM8: 238 | AN8: 78.2 | AO8: 14.2 | AP8: 291 | AQ8: 53 | AR8: 92.4 | AS8: 86 | AT8: 12 | AU8: 72 | AV8: 16 | AW8: 83.3 | AX8: 164 | AY8: 55.1 | AZ8: 11 | BA8: 205 | BB8: 41 | BC8: 5.1 | BD8: 0.5 | BE8: 90.5 | BF8: 9.3 | BG8: 6.5 | BH8: 95.1 | BI8: 56.5 | BJ8: 70.4 | BK8: 55.9 | BL8: 132 | BM8: 104 | BN8: 148 | BO8: 72 | BP8: 16 | BQ8: 26 | BR8: 42 | BS8: 1 | BT8: 112 | BU8: 111 | BV8: 223.4 | BW8: =Table2[[#This Row],[SF]]/Table2[[#This Row],[CF]] -> 0.564738292 | BX8: =Table2[[#This Row],[MSF]]/Table2[[#This Row],[CF]] -> 0.2369146006 | BY8: =Table2[[#This Row],[BSF]]/Table2[[#This Row],[CF]] -> 0.1983471074
A9: 5v4 | B9: ScAdj | C9: ATL | D9: 79 | E9: 20052006 | F9: 1900-04-06 | G9: 8 | H9: 89 | I9: 83.7 | J9: 107.1 | K9: 71.7 | L9: 13.8 | M9: 94.3 | N9: 58.2 | O9: 108.2 | P9: 87.6 | Q9: 83.1 | R9: 207.9 | S9: 260.9 | T9: 53 | U9: 18.9 | V9: 3.8 | W9: 22.7 | X9: 82.9 | Y9: 503.2 | Z9: 634.2 | AA9: 131 | AB9: 45.8 | AC9: 9.5 | AD9: 55.3 | AE9: 83.7 | AF9: 999 | AG9: 1240 | AH9: 241 | AI9: 89.6 | AJ9: 17.4 | AK9: 107.1 | AL9: 83.6 | AM9: 786 | AN9: 70.7 | AO9: 13.9 | AP9: 978 | AQ9: 192 | AR9: 84.6 | AS9: 277 | AT9: 51 | AU9: 262 | AV9: 49 | AW9: 83.3 | AX9: 560 | AY9: 50.7 | AZ9: 10.2 | BA9: 701 | BB9: 141 | BC9: 7 | BD9: 0.6 | BE9: 92.4 | BF9: 13.8 | BG9: 9.9 | BH9: 94.3 | BI9: 56.5 | BJ9: 71.7 | BK9: 58.2 | BL9: 509 | BM9: 366 | BN9: 522 | BO9: 279 | BP9: 74 | BQ9: 81 | BR9: 150 | BS9: 24 | BT9: 440 | BU9: 416 | BV9: 830.1 | BW9: =Table2[[#This Row],[SF]]/Table2[[#This Row],[CF]] -> 0.5653225806 | BX9: =Table2[[#This Row],[MSF]]/Table2[[#This Row],[CF]] -> 0.2233870968 | BY9: =Table2[[#This Row],[BSF]]/Table2[[#This Row],[CF]] -> 0.2112903226
A10: 5v4 | B10: Tied | C10: ATL | D10: 66 | E10: 20052006 | F10: 1900-01-26 | G10: 4 | H10: 22 | I10: 81.9 | J10: 109.2 | K10: 72.7 | L10: 12.7 | M10: 92 | N10: 57.6 | O10: 104.7 | P10: 86.9 | Q10: 80.9 | R10: 55 | S10: 72 | T10: 17 | U10: 17.7 | V10: 4.2 | W10: 21.9 | X10: 81.1 | Y10: 142 | Z10: 185 | AA10: 43 | AB10: 45.6 | AC10: 10.6 | AD10: 56.2 | AE10: 81.9 | AF10: 283 | AG10: 363 | AH10: 80 | AI10: 89.5 | AJ10: 19.7 | AK10: 109.2 | AL10: 81.5 | AM10: 218 | AN10: 69.5 | AO10: 15.8 | AP10: 282 | AQ10: 64 | AR10: 85.3 | AS10: 77 | AT10: 14 | AU10: 81 | AV10: 16 | AW10: 80.4 | AX10: 155 | AY10: 50.5 | AZ10: 12.3 | BA10: 205 | BB10: 50 | BC10: 6.4 | BD10: 1 | BE10: 86.7 | BF10: 12.7 | BG10: 9.2 | BH10: 92 | BI10: 56.5 | BJ10: 72.7 | BK10: 57.6 | BL10: 148 | BM10: 109 | BN10: 159 | BO10: 74 | BP10: 24 | BQ10: 32 | BR10: 46 | BS10: 4 | BT10: 118 | BU10: 114 | BV10: 243.4 | BW10: =Table2[[#This Row],[SF]]/Table2[[#This Row],[CF]] -> 0.564738292 | BX10: =Table2[[#This Row],[MSF]]/Table2[[#This Row],[CF]] -> 0.2121212121 | BY10: =Table2[[#This Row],[BSF]]/Table2[[#This Row],[CF]] -> 0.2231404959
A11: 5v4 | B11: Up1 | C11: ATL | D11: 44 | E11: 20052006 | F11: 1900-01-13 | G11: 1 | H11: 12 | I11: 87.6 | J11: 101.4 | K11: 71.7 | L11: 15.1 | M11: 90.9 | N11: 61.7 | O11: 106 | P11: 87.8 | Q11: 90.3 | R11: 25 | S11: 28 | T11: 3 | U11: 16.8 | V11: 1.8 | W11: 18.6 | X11: 87.6 | Y11: 67 | Z11: 78 | AA11: 11 | AB11: 46.8 | AC11: 6.6 | AD11: 53.4 | AE11: 87.6 | AF11: 127 | AG11: 148 | AH11: 21 | AI11: 88.8 | AJ11: 12.6 | AK11: 101.4 | AL11: 89.6 | AM11: 106 | AN11: 72 | AO11: 8.4 | AP11: 120 | AQ11: 14 | AR11: 80.4 | AS11: 34 | AT11: 3 | AU11: 28 | AV11: 7 | AW11: 88.7 | AX11: 75 | AY11: 51.6 | AZ11: 6.6 | BA11: 86 | BB11: 11 | BC11: 7.8 | BD11: 0.6 | BE11: 92.9 | BF11: 15.1 | BG11: 10.8 | BH11: 90.9 | BI11: 58.1 | BJ11: 71.7 | BK11: 61.7 | BL11: 66 | BM11: 41 | BN11: 65 | BO11: 33 | BP11: 9 | BQ11: 4 | BR11: 14 | BS11: 4 | BT11: 54 | BU11: 50 | BV11: 100 | BW11: =Table2[[#This Row],[SF]]/Table2[[#This Row],[CF]] -> 0.5810810811 | BX11: =Table2[[#This Row],[MSF]]/Table2[[#This Row],[CF]] -> 0.2297297297 | BY11: =Table2[[#This Row],[BSF]]/Table2[[#This Row],[CF]] -> 0.1891891892
A12: 5v4 | B12: Close | C12: BOS | D12: 77 | E12: 20052006 | F12: 1900-02-13 | G12: 5 | H12: 39 | I12: 82.6 | J12: 110.3 | K12: 73.7 | L12: 11.1 | M12: 94.5 | N12: 50.9 | O12: 105.6 | P12: 87.5 | Q12: 79.8 | R12: 100 | S12: 134 | T12: 34 | U12: 17.3 | V12: 4.4 | W12: 21.7 | X12: 80.6 | Y12: 274 | Z12: 361 | AA12: 87 | AB12: 46.5 | AC12: 11.2 | AD12: 57.7 | AE12: 82.6 | AF12: 558 | AG12: 707 | AH12: 149 | AI12: 91.1 | AJ12: 19.2 | AK12: 110.3 | AL12: 82.2 | AM12: 420 | AN12: 69.1 | AO12: 15 | AP12: 536 | AQ12: 116 | AR12: 84 | AS12: 141 | AT12: 25 | AU12: 171 | AV12: 33 | AW12: 81.3 | AX12: 304 | AY12: 50.9 | AZ12: 11.7 | BA12: 395 | BB12: 91 | BC12: 5.7 | BD12: 0.6 | BE12: 89.8 | BF12: 11.1 | BG12: 8.2 | BH12: 94.5 | BI12: 55.9 | BJ12: 73.7 | BK12: 50.9 | BL12: 256 | BM12: 247 | BN12: 323 | BO12: 134 | BP12: 46 | BQ12: 38 | BR12: 73 | BS12: 10 | BT12: 228 | BU12: 218 | BV12: 465.5 | BW12: =Table2[[#This Row],[SF]]/Table2[[#This Row],[CF]] -> 0.558698727 | BX12: =Table2[[#This Row],[MSF]]/Table2[[#This Row],[CF]] -> 0.1994342291 | BY12: =Table2[[#This Row],[BSF]]/Table2[[#This Row],[CF]] -> 0.2418670438
A13: 5v4 | B13: Dn1 | C13: BOS | D13: 43 | E13: 20052006 | F13: 1900-01-14 | G13: 3 | H13: 11 | I13: 88.9 | J13: 116.4 | K13: 76.2 | L13: 12.2 | M13: 82.4 | N13: 48.6 | O13: 94.5 | P13: 92.2 | Q13: 84.3 | R13: 35 | S13: 43 | T13: 8 | U13: 23.2 | V13: 4.3 | W13: 27.5 | X13: 87.8 | Y13: 87 | Z13: 101 | AA13: 14 | AB13: 54.4 | AC13: 7.5 | AD13: 62 | AE13: 88.9 | AF13: 168 | AG13: 192 | AH13: 24 | AI13: 103.5 | AJ13: 12.9 | AK13: 116.4 | AL13: 88.3 | AM13: 131 | AN13: 81.4 | AO13: 10.8 | AP13: 151 | AQ13: 20 | AR13: 92.1 | AS13: 36 | AT13: 3 | AU13: 41 | AV13: 4 | AW13: 87.1 | AX13: 98 | AY13: 62 | AZ13: 9.2 | BA13: 115 | BB13: 17 | BC13: 7.5 | BD13: 1.6 | BE13: 82.4 | BF13: 12.2 | BG13: 9.3 | BH13: 82.4 | BI13: 59.9 | BJ13: 76.2 | BK13: 48.6 | BL13: 67 | BM13: 71 | BN13: 95 | BO13: 35 | BP13: 8 | BQ13: 10 | BR13: 14 | BS13: 0 | BT13: 64 | BU13: 64 | BV13: 111.3 | BW13: =Table2[[#This Row],[SF]]/Table2[[#This Row],[CF]] -> 0.5989583333 | BX13: =Table2[[#This Row],[MSF]]/Table2[[#This Row],[CF]] -> 0.1875 | BY13: =Table2[[#This Row],[BSF]]/Table2[[#This Row],[CF]] -> 0.2135416667
A14: 5v4 | B14: ScAdj | C14: BOS | D14: 78 | E14: 20052006 | F14: 1900-02-26 | G14: 9 | H14: 48 | I14: 82.2 | J14: 109.3 | K14: 70.4 | L14: 10.3 | M14: 93.7 | N14: 53 | O14: 104 | P14: 87.1 | Q14: 80.5 | R14: 143.8 | S14: 189.8 | T14: 46 | U14: 16.4 | V14: 4 | W14: 20.3 | X14: 81.1 | Y14: 398.2 | Z14: 519.2 | AA14: 121 | AB14: 44.8 | AC14: 10.4 | AD14: 55.2 | AE14: 82.2 | AF14: 817 | AG14: 1042 | AH14: 225 | AI14: 89.9 | AJ14: 19.4 | AK14: 109.3 | AL14: 81.4 | AM14: 606.2 | AN14: 67.7 | AO14: 15.4 | AP14: 785.2 | AQ14: 179 | AR14: 83.2 | AS14: 232.7 | AT14: 36 | AU14: 256.8 | AV14: 46 | AW14: 79.4 | AX14: 409.5 | AY14: 47.7 | AZ14: 12.3 | BA14: 552.5 | BB14: 143 | BC14: 4.9 | BD14: 0.8 | BE14: 86.4 | BF14: 10.3 | BG14: 7.3 | BH14: 93.7 | BI14: 53 | BJ14: 70.4 | BK14: 53 | BL14: 401 | BM14: 356 | BN14: 467 | BO14: 221 | BP14: 69 | BQ14: 54 | BR14: 109 | BS14: 13 | BT14: 336 | BU14: 323 | BV14: 695.6 | BW14: =Table2[[#This Row],[SF]]/Table2[[#This Row],[CF]] -> 0.5302303263 | BX14: =Table2[[#This Row],[MSF]]/Table2[[#This Row],[CF]] -> 0.2233205374 | BY14: =Table2[[#This Row],[BSF]]/Table2[[#This Row],[CF]] -> 0.2464491363
A15: 5v4 | B15: Tied | C15: BOS | D15: 73 | E15: 20052006 | F15: 1900-01-22 | G15: 2 | H15: 20 | I15: 81.5 | J15: 109.5 | K15: 71.7 | L15: 9.3 | M15: 96.4 | N15: 51.9 | O15: 105.7 | P15: 84.7 | Q15: 77.9 | R15: 53 | S15: 74 | T15: 21 | U15: 15.5 | V15: 4.4 | W15: 19.9 | X15: 79.2 | Y15: 155 | Z15: 210 | AA15: 55 | AB15: 44 | AC15: 11.5 | AD15: 55.5 | AE15: 81.5 | AF15: 329 | AG15: 426 | AH15: 97 | AI15: 89.2 | AJ15: 20.3 | AK15: 109.5 | AL15: 81.6 | AM15: 255 | AN15: 68.9 | AO15: 15.5 | AP15: 329 | AQ15: 74 | AR15: 84.4 | AS15: 93 | AT15: 19 | AU15: 97 | AV15: 23 | AW15: 81.1 | AX15: 181 | AY15: 49.4 | AZ15: 11.5 | BA15: 236 | BB15: 55 | BC15: 4.6 | BD15: 0.4 | BE15: 91.7 | BF15: 9.3 | BG15: 6.7 | BH15: 96.4 | BI15: 55.4 | BJ15: 71.7 | BK15: 51.9 | BL15: 153 | BM15: 142 | BN15: 183 | BO15: 79 | BP15: 33 | BQ15: 26 | BR15: 53 | BS15: 7 | BT15: 127 | BU15: 120 | BV15: 286.6 | BW15: =Table2[[#This Row],[SF]]/Table2[[#This Row],[CF]] -> 0.5539906103 | BX15: =Table2[[#This Row],[MSF]]/Table2[[#This Row],[CF]] -> 0.2183098592 | BY15: =Table2[[#This Row],[BSF]]/Table2[[#This Row],[CF]] -> 0.2276995305
A16: 5v4 | B16: Up1 | C16: BOS | D16: 40 | E16: 20052006 | F16: 1900-01-10 | G16: 2 | H16: 8 | I16: 77 | J16: 104.3 | K16: 76.7 | L16: 9.8 | M16: 94.4 | N16: 54.5 | O16: 104.2 | P16: 85.9 | Q16: 77.8 | R16: 25 | S16: 35 | T16: 10 | U16: 15.5 | V16: 4.4 | W16: 20 | X16: 76.7 | Y16: 64 | Z16: 92 | AA16: 28 | AB16: 40.8 | AC16: 12.4 | AD16: 53.3 | AE16: 77 | AF16: 127 | AG16: 181 | AH16: 54 | AI16: 80.4 | AJ16: 24 | AK16: 104.3 | AL16: 76 | AM16: 91 | AN16: 59 | AO16: 18.6 | AP16: 133 | AQ16: 42 | AR16: 77.7 | AS16: 31 | AT16: 6 | AU16: 48 | AV16: 12 | AW16: 73.9 | AX16: 66 | AY16: 45.3 | AZ16: 16 | BA16: 102 | BB16: 36 | BC16: 4.4 | BD16: 0.9 | BE16: 83.3 | BF16: 9.8 | BG16: 7.5 | BH16: 94.4 | BI16: 56.4 | BJ16: 76.7 | BK16: 54.5 | BL16: 78 | BM16: 65 | BN16: 85 | BO16: 44 | BP16: 14 | BQ16: 9 | BR16: 19 | BS16: 4 | BT16: 66 | BU16: 62 | BV16: 135.2 | BW16: =Table2[[#This Row],[SF]]/Table2[[#This Row],[CF]] -> 0.5635359116 | BX16: =Table2[[#This Row],[MSF]]/Table2[[#This Row],[CF]] -> 0.1712707182 | BY16: =Table2[[#This Row],[BSF]]/Table2[[#This Row],[CF]] -> 0.2651933702
A17: 5v4 | B17: Close | C17: BUF | D17: 75 | E17: 20052006 | F17: 1900-02-26 | G17: 6 | H17: 51 | I17: 82.6 | J17: 103.1 | K17: 73.8 | L17: 15.1 | M17: 94 | N17: 54.5 | O17: 109.1 | P17: 90.5 | Q17: 79.5 | R17: 115 | S17: 155 | T17: 40 | U17: 19.2 | V17: 5 | W17: 24.1 | X17: 81.5 | Y17: 277 | Z17: 358 | AA17: 81 | AB17: 44.3 | AC17: 10 | AD17: 54.3 | AE17: 82.6 | AF17: 543 | AG17: 688 | AH17: 145 | AI17: 85.2 | AJ17: 17.9 | AK17: 103.1 | AL17: 80.1 | AM17: 385 | AN17: 63.4 | AO17: 15.7 | AP17: 512 | AQ17: 127 | AR17: 79.1 | AS17: 134 | AT17: 27 | AU17: 176 | AV17: 18 | AW17: 79.1 | AX17: 278 | AY17: 46.8 | AZ17: 12.4 | BA17: 378 | BB17: 100 | BC17: 7.1 | BD17: 0.7 | BE17: 90.5 | BF17: 15.1 | BG17: 11.1 | BH17: 94 | BI17: 54.9 | BJ17: 73.8 | BK17: 54.5 | BL17: 273 | BM17: 228 | BN17: 286 | BO17: 185 | BP17: 30 | BQ17: 31 | BR17: 63 | BS17: 12 | BT17: 249 | BU17: 237 | BV17: 484.7 | BW17: =Table2[[#This Row],[SF]]/Table2[[#This Row],[CF]] -> 0.5494186047 | BX17: =Table2[[#This Row],[MSF]]/Table2[[#This Row],[CF]] -> 0.1947674419 | BY17: =Table2[[#This Row],[BSF]]/Table2[[#This Row],[CF]] -> 0.2558139535
A18: 5v4 | B18: Dn1 | C18: BUF | D18: 37 | E18: 20052006 | F18: 1900-01-18 | G18: 1 | H18: 17 | I18: 81.6 | J18: 104.5 | K18: 75.7 | L18: 17.5 | M18: 96.4 | N18: 51.9 | O18: 113.9 | P18: 91.6 | Q18: 78.6 | R18: 24 | S18: 33 | T18: 9 | U18: 15.9 | V18: 4.3 | W18: 20.2 | X18: 80 | Y18: 66 | Z18: 88 | AA18: 22 | AB18: 42.4 | AC18: 10.6 | AD18: 53 | AE18: 81.6 | AF18: 137 | AG18: 177 | AH18: 40 | AI18: 85.3 | AJ18: 19.3 | AK18: 104.5 | AL18: 78.6 | AM18: 99 | AN18: 65.5 | AO18: 17.8 | AP18: 136 | AQ18: 37 | AR18: 83.3 | AS18: 33 | AT18: 9 | AU18: 41 | AV18: 3 | AW18: 78.6 | AX18: 75 | AY18: 49.6 | AZ18: 13.5 | BA18: 103 | BB18: 28 | BC18: 8.7 | BD18: 0.5 | BE18: 94.7 | BF18: 17.5 | BG18: 13.2 | BH18: 96.4 | BI18: 58.2 | BJ18: 75.7 | BK18: 51.9 | BL18: 68 | BM18: 63 | BN18: 76 | BO18: 48 | BP18: 7 | BQ18: 5 | BR18: 14 | BS18: 4 | BT18: 65 | BU18: 61 | BV18: 124.5 | BW18: =Table2[[#This Row],[SF]]/Table2[[#This Row],[CF]] -> 0.581920904 | BX18: =Table2[[#This Row],[MSF]]/Table2[[#This Row],[CF]] -> 0.186440678 | BY18: =Table2[[#This Row],[BSF]]/Table2[[#This Row],[CF]] -> 0.2316384181
A19: 5v4 | B19: ScAdj | C19: BUF | D19: 78 | E19: 20052006 | F19: 1900-04-03 | G19: 13 | H19: 81 | I19: 82 | J19: 99.2 | K19: 73.6 | L19: 16.7 | M19: 91.1 | N19: 53.9 | O19: 107.8 | P19: 91.3 | Q19: 79.9 | R19: 175 | S19: 234 | T19: 59 | U19: 18.9 | V19: 4.8 | W19: 23.7 | X19: 81.2 | Y19: 416.8 | Z19: 542.8 | AA19: 126 | AB19: 43.9 | AC19: 10.2 | AD19: 54.1 | AE19: 82 | AF19: 785.7 | AG19: 1006.7 | AH19: 221 | AI19: 81.4 | AJ19: 17.9 | AK19: 99.2 | AL19: 80.4 | AM19: 579.2 | AN19: 61.9 | AO19: 15 | AP19: 765.2 | AQ19: 186 | AR19: 76.9 | AS19: 202.2 | AT19: 40 | AU19: 241.5 | AV19: 35 | AW19: 79.4 | AX19: 417.1 | AY19: 45.5 | AZ19: 11.8 | BA19: 563.1 | BB19: 146 | BC19: 7.6 | BD19: 1.1 | BE19: 87.9 | BF19: 16.7 | BG19: 12.3 | BH19: 91.1 | BI19: 55.9 | BJ19: 73.6 | BK19: 53.9 | BL19: 418 | BM19: 357 | BN19: 463 | BO19: 268 | BP19: 44 | BQ19: 52 | BR19: 103 | BS19: 15 | BT19: 395 | BU19: 380 | BV19: 742.3 | BW19: =Table2[[#This Row],[SF]]/Table2[[#This Row],[CF]] -> 0.5593523393 | BX19: =Table2[[#This Row],[MSF]]/Table2[[#This Row],[CF]] -> 0.2008542763 | BY19: =Table2[[#This Row],[BSF]]/Table2[[#This Row],[CF]] -> 0.2398927188
A20: 5v4 | B20: Tied | C20: BUF | D20: 65 | E20: 20052006 | F20: 1900-02-07 | G20: 5 | H20: 33 | I20: 83.6 | J20: 104.1 | K20: 72.5 | L20: 16.6 | M20: 90.4 | N20: 53 | O20: 107 | P20: 91.3 | Q20: 81 | R20: 75 | S20: 98 | T20: 23 | U20: 20.4 | V20: 4.8 | W20: 25.2 | X20: 82.5 | Y20: 175 | Z20: 222 | AA20: 47 | AB20: 46.2 | AC20: 9.8 | AD20: 56 | AE20: 83.6 | AF20: 336 | AG20: 418 | AH20: 82 | AI20: 87 | AJ20: 17.1 | AK20: 104.1 | AL20: 81.9 | AM20: 246 | AN20: 65.8 | AO20: 14.6 | AP20: 316 | AQ20: 70 | AR20: 80.4 | AS20: 87 | AT20: 18 | AU20: 102 | AV20: 12 | AW20: 81.5 | AX20: 177 | AY20: 47.7 | AZ20: 10.8 | BA20: 229 | BB20: 52 | BC20: 7.9 | BD20: 1 | BE20: 88.4 | BF20: 16.6 | BG20: 12 | BH20: 90.4 | BI20: 54.8 | BJ20: 72.5 | BK20: 53 | BL20: 161 | BM20: 143 | BN20: 179 | BO20: 108 | BP20: 17 | BQ20: 18 | BR20: 39 | BS20: 6 | BT20: 154 | BU20: 148 | BV20: 288.1 | BW20: =Table2[[#This Row],[SF]]/Table2[[#This Row],[CF]] -> 0.54784689 | BX20: =Table2[[#This Row],[MSF]]/Table2[[#This Row],[CF]] -> 0.2081339713 | BY20: =Table2[[#This Row],[BSF]]/Table2[[#This Row],[CF]] -> 0.2440191388
A21: 5v4 | B21: Up1 | C21: BUF | D21: 42 | E21: 20052006 | F21: 1900-01-12 | G21: 0 | H21: 12 | I21: 80.6 | J21: 95.3 | K21: 74.2 | L21: 13 | M21: 100 | N21: 54.4 | O21: 113 | P21: 86 | Q21: 76.5 | R21: 27 | S21: 39 | T21: 12 | U21: 17.2 | V21: 5.3 | W21: 22.5 | X21: 80.7 | Y21: 73 | Z21: 96 | AA21: 23 | AB21: 42.3 | AC21: 10.1 | AD21: 52.5 | AE21: 80.6 | AF21: 132 | AG21: 174 | AH21: 42 | AI21: 76.8 | AJ21: 18.5 | AK21: 95.3 | AL21: 78.5 | AM21: 90 | AN21: 54.7 | AO21: 15 | AP21: 124 | AQ21: 34 | AR21: 69.7 | AS21: 32 | AT21: 5 | AU21: 50 | AV21: 8 | AW21: 76 | AX21: 63 | AY21: 40.6 | AZ21: 12.8 | BA21: 92 | BB21: 29 | BC21: 5.3 | BD21: 0 | BE21: 100 | BF21: 13 | BG21: 9.7 | BH21: 100 | BI21: 52.9 | BJ21: 74.2 | BK21: 54.4 | BL21: 74 | BM21: 62 | BN21: 80 | BO21: 43 | BP21: 13 | BQ21: 15 | BR21: 22 | BS21: 2 | BT21: 65 | BU21: 63 | BV21: 136 | BW21: =Table2[[#This Row],[SF]]/Table2[[#This Row],[CF]] -> 0.5287356322 | BX21: =Table2[[#This Row],[MSF]]/Table2[[#This Row],[CF]] -> 0.183908046 | BY21: =Table2[[#This Row],[BSF]]/Table2[[#This Row],[CF]] -> 0.2873563218
A22: 5v4 | B22: Close | C22: CAR | D22: 77 | E22: 20052006 | F22: 1900-02-21 | G22: 8 | H22: 44 | I22: 81.6 | J22: 117.1 | K22: 70.5 | L22: 11.5 | M22: 92.9 | N22: 58.4 | O22: 104.3 | P22: 88.6 | Q22: 80.9 | R22: 145 | S22: 190 | T22: 45 | U22: 21 | V22: 5 | W22: 26 | X22: 79.5 | Y22: 314 | Z22: 423 | AA22: 109 | AB22: 46.8 | AC22: 12.1 | AD22: 58.9 | AE22: 81.6 | AF22: 668 | AG22: 863 | AH22: 195 | AI22: 95.5 | AJ22: 21.6 | AK22: 117.1 | AL22: 80.7 | AM22: 490 | AN22: 71.3 | AO22: 17 | AP22: 644 | AQ22: 154 | AR22: 88.3 | AS22: 190 | AT22: 42 | AU22: 219 | AV22: 41 | AW22: 80.2 | AX22: 342 | AY22: 50.2 | AZ22: 12.4 | BA22: 454 | BB22: 112 | BC22: 5.8 | BD22: 0.9 | BE22: 86.7 | BF22: 11.5 | BG22: 8.1 | BH22: 92.9 | BI22: 52.6 | BJ22: 70.5 | BK22: 58.4 | BL22: 345 | BM22: 246 | BN22: 374 | BO22: 169 | BP22: 48 | BQ22: 36 | BR22: 92 | BS22: 11 | BT22: 280 | BU22: 269 | BV22: 542.1 | BW22: =Table2[[#This Row],[SF]]/Table2[[#This Row],[CF]] -> 0.5260718424 | BX22: =Table2[[#This Row],[MSF]]/Table2[[#This Row],[CF]] -> 0.2201622248 | BY22: =Table2[[#This Row],[BSF]]/Table2[[#This Row],[CF]] -> 0.2537659328
